Workbook

Sheet DATOS
D4: Ministerio de Hacienda
D5: Dirección General de Contabilidad Nacional
D6: Anexo de Notas a los Estados Financieros Entidades
D7: =IFERROR(PROPER(D17),"") -> Junio 2024
C10: NOMBRE_ARCHIVO | D10: =MID(CELL("filename"),FIND("[",CELL("filename"))+1, FIND("]", CELL("filename"))-(FIND("[",CELL("filename"))+1)) -> 15603_T02_2024 Anexo_Estado_Notas_Contables_Sin_Vinculos.xlsm
C11: GRUPO_INSTITUCIONAL | D11: =IFERROR(VLOOKUP(D12,PARAMETROS!F:I,4,0),"") -> SECTOR_MUNICIPAL
C12: CODIGO_ENTIDAD | D12: =IFERROR(IF(MID(D10,1,5)="XXXXX","",MID(D10,1,5)),"") -> 15603
C13: NOMBRE_INSTITUCION | D13: =IFERROR(IF(MID(D10,1,5)="XXXXX","",VLOOKUP(D12,PARAMETROS!F:G,2,0)),"") -> Municipalidad de Buenos Aires
C14: PERIODO | D14: =IFERROR(IF(MID(D10,7,3)="PXX","",MID(D10,7,3)),"") -> T02
C15: PERIODO_CONTABLE | D15: =IFERROR(IF(MID(D10,1,5)="XXXXX","","Del"&" "&"01"&" "&"de"&" "&"Enero"&" "&"al"&" "&IF(MID(D10,7,3)="PXX","",VLOOKUP(MID(D10,7,3),PARAMETROS!M:O,3,0))),"") -> Del 01 de Enero al 30 de Junio
C16: AÑO | D16: =IFERROR(IF(MID(D10,1,5)="XXXXX","",MID(D10,11,4)),"") -> 2024
C17: PERIODO_ACTUAL | D17: =IFERROR(IF(MID(D10,1,5)="XXXXX","",VLOOKUP(MID(D10,7,3),PARAMETROS!M:N,2,0)&" "&MID(D10,11,4)),"") -> JUNIO 2024
C18: PERIODO_ANTERIOR | D18: =IFERROR(IF(MID(D10,1,5)="XXXXX","",VLOOKUP(MID(D10,7,3),PARAMETROS!M:N,2,0)&" "&((TEXT(MID(D10,11,4),0)))-1),"") -> JUNIO 2023
D25: Firma Digital del Representante Legal
D26: Nombre del Representante Legal:
D32: Firma Digital del Jerarca Institucional
D33: Nombre del Jerarca:
D39: Firma Digital del Contador
D40: Nombre del Contador:

Sheet BC_ACTUAL
A9: CODIGO SEGMENTO | B9: CUENTA (REPORTAR MÁXIMO A NIVEL 8) | C9: NOMBRE CUENTA | D9: SALDO INICIAL | E9: DEBITOS PERIODO | F9: CREDITOS PERIODO | G9: SALDO FINAL
A10: 3.1 | B10: 1. | C10: ACTIVO | D10: 1.658328453e+11 | E10: 9632467224 | F10: 7481418260 | G10: 1.679838943e+11
A11: 3.1 | B11: 1.1. | C11: Activo Corriente | D11: 2822037062 | E11: 9196775857 | F11: 7248270264 | G11: 4770542655
A12: 3.1 | B12: 1.1.1. | C12: Efectivo equivalentes de efectivo | D12: 2106811911 | E12: 4162651036 | F12: 4395708119 | G12: 1873754828
A13: 3.1 | B13: 1.1.1.01. | C13: Efectivo | D13: 2106811911 | E13: 3493337325 | F13: 4365708119 | G13: 1234441118
A14: 3.1 | B14: 1.1.1.01.02. | C14: Depósitos bancarios | D14: 2103561911 | E14: 3493337325 | F14: 4365708119 | G14: 1231191118
A15: 3.1 | B15: 1.1.1.01.02.02. | C15: Depósitos bancarios en el sector público interno | D15: 2103561911 | E15: 3493337325 | F15: 4365708119 | G15: 1231191118
A16: 3.1 | B16: 1.1.1.01.02.02.2. | C16: Cuentas corrientes en el sector público interno | D16: 687233539.5 | E16: 1085346021 | F16: 1640436828 | G16: 132142732.9
A17: 3.1 | B17: 1.1.1.01.02.02.2.21101 | C17: Banco Costa Rica | D17: 372598001.7 | E17: 165661058.4 | F17: 501879721.4 | G17: 36379338.67
A18: 3.1 | B18: 1.1.1.01.02.02.2.21103 | C18: Banco Nacional de Costa Rica | D18: 314635537.9 | E18: 919684962.9 | F18: 1138557107 | G18: 95763394.27
A19: 3.1 | B19: 1.1.1.01.02.02.3. | C19: Caja Única | D19: 1416328372 | E19: 2407991304 | F19: 2725271291 | G19: 1099048385
A20: 3.1 | B20: 1.1.1.01.02.02.3.11206 | C20: Ministerio de Hacienda | D20: 1416328372 | E20: 2407991304 | F20: 2725271291 | G20: 1099048385
A21: 3.1 | B21: 1.1.1.01.03. | C21: Cajas chicas fondos rotatorios | D21: 3250000 | E21: 0 | F21: 0 | G21: 3250000
A22: 3.1 | B22: 1.1.1.01.03.01. | C22: Cajas chicas | D22: 2250000 | E22: 0 | F22: 0 | G22: 2250000
A23: 3.1 | B23: 1.1.1.01.03.01.2. | C23: Cajas chicas en el país | D23: 2250000 | E23: 0 | F23: 0 | G23: 2250000
A24: 3.1 | B24: 1.1.1.01.03.01.2.99999 | C24: Cajas chicas en el país | D24: 2250000 | E24: 0 | F24: 0 | G24: 2250000
A25: 3.1 | B25: 1.1.1.01.03.02. | C25: Fondos rotatorios | D25: 1000000 | E25: 0 | F25: 0 | G25: 1000000
A26: 3.1 | B26: 1.1.1.01.03.02.2. | C26: Fondos rotatorios en el sector público interno | D26: 1000000 | E26: 0 | F26: 0 | G26: 1000000
A27: 3.1 | B27: 1.1.1.01.03.02.2.99999 | C27: Fondos rotatorios en el sector público interno | D27: 1000000 | E27: 0 | F27: 0 | G27: 1000000
A28: 3.1 | B28: 1.1.1.02. | C28: Equivalentes de efectivo | D28: 0 | E28: 669313710.7 | F28: 30000000 | G28: 639313710.7
A29: 3.1 | B29: 1.1.1.02.99. | C29: Otros equivalentes de efectivo | D29: 0 | E29: 669313710.7 | F29: 30000000 | G29: 639313710.7
A30: 3.1 | B30: 1.1.1.02.99.02. | C30: Otros equivalentes de efectivo en el sector público interno | D30: 0 | E30: 669313710.7 | F30: 30000000 | G30: 639313710.7
A31: 3.1 | B31: 1.1.1.02.99.02.0. | C31: Otros equivalentes de efectivo en el sector público interno | D31: 0 | E31: 669313710.7 | F31: 30000000 | G31: 639313710.7
A32: 3.1 | B32: 1.1.1.02.99.02.0.21101 | C32: Banco Costa Rica | D32: 0 | E32: 334652013.4 | F32: 15000000 | G32: 319652013.4
A33: 3.1 | B33: 1.1.1.02.99.02.0.21103 | C33: Banco Nacional de Costa Rica | D33: 0 | E33: 334661697.3 | F33: 15000000 | G33: 319661697.3
A34: 3.1 | B34: 1.1.3. | C34: Cuentas a cobrar a c/p | D34: 495942436.4 | E34: 4977275919 | F34: 2787364820 | G34: 2685853535
A35: 3.1 | B35: 1.1.3.01. | C35: Impuestos a cobrar a c/p | D35: 488369513.4 | E35: 746681273 | F35: 824202998 | G35: 410847788.4
A36: 3.1 | B36: 1.1.3.01.02. | C36: Impuestos sobre la propiedad a cobrar c/p | D36: 454864572.4 | E36: 576428574.9 | F36: 645850949.2 | G36: 385442198.1
A37: 3.1 | B37: 1.1.3.01.02.01. | C37: Impuesto sobre la propiedad de bienes inmuebles a cobrar c/p | D37: 454864572.4 | E37: 576428574.9 | F37: 645850949.2 | G37: 385442198.1
A38: 3.1 | B38: 1.1.3.01.02.01.0. | C38: Impuesto sobre la propiedad de bienes inmuebles a cobrar c/p | D38: 454864572.4 | E38: 576428574.9 | F38: 645850949.2 | G38: 385442198.1
A39: 3.1 | B39: 1.1.3.01.02.01.0.99999 | C39: Impuesto sobre la propiedad de bienes inmuebles a cobrar c/p | D39: 454864572.4 | E39: 576428574.9 | F39: 645850949.2 | G39: 385442198.1
A40: 3.1 | B40: 1.1.3.01.03. | C40: Impuestos sobre bienes y servicios a cobrar c/p | D40: 33504940.95 | E40: 170252698.2 | F40: 178352048.8 | G40: 25405590.33
A41: 3.1 | B41: 1.1.3.01.03.99. | C41: Otros Impuestos sobre bienes y servicios a cobrar c/p | D41: 33504940.95 | E41: 170252698.2 | F41: 178352048.8 | G41: 25405590.33
A42: 3.1 | B42: 1.1.3.01.03.99.1. | C42: Licencias profesionales, comerciales y otros permisos a cobrar c/p | D42: 30044160.51 | E42: 162077559.9 | F42: 171233997.5 | G42: 20887722.91
A43: 3.1 | B43: 1.1.3.01.03.99.1.99999 | C43: Licencias profesionales, comerciales y otros permisos a cobrar c/p | D43: 30044160.51 | E43: 162077559.9 | F43: 171233997.5 | G43: 20887722.91
A44: 3.1 | B44: 1.1.3.01.03.99.9. | C44: Otros impuestos varios sobre bienes y servicios a cobrar c/p | D44: 3460780.44 | E44: 8175138.3 | F44: 7118051.32 | G44: 4517867.42
A45: 3.1 | B45: 1.1.3.01.03.99.9.99999 | C45: Otros impuestos varios sobre bienes y servicios a cobrar c/p | D45: 3460780.44 | E45: 8175138.3 | F45: 7118051.32 | G45: 4517867.42
A46: 3.1 | B46: 1.1.3.04. | C46: Servicios y derechos a cobrar a corto plazo | D46: 180183637.8 | E46: 442013787.3 | F46: 380055723.6 | G46: 242141701.5
A47: 3.1 | B47: 1.1.3.04.01. | C47: Servicios a cobrar c/p | D47: 179741182.8 | E47: 441354308.9 | F47: 379465228.6 | G47: 241630263.1
A48: 3.1 | B48: 1.1.3.04.01.04. | C48: Servicios comunitarios a cobrar c/p | D48: 179741182.8 | E48: 441354308.9 | F48: 379465228.6 | G48: 241630263.1
A49: 3.1 | B49: 1.1.3.04.01.04.0. | C49: Servicios comunitarios a cobrar c/p | D49: 179741182.8 | E49: 441354308.9 | F49: 379465228.6 | G49: 241630263.1
A50: 3.1 | B50: 1.1.3.04.01.04.0.99999 | C50: Servicios comunitarios a cobrar c/p | D50: 179741182.8 | E50: 441354308.9 | F50: 379465228.6 | G50: 241630263.1
A51: 3.1 | B51: 1.1.3.04.02. | C51: Derechos administrativos a cobrar c/p | D51: 442455 | E51: 659478.33 | F51: 590495 | G51: 511438.33
A52: 3.1 | B52: 1.1.3.04.02.01. | C52: Derechos administrativos a los servicios de transporte a cobrar c/p | D52: 50000 | E52: 430000 | F52: 400000 | G52: 80000
A53: 3.1 | B53: 1.1.3.04.02.01.0. | C53: Derechos administrativos a los servicios de transporte a cobrar c/p | D53: 50000 | E53: 430000 | F53: 400000 | G53: 80000
A54: 3.1 | B54: 1.1.3.04.02.01.0.99999 | C54: Derechos administrativos a los servicios de transporte a cobrar c/p Derecho de piso uso terminal | D54: 50000 | E54: 430000 | F54: 400000 | G54: 80000
A55: 3.1 | B55: 1.1.3.04.02.99. | C55: Otros derechos administrativos a cobrar c/p | D55: 392455 | E55: 229478.33 | F55: 190495 | G55: 431438.33
A56: 3.1 | B56: 1.1.3.04.02.99.0. | C56: Otros derechos administrativos a cobrar c/p | D56: 392455 | E56: 229478.33 | F56: 190495 | G56: 431438.33
A57: 3.1 | B57: 1.1.3.04.02.99.0.99999 | C57: Otros derechos administrativos a cobrar c/p Derecho cementerio | D57: 392455 | E57: 229478.33 | F57: 190495 | G57: 431438.33
A58: 3.1 | B58: 1.1.3.06. | C58: Transferencias a cobrar a c/p | D58: 0 | E58: 3784139549 | F58: 1579396225 | G58: 2204743324
A59: 3.1 | B59: 1.1.3.06.02. | C59: Transferencias del sector público interno a cobrar c/p | D59: 0 | E59: 3784139549 | F59: 1579396225 | G59: 2204743324
A60: 3.1 | B60: 1.1.3.06.02.01. | C60: Transferencias del Gobierno Central a cobrar c/p | D60: 0 | E60: 3772816719 | F60: 1572006966 | G60: 2200809753
A61: 3.1 | B61: 1.1.3.06.02.01.0. | C61: Transferencias del Gobierno Central a cobrar c/p | D61: 0 | E61: 3772816719 | F61: 1572006966 | G61: 2200809753
A62: 3.1 | B62: 1.1.3.06.02.01.0.11206 | C62: Ministerio de Hacienda | D62: 0 | E62: 3772816719 | F62: 1572006966 | G62: 2200809753
A63: 3.1 | B63: 1.1.3.06.02.03. | C63: Transferencias de Instituciones Descentralizadas no Empresariales a cobrar c/p | D63: 0 | E63: 11322830.07 | F63: 7389258.57 | G63: 3933571.5
A64: 3.1 | B64: 1.1.3.06.02.03.0. | C64: Transferencias de Instituciones Descentralizadas no Empresariales a cobrar c/p | D64: 0 | E64: 11322830.07 | F64: 7389258.57 | G64: 3933571.5
A65: 3.1 | B65: 1.1.3.06.02.03.0.14226 | C65: Transferencias de Instituciones Descentralizadas no Empresariales a cobrar c/p (Aporte IFAM Licores Nacionales y Ext) | D65: 0 | E65: 11322830.07 | F65: 7389258.57 | G65: 3933571.5
A66: 3.1 | B66: 1.1.3.98. | C66: Otras cuentas a cobrar a corto plazo | D66: 2767182.6 | E66: 4441310.1 | F66: 3709874.1 | G66: 3498618.6
A67: 3.1 | B67: 1.1.3.98.01. | C67: Multas, sanciones, remates y confiscaciones de origen no tributario a cobrar c/p | D67: 2267182.6 | E67: 4441310.1 | F67: 3709874.1 | G67: 2998618.6
A68: 3.1 | B68: 1.1.3.98.01.01. | C68: Multas y sanciones administrativas a cobrar c/p | D68: 2267182.6 | E68: 4441310.1 | F68: 3709874.1 | G68: 2998618.6
A69: 3.1 | B69: 1.1.3.98.01.01.0. | C69: Multas y sanciones administrativas a cobrar c/p | D69: 2267182.6 | E69: 4441310.1 | F69: 3709874.1 | G69: 2998618.6
A70: 3.1 | B70: 1.1.3.98.01.01.0.99999 | C70: Multas y sanciones administrativas a cobrar c/p | D70: 2267182.6 | E70: 4441310.1 | F70: 3709874.1 | G70: 2998618.6
A71: 3.1 | B71: 1.1.3.98.03. | C71: Depósitos en garantía c/p | D71: 500000 | E71: 0 | F71: 0 | G71: 500000
A72: 3.1 | B72: 1.1.3.98.03.02. | C72: Depósitos en garantía en el sector público interno c/p | D72: 500000 | E72: 0 | F72: 0 | G72: 500000
A73: 3.1 | B73: 1.1.3.98.03.02.0. | C73: Depósitos en garantía en el sector público interno c/p | D73: 500000 | E73: 0 | F73: 0 | G73: 500000
A74: 3.1 | B74: 1.1.3.98.03.02.0.99999 | C74: Depósitos en garantía en el sector público interno c/p | D74: 500000 | E74: 0 | F74: 0 | G74: 500000
A75: 3.1 | B75: 1.1.3.99. | C75: Previsiones para deterioro de cuentas a cobrar a corto plazo * | D75: -175377897.4 | E75: 0 | F75: 0 | G75: -175377897.4
A76: 3.1 | B76: 1.1.3.99.01. | C76: Previsiones para impuestos a cobrar c/p * | D76: -116983004.6 | E76: 0 | F76: 0 | G76: -116983004.6
A77: 3.1 | B77: 1.1.3.99.01.02. | C77: Previsiones para impuestos sobre la propiedad a cobrar c/p * | D77: -106283608.3 | E77: 0 | F77: 0 | G77: -106283608.3
A78: 3.1 | B78: 1.1.3.99.01.02.0. | C78: Previsiones para impuestos sobre la propiedad a cobrar c/p * | D78: -106283608.3 | E78: 0 | F78: 0 | G78: -106283608.3
A79: 3.1 | B79: 1.1.3.99.01.02.0.99999 | C79: Previsiones para impuestos sobre la propiedad a cobrar c/p * | D79: -106283608.3 | E79: 0 | F79: 0 | G79: -106283608.3
A80: 3.1 | B80: 1.1.3.99.01.03. | C80: Previsiones para impuestos sobre bienes y servicios a cobrar c/p * | D80: -9270015.01 | E80: 0 | F80: 0 | G80: -9270015.01
A81: 3.1 | B81: 1.1.3.99.01.03.0. | C81: Previsiones para impuestos sobre bienes y servicios a cobrar c/p * | D81: -9270015.01 | E81: 0 | F81: 0 | G81: -9270015.01
A82: 3.1 | B82: 1.1.3.99.01.03.0.99999 | C82: Previsiones para impuestos sobre bienes y servicios a cobrar c/p * | D82: -9270015.01 | E82: 0 | F82: 0 | G82: -9270015.01
A83: 3.1 | B83: 1.1.3.99.01.99. | C83: Previsiones para otros impuestos a cobrar c/p * | D83: -1429381.33 | E83: 0 | F83: 0 | G83: -1429381.33
A84: 3.1 | B84: 1.1.3.99.01.99.0. | C84: Previsiones para otros impuestos a cobrar c/p * | D84: -1429381.33 | E84: 0 | F84: 0 | G84: -1429381.33
A85: 3.1 | B85: 1.1.3.99.01.99.0.99999 | C85: Previsiones para otros impuestos a cobrar c/p * | D85: -1429381.33 | E85: 0 | F85: 0 | G85: -1429381.33
A86: 3.1 | B86: 1.1.3.99.04. | C86: Previsiones para servicios a cobrar c/p * | D86: -51378929.55 | E86: 0 | F86: 0 | G86: -51378929.55
A87: 3.1 | B87: 1.1.3.99.04.01. | C87: Previsiones para ventas de servicios a cobrar c/p * | D87: -50738208.69 | E87: 0 | F87: 0 | G87: -50738208.69
A88: 3.1 | B88: 1.1.3.99.04.01.0. | C88: Previsiones para ventas de servicios a cobrar c/p * | D88: -50738208.69 | E88: 0 | F88: 0 | G88: -50738208.69
A89: 3.1 | B89: 1.1.3.99.04.01.0.99999 | C89: Previsiones para ventas de servicios a cobrar c/p * | D89: -50738208.69 | E89: 0 | F89: 0 | G89: -50738208.69
A90: 3.1 | B90: 1.1.3.99.04.02. | C90: Previsiones para derechos administrativos a cobrar c/p * | D90: -640720.86 | E90: 0 | F90: 0 | G90: -640720.86
A91: 3.1 | B91: 1.1.3.99.04.02.0. | C91: Previsiones para derechos administrativos a cobrar c/p * | D91: -640720.86 | E91: 0 | F91: 0 | G91: -640720.86
A92: 3.1 | B92: 1.1.3.99.04.02.0.99999 | C92: Previsiones para derechos administrativos a cobrar c/p * | D92: -640720.86 | E92: 0 | F92: 0 | G92: -640720.86
A93: 3.1 | B93: 1.1.3.99.05. | C93: Previsiones para ingresos de la propiedad a cobrar c/p * | D93: -7015963.19 | E93: 0 | F93: 0 | G93: -7015963.19
A94: 3.1 | B94: 1.1.3.99.05.01. | C94: Previsiones para alquileres y derechos sobre bienes a cobrar c/p * | D94: -7015963.19 | E94: 0 | F94: 0 | G94: -7015963.19
A95: 3.1 | B95: 1.1.3.99.05.01.0. | C95: Previsiones para alquileres y derechos sobre bienes a cobrar c/p * | D95: -7015963.19 | E95: 0 | F95: 0 | G95: -7015963.19
A96: 3.1 | B96: 1.1.3.99.05.01.0.99999 | C96: Previsiones para alquileres y derechos sobre bienes a cobrar c/p * | D96: -7015963.19 | E96: 0 | F96: 0 | G96: -7015963.19
A97: 3.1 | B97: 1.1.4. | C97: Inventarios | D97: 192987092.2 | E97: 34370643.62 | F97: 32995207.93 | G97: 194362527.9
A98: 3.1 | B98: 1.1.4.01. | C98: Materiales y suministros para consumo y prestación de servicios | D98: 192987092.2 | E98: 34370643.62 | F98: 32995207.93 | G98: 194362527.9
A99: 3.1 | B99: 1.1.4.01.01. | C99: Productos químicos y conexos | D99: 21280495.09 | E99: 1224651.7 | F99: 6028183.39 | G99: 16476963.4
A100: 3.1 | B100: 1.1.4.01.01.01. | C100: Combustibles y lubricantes | D100: 17684339.46 | E100: 0 | F100: 5186785.24 | G100: 12497554.22
A101: 3.1 | B101: 1.1.4.01.01.01.0. | C101: Combustibles y lubricantes | D101: 17684339.46 | E101: 0 | F101: 5186785.24 | G101: 12497554.22
A102: 3.1 | B102: 1.1.4.01.01.01.0.99999 | C102: Combustibles y lubricantes | D102: 17684339.46 | E102: 0 | F102: 5186785.24 | G102: 12497554.22
A103: 3.1 | B103: 1.1.4.01.01.02. | C103: Productos farmacéuticos y medicinales | D103: 6400 | E103: 0 | F103: 6400 | G103: 0
A104: 3.1 | B104: 1.1.4.01.01.02.0. | C104: Productos farmacéuticos y medicinales | D104: 6400 | E104: 0 | F104: 6400 | G104: 0
A105: 3.1 | B105: 1.1.4.01.01.02.0.99999 | C105: Productos farmacéuticos y medicinales | D105: 6400 | E105: 0 | F105: 6400 | G105: 0
A106: 3.1 | B106: 1.1.4.01.01.04. | C106: Tintas, pinturas y diluyentes | D106: 2775593.63 | E106: 1191051.7 | F106: 512008.25 | G106: 3454637.08
A107: 3.1 | B107: 1.1.4.01.01.04.0. | C107: Tintas, pinturas y diluyentes | D107: 2775593.63 | E107: 1191051.7 | F107: 512008.25 | G107: 3454637.08
A108: 3.1 | B108: 1.1.4.01.01.04.0.99999 | C108: Tintas, pinturas y diluyentes | D108: 2775593.63 | E108: 1191051.7 | F108: 512008.25 | G108: 3454637.08
A109: 3.1 | B109: 1.1.4.01.01.99. | C109: Otros productos químicos y conexos | D109: 814162 | E109: 33600 | F109: 322989.9 | G109: 524772.1
A110: 3.1 | B110: 1.1.4.01.01.99.0. | C110: Otros productos químicos y conexos | D110: 814162 | E110: 33600 | F110: 322989.9 | G110: 524772.1
A111: 3.1 | B111: 1.1.4.01.01.99.0.99999 | C111: Otros productos químicos y conexos | D111: 814162 | E111: 33600 | F111: 322989.9 | G111: 524772.1
A112: 3.1 | B112: 1.1.4.01.03. | C112: Materiales y productos de uso en la construcción y mantenimiento | D112: 30127789.25 | E112: 3332210.2 | F112: 9561175.8 | G112: 23898823.65
A113: 3.1 | B113: 1.1.4.01.03.01. | C113: Materiales y productos metálicos | D113: 25238704.2 | E113: 263620 | F113: 4162159.39 | G113: 21340164.81
A114: 3.1 | B114: 1.1.4.01.03.01.0. | C114: Materiales y productos metálicos | D114: 25238704.2 | E114: 263620 | F114: 4162159.39 | G114: 21340164.81
A115: 3.1 | B115: 1.1.4.01.03.01.0.99999 | C115: Materiales y productos metálicos | D115: 25238704.2 | E115: 263620 | F115: 4162159.39 | G115: 21340164.81
A116: 3.1 | B116: 1.1.4.01.03.02. | C116: Materiales y productos minerales y asfálticos | D116: 3708677 | E116: 3004645.2 | F116: 4489554 | G116: 2223768.2
A117: 3.1 | B117: 1.1.4.01.03.02.0. | C117: Materiales y productos minerales y asfálticos | D117: 3708677 | E117: 3004645.2 | F117: 4489554 | G117: 2223768.2
A118: 3.1 | B118: 1.1.4.01.03.02.0.99999 | C118: Materiales y productos minerales y asfálticos | D118: 3708677 | E118: 3004645.2 | F118: 4489554 | G118: 2223768.2
A119: 3.1 | B119: 1.1.4.01.03.03. | C119: Madera y sus derivados | D119: 896515 | E119: 63945 | F119: 895210 | G119: 65250
A120: 3.1 | B120: 1.1.4.01.03.03.0. | C120: Madera y sus derivados | D120: 896515 | E120: 63945 | F120: 895210 | G120: 65250
A121: 3.1 | B121: 1.1.4.01.03.03.0.99999 | C121: Madera y sus derivados | D121: 896515 | E121: 63945 | F121: 895210 | G121: 65250
A122: 3.1 | B122: 1.1.4.01.03.04. | C122: Materiales y productos eléctricos, telefónicos y de cómputo | D122: 135171.56 | E122: 0 | F122: 14252.41 | G122: 120919.15
A123: 3.1 | B123: 1.1.4.01.03.04.0. | C123: Materiales y productos eléctricos, telefónicos y de cómputo | D123: 135171.56 | E123: 0 | F123: 14252.41 | G123: 120919.15
A124: 3.1 | B124: 1.1.4.01.03.04.0.99999 | C124: Materiales y productos eléctricos, telefónicos y de cómputo | D124: 135171.56 | E124: 0 | F124: 14252.41 | G124: 120919.15
A125: 3.1 | B125: 1.1.4.01.03.06. | C125: Materiales y productos de plástico | D125: 148721.49 | E125: 0 | F125: 0 | G125: 148721.49
A126: 3.1 | B126: 1.1.4.01.03.06.0. | C126: Materiales y productos de plástico | D126: 148721.49 | E126: 0 | F126: 0 | G126: 148721.49
A127: 3.1 | B127: 1.1.4.01.03.06.0.99999 | C127: Materiales y productos de plástico | D127: 148721.49 | E127: 0 | F127: 0 | G127: 148721.49
A128: 3.1 | B128: 1.1.4.01.04. | C128: Herramientas, repuestos y accesorios | D128: 131278007.8 | E128: 16486340.68 | F128: 6049097.56 | G128: 141715250.9
A129: 3.1 | B129: 1.1.4.01.04.01. | C129: Herramientas e instrumentos | D129: 1233641.5 | E129: 412156.69 | F129: 387506.69 | G129: 1258291.5
A130: 3.1 | B130: 1.1.4.01.04.01.0. | C130: Herramientas e instrumentos | D130: 1233641.5 | E130: 412156.69 | F130: 387506.69 | G130: 1258291.5
A131: 3.1 | B131: 1.1.4.01.04.01.0.99999 | C131: Herramientas e instrumentos | D131: 1233641.5 | E131: 412156.69 | F131: 387506.69 | G131: 1258291.5
A132: 3.1 | B132: 1.1.4.01.04.02. | C132: Repuestos y accesorios Nuevos | D132: 130044366.3 | E132: 16074183.99 | F132: 5661590.87 | G132: 140456959.4
A133: 3.1 | B133: 1.1.4.01.04.02.0. | C133: Repuestos y accesorios Nuevos | D133: 130044366.3 | E133: 16074183.99 | F133: 5661590.87 | G133: 140456959.4
A134: 3.1 | B134: 1.1.4.01.04.02.0.99999 | C134: Repuestos y accesorios Nuevos | D134: 130044366.3 | E134: 16074183.99 | F134: 5661590.87 | G134: 140456959.4
A135: 3.1 | B135: 1.1.4.01.99. | C135: Útiles, materiales y suministros diversos | D135: 10300800.1 | E135: 13327441.04 | F135: 11356751.18 | G135: 12271489.96
A136: 3.1 | B136: 1.1.4.01.99.01. | C136: Útiles y materiales de oficina y cómputo | D136: 1943168.61 | E136: 434614.23 | F136: 530781.48 | G136: 1847001.36
A137: 3.1 | B137: 1.1.4.01.99.01.0. | C137: Útiles y materiales de oficina y cómputo | D137: 1943168.61 | E137: 434614.23 | F137: 530781.48 | G137: 1847001.36
A138: 3.1 | B138: 1.1.4.01.99.01.0.99999 | C138: Útiles y materiales de oficina y cómputo | D138: 1943168.61 | E138: 434614.23 | F138: 530781.48 | G138: 1847001.36
A139: 3.1 | B139: 1.1.4.01.99.02. | C139: Útiles y materiales médico, hospitalario y de investigación | D139: 0 | E139: 675000 | F139: 486000 | G139: 189000
A140: 3.1 | B140: 1.1.4.01.99.02.0. | C140: Útiles y materiales médico, hospitalario y de investigación | D140: 0 | E140: 675000 | F140: 486000 | G140: 189000
A141: 3.1 | B141: 1.1.4.01.99.02.0.99999 | C141: Útiles y materiales médico, hospitalario y de investigación | D141: 0 | E141: 675000 | F141: 486000 | G141: 189000
A142: 3.1 | B142: 1.1.4.01.99.03. | C142: Productos de papel, cartón e impresos | D142: 2730589.18 | E142: 607392 | F142: 616819.09 | G142: 2721162.09
A143: 3.1 | B143: 1.1.4.01.99.03.0. | C143: Productos de papel, cartón e impresos | D143: 2730589.18 | E143: 607392 | F143: 616819.09 | G143: 2721162.09
A144: 3.1 | B144: 1.1.4.01.99.03.0.99999 | C144: Productos de papel, cartón e impresos | D144: 2730589.18 | E144: 607392 | F144: 616819.09 | G144: 2721162.09
A145: 3.1 | B145: 1.1.4.01.99.04. | C145: Textiles y vestuario | D145: 306936.35 | E145: 5217922 | F145: 5122114 | G145: 402744.35
A146: 3.1 | B146: 1.1.4.01.99.04.0. | C146: Textiles y vestuario | D146: 306936.35 | E146: 5217922 | F146: 5122114 | G146: 402744.35
A147: 3.1 | B147: 1.1.4.01.99.04.0.99999 | C147: Textiles y vestuario | D147: 306936.35 | E147: 5217922 | F147: 5122114 | G147: 402744.35
A148: 3.1 | B148: 1.1.4.01.99.05. | C148: Útiles y materiales de limpieza | D148: 2737377.74 | E148: 1523296.77 | F148: 1336421.2 | G148: 2924253.31
A149: 3.1 | B149: 1.1.4.01.99.05.0. | C149: Útiles y materiales de limpieza | D149: 2737377.74 | E149: 1523296.77 | F149: 1336421.2 | G149: 2924253.31
A150: 3.1 | B150: 1.1.4.01.99.05.0.99999 | C150: Útiles y materiales de limpieza | D150: 2737377.74 | E150: 1523296.77 | F150: 1336421.2 | G150: 2924253.31
A151: 3.1 | B151: 1.1.4.01.99.06. | C151: Útiles y materiales de resguardo y seguridad | D151: 2042904.22 | E151: 4609053.04 | F151: 3180245.41 | G151: 3471711.85
A152: 3.1 | B152: 1.1.4.01.99.06.0. | C152: Útiles y materiales de resguardo y seguridad | D152: 2042904.22 | E152: 4609053.04 | F152: 3180245.41 | G152: 3471711.85
A153: 3.1 | B153: 1.1.4.01.99.06.0.99999 | C153: Útiles y materiales de resguardo y seguridad | D153: 2042904.22 | E153: 4609053.04 | F153: 3180245.41 | G153: 3471711.85
A154: 3.1 | B154: 1.1.4.01.99.99. | C154: Otros útiles, materiales y suministros diversos | D154: 539824 | E154: 260163 | F154: 84370 | G154: 715617
A155: 3.1 | B155: 1.1.4.01.99.99.0. | C155: Otros útiles, materiales y suministros diversos | D155: 539824 | E155: 260163 | F155: 84370 | G155: 715617
A156: 3.1 | B156: 1.1.4.01.99.99.0.99999 | C156: Otros útiles, materiales y suministros diversos | D156: 539824 | E156: 260163 | F156: 84370 | G156: 715617
A157: 3.1 | B157: 1.1.9. | C157: Otros activos a corto plazo | D157: 26295622.24 | E157: 22478258 | F157: 32202116.93 | G157: 16571763.31
A158: 3.1 | B158: 1.1.9.01. | C158: Gastos a devengar a corto plazo | D158: 26295622.24 | E158: 22478258 | F158: 32202116.93 | G158: 16571763.31
A159: 3.1 | B159: 1.1.9.01.01. | C159: Servicios a devengar c/p | D159: 26295622.24 | E159: 22478258 | F159: 32202116.93 | G159: 16571763.31
A160: 3.1 | B160: 1.1.9.01.01.01. | C160: Primas y gastos de seguros a devengar c/p | D160: 26295622.24 | E160: 22478258 | F160: 32202116.93 | G160: 16571763.31
A161: 3.1 | B161: 1.1.9.01.01.01.0. | C161: Primas y gastos de seguros a devengar c/p | D161: 26295622.24 | E161: 22478258 | F161: 32202116.93 | G161: 16571763.31
A162: 3.1 | B162: 1.1.9.01.01.01.0.99999 | C162: Primas y gastos de seguros a devengar c/p | D162: 26295622.24 | E162: 22478258 | F162: 32202116.93 | G162: 16571763.31
A163: 3.1 | B163: 1.2. | C163: Activo No Corriente | D163: 1.630108083e+11 | E163: 435691366.4 | F163: 233147995.6 | G163: 1.632133516e+11
A164: 3.1 | B164: 1.2.5. | C164: Bienes no concesionados | D164: 1.630108083e+11 | E164: 435691366.4 | F164: 233147995.6 | G164: 1.632133516e+11
A165: 3.1 | B165: 1.2.5.01. | C165: Propiedades, planta y equipos explotados | D165: 2155163988 | E165: 414166124.8 | F165: 222530477 | G165: 2346799636
A166: 3.1 | B166: 1.2.5.01.02. | C166: Edificios | D166: 1250873081 | E166: 45381425.83 | F166: 42607579.66 | G166: 1253646927
A167: 3.1 | B167: 1.2.5.01.02.01. | C167: Edificios de oficinas atención al públ | D167: 439702157.1 | E167: 1436968.18 | F167: 4867888.12 | G167: 436271237.1
A168: 3.1 | B168: 1.2.5.01.02.01.1. | C168: Edificios de oficinas y atención público Valores Origen | D168: 258127776.8 | E168: 0 | F168: 0 | G168: 258127776.8
A169: 3.1 | B169: 1.2.5.01.02.01.1.99999 | C169: Edificios de oficinas y atención público Valores Origen | D169: 258127776.8 | E169: 0 | F169: 0 | G169: 258127776.8
A170: 3.1 | B170: 1.2.5.01.02.01.3. | C170: Edificios oficinas y atención público Depreciación Acumulada | D170: -9149119.74 | E170: 1436968.18 | F170: 4867888.12 | G170: -12580039.68
A171: 3.1 | B171: 1.2.5.01.02.01.3.99999 | C171: Edificios oficinas y atención público Depreciación Acumulada | D171: -9149119.74 | E171: 1436968.18 | F171: 4867888.12 | G171: -12580039.68
A172: 3.1 | B172: 1.2.5.01.02.01.6. | C172: Edificios oficinas y atención público Porción Terreno Valores Origen | D172: 190723500 | E172: 0 | F172: 0 | G172: 190723500
A173: 3.1 | B173: 1.2.5.01.02.01.6.99999 | C173: Edificios oficinas y atención público Porción Terreno Valores Origen | D173: 190723500 | E173: 0 | F173: 0 | G173: 190723500
A174: 3.1 | B174: 1.2.5.01.02.04. | C174: Bodegas | D174: 0 | E174: 15931666.67 | F174: 8690000.01 | G174: 7241666.66
A175: 3.1 | B175: 1.2.5.01.02.04.1. | C175: Bodegas Valores de origen | D175: 0 | E175: 15800000 | F175: 0 | G175: 15800000
A176: 3.1 | B176: 1.2.5.01.02.04.1.99999 | C176: Bodegas Valores de origen | D176: 0 | E176: 15800000 | F176: 0 | G176: 15800000
A177: 3.1 | B177: 1.2.5.01.02.04.3. | C177: Bodegas Depreciaciones acumuladas * | D177: 0 | E177: 131666.67 | F177: 8690000.01 | G177: -8558333.34
A178: 3.1 | B178: 1.2.5.01.02.04.3.99999 | C178: Bodegas Depreciaciones acumuladas * | D178: 0 | E178: 131666.67 | F178: 8690000.01 | G178: -8558333.34
A179: 3.1 | B179: 1.2.5.01.02.05. | C179: Locales | D179: 297585392.3 | E179: 7750489.01 | F179: 4833505.83 | G179: 300502375.5
A180: 3.1 | B180: 1.2.5.01.02.05.1. | C180: Locales Valores de origen | D180: 198576095.4 | E180: 0 | F180: 0 | G180: 198576095.4
A181: 3.1 | B181: 1.2.5.01.02.05.1.99999 | C181: Locales Valores de origen | D181: 198576095.4 | E181: 0 | F181: 0 | G181: 198576095.4
A182: 3.1 | B182: 1.2.5.01.02.05.3. | C182: Locales Depreciaciones acumuladas * | D182: -6823353.09 | E182: 2180339.01 | F182: 4833505.83 | G182: -9476519.91
A183: 3.1 | B183: 1.2.5.01.02.05.3.99999 | C183: Locales Depreciaciones acumuladas * | D183: -6823353.09 | E183: 2180339.01 | F183: 4833505.83 | G183: -9476519.91
A184: 3.1 | B184: 1.2.5.01.02.05.5. | C184: Locales Mejoras | D184: 0 | E184: 5570150 | F184: 0 | G184: 5570150
A185: 3.1 | B185: 1.2.5.01.02.05.5.99999 | C185: Locales Mejoras | D185: 0 | E185: 5570150 | F185: 0 | G185: 5570150
A186: 3.1 | B186: 1.2.5.01.02.05.6. | C186: Locales Porción terreno: valores de origen | D186: 105832650 | E186: 0 | F186: 0 | G186: 105832650
A187: 3.1 | B187: 1.2.5.01.02.05.6.99999 | C187: Locales Porción terreno: valores de origen | D187: 105832650 | E187: 0 | F187: 0 | G187: 105832650
A188: 3.1 | B188: 1.2.5.01.02.99. | C188: Otros edificios | D188: 513585531.3 | E188: 20262301.97 | F188: 24216185.7 | G188: 509631647.6
A189: 3.1 | B189: 1.2.5.01.02.99.1. | C189: Otros edificios Valores de origen | D189: 362322050.9 | E189: 20205550 | F189: 20205550 | G189: 362322050.9
A190: 3.1 | B190: 1.2.5.01.02.99.1.99999 | C190: Otros edificios Valores de origen | D190: 362322050.9 | E190: 20205550 | F190: 20205550 | G190: 362322050.9
A191: 3.1 | B191: 1.2.5.01.02.99.3. | C191: Otros edificios Depreciaciones acumuladas * | D191: -10193719.61 | E191: 56751.97 | F191: 4010635.7 | G191: -14147603.34
A192: 3.1 | B192: 1.2.5.01.02.99.3.99999 | C192: Otros edificios Depreciaciones acumuladas * | D192: -10193719.61 | E192: 56751.97 | F192: 4010635.7 | G192: -14147603.34
A193: 3.1 | B193: 1.2.5.01.02.99.6. | C193: Otros edificios Porción terreno: valores de origen | D193: 161457200 | E193: 0 | F193: 0 | G193: 161457200
A194: 3.1 | B194: 1.2.5.01.02.99.6.99999 | C194: Otros edificios Porción terreno: valores de origen | D194: 161457200 | E194: 0 | F194: 0 | G194: 161457200
A195: 3.1 | B195: 1.2.5.01.03. | C195: Maquinaria equipos para la producción | D195: 786374546 | E195: 283057053.1 | F195: 131104820.5 | G195: 938326778.5
A196: 3.1 | B196: 1.2.5.01.03.01. | C196: Maquinaria para la construcción | D196: 754306983.3 | E196: 276310126.2 | F196: 126061948.3 | G196: 904555161.2
A197: 3.1 | B197: 1.2.5.01.03.01.1. | C197: Maquinaria para la construcción Valores de origen | D197: 1997638164 | E197: 275638032.1 | F197: 0 | G197: 2273276196
A198: 3.1 | B198: 1.2.5.01.03.01.1.99999 | C198: Maquinaria para la construcción Valores de origen | D198: 1997638164 | E198: 275638032.1 | F198: 0 | G198: 2273276196
A199: 3.1 | B199: 1.2.5.01.03.01.3. | C199: Maq para la construcción Depreciaciones acumuladas | D199: -1243331181 | E199: 672094.13 | F199: 126061948.3 | G199: -1368721035
A200: 3.1 | B200: 1.2.5.01.03.01.3.99999 | C200: Maq para la construcción Depreciaciones acumuladas | D200: -1243331181 | E200: 672094.13 | F200: 126061948.3 | G200: -1368721035
A201: 3.1 | B201: 1.2.5.01.03.03. | C201: Planta eléctrica | D201: 3500057.28 | E201: 0 | F201: 172989.48 | G201: 3327067.8
A202: 3.1 | B202: 1.2.5.01.03.03.1. | C202: Planta eléctrica Valores de origen | D202: 5189684.8 | E202: 0 | F202: 0 | G202: 5189684.8
A203: 3.1 | B203: 1.2.5.01.03.03.1.99999 | C203: Planta eléctrica Valores de origen | D203: 5189684.8 | E203: 0 | F203: 0 | G203: 5189684.8
A204: 3.1 | B204: 1.2.5.01.03.03.3. | C204: Planta eléctrica Depreciaciones acumuladas * | D204: -1689627.52 | E204: 0 | F204: 172989.48 | G204: -1862617
A205: 3.1 | B205: 1.2.5.01.03.03.3.99999 | C205: Planta eléctrica Depreciaciones acumuladas * | D205: -1689627.52 | E205: 0 | F205: 172989.48 | G205: -1862617
A206: 3.1 | B206: 1.2.5.01.03.06. | C206: Equipos hidráulicos | D206: 181634.5 | E206: 0 | F206: 10580.64 | G206: 171053.86
A207: 3.1 | B207: 1.2.5.01.03.06.1. | C207: Equipos hidráulicos Valores de origen | D207: 280058 | E207: 0 | F207: 0 | G207: 280058
A208: 3.1 | B208: 1.2.5.01.03.06.1.99999 | C208: Equipos hidráulicos Valores de origen | D208: 280058 | E208: 0 | F208: 0 | G208: 280058
... 765 more rows

Sheet BC_ANTERIOR
A9: CODIGO SEGMENTO | B9: CUENTA (REPORTAR MÁXIMO A NIVEL 8) | C9: NOMBRE CUENTA | D9: SALDO INICIAL | E9: DEBITOS PERIODO | F9: CREDITOS PERIODO | G9: SALDO FINAL
A10: 3.1 | B10: 1. | C10: ACTIVO | D10: 1.662327302e+11 | E10: 8884775720 | F10: 7336730614 | G10: 1.677807753e+11
A11: 3.1 | B11: 1.1. | C11: Activo Corriente | D11: 3349699858 | E11: 8781486518 | F11: 7050042721 | G11: 5081143654
A12: 3.1 | B12: 1.1.1. | C12: Efectivo equivalentes de efectivo | D12: 2705767389 | E12: 3497603673 | F12: 3981408459 | G12: 2221962604
A13: 3.1 | B13: 1.1.1.01. | C13: Efectivo | D13: 2705767389 | E13: 3035246348 | F13: 3981408459 | G13: 1759605279
A14: 3.1 | B14: 1.1.1.01.02. | C14: Depósitos bancarios | D14: 2704317389 | E14: 3031496348 | F14: 3979458459 | G14: 1756355279
A15: 3.1 | B15: 1.1.1.01.02.02. | C15: Depósitos bancarios en el sector público interno | D15: 2704317389 | E15: 3031496348 | F15: 3979458459 | G15: 1756355279
A16: 3.1 | B16: 1.1.1.01.02.02.2. | C16: Cuentas corrientes en el sector público interno | D16: 600136255.9 | E16: 1010356459 | F16: 1374096966 | G16: 236395748.8
A17: 3.1 | B17: 1.1.1.01.02.02.2.21101 | C17: Banco Costa Rica | D17: 478691142.3 | E17: 97783946.55 | F17: 513445571.5 | G17: 63029517.34
A18: 3.1 | B18: 1.1.1.01.02.02.2.21103 | C18: Banco Nacional de Costa Rica | D18: 121445113.7 | E18: 912572512.6 | F18: 860651394.8 | G18: 173366231.4
A19: 3.1 | B19: 1.1.1.01.02.02.3. | C19: Caja Única | D19: 2104181133 | E19: 2021139889 | F19: 2605361492 | G19: 1519959530
A20: 3.1 | B20: 1.1.1.01.02.02.3.11206 | C20: Ministerio de Hacienda | D20: 2104181133 | E20: 2021139889 | F20: 2605361492 | G20: 1519959530
A21: 3.1 | B21: 1.1.1.01.02.02.9. | C21: Otros depósitos bancarios sector público interno | D21: 0 | E21: 0 | F21: 0 | G21: 0
A22: 3.1 | B22: 1.1.1.01.02.02.9.99999 | C22: Otros depósitos bancarios sector público interno | D22: 0 | E22: 0 | F22: 0 | G22: 0
A23: 3.1 | B23: 1.1.1.01.03. | C23: Cajas chicas fondos rotatorios | D23: 1450000 | E23: 3750000 | F23: 1950000 | G23: 3250000
A24: 3.1 | B24: 1.1.1.01.03.01. | C24: Cajas chicas | D24: 450000 | E24: 3750000 | F24: 1950000 | G24: 2250000
A25: 3.1 | B25: 1.1.1.01.03.01.2. | C25: Cajas chicas en el país | D25: 450000 | E25: 3750000 | F25: 1950000 | G25: 2250000
A26: 3.1 | B26: 1.1.1.01.03.01.2.99999 | C26: Cajas chicas en el país | D26: 450000 | E26: 3750000 | F26: 1950000 | G26: 2250000
A27: 3.1 | B27: 1.1.1.01.03.02. | C27: Fondos rotatorios | D27: 1000000 | E27: 0 | F27: 0 | G27: 1000000
A28: 3.1 | B28: 1.1.1.01.03.02.2. | C28: Fondos rotatorios en el sector público interno | D28: 1000000 | E28: 0 | F28: 0 | G28: 1000000
A29: 3.1 | B29: 1.1.1.01.03.02.2.99999 | C29: Fondos rotatorios en el sector público interno | D29: 1000000 | E29: 0 | F29: 0 | G29: 1000000
A30: 3.1 | B30: 1.1.1.02. | C30: Equivalentes de efectivo | D30: 0 | E30: 462357324.5 | F30: 0 | G30: 462357324.5
A31: 3.1 | B31: 1.1.1.02.99. | C31: Otros equivalentes de efectivo | D31: 0 | E31: 462357324.5 | F31: 0 | G31: 462357324.5
A32: 3.1 | B32: 1.1.1.02.99.02. | C32: Otros equivalentes de efectivo en el sector público interno | D32: 0 | E32: 462357324.5 | F32: 0 | G32: 462357324.5
A33: 3.1 | B33: 1.1.1.02.99.02.0. | C33: Otros equivalentes de efectivo en el sector público interno | D33: 0 | E33: 462357324.5 | F33: 0 | G33: 462357324.5
A34: 3.1 | B34: 1.1.1.02.99.02.0.21101 | C34: Banco Costa Rica | D34: 0 | E34: 231308253.5 | F34: 0 | G34: 231308253.5
A35: 3.1 | B35: 1.1.1.02.99.02.0.21103 | C35: Banco Nacional de Costa Rica | D35: 0 | E35: 231049071.1 | F35: 0 | G35: 231049071.1
A36: 3.1 | B36: 1.1.2. | C36: Inversiones a corto plazo | D36: 0 | E36: 0 | F36: 0 | G36: 0
A37: 3.1 | B37: 1.1.2.01. | C37: Títulos y valores a valor razonable a corto plazo | D37: 0 | E37: 0 | F37: 0 | G37: 0
A38: 3.1 | B38: 1.1.2.01.02. | C38: Títulos y valores a valor razonable del sector público interno c/p | D38: 0 | E38: 0 | F38: 0 | G38: 0
A39: 3.1 | B39: 1.1.2.01.02.06. | C39: Títulos y valores a valor razonable de Instituciones Públicas Financieras c/p | D39: 0 | E39: 0 | F39: 0 | G39: 0
A40: 3.1 | B40: 1.1.2.01.02.06.0. | C40: Títulos y valores a valor razonable de Instituciones Públicas Financieras c/p | D40: 0 | E40: 0 | F40: 0 | G40: 0
A41: 3.1 | B41: 1.1.2.01.02.06.0.21101 | C41: Títulos y valores a valor razonable de Instituciones Públicas Financieras c/p Banco de Costa Rica | D41: 0 | E41: 0 | F41: 0 | G41: 0
A42: 3.1 | B42: 1.1.2.01.02.06.0.21103 | C42: Titulos y valores a Valores a valor de Instituciones Públicas Dinancieras del Banco Nacional de Costa Rica | D42: 0 | E42: 0 | F42: 0 | G42: 0
A43: 3.1 | B43: 1.1.2.98. | C43: Otras inversiones a corto plazo | D43: 0 | E43: 0 | F43: 0 | G43: 0
A44: 3.1 | B44: 1.1.2.98.01. | C44: Rentas a cobrar por títulos y valores c/p | D44: 0 | E44: 0 | F44: 0 | G44: 0
A45: 3.1 | B45: 1.1.2.98.01.02. | C45: Rentas a cobrar por títulos y valores del sector público interno c/p | D45: 0 | E45: 0 | F45: 0 | G45: 0
A46: 3.1 | B46: 1.1.2.98.01.02.0. | C46: Rentas a cobrar por títulos y valores del sector público interno c/p | D46: 0 | E46: 0 | F46: 0 | G46: 0
A47: 3.1 | B47: 1.1.2.98.01.02.0.21101 | C47: Banco De Costa Rica | D47: 0 | E47: 0 | F47: 0 | G47: 0
A48: 3.1 | B48: 1.1.2.98.01.02.0.21103 | C48: Banco Nacional De Costa Rica | D48: 0 | E48: 0 | F48: 0 | G48: 0
A49: 3.1 | B49: 1.1.3. | C49: Cuentas a cobrar a c/p | D49: 616617332.2 | E49: 5079389404 | F49: 3034691807 | G49: 2661314929
A50: 3.1 | B50: 1.1.3.01. | C50: Impuestos a cobrar a c/p | D50: 619441745.8 | E50: 943619123.9 | F50: 1125804442 | G50: 437256427.5
A51: 3.1 | B51: 1.1.3.01.02. | C51: Impuestos sobre la propiedad a cobrar c/p | D51: 583097545.6 | E51: 775445449.2 | F51: 951937099.9 | G51: 406605894.9
A52: 3.1 | B52: 1.1.3.01.02.01. | C52: Impuesto sobre la propiedad de bienes inmuebles a cobrar c/p | D52: 583097545.6 | E52: 775445449.2 | F52: 951937099.9 | G52: 406605894.9
A53: 3.1 | B53: 1.1.3.01.02.01.0. | C53: Impuesto sobre la propiedad de bienes inmuebles a cobrar c/p | D53: 583097545.6 | E53: 775445449.2 | F53: 951937099.9 | G53: 406605894.9
A54: 3.1 | B54: 1.1.3.01.02.01.0.99999 | C54: Impuesto sobre la propiedad de bienes inmuebles a cobrar c/p | D54: 583097545.6 | E54: 775445449.2 | F54: 951937099.9 | G54: 406605894.9
A55: 3.1 | B55: 1.1.3.01.03. | C55: Impuestos sobre bienes y servicios a cobrar c/p | D55: 36344200.19 | E55: 168173674.7 | F55: 173867342.2 | G55: 30650532.64
A56: 3.1 | B56: 1.1.3.01.03.02. | C56: Impuestos específicos sobre la producción y consumo de bienes y servicios a cobrar c/p | D56: 0 | E56: 0 | F56: 0 | G56: 0
A57: 3.1 | B57: 1.1.3.01.03.02.2. | C57: Impuestos específicos sobre la producción y consumo de servicios a cobrar c/p | D57: 0 | E57: 0 | F57: 0 | G57: 0
A58: 3.1 | B58: 1.1.3.01.03.02.2.99999 | C58: Impuestos específicos sobre la producción y consumo de servicios a cobrar c/p | D58: 0 | E58: 0 | F58: 0 | G58: 0
A59: 3.1 | B59: 1.1.3.01.03.99. | C59: Otros Impuestos sobre bienes y servicios a cobrar c/p | D59: 36344200.19 | E59: 168173674.7 | F59: 173867342.2 | G59: 30650532.64
A60: 3.1 | B60: 1.1.3.01.03.99.1. | C60: Licencias profesionales, comerciales y otros permisos a cobrar c/p | D60: 34052862.94 | E60: 161166962.4 | F60: 166834126.7 | G60: 28385698.64
A61: 3.1 | B61: 1.1.3.01.03.99.1.99999 | C61: Licencias profesionales, comerciales y otros permisos a cobrar c/p | D61: 34052862.94 | E61: 161166962.4 | F61: 166834126.7 | G61: 28385698.64
A62: 3.1 | B62: 1.1.3.01.03.99.9. | C62: Otros impuestos varios sobre bienes y servicios a cobrar c/p | D62: 2291337.25 | E62: 7006712.25 | F62: 7033215.5 | G62: 2264834
A63: 3.1 | B63: 1.1.3.01.03.99.9.99999 | C63: Otros impuestos varios sobre bienes y servicios a cobrar c/p | D63: 2291337.25 | E63: 7006712.25 | F63: 7033215.5 | G63: 2264834
A64: 3.1 | B64: 1.1.3.04. | C64: Servicios y derechos a cobrar a corto plazo | D64: 171480251.5 | E64: 314200623.4 | F64: 315825163.1 | G64: 169855711.8
A65: 3.1 | B65: 1.1.3.04.01. | C65: Servicios a cobrar c/p | D65: 170633251.5 | E65: 313586623.4 | F65: 314985918.1 | G65: 169233956.8
A66: 3.1 | B66: 1.1.3.04.01.04. | C66: Servicios comunitarios a cobrar c/p | D66: 170633251.5 | E66: 313586623.4 | F66: 314985918.1 | G66: 169233956.8
A67: 3.1 | B67: 1.1.3.04.01.04.0. | C67: Servicios comunitarios a cobrar c/p | D67: 170633251.5 | E67: 313586623.4 | F67: 314985918.1 | G67: 169233956.8
A68: 3.1 | B68: 1.1.3.04.01.04.0.99999 | C68: Servicios comunitarios a cobrar c/p | D68: 170633251.5 | E68: 313586623.4 | F68: 314985918.1 | G68: 169233956.8
A69: 3.1 | B69: 1.1.3.04.01.99. | C69: Otras ventas de servicios a cobrar c/p | D69: 0 | E69: 0 | F69: 0 | G69: 0
A70: 3.1 | B70: 1.1.3.04.01.99.0. | C70: Otras ventas de servicios a cobrar c/p | D70: 0 | E70: 0 | F70: 0 | G70: 0
A71: 3.1 | B71: 1.1.3.04.01.99.0.99999 | C71: Otras ventas de servicios a cobrar c/p | D71: 0 | E71: 0 | F71: 0 | G71: 0
A72: 3.1 | B72: 1.1.3.04.02. | C72: Derechos administrativos a cobrar c/p | D72: 847000 | E72: 614000 | F72: 839245 | G72: 621755
A73: 3.1 | B73: 1.1.3.04.02.01. | C73: Derechos administrativos a los servicios de transporte a cobrar c/p | D73: 340000 | E73: 390000 | F73: 610000 | G73: 120000
A74: 3.1 | B74: 1.1.3.04.02.01.0. | C74: Derechos administrativos a los servicios de transporte a cobrar c/p | D74: 340000 | E74: 390000 | F74: 610000 | G74: 120000
A75: 3.1 | B75: 1.1.3.04.02.01.0.99999 | C75: Derechos administrativos a los servicios de transporte a cobrar c/p Derecho de piso uso terminal | D75: 340000 | E75: 390000 | F75: 610000 | G75: 120000
A76: 3.1 | B76: 1.1.3.04.02.99. | C76: Otros derechos administrativos a cobrar c/p | D76: 507000 | E76: 224000 | F76: 229245 | G76: 501755
A77: 3.1 | B77: 1.1.3.04.02.99.0. | C77: Otros derechos administrativos a cobrar c/p | D77: 507000 | E77: 224000 | F77: 229245 | G77: 501755
A78: 3.1 | B78: 1.1.3.04.02.99.0.99999 | C78: Otros derechos administrativos a cobrar c/p Derecho cementerio | D78: 507000 | E78: 224000 | F78: 229245 | G78: 501755
A79: 3.1 | B79: 1.1.3.05. | C79: Ingresos de la propiedad a cobrar a corto plazo | D79: 0 | E79: 0 | F79: 0 | G79: 0
A80: 3.1 | B80: 1.1.3.05.01. | C80: Alquileres y derechos sobre bienes a cobrar c/p | D80: 0 | E80: 0 | F80: 0 | G80: 0
A81: 3.1 | B81: 1.1.3.05.01.01. | C81: Alquileres a cobrar c/p | D81: 0 | E81: 0 | F81: 0 | G81: 0
A82: 3.1 | B82: 1.1.3.05.01.01.0. | C82: Alquileres a cobrar c/p | D82: 0 | E82: 0 | F82: 0 | G82: 0
A83: 3.1 | B83: 1.1.3.05.01.01.0.99999 | C83: Alquileres a cobrar c/p | D83: 0 | E83: 0 | F83: 0 | G83: 0
A84: 3.1 | B84: 1.1.3.06. | C84: Transferencias a cobrar a c/p | D84: 0 | E84: 3811623854 | F84: 1586331584 | G84: 2225292270
A85: 3.1 | B85: 1.1.3.06.02. | C85: Transferencias del sector público interno a cobrar c/p | D85: 0 | E85: 3811623854 | F85: 1586331584 | G85: 2225292270
A86: 3.1 | B86: 1.1.3.06.02.01. | C86: Transferencias del Gobierno Central a cobrar c/p | D86: 0 | E86: 3799661728 | F86: 1583192387 | G86: 2216469341
A87: 3.1 | B87: 1.1.3.06.02.01.0. | C87: Transferencias del Gobierno Central a cobrar c/p | D87: 0 | E87: 3799661728 | F87: 1583192387 | G87: 2216469341
A88: 3.1 | B88: 1.1.3.06.02.01.0.11206 | C88: Ministerio de Hacienda | D88: 0 | E88: 3799661728 | F88: 1583192387 | G88: 2216469341
A89: 3.1 | B89: 1.1.3.06.02.02. | C89: Transferencias de Órganos Desconcentrados a cobrar c/p | D89: 0 | E89: 0 | F89: 0 | G89: 0
A90: 3.1 | B90: 1.1.3.06.02.02.0. | C90: Transferencias de Órganos Desconcentrados a cobrar c/p | D90: 0 | E90: 0 | F90: 0 | G90: 0
A91: 3.1 | B91: 1.1.3.06.02.02.0.12583 | C91: Transfrencias de Organos desconcentrados a cobrar.Consejo Nacional de la Política Pública de la Persona Joven (CPJ) | D91: 0 | E91: 0 | F91: 0 | G91: 0
A92: 3.1 | B92: 1.1.3.06.02.03. | C92: Transferencias de Instituciones Descentralizadas no Empresariales a cobrar c/p | D92: 0 | E92: 11962125.78 | F92: 3139197.43 | G92: 8822928.35
A93: 3.1 | B93: 1.1.3.06.02.03.0. | C93: Transferencias de Instituciones Descentralizadas no Empresariales a cobrar c/p | D93: 0 | E93: 11962125.78 | F93: 3139197.43 | G93: 8822928.35
A94: 3.1 | B94: 1.1.3.06.02.03.0.14226 | C94: Transferencias de Instituciones Descentralizadas no Empresariales a cobrar c/p (Aporte IFAM Licores Nacionales y Ext) | D94: 0 | E94: 11962125.78 | F94: 3139197.43 | G94: 8822928.35
A95: 3.1 | B95: 1.1.3.98. | C95: Otras cuentas a cobrar a corto plazo | D95: 1073232.35 | E95: 9945802.65 | F95: 6730617.5 | G95: 4288417.5
A96: 3.1 | B96: 1.1.3.98.01. | C96: Multas, sanciones, remates y confiscaciones de origen no tributario a cobrar c/p | D96: 1073232.35 | E96: 9445802.65 | F96: 6730617.5 | G96: 3788417.5
A97: 3.1 | B97: 1.1.3.98.01.01. | C97: Multas y sanciones administrativas a cobrar c/p | D97: 1073232.35 | E97: 9445802.65 | F97: 6730617.5 | G97: 3788417.5
A98: 3.1 | B98: 1.1.3.98.01.01.0. | C98: Multas y sanciones administrativas a cobrar c/p | D98: 1073232.35 | E98: 9445802.65 | F98: 6730617.5 | G98: 3788417.5
A99: 3.1 | B99: 1.1.3.98.01.01.0.99999 | C99: Multas y sanciones administrativas a cobrar c/p | D99: 1073232.35 | E99: 9445802.65 | F99: 6730617.5 | G99: 3788417.5
A100: 3.1 | B100: 1.1.3.98.03. | C100: Depósitos en garantía c/p | D100: 0 | E100: 500000 | F100: 0 | G100: 500000
A101: 3.1 | B101: 1.1.3.98.03.02. | C101: Depósitos en garantía en el sector público interno c/p | D101: 0 | E101: 500000 | F101: 0 | G101: 500000
A102: 3.1 | B102: 1.1.3.98.03.02.0. | C102: Depósitos en garantía en el sector público interno c/p | D102: 0 | E102: 500000 | F102: 0 | G102: 500000
A103: 3.1 | B103: 1.1.3.98.03.02.0.99999 | C103: Depósitos en garantía en el sector público interno c/p | D103: 0 | E103: 500000 | F103: 0 | G103: 500000
A104: 3.1 | B104: 1.1.3.99. | C104: Previsiones para deterioro de cuentas a cobrar a corto plazo * | D104: -175377897.4 | E104: 0 | F104: 0 | G104: -175377897.4
A105: 3.1 | B105: 1.1.3.99.01. | C105: Previsiones para impuestos a cobrar c/p * | D105: -116983004.6 | E105: 0 | F105: 0 | G105: -116983004.6
A106: 3.1 | B106: 1.1.3.99.01.02. | C106: Previsiones para impuestos sobre la propiedad a cobrar c/p * | D106: -106283608.3 | E106: 0 | F106: 0 | G106: -106283608.3
A107: 3.1 | B107: 1.1.3.99.01.02.0. | C107: Previsiones para impuestos sobre la propiedad a cobrar c/p * | D107: -106283608.3 | E107: 0 | F107: 0 | G107: -106283608.3
A108: 3.1 | B108: 1.1.3.99.01.02.0.99999 | C108: Previsiones para impuestos sobre la propiedad a cobrar c/p * | D108: -106283608.3 | E108: 0 | F108: 0 | G108: -106283608.3
A109: 3.1 | B109: 1.1.3.99.01.03. | C109: Previsiones para impuestos sobre bienes y servicios a cobrar c/p * | D109: -9270015.01 | E109: 0 | F109: 0 | G109: -9270015.01
A110: 3.1 | B110: 1.1.3.99.01.03.0. | C110: Previsiones para impuestos sobre bienes y servicios a cobrar c/p * | D110: -9270015.01 | E110: 0 | F110: 0 | G110: -9270015.01
A111: 3.1 | B111: 1.1.3.99.01.03.0.99999 | C111: Previsiones para impuestos sobre bienes y servicios a cobrar c/p * | D111: -9270015.01 | E111: 0 | F111: 0 | G111: -9270015.01
A112: 3.1 | B112: 1.1.3.99.01.99. | C112: Previsiones para otros impuestos a cobrar c/p * | D112: -1429381.33 | E112: 0 | F112: 0 | G112: -1429381.33
A113: 3.1 | B113: 1.1.3.99.01.99.0. | C113: Previsiones para otros impuestos a cobrar c/p * | D113: -1429381.33 | E113: 0 | F113: 0 | G113: -1429381.33
A114: 3.1 | B114: 1.1.3.99.01.99.0.99999 | C114: Previsiones para otros impuestos a cobrar c/p * | D114: -1429381.33 | E114: 0 | F114: 0 | G114: -1429381.33
A115: 3.1 | B115: 1.1.3.99.04. | C115: Previsiones para servicios a cobrar c/p * | D115: -51378929.55 | E115: 0 | F115: 0 | G115: -51378929.55
A116: 3.1 | B116: 1.1.3.99.04.01. | C116: Previsiones para ventas de servicios a cobrar c/p * | D116: -50738208.69 | E116: 0 | F116: 0 | G116: -50738208.69
A117: 3.1 | B117: 1.1.3.99.04.01.0. | C117: Previsiones para ventas de servicios a cobrar c/p * | D117: -50738208.69 | E117: 0 | F117: 0 | G117: -50738208.69
A118: 3.1 | B118: 1.1.3.99.04.01.0.99999 | C118: Previsiones para ventas de servicios a cobrar c/p * | D118: -50738208.69 | E118: 0 | F118: 0 | G118: -50738208.69
A119: 3.1 | B119: 1.1.3.99.04.02. | C119: Previsiones para derechos administrativos a cobrar c/p * | D119: -640720.86 | E119: 0 | F119: 0 | G119: -640720.86
A120: 3.1 | B120: 1.1.3.99.04.02.0. | C120: Previsiones para derechos administrativos a cobrar c/p * | D120: -640720.86 | E120: 0 | F120: 0 | G120: -640720.86
A121: 3.1 | B121: 1.1.3.99.04.02.0.99999 | C121: Previsiones para derechos administrativos a cobrar c/p * | D121: -640720.86 | E121: 0 | F121: 0 | G121: -640720.86
A122: 3.1 | B122: 1.1.3.99.05. | C122: Previsiones para ingresos de la propiedad a cobrar c/p * | D122: -7015963.19 | E122: 0 | F122: 0 | G122: -7015963.19
A123: 3.1 | B123: 1.1.3.99.05.01. | C123: Previsiones para alquileres y derechos sobre bienes a cobrar c/p * | D123: -7015963.19 | E123: 0 | F123: 0 | G123: -7015963.19
A124: 3.1 | B124: 1.1.3.99.05.01.0. | C124: Previsiones para alquileres y derechos sobre bienes a cobrar c/p * | D124: -7015963.19 | E124: 0 | F124: 0 | G124: -7015963.19
A125: 3.1 | B125: 1.1.3.99.05.01.0.99999 | C125: Previsiones para alquileres y derechos sobre bienes a cobrar c/p * | D125: -7015963.19 | E125: 0 | F125: 0 | G125: -7015963.19
A126: 3.1 | B126: 1.1.4. | C126: Inventarios | D126: 4559673.55 | E126: 175690912.9 | F126: 3058566.05 | G126: 177192020.4
A127: 3.1 | B127: 1.1.4.01. | C127: Materiales y suministros para consumo y prestación de servicios | D127: 4559673.55 | E127: 175690912.9 | F127: 3058566.05 | G127: 177192020.4
A128: 3.1 | B128: 1.1.4.01.01. | C128: Productos químicos y conexos | D128: 1195234.05 | E128: 12847673.3 | F128: 524066.68 | G128: 13518840.67
A129: 3.1 | B129: 1.1.4.01.01.01. | C129: Combustibles y lubricantes | D129: 0 | E129: 11254837.9 | F129: 106558.48 | G129: 11148279.42
A130: 3.1 | B130: 1.1.4.01.01.01.0. | C130: Combustibles y lubricantes | D130: 0 | E130: 11254837.9 | F130: 106558.48 | G130: 11148279.42
A131: 3.1 | B131: 1.1.4.01.01.01.0.99999 | C131: Combustibles y lubricantes | D131: 0 | E131: 11254837.9 | F131: 106558.48 | G131: 11148279.42
A132: 3.1 | B132: 1.1.4.01.01.02. | C132: Productos farmacéuticos y medicinales | D132: 0 | E132: 0 | F132: 0 | G132: 0
A133: 3.1 | B133: 1.1.4.01.01.02.0. | C133: Productos farmacéuticos y medicinales | D133: 0 | E133: 0 | F133: 0 | G133: 0
A134: 3.1 | B134: 1.1.4.01.01.02.0.99999 | C134: Productos farmacéuticos y medicinales | D134: 0 | E134: 0 | F134: 0 | G134: 0
A135: 3.1 | B135: 1.1.4.01.01.03. | C135: Productos veterinarios | D135: 0 | E135: 0 | F135: 0 | G135: 0
A136: 3.1 | B136: 1.1.4.01.01.03.0. | C136: Productos veterinarios | D136: 0 | E136: 0 | F136: 0 | G136: 0
A137: 3.1 | B137: 1.1.4.01.01.03.0.99999 | C137: Productos veterinarios | D137: 0 | E137: 0 | F137: 0 | G137: 0
A138: 3.1 | B138: 1.1.4.01.01.04. | C138: Tintas, pinturas y diluyentes | D138: 1195234.05 | E138: 1104744.4 | F138: 335110.2 | G138: 1964868.25
A139: 3.1 | B139: 1.1.4.01.01.04.0. | C139: Tintas, pinturas y diluyentes | D139: 1195234.05 | E139: 1104744.4 | F139: 335110.2 | G139: 1964868.25
A140: 3.1 | B140: 1.1.4.01.01.04.0.99999 | C140: Tintas, pinturas y diluyentes | D140: 1195234.05 | E140: 1104744.4 | F140: 335110.2 | G140: 1964868.25
A141: 3.1 | B141: 1.1.4.01.01.99. | C141: Otros productos químicos y conexos | D141: 0 | E141: 488091 | F141: 82398 | G141: 405693
A142: 3.1 | B142: 1.1.4.01.01.99.0. | C142: Otros productos químicos y conexos | D142: 0 | E142: 488091 | F142: 82398 | G142: 405693
A143: 3.1 | B143: 1.1.4.01.01.99.0.99999 | C143: Otros productos químicos y conexos | D143: 0 | E143: 488091 | F143: 82398 | G143: 405693
A144: 3.1 | B144: 1.1.4.01.03. | C144: Materiales y productos de uso en la construcción y mantenimiento | D144: 0 | E144: 31431347.68 | F144: 1318350 | G144: 30112997.68
A145: 3.1 | B145: 1.1.4.01.03.01. | C145: Materiales y productos metálicos | D145: 0 | E145: 26486657.62 | F145: 116140 | G145: 26370517.62
A146: 3.1 | B146: 1.1.4.01.03.01.0. | C146: Materiales y productos metálicos | D146: 0 | E146: 26486657.62 | F146: 116140 | G146: 26370517.62
A147: 3.1 | B147: 1.1.4.01.03.01.0.99999 | C147: Materiales y productos metálicos | D147: 0 | E147: 26486657.62 | F147: 116140 | G147: 26370517.62
A148: 3.1 | B148: 1.1.4.01.03.02. | C148: Materiales y productos minerales y asfálticos | D148: 0 | E148: 3491364 | F148: 1134400 | G148: 2356964
A149: 3.1 | B149: 1.1.4.01.03.02.0. | C149: Materiales y productos minerales y asfálticos | D149: 0 | E149: 3491364 | F149: 1134400 | G149: 2356964
A150: 3.1 | B150: 1.1.4.01.03.02.0.99999 | C150: Materiales y productos minerales y asfálticos | D150: 0 | E150: 3491364 | F150: 1134400 | G150: 2356964
A151: 3.1 | B151: 1.1.4.01.03.03. | C151: Madera y sus derivados | D151: 0 | E151: 1062850 | F151: 26100 | G151: 1036750
A152: 3.1 | B152: 1.1.4.01.03.03.0. | C152: Madera y sus derivados | D152: 0 | E152: 1062850 | F152: 26100 | G152: 1036750
A153: 3.1 | B153: 1.1.4.01.03.03.0.99999 | C153: Madera y sus derivados | D153: 0 | E153: 1062850 | F153: 26100 | G153: 1036750
A154: 3.1 | B154: 1.1.4.01.03.04. | C154: Materiales y productos eléctricos, telefónicos y de cómputo | D154: 0 | E154: 204931.56 | F154: 41710 | G154: 163221.56
A155: 3.1 | B155: 1.1.4.01.03.04.0. | C155: Materiales y productos eléctricos, telefónicos y de cómputo | D155: 0 | E155: 204931.56 | F155: 41710 | G155: 163221.56
A156: 3.1 | B156: 1.1.4.01.03.04.0.99999 | C156: Materiales y productos eléctricos, telefónicos y de cómputo | D156: 0 | E156: 204931.56 | F156: 41710 | G156: 163221.56
A157: 3.1 | B157: 1.1.4.01.03.06. | C157: Materiales y productos de plástico | D157: 0 | E157: 185544.5 | F157: 0 | G157: 185544.5
A158: 3.1 | B158: 1.1.4.01.03.06.0. | C158: Materiales y productos de plástico | D158: 0 | E158: 185544.5 | F158: 0 | G158: 185544.5
A159: 3.1 | B159: 1.1.4.01.03.06.0.99999 | C159: Materiales y productos de plástico | D159: 0 | E159: 185544.5 | F159: 0 | G159: 185544.5
A160: 3.1 | B160: 1.1.4.01.04. | C160: Herramientas, repuestos y accesorios | D160: 0 | E160: 127481362.5 | F160: 24413.11 | G160: 127456949.4
A161: 3.1 | B161: 1.1.4.01.04.01. | C161: Herramientas e instrumentos | D161: 0 | E161: 1280251.55 | F161: 24413.11 | G161: 1255838.44
A162: 3.1 | B162: 1.1.4.01.04.01.0. | C162: Herramientas e instrumentos | D162: 0 | E162: 1280251.55 | F162: 24413.11 | G162: 1255838.44
A163: 3.1 | B163: 1.1.4.01.04.01.0.99999 | C163: Herramientas e instrumentos | D163: 0 | E163: 1280251.55 | F163: 24413.11 | G163: 1255838.44
A164: 3.1 | B164: 1.1.4.01.04.02. | C164: Repuestos y accesorios Nuevos | D164: 0 | E164: 126201111 | F164: 0 | G164: 126201111
A165: 3.1 | B165: 1.1.4.01.04.02.0. | C165: Repuestos y accesorios Nuevos | D165: 0 | E165: 126201111 | F165: 0 | G165: 126201111
A166: 3.1 | B166: 1.1.4.01.04.02.0.99999 | C166: Repuestos y accesorios Nuevos | D166: 0 | E166: 126201111 | F166: 0 | G166: 126201111
A167: 3.1 | B167: 1.1.4.01.99. | C167: Útiles, materiales y suministros diversos | D167: 3364439.5 | E167: 3930529.46 | F167: 1191736.26 | G167: 6103232.7
A168: 3.1 | B168: 1.1.4.01.99.01. | C168: Útiles y materiales de oficina y cómputo | D168: 788819.78 | E168: 26855 | F168: 299237.23 | G168: 516437.55
A169: 3.1 | B169: 1.1.4.01.99.01.0. | C169: Útiles y materiales de oficina y cómputo | D169: 788819.78 | E169: 26855 | F169: 299237.23 | G169: 516437.55
A170: 3.1 | B170: 1.1.4.01.99.01.0.99999 | C170: Útiles y materiales de oficina y cómputo | D170: 788819.78 | E170: 26855 | F170: 299237.23 | G170: 516437.55
A171: 3.1 | B171: 1.1.4.01.99.02. | C171: Útiles y materiales médico, hospitalario y de investigación | D171: 0 | E171: 0 | F171: 0 | G171: 0
A172: 3.1 | B172: 1.1.4.01.99.02.0. | C172: Útiles y materiales médico, hospitalario y de investigación | D172: 0 | E172: 0 | F172: 0 | G172: 0
A173: 3.1 | B173: 1.1.4.01.99.02.0.99999 | C173: Útiles y materiales médico, hospitalario y de investigación | D173: 0 | E173: 0 | F173: 0 | G173: 0
A174: 3.1 | B174: 1.1.4.01.99.03. | C174: Productos de papel, cartón e impresos | D174: 2511724.72 | E174: 0 | F174: 802212.28 | G174: 1709512.44
A175: 3.1 | B175: 1.1.4.01.99.03.0. | C175: Productos de papel, cartón e impresos | D175: 2511724.72 | E175: 0 | F175: 802212.28 | G175: 1709512.44
A176: 3.1 | B176: 1.1.4.01.99.03.0.99999 | C176: Productos de papel, cartón e impresos | D176: 2511724.72 | E176: 0 | F176: 802212.28 | G176: 1709512.44
A177: 3.1 | B177: 1.1.4.01.99.04. | C177: Textiles y vestuario | D177: 0 | E177: 764454.3 | F177: 0 | G177: 764454.3
A178: 3.1 | B178: 1.1.4.01.99.04.0. | C178: Textiles y vestuario | D178: 0 | E178: 764454.3 | F178: 0 | G178: 764454.3
A179: 3.1 | B179: 1.1.4.01.99.04.0.99999 | C179: Textiles y vestuario | D179: 0 | E179: 764454.3 | F179: 0 | G179: 764454.3
A180: 3.1 | B180: 1.1.4.01.99.05. | C180: Útiles y materiales de limpieza | D180: 0 | E180: 498654.3 | F180: 65061.75 | G180: 433592.55
A181: 3.1 | B181: 1.1.4.01.99.05.0. | C181: Útiles y materiales de limpieza | D181: 0 | E181: 498654.3 | F181: 65061.75 | G181: 433592.55
A182: 3.1 | B182: 1.1.4.01.99.05.0.99999 | C182: Útiles y materiales de limpieza | D182: 0 | E182: 498654.3 | F182: 65061.75 | G182: 433592.55
A183: 3.1 | B183: 1.1.4.01.99.06. | C183: Útiles y materiales de resguardo y seguridad | D183: 0 | E183: 2184565.86 | F183: 0 | G183: 2184565.86
A184: 3.1 | B184: 1.1.4.01.99.06.0. | C184: Útiles y materiales de resguardo y seguridad | D184: 0 | E184: 2184565.86 | F184: 0 | G184: 2184565.86
A185: 3.1 | B185: 1.1.4.01.99.06.0.99999 | C185: Útiles y materiales de resguardo y seguridad | D185: 0 | E185: 2184565.86 | F185: 0 | G185: 2184565.86
A186: 3.1 | B186: 1.1.4.01.99.99. | C186: Otros útiles, materiales y suministros diversos | D186: 63895 | E186: 456000 | F186: 25225 | G186: 494670
A187: 3.1 | B187: 1.1.4.01.99.99.0. | C187: Otros útiles, materiales y suministros diversos | D187: 63895 | E187: 456000 | F187: 25225 | G187: 494670
A188: 3.1 | B188: 1.1.4.01.99.99.0.99999 | C188: Otros útiles, materiales y suministros diversos | D188: 63895 | E188: 456000 | F188: 25225 | G188: 494670
A189: 3.1 | B189: 1.1.9. | C189: Otros activos a corto plazo | D189: 22755462.51 | E189: 28802528 | F189: 30883889.53 | G189: 20674100.98
A190: 3.1 | B190: 1.1.9.01. | C190: Gastos a devengar a corto plazo | D190: 22755462.51 | E190: 28802528 | F190: 30883889.53 | G190: 20674100.98
A191: 3.1 | B191: 1.1.9.01.01. | C191: Servicios a devengar c/p | D191: 22755462.51 | E191: 28802528 | F191: 30883889.53 | G191: 20674100.98
A192: 3.1 | B192: 1.1.9.01.01.01. | C192: Primas y gastos de seguros a devengar c/p | D192: 22755462.51 | E192: 28802528 | F192: 30883889.53 | G192: 20674100.98
A193: 3.1 | B193: 1.1.9.01.01.01.0. | C193: Primas y gastos de seguros a devengar c/p | D193: 22755462.51 | E193: 28802528 | F193: 30883889.53 | G193: 20674100.98
A194: 3.1 | B194: 1.1.9.01.01.01.0.99999 | C194: Primas y gastos de seguros a devengar c/p | D194: 22755462.51 | E194: 28802528 | F194: 30883889.53 | G194: 20674100.98
A195: 3.1 | B195: 1.1.9.99. | C195: Activos a corto plazo sujetos a depuración contable | D195: 0 | E195: 0 | F195: 0 | G195: 0
A196: 3.1 | B196: 1.1.9.99.03. | C196: Cuentas a cobrar a corto plazo sujetas a depuración | D196: 0 | E196: 0 | F196: 0 | G196: 0
A197: 3.1 | B197: 1.1.9.99.03.98. | C197: Otras cuentas a cobrar a corto plazo sujetas a depuración | D197: 0 | E197: 0 | F197: 0 | G197: 0
A198: 3.1 | B198: 1.1.9.99.03.98.0. | C198: Otras cuentas a cobrar a corto plazo sujetas a depuración | D198: 0 | E198: 0 | F198: 0 | G198: 0
A199: 3.1 | B199: 1.1.9.99.03.98.0.99999 | C199: Otras cuentas a cobrar a corto plazo sujetas a depuración | D199: 0 | E199: 0 | F199: 0 | G199: 0
A200: 3.1 | B200: 1.2. | C200: Activo No Corriente | D200: 1.628830304e+11 | E200: 103289202.3 | F200: 286687893.1 | G200: 1.626996317e+11
A201: 3.1 | B201: 1.2.5. | C201: Bienes no concesionados | D201: 1.628830304e+11 | E201: 103289202.3 | F201: 286687893.1 | G201: 1.626996317e+11
A202: 3.1 | B202: 1.2.5.01. | C202: Propiedades, planta y equipos explotados | D202: 2087610295 | E202: 22572034.75 | F202: 261616995.6 | G202: 1848565335
A203: 3.1 | B203: 1.2.5.01.02. | C203: Edificios | D203: 1191815588 | E203: 0 | F203: 117620174.5 | G203: 1074195414
A204: 3.1 | B204: 1.2.5.01.02.01. | C204: Edificios de oficinas atención al públ | D204: 421403917.5 | E204: 0 | F204: 41171038.98 | G204: 380232878.5
A205: 3.1 | B205: 1.2.5.01.02.01.1. | C205: Edificios de oficinas y atención público Valores Origen | D205: 258127776.8 | E205: 0 | F205: 0 | G205: 258127776.8
A206: 3.1 | B206: 1.2.5.01.02.01.1.99999 | C206: Edificios de oficinas y atención público Valores Origen | D206: 258127776.8 | E206: 0 | F206: 0 | G206: 258127776.8
A207: 3.1 | B207: 1.2.5.01.02.01.3. | C207: Edificios oficinas y atención público Depreciación Acumulada | D207: -27447359.32 | E207: 0 | F207: 41171038.98 | G207: -68618398.3
A208: 3.1 | B208: 1.2.5.01.02.01.3.99999 | C208: Edificios oficinas y atención público Depreciación Acumulada | D208: -27447359.32 | E208: 0 | F208: 41171038.98 | G208: -68618398.3
... 992 more rows

Sheet EEFF_SITUACION
A1: =DATOS!D13 -> Municipalidad de Buenos Aires
A2: Estado de Situación Financiera o Balance General | G2: Estado de Situación Financiera o Balance General
A3: =DATOS!D15&" "&RIGHT(D6,4) -> Del 01 de Enero al 30 de Junio 2024 | G3: Análisis de Variaciones
A4: - En miles de colones - | G4: =DATOS!D15&" "&RIGHT(D6,4) -> Del 01 de Enero al 30 de Junio 2024
A6: Cuenta | B6: Descripción | C6: Nota | D6: =PROPER(DATOS!D17) -> Junio 2024 | E6: =PROPER(DATOS!D18) -> Junio 2023 | G6: Análisis Vertical (%) Periodo Actual | H6: Análisis Vertical (%) Periodo Anterior | I6: Monto Variación Absoluta | J6: Variación relativa (%)
A8: 1. | B8: ACTIVO
A9: 1.1. | B9: Activo Corriente
A10: 1.1.1. | B10: Efectivo y equivalentes de efectivo | C10: 03 | D10: =SUM(D11:D12) -> 1873754.828 | E10: =SUM(E11:E12) -> 2221962.604 | G10: =IFERROR(D10/$D$91,0) -> 0.01115437189 | H10: =IFERROR(E10/$E$91,0) -> 0.01324324911 | I10: =IFERROR(D10-E10,0) -> -348207.7751 | J10: =IFERROR(I10/E10,0) -> -0.1567118072 | L10: ="La"&" "&"cuenta"&" "&B10&","&" "&"representa"&" "&"el"&" "&TEXT(G10,"0,00%")&" "&"del"&" "&"total"&" "&"del"&" "&IF(MID(A10,1,2)="1.","Activo",IF(MID(A10,1,2)="2.","Pasivo",IF(MID(A10,1,2)="3.","Capital",IF(MID(A10,1,2)="4.","Ingresos",IF(MID(A10,1,2)="5.","Gastos","")))))&","&" "&"que"&" "&"comparado"&" "&"al"&" "&"periodo"&" "&"anterior"&" "&"genera"&" "&"una"&" "&"variación"&" "&"absoluta"&" "&"de"&" "&TEXT(I10,"0 000,00")&" "&"que"&" "&"corresponde"&" "&"a"&" "&"un"&" "&IF(I10<0,"Disminución","Aumento")&" "&"del"&" "&TEXT(J10,"0,00%")&" "&"de"&" "&"recursos"&" "&"disponibles"&"." -> La cuenta Efectivo y equivalentes de efectivo, representa el 1,12% del total del Activo, que comparado al periodo anterior genera una variación absoluta de -348 207,78 que corresponde a un Disminución del -15,67% de recursos disponibles.
A11: 1.1.1.01. | B11: Efectivo | D11: =IFERROR(VLOOKUP(A11,BC_ACTUAL!B:G,6,0)/1000,0) -> 1234441.118 | E11: =IFERROR(VLOOKUP(A11,BC_ANTERIOR!B:G,6,0)/1000,0) -> 1759605.279 | G11: =IFERROR(D11/$D$91,0) -> 0.007348568283 | H11: =IFERROR(E11/$E$91,0) -> 0.01048752621 | I11: =IFERROR(D11-E11,0) -> -525164.1613 | J11: =IFERROR(I11/E11,0) -> -0.2984556636 | L11: ="La"&" "&"cuenta"&" "&B11&","&" "&"representa"&" "&"el"&" "&TEXT(G11,"0,00%")&" "&"del"&" "&"total"&" "&"del"&" "&IF(MID(A11,1,2)="1.","Activo",IF(MID(A11,1,2)="2.","Pasivo",IF(MID(A11,1,2)="3.","Capital",IF(MID(A11,1,2)="4.","Ingresos",IF(MID(A11,1,2)="5.","Gastos","")))))&","&" "&"que"&" "&"comparado"&" "&"al"&" "&"periodo"&" "&"anterior"&" "&"genera"&" "&"una"&" "&"variación"&" "&"absoluta"&" "&"de"&" "&TEXT(I11,"0 000,00")&" "&"que"&" "&"corresponde"&" "&"a"&" "&"un"&" "&IF(I11<0,"Disminución","Aumento")&" "&"del"&" "&TEXT(J11,"0,00%")&" "&"de"&" "&"recursos"&" "&"disponibles"&"." -> La cuenta Efectivo, representa el 0,73% del total del Activo, que comparado al periodo anterior genera una variación absoluta de -525 164,16 que corresponde a un Disminución del -29,85% de recursos disponibles.
A12: 1.1.1.02. | B12: Equivalentes de efectivo | D12: =IFERROR(VLOOKUP(A12,BC_ACTUAL!B:G,6,0)/1000,0) -> 639313.7107 | E12: =IFERROR(VLOOKUP(A12,BC_ANTERIOR!B:G,6,0)/1000,0) -> 462357.3245 | G12: 0.003805803606 | H12: 0.002755722899 | I12: 176956.3861 | J12: 0.3827264688 | L12: La cuenta Equivalentes de efectivo, representa el 0,38% del total del Activo, que comparado al periodo anterior genera una variación absoluta de 176 956,39 que corresponde a un Aumento del 38,27% de recursos disponibles.
A13: 1.1.2. | B13: Inversiones a corto plazo | C13: 04 | D13: =SUM(D14:D18) -> 0 | E13: =SUM(E14:E18) -> 0 | G13: 0 | H13: 0 | I13: 0 | J13: 0 | L13: La cuenta Inversiones a corto plazo, representa el 0,00% del total del Activo, que comparado al periodo anterior genera una variación absoluta de 0 000,00 que corresponde a un Aumento del 0,00% de recursos disponibles.
A14: 1.1.2.01. | B14: Títulos y valores a valor razonable a corto plazo | D14: =IFERROR(VLOOKUP(A14,BC_ACTUAL!B:G,6,0)/1000,0) -> 0 | E14: =IFERROR(VLOOKUP(A14,BC_ANTERIOR!B:G,6,0)/1000,0) -> 0 | G14: 0 | H14: 0 | I14: 0 | J14: =IFERROR(I14/E14,0) -> 0 | L14: La cuenta Títulos y valores a valor razonable a corto plazo, representa el 0,00% del total del Activo, que comparado al periodo anterior genera una variación absoluta de 0 000,00 que corresponde a un Aumento del 0,00% de recursos disponibles.
A15: 1.1.2.02. | B15: Títulos y valores a costo amortizado a corto plazo | D15: =IFERROR(VLOOKUP(A15,BC_ACTUAL!B:G,6,0)/1000,0) -> 0 | E15: =IFERROR(VLOOKUP(A15,BC_ANTERIOR!B:G,6,0)/1000,0) -> 0 | G15: 0 | H15: 0 | I15: 0 | J15: 0 | L15: La cuenta Títulos y valores a costo amortizado a corto plazo, representa el 0,00% del total del Activo, que comparado al periodo anterior genera una variación absoluta de 0 000,00 que corresponde a un Aumento del 0,00% de recursos disponibles.
A16: 1.1.2.03. | B16: Instrumentos Derivados a corto plazo | D16: =IFERROR(VLOOKUP(A16,BC_ACTUAL!B:G,6,0)/1000,0) -> 0 | E16: =IFERROR(VLOOKUP(A16,BC_ANTERIOR!B:G,6,0)/1000,0) -> 0 | G16: 0 | H16: 0 | I16: 0 | J16: 0 | L16: La cuenta Instrumentos Derivados a corto plazo, representa el 0,00% del total del Activo, que comparado al periodo anterior genera una variación absoluta de 0 000,00 que corresponde a un Aumento del 0,00% de recursos disponibles.
A17: 1.1.2.98. | B17: Otras inversiones a corto plazo | D17: =IFERROR(VLOOKUP(A17,BC_ACTUAL!B:G,6,0)/1000,0) -> 0 | E17: =IFERROR(VLOOKUP(A17,BC_ANTERIOR!B:G,6,0)/1000,0) -> 0 | G17: 0 | H17: 0 | I17: 0 | J17: 0 | L17: La cuenta Otras inversiones a corto plazo, representa el 0,00% del total del Activo, que comparado al periodo anterior genera una variación absoluta de 0 000,00 que corresponde a un Aumento del 0,00% de recursos disponibles.
A18: 1.1.2.99. | B18: Previsiones para deterioro de inversiones a corto plazo * | D18: =IFERROR(VLOOKUP(A18,BC_ACTUAL!B:G,6,0)/1000,0) -> 0 | E18: =IFERROR(VLOOKUP(A18,BC_ANTERIOR!B:G,6,0)/1000,0) -> 0 | G18: 0 | H18: 0 | I18: 0 | J18: 0 | L18: La cuenta Previsiones para deterioro de inversiones a corto plazo *, representa el 0,00% del total del Activo, que comparado al periodo anterior genera una variación absoluta de 0 000,00 que corresponde a un Aumento del 0,00% de recursos disponibles.
A19: 1.1.3. | B19: Cuentas a cobrar a corto plazo | C19: 05 | D19: =SUM(D20:D36) -> 2685853.535 | E19: =SUM(E20:E36) -> 2661314.929 | G19: 0.01598875622 | H19: 0.01586185857 | I19: 24538.60632 | J19: 0.00922048197 | L19: La cuenta Cuentas a cobrar a corto plazo, representa el 1,60% del total del Activo, que comparado al periodo anterior genera una variación absoluta de 24 538,61 que corresponde a un Aumento del 0,92% de recursos disponibles.
A20: 1.1.3.01. | B20: Impuestos a cobrar a corto plazo | D20: =IFERROR(VLOOKUP(A20,BC_ACTUAL!B:G,6,0)/1000,0) -> 410847.7884 | E20: =IFERROR(VLOOKUP(A20,BC_ANTERIOR!B:G,6,0)/1000,0) -> 437256.4275 | G20: 0.002445757018 | H20: 0.002606117576 | I20: -26408.63907 | J20: -0.06039622841 | L20: La cuenta Impuestos a cobrar a corto plazo, representa el 0,24% del total del Activo, que comparado al periodo anterior genera una variación absoluta de -26 408,64 que corresponde a un Disminución del -6,04% de recursos disponibles.
A21: 1.1.3.02. | B21: Contribuciones sociales a cobrar a corto plazo | D21: =IFERROR(VLOOKUP(A21,BC_ACTUAL!B:G,6,0)/1000,0) -> 0 | E21: =IFERROR(VLOOKUP(A21,BC_ANTERIOR!B:G,6,0)/1000,0) -> 0 | G21: 0 | H21: 0 | I21: 0 | J21: 0 | L21: La cuenta Contribuciones sociales a cobrar a corto plazo, representa el 0,00% del total del Activo, que comparado al periodo anterior genera una variación absoluta de 0 000,00 que corresponde a un Aumento del 0,00% de recursos disponibles.
A22: 1.1.3.03. | B22: Ventas a cobrar a corto plazo | D22: =IFERROR(VLOOKUP(A22,BC_ACTUAL!B:G,6,0)/1000,0) -> 0 | E22: =IFERROR(VLOOKUP(A22,BC_ANTERIOR!B:G,6,0)/1000,0) -> 0 | G22: 0 | H22: 0 | I22: 0 | J22: 0 | L22: La cuenta Ventas a cobrar a corto plazo, representa el 0,00% del total del Activo, que comparado al periodo anterior genera una variación absoluta de 0 000,00 que corresponde a un Aumento del 0,00% de recursos disponibles.
A23: 1.1.3.04. | B23: Servicios y derechos a cobrar a corto plazo | D23: =IFERROR(VLOOKUP(A23,BC_ACTUAL!B:G,6,0)/1000,0) -> 242141.7015 | E23: =IFERROR(VLOOKUP(A23,BC_ANTERIOR!B:G,6,0)/1000,0) -> 169855.7118 | G23: 0.00144145784 | H23: 0.00101236695 | I23: 72285.9897 | J23: 0.425572911 | L23: La cuenta Servicios y derechos a cobrar a corto plazo, representa el 0,14% del total del Activo, que comparado al periodo anterior genera una variación absoluta de 72 285,99 que corresponde a un Aumento del 42,56% de recursos disponibles.
A24: 1.1.3.05. | B24: Ingresos de la propiedad a cobrar a corto plazo | D24: =IFERROR(VLOOKUP(A24,BC_ACTUAL!B:G,6,0)/1000,0) -> 0 | E24: =IFERROR(VLOOKUP(A24,BC_ANTERIOR!B:G,6,0)/1000,0) -> 0 | G24: 0 | H24: 0 | I24: 0 | J24: 0 | L24: La cuenta Ingresos de la propiedad a cobrar a corto plazo, representa el 0,00% del total del Activo, que comparado al periodo anterior genera una variación absoluta de 0 000,00 que corresponde a un Aumento del 0,00% de recursos disponibles.
A25: 1.1.3.06. | B25: Transferencias a cobrar a corto plazo | D25: =IFERROR(VLOOKUP(A25,BC_ACTUAL!B:G,6,0)/1000,0) -> 2204743.324 | E25: =IFERROR(VLOOKUP(A25,BC_ANTERIOR!B:G,6,0)/1000,0) -> 2225292.27 | G25: 0.0131247304 | H25: 0.01326309445 | I25: -20548.94541 | J25: -0.009234268096 | L25: La cuenta Transferencias a cobrar a corto plazo, representa el 1,31% del total del Activo, que comparado al periodo anterior genera una variación absoluta de -20 548,95 que corresponde a un Disminución del -0,92% de recursos disponibles.
A26: 1.1.3.07. | B26: Préstamos a corto plazo | D26: =IFERROR(VLOOKUP(A26,BC_ACTUAL!B:G,6,0)/1000,0) -> 0 | E26: =IFERROR(VLOOKUP(A26,BC_ANTERIOR!B:G,6,0)/1000,0) -> 0 | G26: 0 | H26: 0 | I26: 0 | J26: 0 | L26: La cuenta Préstamos a corto plazo, representa el 0,00% del total del Activo, que comparado al periodo anterior genera una variación absoluta de 0 000,00 que corresponde a un Aumento del 0,00% de recursos disponibles.
A27: 1.1.3.08. | B27: Documentos a cobrar a corto plazo | D27: =IFERROR(VLOOKUP(A27,BC_ACTUAL!B:G,6,0)/1000,0) -> 0 | E27: =IFERROR(VLOOKUP(A27,BC_ANTERIOR!B:G,6,0)/1000,0) -> 0 | G27: 0 | H27: 0 | I27: 0 | J27: 0 | L27: La cuenta Documentos a cobrar a corto plazo, representa el 0,00% del total del Activo, que comparado al periodo anterior genera una variación absoluta de 0 000,00 que corresponde a un Aumento del 0,00% de recursos disponibles.
A28: 1.1.3.09. | B28: Anticipos a corto plazo | D28: =IFERROR(VLOOKUP(A28,BC_ACTUAL!B:G,6,0)/1000,0) -> 0 | E28: =IFERROR(VLOOKUP(A28,BC_ANTERIOR!B:G,6,0)/1000,0) -> 0 | G28: 0 | H28: 0 | I28: 0 | J28: 0 | L28: La cuenta Anticipos a corto plazo, representa el 0,00% del total del Activo, que comparado al periodo anterior genera una variación absoluta de 0 000,00 que corresponde a un Aumento del 0,00% de recursos disponibles.
A29: 1.1.3.10. | B29: Deudores por avales ejecutados a corto plazo | D29: =IFERROR(VLOOKUP(A29,BC_ACTUAL!B:G,6,0)/1000,0) -> 0 | E29: =IFERROR(VLOOKUP(A29,BC_ANTERIOR!B:G,6,0)/1000,0) -> 0 | G29: 0 | H29: 0 | I29: 0 | J29: 0 | L29: La cuenta Deudores por avales ejecutados a corto plazo, representa el 0,00% del total del Activo, que comparado al periodo anterior genera una variación absoluta de 0 000,00 que corresponde a un Aumento del 0,00% de recursos disponibles.
A30: 1.1.3.11. | B30: Planillas salariales | D30: =IFERROR(VLOOKUP(A30,BC_ACTUAL!B:G,6,0)/1000,0) -> 0 | E30: =IFERROR(VLOOKUP(A30,BC_ANTERIOR!B:G,6,0)/1000,0) -> 0 | G30: 0 | H30: 0 | I30: 0 | J30: 0 | L30: La cuenta Planillas salariales, representa el 0,00% del total del Activo, que comparado al periodo anterior genera una variación absoluta de 0 000,00 que corresponde a un Aumento del 0,00% de recursos disponibles.
A31: 1.1.3.12. | B31: Beneficios Sociales | D31: =IFERROR(VLOOKUP(A31,BC_ACTUAL!B:G,6,0)/1000,0) -> 0 | E31: =IFERROR(VLOOKUP(A31,BC_ANTERIOR!B:G,6,0)/1000,0) -> 0 | G31: 0 | H31: 0 | I31: 0 | J31: 0 | L31: La cuenta Beneficios Sociales, representa el 0,00% del total del Activo, que comparado al periodo anterior genera una variación absoluta de 0 000,00 que corresponde a un Aumento del 0,00% de recursos disponibles.
A32: 1.1.3.13. | B32: Cuentas por Cobrar Cajas Únicas | D32: =IFERROR(VLOOKUP(A32,BC_ACTUAL!B:G,6,0)/1000,0) -> 0 | E32: =IFERROR(VLOOKUP(A32,BC_ANTERIOR!B:G,6,0)/1000,0) -> 0 | G32: 0 | H32: 0 | I32: 0 | J32: 0 | L32: La cuenta Cuentas por Cobrar Cajas Únicas, representa el 0,00% del total del Activo, que comparado al periodo anterior genera una variación absoluta de 0 000,00 que corresponde a un Aumento del 0,00% de recursos disponibles.
A33: 1.1.3.50. | B33: Registro transitorio de transacción de activo fijo | D33: =IFERROR(VLOOKUP(A33,BC_ACTUAL!B:G,6,0)/1000,0) -> 0 | E33: =IFERROR(VLOOKUP(A33,BC_ANTERIOR!B:G,6,0)/1000,0) -> 0 | G33: 0 | H33: 0 | I33: 0 | J33: 0 | L33: La cuenta Registro transitorio de transacción de activo fijo, representa el 0,00% del total del Activo, que comparado al periodo anterior genera una variación absoluta de 0 000,00 que corresponde a un Aumento del 0,00% de recursos disponibles.
A34: 1.1.3.97. | B34: Cuentas a cobrar en gestión judicial | D34: =IFERROR(VLOOKUP(A34,BC_ACTUAL!B:G,6,0)/1000,0) -> 0 | E34: =IFERROR(VLOOKUP(A34,BC_ANTERIOR!B:G,6,0)/1000,0) -> 0 | G34: 0 | H34: 0 | I34: 0 | J34: 0 | L34: La cuenta Cuentas a cobrar en gestión judicial, representa el 0,00% del total del Activo, que comparado al periodo anterior genera una variación absoluta de 0 000,00 que corresponde a un Aumento del 0,00% de recursos disponibles.
A35: 1.1.3.98. | B35: Otras cuentas a cobrar a corto plazo | D35: =IFERROR(VLOOKUP(A35,BC_ACTUAL!B:G,6,0)/1000,0) -> 3498.6186 | E35: =IFERROR(VLOOKUP(A35,BC_ANTERIOR!B:G,6,0)/1000,0) -> 4288.4175 | G35: 2.082710735e-05 | H35: 2.555964765e-05 | I35: -789.7989 | J35: -0.1841702446 | L35: La cuenta Otras cuentas a cobrar a corto plazo, representa el 0,00% del total del Activo, que comparado al periodo anterior genera una variación absoluta de -0 789,80 que corresponde a un Disminución del -18,42% de recursos disponibles.
A36: 1.1.3.99. | B36: Previsiones para deterioro de cuentas a cobrar a corto plazo * | D36: =IFERROR(VLOOKUP(A36,BC_ACTUAL!B:G,6,0)/1000,0) -> -175377.8974 | E36: =IFERROR(VLOOKUP(A36,BC_ANTERIOR!B:G,6,0)/1000,0) -> -175377.8974 | G36: -0.001044016143 | H36: -0.001045280051 | I36: 0 | J36: 0 | L36: La cuenta Previsiones para deterioro de cuentas a cobrar a corto plazo *, representa el -0,10% del total del Activo, que comparado al periodo anterior genera una variación absoluta de 0 000,00 que corresponde a un Aumento del 0,00% de recursos disponibles.
A37: 1.1.4. | B37: Inventarios | C37: 06 | D37: =SUM(D38:D42) -> 194362.5279 | E37: =SUM(E38:E42) -> 177192.0204 | G37: 0.00115703073 | H37: 0.001056092512 | I37: 17170.50746 | J37: 0.09690338999 | L37: La cuenta Inventarios, representa el 0,12% del total del Activo, que comparado al periodo anterior genera una variación absoluta de 17 170,51 que corresponde a un Aumento del 9,69% de recursos disponibles.
A38: 1.1.4.01. | B38: Materiales y suministros para consumo y prestación de servicios | D38: =IFERROR(VLOOKUP(A38,BC_ACTUAL!B:G,6,0)/1000,0) -> 194362.5279 | E38: =IFERROR(VLOOKUP(A38,BC_ANTERIOR!B:G,6,0)/1000,0) -> 177192.0204 | G38: 0.00115703073 | H38: 0.001056092512 | I38: 17170.50746 | J38: 0.09690338999 | L38: La cuenta Materiales y suministros para consumo y prestación de servicios, representa el 0,12% del total del Activo, que comparado al periodo anterior genera una variación absoluta de 17 170,51 que corresponde a un Aumento del 9,69% de recursos disponibles.
A39: 1.1.4.02. | B39: Bienes para la venta | D39: =IFERROR(VLOOKUP(A39,BC_ACTUAL!B:G,6,0)/1000,0) -> 0 | E39: =IFERROR(VLOOKUP(A39,BC_ANTERIOR!B:G,6,0)/1000,0) -> 0 | G39: 0 | H39: 0 | I39: 0 | J39: 0 | L39: La cuenta Bienes para la venta, representa el 0,00% del total del Activo, que comparado al periodo anterior genera una variación absoluta de 0 000,00 que corresponde a un Aumento del 0,00% de recursos disponibles.
A40: 1.1.4.03. | B40: Materias primas y bienes en producción | D40: =IFERROR(VLOOKUP(A40,BC_ACTUAL!B:G,6,0)/1000,0) -> 0 | E40: =IFERROR(VLOOKUP(A40,BC_ANTERIOR!B:G,6,0)/1000,0) -> 0 | G40: 0 | H40: 0 | I40: 0 | J40: 0 | L40: La cuenta Materias primas y bienes en producción, representa el 0,00% del total del Activo, que comparado al periodo anterior genera una variación absoluta de 0 000,00 que corresponde a un Aumento del 0,00% de recursos disponibles.
A41: 1.1.4.04. | B41: Bienes a Transferir sin contraprestación - Donaciones | D41: =IFERROR(VLOOKUP(A41,BC_ACTUAL!B:G,6,0)/1000,0) -> 0 | E41: =IFERROR(VLOOKUP(A41,BC_ANTERIOR!B:G,6,0)/1000,0) -> 0 | G41: 0 | H41: 0 | I41: 0 | J41: 0 | L41: La cuenta Bienes a Transferir sin contraprestación - Donaciones, representa el 0,00% del total del Activo, que comparado al periodo anterior genera una variación absoluta de 0 000,00 que corresponde a un Aumento del 0,00% de recursos disponibles.
A42: 1.1.4.99. | B42: Previsiones para deterioro y pérdidas de inventario * | D42: =IFERROR(VLOOKUP(A42,BC_ACTUAL!B:G,6,0)/1000,0) -> 0 | E42: =IFERROR(VLOOKUP(A42,BC_ANTERIOR!B:G,6,0)/1000,0) -> 0 | G42: 0 | H42: 0 | I42: 0 | J42: 0 | L42: La cuenta Previsiones para deterioro y pérdidas de inventario *, representa el 0,00% del total del Activo, que comparado al periodo anterior genera una variación absoluta de 0 000,00 que corresponde a un Aumento del 0,00% de recursos disponibles.
A43: 1.1.9. | B43: Otros activos a corto plazo | C43: 07 | D43: =SUM(D44:D46) -> 16571.76331 | E43: =SUM(E44:E46) -> 20674.10098 | G43: 9.865090567e-05 | H43: 0.0001232209169 | I43: -4102.33767 | J43: -0.1984288301 | L43: La cuenta Otros activos a corto plazo, representa el 0,01% del total del Activo, que comparado al periodo anterior genera una variación absoluta de -4 102,34 que corresponde a un Disminución del -19,84% de recursos disponibles.
A44: 1.1.9.01. | B44: Gastos a devengar a corto plazo | D44: =IFERROR(VLOOKUP(A44,BC_ACTUAL!B:G,6,0)/1000,0) -> 16571.76331 | E44: =IFERROR(VLOOKUP(A44,BC_ANTERIOR!B:G,6,0)/1000,0) -> 20674.10098 | G44: 9.865090567e-05 | H44: 0.0001232209169 | I44: -4102.33767 | J44: -0.1984288301 | L44: La cuenta Gastos a devengar a corto plazo, representa el 0,01% del total del Activo, que comparado al periodo anterior genera una variación absoluta de -4 102,34 que corresponde a un Disminución del -19,84% de recursos disponibles.
A45: 1.1.9.02. | B45: Cuentas transitorias | D45: =IFERROR(VLOOKUP(A45,BC_ACTUAL!B:G,6,0)/1000,0) -> 0 | E45: =IFERROR(VLOOKUP(A45,BC_ANTERIOR!B:G,6,0)/1000,0) -> 0 | G45: 0 | H45: 0 | I45: 0 | J45: 0 | L45: La cuenta Cuentas transitorias, representa el 0,00% del total del Activo, que comparado al periodo anterior genera una variación absoluta de 0 000,00 que corresponde a un Aumento del 0,00% de recursos disponibles.
A46: 1.1.9.99. | B46: Activos a corto plazo sujetos a depuración contable | D46: =IFERROR(VLOOKUP(A46,BC_ACTUAL!B:G,6,0)/1000,0) -> 0 | E46: =IFERROR(VLOOKUP(A46,BC_ANTERIOR!B:G,6,0)/1000,0) -> 0 | G46: 0 | H46: 0 | I46: 0 | J46: 0 | L46: La cuenta Activos a corto plazo sujetos a depuración contable, representa el 0,00% del total del Activo, que comparado al periodo anterior genera una variación absoluta de 0 000,00 que corresponde a un Aumento del 0,00% de recursos disponibles.
B47: Total del Activo Corriente | D47: =+D43++D37+D19+D13+D10 -> 4770542.655 | E47: =+E43++E37+E19+E13+E10 -> 5081143.654 | G47: =+G43++G37+G19+G13+G10 -> 0.02839880975 | H47: =+H43++H37+H19+H13+H10 -> 0.03028442111 | I47: =+I43++I37+I19+I13+I10 -> -310600.999 | J47: -0.06112816724
A49: 1.2. | B49: Activo No Corriente
A50: 1.2.2. | B50: Inversiones a largo plazo | C50: 08 | D50: =SUM(D51:D55) -> 0 | E50: =SUM(E51:E55) -> 0 | G50: 0 | H50: =IFERROR(E50/$E$91,0) -> 0 | I50: 0 | J50: 0 | L50: La cuenta Inversiones a largo plazo, representa el 0,00% del total del Activo, que comparado al periodo anterior genera una variación absoluta de 0 000,00 que corresponde a un Aumento del 0,00% de recursos disponibles.
A51: 1.2.2.01. | B51: Títulos y valores a valor razonable a largo plazo | D51: =IFERROR(VLOOKUP(A51,BC_ACTUAL!B:G,6,0)/1000,0) -> 0 | E51: =IFERROR(VLOOKUP(A51,BC_ANTERIOR!B:G,6,0)/1000,0) -> 0 | G51: 0 | H51: 0 | I51: 0 | J51: 0 | L51: La cuenta Títulos y valores a valor razonable a largo plazo, representa el 0,00% del total del Activo, que comparado al periodo anterior genera una variación absoluta de 0 000,00 que corresponde a un Aumento del 0,00% de recursos disponibles.
A52: 1.2.2.02. | B52: Títulos y valores a costo amortizado a largo plazo | D52: =IFERROR(VLOOKUP(A52,BC_ACTUAL!B:G,6,0)/1000,0) -> 0 | E52: =IFERROR(VLOOKUP(A52,BC_ANTERIOR!B:G,6,0)/1000,0) -> 0 | G52: 0 | H52: 0 | I52: 0 | J52: 0 | L52: La cuenta Títulos y valores a costo amortizado a largo plazo, representa el 0,00% del total del Activo, que comparado al periodo anterior genera una variación absoluta de 0 000,00 que corresponde a un Aumento del 0,00% de recursos disponibles.
A53: 1.2.2.03. | B53: Instrumentos Derivados a largo plazo | D53: =IFERROR(VLOOKUP(A53,BC_ACTUAL!B:G,6,0)/1000,0) -> 0 | E53: =IFERROR(VLOOKUP(A53,BC_ANTERIOR!B:G,6,0)/1000,0) -> 0 | G53: 0 | H53: 0 | I53: 0 | J53: 0 | L53: La cuenta Instrumentos Derivados a largo plazo, representa el 0,00% del total del Activo, que comparado al periodo anterior genera una variación absoluta de 0 000,00 que corresponde a un Aumento del 0,00% de recursos disponibles.
A54: 1.2.2.98. | B54: Otras inversiones a largo plazo | D54: =IFERROR(VLOOKUP(A54,BC_ACTUAL!B:G,6,0)/1000,0) -> 0 | E54: =IFERROR(VLOOKUP(A54,BC_ANTERIOR!B:G,6,0)/1000,0) -> 0 | G54: 0 | H54: 0 | I54: 0 | J54: 0 | L54: La cuenta Otras inversiones a largo plazo, representa el 0,00% del total del Activo, que comparado al periodo anterior genera una variación absoluta de 0 000,00 que corresponde a un Aumento del 0,00% de recursos disponibles.
A55: 1.2.2.99. | B55: Previsiones para deterioro de inversiones a largo plazo * | D55: =IFERROR(VLOOKUP(A55,BC_ACTUAL!B:G,6,0)/1000,0) -> 0 | E55: =IFERROR(VLOOKUP(A55,BC_ANTERIOR!B:G,6,0)/1000,0) -> 0 | G55: 0 | H55: 0 | I55: 0 | J55: 0 | L55: La cuenta Previsiones para deterioro de inversiones a largo plazo *, representa el 0,00% del total del Activo, que comparado al periodo anterior genera una variación absoluta de 0 000,00 que corresponde a un Aumento del 0,00% de recursos disponibles.
A56: 1.2.3. | B56: Cuentas a cobrar a largo plazo | C56: 09 | D56: =SUM(D57:D63) -> 0 | E56: =SUM(E57:E63) -> 0 | G56: 0 | H56: 0 | I56: 0 | J56: 0 | L56: La cuenta Cuentas a cobrar a largo plazo, representa el 0,00% del total del Activo, que comparado al periodo anterior genera una variación absoluta de 0 000,00 que corresponde a un Aumento del 0,00% de recursos disponibles.
A57: 1.2.3.03. | B57: Ventas a cobrar a largo plazo | D57: =IFERROR(VLOOKUP(A57,BC_ACTUAL!B:G,6,0)/1000,0) -> 0 | E57: =IFERROR(VLOOKUP(A57,BC_ANTERIOR!B:G,6,0)/1000,0) -> 0 | G57: 0 | H57: 0 | I57: 0 | J57: 0 | L57: La cuenta Ventas a cobrar a largo plazo, representa el 0,00% del total del Activo, que comparado al periodo anterior genera una variación absoluta de 0 000,00 que corresponde a un Aumento del 0,00% de recursos disponibles.
A58: 1.2.3.07. | B58: Préstamos a largo plazo | D58: =IFERROR(VLOOKUP(A58,BC_ACTUAL!B:G,6,0)/1000,0) -> 0 | E58: =IFERROR(VLOOKUP(A58,BC_ANTERIOR!B:G,6,0)/1000,0) -> 0 | G58: 0 | H58: 0 | I58: 0 | J58: 0 | L58: La cuenta Préstamos a largo plazo, representa el 0,00% del total del Activo, que comparado al periodo anterior genera una variación absoluta de 0 000,00 que corresponde a un Aumento del 0,00% de recursos disponibles.
A59: 1.2.3.08. | B59: Documentos a cobrar a largo plazo | D59: =IFERROR(VLOOKUP(A59,BC_ACTUAL!B:G,6,0)/1000,0) -> 0 | E59: =IFERROR(VLOOKUP(A59,BC_ANTERIOR!B:G,6,0)/1000,0) -> 0 | G59: 0 | H59: 0 | I59: 0 | J59: 0 | L59: La cuenta Documentos a cobrar a largo plazo, representa el 0,00% del total del Activo, que comparado al periodo anterior genera una variación absoluta de 0 000,00 que corresponde a un Aumento del 0,00% de recursos disponibles.
A60: 1.2.3.09. | B60: Anticipos a largo plazo | D60: =IFERROR(VLOOKUP(A60,BC_ACTUAL!B:G,6,0)/1000,0) -> 0 | E60: =IFERROR(VLOOKUP(A60,BC_ANTERIOR!B:G,6,0)/1000,0) -> 0 | G60: 0 | H60: 0 | I60: 0 | J60: 0 | L60: La cuenta Anticipos a largo plazo, representa el 0,00% del total del Activo, que comparado al periodo anterior genera una variación absoluta de 0 000,00 que corresponde a un Aumento del 0,00% de recursos disponibles.
A61: 1.2.3.10. | B61: Deudores por avales ejecutados a largo plazo | D61: =IFERROR(VLOOKUP(A61,BC_ACTUAL!B:G,6,0)/1000,0) -> 0 | E61: =IFERROR(VLOOKUP(A61,BC_ANTERIOR!B:G,6,0)/1000,0) -> 0 | G61: 0 | H61: 0 | I61: 0 | J61: 0 | L61: La cuenta Deudores por avales ejecutados a largo plazo, representa el 0,00% del total del Activo, que comparado al periodo anterior genera una variación absoluta de 0 000,00 que corresponde a un Aumento del 0,00% de recursos disponibles.
A62: 1.2.3.98. | B62: Otras cuentas a cobrar a largo plazo | D62: =IFERROR(VLOOKUP(A62,BC_ACTUAL!B:G,6,0)/1000,0) -> 0 | E62: =IFERROR(VLOOKUP(A62,BC_ANTERIOR!B:G,6,0)/1000,0) -> 0 | G62: 0 | H62: 0 | I62: 0 | J62: 0 | L62: La cuenta Otras cuentas a cobrar a largo plazo, representa el 0,00% del total del Activo, que comparado al periodo anterior genera una variación absoluta de 0 000,00 que corresponde a un Aumento del 0,00% de recursos disponibles.
A63: 1.2.3.99. | B63: Previsiones para deterioro de cuentas a cobrar a largo plazo * | D63: =IFERROR(VLOOKUP(A63,BC_ACTUAL!B:G,6,0)/1000,0) -> 0 | E63: =IFERROR(VLOOKUP(A63,BC_ANTERIOR!B:G,6,0)/1000,0) -> 0 | G63: 0 | H63: 0 | I63: 0 | J63: 0 | L63: La cuenta Previsiones para deterioro de cuentas a cobrar a largo plazo *, representa el 0,00% del total del Activo, que comparado al periodo anterior genera una variación absoluta de 0 000,00 que corresponde a un Aumento del 0,00% de recursos disponibles.
A64: 1.2.5. | B64: Bienes no concesionados | C64: 10 | D64: =SUM(D65:D73) -> 163213351.6 | E64: =SUM(E65:E73) -> 162699631.7 | G64: 0.9716011903 | H64: 0.9697155789 | I64: 513719.9659 | J64: 0.00315747467 | L64: La cuenta Bienes no concesionados, representa el 97,16% del total del Activo, que comparado al periodo anterior genera una variación absoluta de 513 719,97 que corresponde a un Aumento del 0,32% de recursos disponibles.
A65: 1.2.5.01. | B65: Propiedades, planta y equipos explotados | D65: =IFERROR(VLOOKUP(A65,BC_ACTUAL!B:G,6,0)/1000,0) -> 2346799.636 | E65: =IFERROR(VLOOKUP(A65,BC_ANTERIOR!B:G,6,0)/1000,0) -> 1848565.335 | G65: 0.01397038476 | H65: 0.01101774224 | I65: 498234.3015 | J65: 0.2695248538 | L65: La cuenta Propiedades, planta y equipos explotados, representa el 1,40% del total del Activo, que comparado al periodo anterior genera una variación absoluta de 498 234,30 que corresponde a un Aumento del 26,95% de recursos disponibles.
A66: 1.2.5.02. | B66: Propiedades de inversión | D66: =IFERROR(VLOOKUP(A66,BC_ACTUAL!B:G,6,0)/1000,0) -> 0 | E66: =IFERROR(VLOOKUP(A66,BC_ANTERIOR!B:G,6,0)/1000,0) -> 0 | G66: 0 | H66: 0 | I66: 0 | J66: 0 | L66: La cuenta Propiedades de inversión, representa el 0,00% del total del Activo, que comparado al periodo anterior genera una variación absoluta de 0 000,00 que corresponde a un Aumento del 0,00% de recursos disponibles.
A67: 1.2.5.03. | B67: Activos biológicos no concesionados | D67: =IFERROR(VLOOKUP(A67,BC_ACTUAL!B:G,6,0)/1000,0) -> 0 | E67: =IFERROR(VLOOKUP(A67,BC_ANTERIOR!B:G,6,0)/1000,0) -> 0 | G67: 0 | H67: 0 | I67: 0 | J67: 0 | L67: La cuenta Activos biológicos no concesionados, representa el 0,00% del total del Activo, que comparado al periodo anterior genera una variación absoluta de 0 000,00 que corresponde a un Aumento del 0,00% de recursos disponibles.
A68: 1.2.5.04. | B68: Bienes de infraestructura y de beneficio y uso público en servicio | D68: =IFERROR(VLOOKUP(A68,BC_ACTUAL!B:G,6,0)/1000,0) -> 160765498.1 | E68: =IFERROR(VLOOKUP(A68,BC_ANTERIOR!B:G,6,0)/1000,0) -> 160765498.1 | G68: 0.9570292364 | H68: 0.9581878363 | I68: 0 | J68: 0 | L68: La cuenta Bienes de infraestructura y de beneficio y uso público en servicio, representa el 95,70% del total del Activo, que comparado al periodo anterior genera una variación absoluta de 0 000,00 que corresponde a un Aumento del 0,00% de recursos disponibles.
A69: 1.2.5.05. | B69: Bienes históricos y culturales | D69: =IFERROR(VLOOKUP(A69,BC_ACTUAL!B:G,6,0)/1000,0) -> 0 | E69: =IFERROR(VLOOKUP(A69,BC_ANTERIOR!B:G,6,0)/1000,0) -> 0 | G69: 0 | H69: 0 | I69: 0 | J69: 0 | L69: La cuenta Bienes históricos y culturales, representa el 0,00% del total del Activo, que comparado al periodo anterior genera una variación absoluta de 0 000,00 que corresponde a un Aumento del 0,00% de recursos disponibles.
A70: 1.2.5.06. | B70: Recursos naturales en explotación | D70: =IFERROR(VLOOKUP(A70,BC_ACTUAL!B:G,6,0)/1000,0) -> 0 | E70: =IFERROR(VLOOKUP(A70,BC_ANTERIOR!B:G,6,0)/1000,0) -> 0 | G70: 0 | H70: 0 | I70: 0 | J70: 0 | L70: La cuenta Recursos naturales en explotación, representa el 0,00% del total del Activo, que comparado al periodo anterior genera una variación absoluta de 0 000,00 que corresponde a un Aumento del 0,00% de recursos disponibles.
A71: 1.2.5.07. | B71: Recursos naturales en conservación | D71: =IFERROR(VLOOKUP(A71,BC_ACTUAL!B:G,6,0)/1000,0) -> 0 | E71: =IFERROR(VLOOKUP(A71,BC_ANTERIOR!B:G,6,0)/1000,0) -> 0 | G71: 0 | H71: 0 | I71: 0 | J71: 0 | L71: La cuenta Recursos naturales en conservación, representa el 0,00% del total del Activo, que comparado al periodo anterior genera una variación absoluta de 0 000,00 que corresponde a un Aumento del 0,00% de recursos disponibles.
A72: 1.2.5.08. | B72: Bienes intangibles no concesionados | D72: =IFERROR(VLOOKUP(A72,BC_ACTUAL!B:G,6,0)/1000,0) -> 3474.77175 | E72: =IFERROR(VLOOKUP(A72,BC_ANTERIOR!B:G,6,0)/1000,0) -> 7987.29414 | G72: 2.068514821e-05 | H72: 4.760553838e-05 | I72: -4512.52239 | J72: -0.5649625907 | L72: La cuenta Bienes intangibles no concesionados, representa el 0,00% del total del Activo, que comparado al periodo anterior genera una variación absoluta de -4 512,52 que corresponde a un Disminución del -56,50% de recursos disponibles.
A73: 1.2.5.99. | B73: Bienes no concesionados en proceso de producción | D73: =IFERROR(VLOOKUP(A73,BC_ACTUAL!B:G,6,0)/1000,0) -> 97579.14782 | E73: =IFERROR(VLOOKUP(A73,BC_ANTERIOR!B:G,6,0)/1000,0) -> 77580.96105 | G73: 0.0005808839486 | H73: 0.0004623948179 | I73: 19998.18677 | J73: 0.257771836 | L73: La cuenta Bienes no concesionados en proceso de producción, representa el 0,06% del total del Activo, que comparado al periodo anterior genera una variación absoluta de 19 998,19 que corresponde a un Aumento del 25,78% de recursos disponibles.
A74: 1.2.6. | B74: Bienes concesionados | C74: 11 | D74: =SUM(D75:D80) -> 0 | E74: =SUM(E75:E80) -> 0 | G74: 0 | H74: 0 | I74: 0 | J74: 0 | L74: La cuenta Bienes concesionados, representa el 0,00% del total del Activo, que comparado al periodo anterior genera una variación absoluta de 0 000,00 que corresponde a un Aumento del 0,00% de recursos disponibles.
A75: 1.2.6.01. | B75: Propiedades, planta y equipos concesionados | D75: =IFERROR(VLOOKUP(A75,BC_ACTUAL!B:G,6,0)/1000,0) -> 0 | E75: =IFERROR(VLOOKUP(A75,BC_ANTERIOR!B:G,6,0)/1000,0) -> 0 | G75: =IFERROR(D75/$D$91,0) -> 0 | H75: 0 | I75: =IFERROR(D75-E75,0) -> 0 | J75: =IFERROR(I75/E75,0) -> 0 | L75: ="La"&" "&"cuenta"&" "&B75&","&" "&"representa"&" "&"el"&" "&TEXT(G75,"0,00%")&" "&"del"&" "&"total"&" "&"del"&" "&IF(MID(A75,1,2)="1.","Activo",IF(MID(A75,1,2)="2.","Pasivo",IF(MID(A75,1,2)="3.","Capital",IF(MID(A75,1,2)="4.","Ingresos",IF(MID(A75,1,2)="5.","Gastos","")))))&","&" "&"que"&" "&"comparado"&" "&"al"&" "&"periodo"&" "&"anterior"&" "&"genera"&" "&"una"&" "&"variación"&" "&"absoluta"&" "&"de"&" "&TEXT(I75,"0 000,00")&" "&"que"&" "&"corresponde"&" "&"a"&" "&"un"&" "&IF(I75<0,"Disminución","Aumento")&" "&"del"&" "&TEXT(J75,"0,00%")&" "&"de"&" "&"recursos"&" "&"disponibles"&"." -> La cuenta Propiedades, planta y equipos concesionados, representa el 0,00% del total del Activo, que comparado al periodo anterior genera una variación absoluta de 0 000,00 que corresponde a un Aumento del 0,00% de recursos disponibles.
A76: 1.2.6.03. | B76: Activos biológicos concesionados | D76: =IFERROR(VLOOKUP(A76,BC_ACTUAL!B:G,6,0)/1000,0) -> 0 | E76: =IFERROR(VLOOKUP(A76,BC_ANTERIOR!B:G,6,0)/1000,0) -> 0 | G76: 0 | H76: 0 | I76: 0 | J76: 0 | L76: La cuenta Activos biológicos concesionados, representa el 0,00% del total del Activo, que comparado al periodo anterior genera una variación absoluta de 0 000,00 que corresponde a un Aumento del 0,00% de recursos disponibles.
A77: 1.2.6.04. | B77: Bienes de infraestructura y de beneficio y uso público concesionados | D77: =IFERROR(VLOOKUP(A77,BC_ACTUAL!B:G,6,0)/1000,0) -> 0 | E77: =IFERROR(VLOOKUP(A77,BC_ANTERIOR!B:G,6,0)/1000,0) -> 0 | G77: 0 | H77: 0 | I77: 0 | J77: 0 | L77: La cuenta Bienes de infraestructura y de beneficio y uso público concesionados, representa el 0,00% del total del Activo, que comparado al periodo anterior genera una variación absoluta de 0 000,00 que corresponde a un Aumento del 0,00% de recursos disponibles.
A78: 1.2.6.06. | B78: Recursos naturales concesionados | D78: =IFERROR(VLOOKUP(A78,BC_ACTUAL!B:G,6,0)/1000,0) -> 0 | E78: =IFERROR(VLOOKUP(A78,BC_ANTERIOR!B:G,6,0)/1000,0) -> 0 | G78: 0 | H78: 0 | I78: 0 | J78: 0 | L78: La cuenta Recursos naturales concesionados, representa el 0,00% del total del Activo, que comparado al periodo anterior genera una variación absoluta de 0 000,00 que corresponde a un Aumento del 0,00% de recursos disponibles.
A79: 1.2.6.08. | B79: Bienes intangibles concesionados | D79: =IFERROR(VLOOKUP(A79,BC_ACTUAL!B:G,6,0)/1000,0) -> 0 | E79: =IFERROR(VLOOKUP(A79,BC_ANTERIOR!B:G,6,0)/1000,0) -> 0 | G79: 0 | H79: 0 | I79: 0 | J79: 0 | L79: La cuenta Bienes intangibles concesionados, representa el 0,00% del total del Activo, que comparado al periodo anterior genera una variación absoluta de 0 000,00 que corresponde a un Aumento del 0,00% de recursos disponibles.
A80: 1.2.6.99. | B80: Bienes concesionados en proceso de producción | D80: =IFERROR(VLOOKUP(A80,BC_ACTUAL!B:G,6,0)/1000,0) -> 0 | E80: =IFERROR(VLOOKUP(A80,BC_ANTERIOR!B:G,6,0)/1000,0) -> 0 | G80: 0 | H80: 0 | I80: 0 | J80: 0 | L80: La cuenta Bienes concesionados en proceso de producción, representa el 0,00% del total del Activo, que comparado al periodo anterior genera una variación absoluta de 0 000,00 que corresponde a un Aumento del 0,00% de recursos disponibles.
A81: 1.2.7. | B81: Inversiones patrimoniales - Método de participación | C81: 12 | D81: =SUM(D82:D85) -> 0 | E81: =SUM(E82:E85) -> 0 | G81: 0 | H81: 0 | I81: 0 | J81: 0 | L81: La cuenta Inversiones patrimoniales - Método de participación, representa el 0,00% del total del Activo, que comparado al periodo anterior genera una variación absoluta de 0 000,00 que corresponde a un Aumento del 0,00% de recursos disponibles.
A82: 1.2.7.01. | B82: Inversiones patrimoniales en el sector privado interno | D82: =IFERROR(VLOOKUP(A82,BC_ACTUAL!B:G,6,0)/1000,0) -> 0 | E82: =IFERROR(VLOOKUP(A82,BC_ANTERIOR!B:G,6,0)/1000,0) -> 0 | G82: 0 | H82: 0 | I82: 0 | J82: 0 | L82: La cuenta Inversiones patrimoniales en el sector privado interno, representa el 0,00% del total del Activo, que comparado al periodo anterior genera una variación absoluta de 0 000,00 que corresponde a un Aumento del 0,00% de recursos disponibles.
A83: 1.2.7.02. | B83: Inversiones patrimoniales en el sector público interno | D83: =IFERROR(VLOOKUP(A83,BC_ACTUAL!B:G,6,0)/1000,0) -> 0 | E83: =IFERROR(VLOOKUP(A83,BC_ANTERIOR!B:G,6,0)/1000,0) -> 0 | G83: 0 | H83: 0 | I83: 0 | J83: 0 | L83: La cuenta Inversiones patrimoniales en el sector público interno, representa el 0,00% del total del Activo, que comparado al periodo anterior genera una variación absoluta de 0 000,00 que corresponde a un Aumento del 0,00% de recursos disponibles.
A84: 1.2.7.03. | B84: Inversiones patrimoniales en el sector externo | D84: =IFERROR(VLOOKUP(A84,BC_ACTUAL!B:G,6,0)/1000,0) -> 0 | E84: =IFERROR(VLOOKUP(A84,BC_ANTERIOR!B:G,6,0)/1000,0) -> 0 | G84: 0 | H84: 0 | I84: 0 | J84: 0 | L84: La cuenta Inversiones patrimoniales en el sector externo, representa el 0,00% del total del Activo, que comparado al periodo anterior genera una variación absoluta de 0 000,00 que corresponde a un Aumento del 0,00% de recursos disponibles.
A85: 1.2.7.04. | B85: Inversiones patrimoniales en fideicomisos | D85: =IFERROR(VLOOKUP(A85,BC_ACTUAL!B:G,6,0)/1000,0) -> 0 | E85: =IFERROR(VLOOKUP(A85,BC_ANTERIOR!B:G,6,0)/1000,0) -> 0 | G85: 0 | H85: 0 | I85: 0 | J85: 0 | L85: La cuenta Inversiones patrimoniales en fideicomisos, representa el 0,00% del total del Activo, que comparado al periodo anterior genera una variación absoluta de 0 000,00 que corresponde a un Aumento del 0,00% de recursos disponibles.
A86: 1.2.9. | B86: Otros activos a largo plazo | C86: 13 | D86: =SUM(D87:D89) -> 0 | E86: =SUM(E87:E89) -> 0 | G86: 0 | H86: 0 | I86: 0 | J86: 0 | L86: La cuenta Otros activos a largo plazo, representa el 0,00% del total del Activo, que comparado al periodo anterior genera una variación absoluta de 0 000,00 que corresponde a un Aumento del 0,00% de recursos disponibles.
A87: 1.2.9.01. | B87: Gastos a devengar a largo plazo | D87: =IFERROR(VLOOKUP(A87,BC_ACTUAL!B:G,6,0)/1000,0) -> 0 | E87: =IFERROR(VLOOKUP(A87,BC_ANTERIOR!B:G,6,0)/1000,0) -> 0 | G87: 0 | H87: 0 | I87: 0 | J87: 0 | L87: La cuenta Gastos a devengar a largo plazo, representa el 0,00% del total del Activo, que comparado al periodo anterior genera una variación absoluta de 0 000,00 que corresponde a un Aumento del 0,00% de recursos disponibles.
A88: 1.2.9.03. | B88: Objetos de valor | D88: =IFERROR(VLOOKUP(A88,BC_ACTUAL!B:G,6,0)/1000,0) -> 0 | E88: =IFERROR(VLOOKUP(A88,BC_ANTERIOR!B:G,6,0)/1000,0) -> 0 | G88: =IFERROR(D88/$D$91,0) -> 0 | H88: 0 | I88: 0 | J88: 0 | L88: La cuenta Objetos de valor, representa el 0,00% del total del Activo, que comparado al periodo anterior genera una variación absoluta de 0 000,00 que corresponde a un Aumento del 0,00% de recursos disponibles.
A89: 1.2.9.99. | B89: Activos a largo plazo sujetos a depuración contable | D89: =IFERROR(VLOOKUP(A89,BC_ACTUAL!B:G,6,0)/1000,0) -> 0 | E89: =IFERROR(VLOOKUP(A89,BC_ANTERIOR!B:G,6,0)/1000,0) -> 0 | G89: 0 | H89: 0 | I89: 0 | J89: 0 | L89: La cuenta Activos a largo plazo sujetos a depuración contable, representa el 0,00% del total del Activo, que comparado al periodo anterior genera una variación absoluta de 0 000,00 que corresponde a un Aumento del 0,00% de recursos disponibles.
B90: Total del Activo no Corriente | D90: =+D86+D81+D74+D64+D56+D50 -> 163213351.6 | E90: =+E86+E81+E74+E64+E56+E50 -> 162699631.7 | G90: =+G86+G81+G74+G64+G56+G50 -> 0.9716011903 | H90: =+H86+H81+H74+H64+H56+H50 -> 0.9697155789 | I90: =+I86+I81+I74+I64+I56+I50 -> 513719.9659 | J90: 0.00315747467 | L90: La cuenta Total del Activo no Corriente, representa el 97,16% del total del , que comparado al periodo anterior genera una variación absoluta de 513 719,97 que corresponde a un Aumento del 0,32% de recursos disponibles.
B91: TOTAL DEL ACTIVO | D91: =+D90+D47 -> 167983894.3 | E91: =+E90+E47 -> 167780775.3 | G91: =+G90+G47 -> 1 | H91: =+H90+H47 -> 1 | I91: =+I90+I47 -> 203118.9668 | J91: 0.00121062122
A93: 2. | B93: PASIVO
A94: 2.1. | B94: Pasivo Corriente
A95: 2.1.1. | B95: Deudas a corto plazo | C95: 14 | D95: =SUM(D96:D105) -> 251050.9175 | E95: =SUM(E96:E105) -> 573033.2035 | G95: =IFERROR(D95/$D$151,0) -> 0.1296590114 | H95: =IFERROR(E95/$E$151,0) -> 0.1930752319 | I95: -321982.2859 | J95: -0.5618911504 | L95: La cuenta Deudas a corto plazo, representa el 12,97% del total del Pasivo, que comparado al periodo anterior genera una variación absoluta de -321 982,29 que corresponde a un Disminución del -56,19% de recursos disponibles.
A96: 2.1.1.01. | B96: Deudas comerciales a corto plazo | D96: =IFERROR(VLOOKUP(A96,BC_ACTUAL!B:G,6,0)/1000,0) -> 92831.84704 | E96: =IFERROR(VLOOKUP(A96,BC_ANTERIOR!B:G,6,0)/1000,0) -> 397334.2571 | G96: =IFERROR(D96/$D$151,0) -> 0.04794439962 | H96: =IFERROR(E96/$E$151,0) -> 0.1338760187 | I96: -304502.4101 | J96: -0.7663633443 | L96: La cuenta Deudas comerciales a corto plazo, representa el 4,79% del total del Pasivo, que comparado al periodo anterior genera una variación absoluta de -304 502,41 que corresponde a un Disminución del -76,64% de recursos disponibles.
A97: 2.1.1.02. | B97: Deudas sociales y fiscales a corto plazo | D97: =IFERROR(VLOOKUP(A97,BC_ACTUAL!B:G,6,0)/1000,0) -> 118853.1153 | E97: =IFERROR(VLOOKUP(A97,BC_ANTERIOR!B:G,6,0)/1000,0) -> 139365.2834 | G97: 0.06138347388 | H97: 0.04695711219 | I97: -20512.1681 | J97: -0.1471827674 | L97: La cuenta Deudas sociales y fiscales a corto plazo, representa el 6,14% del total del Pasivo, que comparado al periodo anterior genera una variación absoluta de -20 512,17 que corresponde a un Disminución del -14,72% de recursos disponibles.
A98: 2.1.1.03. | B98: Transferencias a pagar a corto plazo | D98: =IFERROR(VLOOKUP(A98,BC_ACTUAL!B:G,6,0)/1000,0) -> 39365.95516 | E98: =IFERROR(VLOOKUP(A98,BC_ANTERIOR!B:G,6,0)/1000,0) -> 36152.16292 | G98: 0.02033113792 | H98: 0.01218094728 | I98: 3213.79224 | J98: 0.08889626458 | L98: La cuenta Transferencias a pagar a corto plazo, representa el 2,03% del total del Pasivo, que comparado al periodo anterior genera una variación absoluta de 3 213,79 que corresponde a un Aumento del 8,89% de recursos disponibles.
A99: 2.1.1.04. | B99: Documentos a pagar a corto plazo | D99: =IFERROR(VLOOKUP(A99,BC_ACTUAL!B:G,6,0)/1000,0) -> 0 | E99: =IFERROR(VLOOKUP(A99,BC_ANTERIOR!B:G,6,0)/1000,0) -> 0 | G99: 0 | H99: 0 | I99: 0 | J99: 0 | L99: La cuenta Documentos a pagar a corto plazo, representa el 0,00% del total del Pasivo, que comparado al periodo anterior genera una variación absoluta de 0 000,00 que corresponde a un Aumento del 0,00% de recursos disponibles.
A100: 2.1.1.05. | B100: Inversiones patrimoniales a pagar a corto plazo | D100: =IFERROR(VLOOKUP(A100,BC_ACTUAL!B:G,6,0)/1000,0) -> 0 | E100: =IFERROR(VLOOKUP(A100,BC_ANTERIOR!B:G,6,0)/1000,0) -> 0 | G100: 0 | H100: 0 | I100: 0 | J100: 0 | L100: La cuenta Inversiones patrimoniales a pagar a corto plazo, representa el 0,00% del total del Pasivo, que comparado al periodo anterior genera una variación absoluta de 0 000,00 que corresponde a un Aumento del 0,00% de recursos disponibles.
A101: 2.1.1.06. | B101: Deudas por avales ejecutados a corto plazo | D101: =IFERROR(VLOOKUP(A101,BC_ACTUAL!B:G,6,0)/1000,0) -> 0 | E101: =IFERROR(VLOOKUP(A101,BC_ANTERIOR!B:G,6,0)/1000,0) -> 0 | G101: 0 | H101: 0 | I101: 0 | J101: 0 | L101: La cuenta Deudas por avales ejecutados a corto plazo, representa el 0,00% del total del Pasivo, que comparado al periodo anterior genera una variación absoluta de 0 000,00 que corresponde a un Aumento del 0,00% de recursos disponibles.
A102: 2.1.1.07. | B102: Deudas por anticipos a corto plazo | D102: =IFERROR(VLOOKUP(A102,BC_ACTUAL!B:G,6,0)/1000,0) -> 0 | E102: =IFERROR(VLOOKUP(A102,BC_ANTERIOR!B:G,6,0)/1000,0) -> 0 | G102: 0 | H102: 0 | I102: 0 | J102: 0 | L102: La cuenta Deudas por anticipos a corto plazo, representa el 0,00% del total del Pasivo, que comparado al periodo anterior genera una variación absoluta de 0 000,00 que corresponde a un Aumento del 0,00% de recursos disponibles.
A103: 2.1.1.08. | B103: Deudas por Planillas salariales | D103: =IFERROR(VLOOKUP(A103,BC_ACTUAL!B:G,6,0)/1000,0) -> 0 | E103: =IFERROR(VLOOKUP(A103,BC_ANTERIOR!B:G,6,0)/1000,0) -> 0 | G103: 0 | H103: 0 | I103: 0 | J103: 0 | L103: La cuenta Deudas por Planillas salariales, representa el 0,00% del total del Pasivo, que comparado al periodo anterior genera una variación absoluta de 0 000,00 que corresponde a un Aumento del 0,00% de recursos disponibles.
A104: 2.1.1.13. | B104: Deudas por Créditos Fiscales a favor de terceros c/p | D104: =IFERROR(VLOOKUP(A104,BC_ACTUAL!B:G,6,0)/1000,0) -> 0 | E104: =IFERROR(VLOOKUP(A104,BC_ANTERIOR!B:G,6,0)/1000,0) -> 0 | G104: 0 | H104: 0 | I104: 0 | J104: 0 | L104: La cuenta Deudas por Créditos Fiscales a favor de terceros c/p, representa el 0,00% del total del Pasivo, que comparado al periodo anterior genera una variación absoluta de 0 000,00 que corresponde a un Aumento del 0,00% de recursos disponibles.
A105: 2.1.1.99. | B105: Otras deudas a corto plazo | D105: =IFERROR(VLOOKUP(A105,BC_ACTUAL!B:G,6,0)/1000,0) -> 0 | E105: =IFERROR(VLOOKUP(A105,BC_ANTERIOR!B:G,6,0)/1000,0) -> 181.5 | G105: 0 | H105: 6.115379421e-05 | I105: -181.5 | J105: -1 | L105: La cuenta Otras deudas a corto plazo, representa el 0,00% del total del Pasivo, que comparado al periodo anterior genera una variación absoluta de -0 181,50 que corresponde a un Disminución del -100,00% de recursos disponibles.
A106: 2.1.2. | B106: Endeudamiento público a corto plazo | C106: 15 | D106: =SUM(D107:D111) -> 485546.5996 | E106: =SUM(E107:E111) -> 329795.988 | G106: 0.2507678232 | H106: 0.1111199778 | I106: 155750.6117 | J106: 0.4722635125 | L106: La cuenta Endeudamiento público a corto plazo, representa el 25,08% del total del Pasivo, que comparado al periodo anterior genera una variación absoluta de 155 750,61 que corresponde a un Aumento del 47,23% de recursos disponibles.
A107: 2.1.2.01. | B107: Títulos y valores de la deuda pública a pagar a corto plazo | D107: =IFERROR(VLOOKUP(A107,BC_ACTUAL!B:G,6,0)/1000,0) -> 0 | E107: =IFERROR(VLOOKUP(A107,BC_ANTERIOR!B:G,6,0)/1000,0) -> 0 | G107: 0 | H107: 0 | I107: 0 | J107: 0 | L107: La cuenta Títulos y valores de la deuda pública a pagar a corto plazo, representa el 0,00% del total del Pasivo, que comparado al periodo anterior genera una variación absoluta de 0 000,00 que corresponde a un Aumento del 0,00% de recursos disponibles.
A108: 2.1.2.02. | B108: Préstamos a pagar a corto plazo | D108: =IFERROR(VLOOKUP(A108,BC_ACTUAL!B:G,6,0)/1000,0) -> 485546.5996 | E108: =IFERROR(VLOOKUP(A108,BC_ANTERIOR!B:G,6,0)/1000,0) -> 329795.988 | G108: 0.2507678232 | H108: 0.1111199778 | I108: 155750.6117 | J108: 0.4722635125 | L108: La cuenta Préstamos a pagar a corto plazo, representa el 25,08% del total del Pasivo, que comparado al periodo anterior genera una variación absoluta de 155 750,61 que corresponde a un Aumento del 47,23% de recursos disponibles.
A109: 2.1.2.03. | B109: Deudas asumidas a corto plazo | D109: =IFERROR(VLOOKUP(A109,BC_ACTUAL!B:G,6,0)/1000,0) -> 0 | E109: =IFERROR(VLOOKUP(A109,BC_ANTERIOR!B:G,6,0)/1000,0) -> 0 | G109: 0 | H109: 0 | I109: 0 | J109: 0 | L109: La cuenta Deudas asumidas a corto plazo, representa el 0,00% del total del Pasivo, que comparado al periodo anterior genera una variación absoluta de 0 000,00 que corresponde a un Aumento del 0,00% de recursos disponibles.
A110: 2.1.2.04. | B110: Endeudamiento de Tesorería a corto plazo | D110: =IFERROR(VLOOKUP(A110,BC_ACTUAL!B:G,6,0)/1000,0) -> 0 | E110: =IFERROR(VLOOKUP(A110,BC_ANTERIOR!B:G,6,0)/1000,0) -> 0 | G110: 0 | H110: 0 | I110: 0 | J110: 0 | L110: La cuenta Endeudamiento de Tesorería a corto plazo, representa el 0,00% del total del Pasivo, que comparado al periodo anterior genera una variación absoluta de 0 000,00 que corresponde a un Aumento del 0,00% de recursos disponibles.
A111: 2.1.2.05. | B111: Endeudamiento público a valor razonable | D111: =IFERROR(VLOOKUP(A111,BC_ACTUAL!B:G,6,0)/1000,0) -> 0 | E111: =IFERROR(VLOOKUP(A111,BC_ANTERIOR!B:G,6,0)/1000,0) -> 0 | G111: 0 | H111: 0 | I111: 0 | J111: 0 | L111: La cuenta Endeudamiento público a valor razonable, representa el 0,00% del total del Pasivo, que comparado al periodo anterior genera una variación absoluta de 0 000,00 que corresponde a un Aumento del 0,00% de recursos disponibles.
A112: 2.1.3. | B112: Fondos de terceros y en garantía | C112: 16 | D112: =SUM(D113:D117) -> 58724.39964 | E112: =SUM(E113:E117) -> 908486.0708 | G112: 0.03032909689 | H112: 0.3061012133 | I112: -849761.6711 | J112: -0.9353601541 | L112: La cuenta Fondos de terceros y en garantía, representa el 3,03% del total del Pasivo, que comparado al periodo anterior genera una variación absoluta de -849 761,67 que corresponde a un Disminución del -93,54% de recursos disponibles.
A113: 2.1.3.01. | B113: Fondos de terceros en la Caja Única | D113: =IFERROR(VLOOKUP(A113,BC_ACTUAL!B:G,6,0)/1000,0) -> 0 | E113: =IFERROR(VLOOKUP(A113,BC_ANTERIOR!B:G,6,0)/1000,0) -> 0 | G113: 0 | H113: 0 | I113: 0 | J113: 0 | L113: La cuenta Fondos de terceros en la Caja Única, representa el 0,00% del total del Pasivo, que comparado al periodo anterior genera una variación absoluta de 0 000,00 que corresponde a un Aumento del 0,00% de recursos disponibles.
A114: 2.1.3.02. | B114: Recaudación por cuenta de terceros | D114: =IFERROR(VLOOKUP(A114,BC_ACTUAL!B:G,6,0)/1000,0) -> 0 | E114: =IFERROR(VLOOKUP(A114,BC_ANTERIOR!B:G,6,0)/1000,0) -> 0 | G114: 0 | H114: 0 | I114: 0 | J114: 0 | L114: La cuenta Recaudación por cuenta de terceros, representa el 0,00% del total del Pasivo, que comparado al periodo anterior genera una variación absoluta de 0 000,00 que corresponde a un Aumento del 0,00% de recursos disponibles.
A115: 2.1.3.03. | B115: Depósitos en garantía | D115: =IFERROR(VLOOKUP(A115,BC_ACTUAL!B:G,6,0)/1000,0) -> 58724.39964 | E115: =IFERROR(VLOOKUP(A115,BC_ANTERIOR!B:G,6,0)/1000,0) -> 67537.73312 | G115: 0.03032909689 | H115: 0.02275586023 | I115: -8813.33348 | J115: -0.1304949555 | L115: La cuenta Depósitos en garantía, representa el 3,03% del total del Pasivo, que comparado al periodo anterior genera una variación absoluta de -8 813,33 que corresponde a un Disminución del -13,05% de recursos disponibles.
A116: 2.1.3.90. | B116: Cuentas Asociadas ( Deudores ) CP | D116: =IFERROR(VLOOKUP(A116,BC_ACTUAL!B:G,6,0)/1000,0) -> 0 | E116: =IFERROR(VLOOKUP(A116,BC_ANTERIOR!B:G,6,0)/1000,0) -> 0 | G116: 0 | H116: 0 | I116: 0 | J116: 0 | L116: La cuenta Cuentas Asociadas ( Deudores ) CP, representa el 0,00% del total del Pasivo, que comparado al periodo anterior genera una variación absoluta de 0 000,00 que corresponde a un Aumento del 0,00% de recursos disponibles.
A117: 2.1.3.99. | B117: Otros fondos de terceros | D117: =IFERROR(VLOOKUP(A117,BC_ACTUAL!B:G,6,0)/1000,0) -> 0 | E117: =IFERROR(VLOOKUP(A117,BC_ANTERIOR!B:G,6,0)/1000,0) -> 840948.3377 | G117: 0 | H117: 0.2833453531 | I117: -840948.3377 | J117: -1 | L117: La cuenta Otros fondos de terceros, representa el 0,00% del total del Pasivo, que comparado al periodo anterior genera una variación absoluta de -840 948,34 que corresponde a un Disminución del -100,00% de recursos disponibles.
A118: 2.1.4. | B118: Provisiones y reservas técnicas a corto plazo | C118: 17 | D118: =SUM(D119:D120) -> 0 | E118: =SUM(E119:E120) -> 0 | G118: 0 | H118: 0 | I118: 0 | J118: 0 | L118: La cuenta Provisiones y reservas técnicas a corto plazo, representa el 0,00% del total del Pasivo, que comparado al periodo anterior genera una variación absoluta de 0 000,00 que corresponde a un Aumento del 0,00% de recursos disponibles.
A119: 2.1.4.01. | B119: Provisiones a corto plazo | D119: =IFERROR(VLOOKUP(A119,BC_ACTUAL!B:G,6,0)/1000,0) -> 0 | E119: =IFERROR(VLOOKUP(A119,BC_ANTERIOR!B:G,6,0)/1000,0) -> 0 | G119: 0 | H119: 0 | I119: 0 | J119: 0 | L119: La cuenta Provisiones a corto plazo, representa el 0,00% del total del Pasivo, que comparado al periodo anterior genera una variación absoluta de 0 000,00 que corresponde a un Aumento del 0,00% de recursos disponibles.
A120: 2.1.4.02. | B120: Reservas técnicas a corto plazo | D120: =IFERROR(VLOOKUP(A120,BC_ACTUAL!B:G,6,0)/1000,0) -> 0 | E120: =IFERROR(VLOOKUP(A120,BC_ANTERIOR!B:G,6,0)/1000,0) -> 0 | G120: 0 | H120: 0 | I120: 0 | J120: 0 | L120: La cuenta Reservas técnicas a corto plazo, representa el 0,00% del total del Pasivo, que comparado al periodo anterior genera una variación absoluta de 0 000,00 que corresponde a un Aumento del 0,00% de recursos disponibles.
A121: 2.1.9. | B121: Otros pasivos a corto plazo | C121: 18 | D121: =SUM(D122:D124) -> 0 | E121: =SUM(E122:E124) -> 556.53649 | G121: 0 | H121: 0.0001875169035 | I121: -556.53649 | J121: -1 | L121: La cuenta Otros pasivos a corto plazo, representa el 0,00% del total del Pasivo, que comparado al periodo anterior genera una variación absoluta de -0 556,54 que corresponde a un Disminución del -100,00% de recursos disponibles.
A122: 2.1.9.01. | B122: Ingresos a devengar a corto plazo | D122: =IFERROR(VLOOKUP(A122,BC_ACTUAL!B:G,6,0)/1000,0) -> 0 | E122: =IFERROR(VLOOKUP(A122,BC_ANTERIOR!B:G,6,0)/1000,0) -> 0 | G122: 0 | H122: 0 | I122: 0 | J122: 0 | L122: La cuenta Ingresos a devengar a corto plazo, representa el 0,00% del total del Pasivo, que comparado al periodo anterior genera una variación absoluta de 0 000,00 que corresponde a un Aumento del 0,00% de recursos disponibles.
A123: 2.1.9.02. | B123: Instrumentos Derivados a pagar a corto plazo | D123: =IFERROR(VLOOKUP(A123,BC_ACTUAL!B:G,6,0)/1000,0) -> 0 | E123: =IFERROR(VLOOKUP(A123,BC_ANTERIOR!B:G,6,0)/1000,0) -> 0 | G123: 0 | H123: 0 | I123: 0 | J123: 0 | L123: La cuenta Instrumentos Derivados a pagar a corto plazo, representa el 0,00% del total del Pasivo, que comparado al periodo anterior genera una variación absoluta de 0 000,00 que corresponde a un Aumento del 0,00% de recursos disponibles.
A124: 2.1.9.99. | B124: Pasivos a corto plazo sujetos a depuración contable | D124: =IFERROR(VLOOKUP(A124,BC_ACTUAL!B:G,6,0)/1000,0) -> 0 | E124: =IFERROR(VLOOKUP(A124,BC_ANTERIOR!B:G,6,0)/1000,0) -> 556.53649 | G124: 0 | H124: 0.0001875169035 | I124: -556.53649 | J124: -1 | L124: La cuenta Pasivos a corto plazo sujetos a depuración contable, representa el 0,00% del total del Pasivo, que comparado al periodo anterior genera una variación absoluta de -0 556,54 que corresponde a un Disminución del -100,00% de recursos disponibles.
B125: Total del Pasivo Corriente | D125: =+D121+D118+D112+D106+D95 -> 795321.9168 | E125: =+E121+E118+E112+E106+E95 -> 1811871.799 | G125: =+G121+G118+G112+G106+G95 -> 0.4107559315 | H125: =+H121+H118+H112+H106+H95 -> 0.61048394 | I125: =+I121+I118+I112+I106+I95 -> -1016549.882 | J125: -0.5610495636
A127: 2.2. | B127: Pasivo No Corriente
A128: 2.2.1. | B128: Deudas a largo plazo | C128: 19 | D128: =SUM(D129:D135) -> 0 | E128: =SUM(E129:E135) -> 0 | G128: 0 | H128: =IFERROR(E128/$E$151,0) -> 0 | I128: 0 | J128: 0 | L128: La cuenta Deudas a largo plazo, representa el 0,00% del total del Pasivo, que comparado al periodo anterior genera una variación absoluta de 0 000,00 que corresponde a un Aumento del 0,00% de recursos disponibles.
A129: 2.2.1.01. | B129: Deudas comerciales a largo plazo | D129: =IFERROR(VLOOKUP(A129,BC_ACTUAL!B:G,6,0)/1000,0) -> 0 | E129: =IFERROR(VLOOKUP(A129,BC_ANTERIOR!B:G,6,0)/1000,0) -> 0 | G129: 0 | H129: 0 | I129: 0 | J129: 0 | L129: La cuenta Deudas comerciales a largo plazo, representa el 0,00% del total del Pasivo, que comparado al periodo anterior genera una variación absoluta de 0 000,00 que corresponde a un Aumento del 0,00% de recursos disponibles.
A130: 2.2.1.02. | B130: Deudas sociales y fiscales a largo plazo | D130: =IFERROR(VLOOKUP(A130,BC_ACTUAL!B:G,6,0)/1000,0) -> 0 | E130: =IFERROR(VLOOKUP(A130,BC_ANTERIOR!B:G,6,0)/1000,0) -> 0 | G130: 0 | H130: 0 | I130: 0 | J130: 0 | L130: La cuenta Deudas sociales y fiscales a largo plazo, representa el 0,00% del total del Pasivo, que comparado al periodo anterior genera una variación absoluta de 0 000,00 que corresponde a un Aumento del 0,00% de recursos disponibles.
A131: 2.2.1.04. | B131: Documentos a pagar a largo plazo | D131: =IFERROR(VLOOKUP(A131,BC_ACTUAL!B:G,6,0)/1000,0) -> 0 | E131: =IFERROR(VLOOKUP(A131,BC_ANTERIOR!B:G,6,0)/1000,0) -> 0 | G131: 0 | H131: 0 | I131: 0 | J131: 0 | L131: La cuenta Documentos a pagar a largo plazo, representa el 0,00% del total del Pasivo, que comparado al periodo anterior genera una variación absoluta de 0 000,00 que corresponde a un Aumento del 0,00% de recursos disponibles.
A132: 2.2.1.05. | B132: Inversiones patrimoniales a pagar a largo plazo | D132: =IFERROR(VLOOKUP(A132,BC_ACTUAL!B:G,6,0)/1000,0) -> 0 | E132: =IFERROR(VLOOKUP(A132,BC_ANTERIOR!B:G,6,0)/1000,0) -> 0 | G132: 0 | H132: 0 | I132: 0 | J132: 0 | L132: La cuenta Inversiones patrimoniales a pagar a largo plazo, representa el 0,00% del total del Pasivo, que comparado al periodo anterior genera una variación absoluta de 0 000,00 que corresponde a un Aumento del 0,00% de recursos disponibles.
A133: 2.2.1.06. | B133: Deudas por avales ejecutados a largo plazo | D133: =IFERROR(VLOOKUP(A133,BC_ACTUAL!B:G,6,0)/1000,0) -> 0 | E133: =IFERROR(VLOOKUP(A133,BC_ANTERIOR!B:G,6,0)/1000,0) -> 0 | G133: 0 | H133: 0 | I133: 0 | J133: 0 | L133: La cuenta Deudas por avales ejecutados a largo plazo, representa el 0,00% del total del Pasivo, que comparado al periodo anterior genera una variación absoluta de 0 000,00 que corresponde a un Aumento del 0,00% de recursos disponibles.
A134: 2.2.1.07. | B134: Deudas por anticipos a largo plazo | D134: =IFERROR(VLOOKUP(A134,BC_ACTUAL!B:G,6,0)/1000,0) -> 0 | E134: =IFERROR(VLOOKUP(A134,BC_ANTERIOR!B:G,6,0)/1000,0) -> 0 | G134: 0 | H134: 0 | I134: 0 | J134: 0 | L134: La cuenta Deudas por anticipos a largo plazo, representa el 0,00% del total del Pasivo, que comparado al periodo anterior genera una variación absoluta de 0 000,00 que corresponde a un Aumento del 0,00% de recursos disponibles.
A135: 2.2.1.99. | B135: Otras deudas a largo plazo | D135: =IFERROR(VLOOKUP(A135,BC_ACTUAL!B:G,6,0)/1000,0) -> 0 | E135: =IFERROR(VLOOKUP(A135,BC_ANTERIOR!B:G,6,0)/1000,0) -> 0 | G135: 0 | H135: 0 | I135: 0 | J135: 0 | L135: La cuenta Otras deudas a largo plazo, representa el 0,00% del total del Pasivo, que comparado al periodo anterior genera una variación absoluta de 0 000,00 que corresponde a un Aumento del 0,00% de recursos disponibles.
A136: 2.2.2. | B136: Endeudamiento público a largo plazo | C136: 20 | D136: =SUM(D137:D139) -> 1098005.363 | E136: =SUM(E137:E139) -> 1153101.091 | G136: 0.5670813366 | H136: 0.3885206986 | I136: -55095.72782 | J136: -0.04778048366 | L136: La cuenta Endeudamiento público a largo plazo, representa el 56,71% del total del Pasivo, que comparado al periodo anterior genera una variación absoluta de -55 095,73 que corresponde a un Disminución del -4,78% de recursos disponibles.
A137: 2.2.2.01. | B137: Títulos y valores de la deuda pública a pagar a largo plazo | D137: =IFERROR(VLOOKUP(A137,BC_ACTUAL!B:G,6,0)/1000,0) -> 0 | E137: =IFERROR(VLOOKUP(A137,BC_ANTERIOR!B:G,6,0)/1000,0) -> 0 | G137: 0 | H137: 0 | I137: 0 | J137: 0 | L137: La cuenta Títulos y valores de la deuda pública a pagar a largo plazo, representa el 0,00% del total del Pasivo, que comparado al periodo anterior genera una variación absoluta de 0 000,00 que corresponde a un Aumento del 0,00% de recursos disponibles.
A138: 2.2.2.02. | B138: Préstamos a pagar a largo plazo | D138: =IFERROR(VLOOKUP(A138,BC_ACTUAL!B:G,6,0)/1000,0) -> 1098005.363 | E138: =IFERROR(VLOOKUP(A138,BC_ANTERIOR!B:G,6,0)/1000,0) -> 1153101.091 | G138: 0.5670813366 | H138: 0.3885206986 | I138: -55095.72782 | J138: -0.04778048366 | L138: La cuenta Préstamos a pagar a largo plazo, representa el 56,71% del total del Pasivo, que comparado al periodo anterior genera una variación absoluta de -55 095,73 que corresponde a un Disminución del -4,78% de recursos disponibles.
A139: 2.2.2.03. | B139: Deudas asumidas a largo plazo | D139: =IFERROR(VLOOKUP(A139,BC_ACTUAL!B:G,6,0)/1000,0) -> 0 | E139: =IFERROR(VLOOKUP(A139,BC_ANTERIOR!B:G,6,0)/1000,0) -> 0 | G139: 0 | H139: 0 | I139: =IFERROR(D139-E139,0) -> 0 | J139: =IFERROR(I139/E139,0) -> 0 | L139: ="La"&" "&"cuenta"&" "&B139&","&" "&"representa"&" "&"el"&" "&TEXT(G139,"0,00%")&" "&"del"&" "&"total"&" "&"del"&" "&IF(MID(A139,1,2)="1.","Activo",IF(MID(A139,1,2)="2.","Pasivo",IF(MID(A139,1,2)="3.","Capital",IF(MID(A139,1,2)="4.","Ingresos",IF(MID(A139,1,2)="5.","Gastos","")))))&","&" "&"que"&" "&"comparado"&" "&"al"&" "&"periodo"&" "&"anterior"&" "&"genera"&" "&"una"&" "&"variación"&" "&"absoluta"&" "&"de"&" "&TEXT(I139,"0 000,00")&" "&"que"&" "&"corresponde"&" "&"a"&" "&"un"&" "&IF(I139<0,"Disminución","Aumento")&" "&"del"&" "&TEXT(J139,"0,00%")&" "&"de"&" "&"recursos"&" "&"disponibles"&"." -> La cuenta Deudas asumidas a largo plazo, representa el 0,00% del total del Pasivo, que comparado al periodo anterior genera una variación absoluta de 0 000,00 que corresponde a un Aumento del 0,00% de recursos disponibles.
A140: 2.2.3. | B140: Fondos de terceros y en garantía | C140: 21 | D140: =SUM(D141:D142) -> 0 | E140: =SUM(E141:E142) -> 0 | G140: 0 | H140: 0 | I140: 0 | J140: 0 | L140: La cuenta Fondos de terceros y en garantía, representa el 0,00% del total del Pasivo, que comparado al periodo anterior genera una variación absoluta de 0 000,00 que corresponde a un Aumento del 0,00% de recursos disponibles.
A141: 2.2.3.01. | B141: Fondos de terceros en la Caja Única | D141: =IFERROR(VLOOKUP(A141,BC_ACTUAL!B:G,6,0)/1000,0) -> 0 | E141: =IFERROR(VLOOKUP(A141,BC_ANTERIOR!B:G,6,0)/1000,0) -> 0 | G141: 0 | H141: 0 | I141: 0 | J141: 0 | L141: La cuenta Fondos de terceros en la Caja Única, representa el 0,00% del total del Pasivo, que comparado al periodo anterior genera una variación absoluta de 0 000,00 que corresponde a un Aumento del 0,00% de recursos disponibles.
A142: 2.2.3.99. | B142: Otros fondos de terceros | D142: =IFERROR(VLOOKUP(A142,BC_ACTUAL!B:G,6,0)/1000,0) -> 0 | E142: =IFERROR(VLOOKUP(A142,BC_ANTERIOR!B:G,6,0)/1000,0) -> 0 | G142: 0 | H142: 0 | I142: 0 | J142: 0 | L142: La cuenta Otros fondos de terceros, representa el 0,00% del total del Pasivo, que comparado al periodo anterior genera una variación absoluta de 0 000,00 que corresponde a un Aumento del 0,00% de recursos disponibles.
A143: 2.2.4. | B143: Provisiones y reservas técnicas a largo plazo | C143: 22 | D143: =SUM(D144:D145) -> 42912.36 | E143: =SUM(E144:E145) -> 2954.16 | G143: 0.02216273189 | H143: 0.0009953613923 | I143: 39958.2 | J143: 13.52607848 | L143: La cuenta Provisiones y reservas técnicas a largo plazo, representa el 2,22% del total del Pasivo, que comparado al periodo anterior genera una variación absoluta de 39 958,20 que corresponde a un Aumento del 1352,61% de recursos disponibles.
A144: 2.2.4.01. | B144: Provisiones a largo plazo | D144: =IFERROR(VLOOKUP(A144,BC_ACTUAL!B:G,6,0)/1000,0) -> 42912.36 | E144: =IFERROR(VLOOKUP(A144,BC_ANTERIOR!B:G,6,0)/1000,0) -> 2954.16 | G144: 0.02216273189 | H144: 0.0009953613923 | I144: 39958.2 | J144: 13.52607848 | L144: La cuenta Provisiones a largo plazo, representa el 2,22% del total del Pasivo, que comparado al periodo anterior genera una variación absoluta de 39 958,20 que corresponde a un Aumento del 1352,61% de recursos disponibles.
A145: 2.2.4.02. | B145: Reservas técnicas a largo plazo | D145: =IFERROR(VLOOKUP(A145,BC_ACTUAL!B:G,6,0)/1000,0) -> 0 | E145: =IFERROR(VLOOKUP(A145,BC_ANTERIOR!B:G,6,0)/1000,0) -> 0 | G145: 0 | H145: 0 | I145: 0 | J145: 0 | L145: La cuenta Reservas técnicas a largo plazo, representa el 0,00% del total del Pasivo, que comparado al periodo anterior genera una variación absoluta de 0 000,00 que corresponde a un Aumento del 0,00% de recursos disponibles.
A146: 2.2.9. | B146: Otros pasivos a largo plazo | C146: 23 | D146: =SUM(D147:D149) -> 0 | E146: =SUM(E147:E149) -> 0 | G146: 0 | H146: 0 | I146: 0 | J146: 0 | L146: La cuenta Otros pasivos a largo plazo, representa el 0,00% del total del Pasivo, que comparado al periodo anterior genera una variación absoluta de 0 000,00 que corresponde a un Aumento del 0,00% de recursos disponibles.
A147: 2.2.9.01. | B147: Ingresos a devengar a largo plazo | D147: =IFERROR(VLOOKUP(A147,BC_ACTUAL!B:G,6,0)/1000,0) -> 0 | E147: =IFERROR(VLOOKUP(A147,BC_ANTERIOR!B:G,6,0)/1000,0) -> 0 | G147: 0 | H147: 0 | I147: 0 | J147: 0 | L147: La cuenta Ingresos a devengar a largo plazo, representa el 0,00% del total del Pasivo, que comparado al periodo anterior genera una variación absoluta de 0 000,00 que corresponde a un Aumento del 0,00% de recursos disponibles.
A148: 2.2.9.02. | B148: Instrumentos Derivados a pagar a largo plazo | D148: =IFERROR(VLOOKUP(A148,BC_ACTUAL!B:G,6,0)/1000,0) -> 0 | E148: =IFERROR(VLOOKUP(A148,BC_ANTERIOR!B:G,6,0)/1000,0) -> 0 | G148: 0 | H148: 0 | I148: 0 | J148: 0 | L148: La cuenta Instrumentos Derivados a pagar a largo plazo, representa el 0,00% del total del Pasivo, que comparado al periodo anterior genera una variación absoluta de 0 000,00 que corresponde a un Aumento del 0,00% de recursos disponibles.
A149: 2.2.9.99. | B149: Pasivos a largo plazo sujetos a depuración contable | D149: =IFERROR(VLOOKUP(A149,BC_ACTUAL!B:G,6,0)/1000,0) -> 0 | E149: =IFERROR(VLOOKUP(A149,BC_ANTERIOR!B:G,6,0)/1000,0) -> 0 | G149: 0 | H149: 0 | I149: 0 | J149: 0 | L149: La cuenta Pasivos a largo plazo sujetos a depuración contable, representa el 0,00% del total del Pasivo, que comparado al periodo anterior genera una variación absoluta de 0 000,00 que corresponde a un Aumento del 0,00% de recursos disponibles.
B150: Total del Pasivo no Corriente | D150: =+D146+D143+D140+D136+D128 -> 1140917.723 | E150: =+E146+E143+E140+E136+E128 -> 1156055.251 | G150: =+G146+G143+G140+G136+G128 -> 0.5892440685 | H150: =+H146+H143+H140+H136+H128 -> 0.38951606 | I150: =+I146+I143+I140+I136+I128 -> -15137.52782 | J150: -0.01309412142
B151: TOTAL DEL PASIVO | D151: =+D150+D125 -> 1936239.64 | E151: =+E150+E125 -> 2967927.049 | G151: =+G150+G125 -> 1 | H151: =+H150+H125 -> 1 | I151: =+I150+I125 -> -1031687.41 | J151: -0.3476121187
A153: 3. | B153: PATRIMONIO
A154: 3.1. | B154: Patrimonio público
A155: 3.1.1. | B155: Capital | C155: 24 | D155: =SUM(D156:D157) -> 0.5248 | E155: =SUM(E156:E157) -> 0.5248 | G155: =IFERROR(D155/$D$181,0) -> 3.160538468e-09 | H155: =IFERROR(E155/$E$181,0) -> 3.184217769e-09 | I155: 0 | J155: 0 | L155: La cuenta Capital, representa el 0,00% del total del Capital, que comparado al periodo anterior genera una variación absoluta de 0 000,00 que corresponde a un Aumento del 0,00% de recursos disponibles.
A156: 3.1.1.01. | B156: Capital inicial | D156: =IFERROR(VLOOKUP(A156,BC_ACTUAL!B:G,6,0)/1000,0) -> 0.5248 | E156: =IFERROR(VLOOKUP(A156,BC_ANTERIOR!B:G,6,0)/1000,0) -> 0.5248 | G156: =IFERROR(D156/$D$181,0) -> 3.160538468e-09 | H156: =IFERROR(E156/$E$181,0) -> 3.184217769e-09 | I156: 0 | J156: 0 | L156: La cuenta Capital inicial, representa el 0,00% del total del Capital, que comparado al periodo anterior genera una variación absoluta de 0 000,00 que corresponde a un Aumento del 0,00% de recursos disponibles.
A157: 3.1.1.02. | B157: Incorporaciones al capital | D157: =IFERROR(VLOOKUP(A157,BC_ACTUAL!B:G,6,0)/1000,0) -> 0 | E157: =IFERROR(VLOOKUP(A157,BC_ANTERIOR!B:G,6,0)/1000,0) -> 0 | G157: 0 | H157: 0 | I157: 0 | J157: 0 | L157: La cuenta Incorporaciones al capital, representa el 0,00% del total del Capital, que comparado al periodo anterior genera una variación absoluta de 0 000,00 que corresponde a un Aumento del 0,00% de recursos disponibles.
A158: 3.1.2. | B158: Transferencias de capital | C158: 25 | D158: =SUM(D159:D160) -> 0 | E158: =SUM(E159:E160) -> 0 | G158: 0 | H158: 0 | I158: 0 | J158: 0 | L158: La cuenta Transferencias de capital, representa el 0,00% del total del Capital, que comparado al periodo anterior genera una variación absoluta de 0 000,00 que corresponde a un Aumento del 0,00% de recursos disponibles.
A159: 3.1.2.01. | B159: Donaciones de capital | D159: =IFERROR(VLOOKUP(A159,BC_ACTUAL!B:G,6,0)/1000,0) -> 0 | E159: =IFERROR(VLOOKUP(A159,BC_ANTERIOR!B:G,6,0)/1000,0) -> 0 | G159: 0 | H159: 0 | I159: 0 | J159: 0 | L159: La cuenta Donaciones de capital, representa el 0,00% del total del Capital, que comparado al periodo anterior genera una variación absoluta de 0 000,00 que corresponde a un Aumento del 0,00% de recursos disponibles.
A160: 3.1.2.99. | B160: Otras transferencias de capital | D160: =IFERROR(VLOOKUP(A160,BC_ACTUAL!B:G,6,0)/1000,0) -> 0 | E160: =IFERROR(VLOOKUP(A160,BC_ANTERIOR!B:G,6,0)/1000,0) -> 0 | G160: 0 | H160: 0 | I160: 0 | J160: 0 | L160: La cuenta Otras transferencias de capital, representa el 0,00% del total del Capital, que comparado al periodo anterior genera una variación absoluta de 0 000,00 que corresponde a un Aumento del 0,00% de recursos disponibles.
A161: 3.1.3. | B161: Reservas | C161: 26 | D161: =SUM(D162:D163) -> 0 | E161: =SUM(E162:E163) -> 0 | G161: 0 | H161: 0 | I161: 0 | J161: 0 | L161: La cuenta Reservas, representa el 0,00% del total del Capital, que comparado al periodo anterior genera una variación absoluta de 0 000,00 que corresponde a un Aumento del 0,00% de recursos disponibles.
A162: 3.1.3.01. | B162: Revaluación de bienes | D162: =IFERROR(VLOOKUP(A162,BC_ACTUAL!B:G,6,0)/1000,0) -> 0 | E162: =IFERROR(VLOOKUP(A162,BC_ANTERIOR!B:G,6,0)/1000,0) -> 0 | G162: 0 | H162: 0 | I162: 0 | J162: 0 | L162: La cuenta Revaluación de bienes, representa el 0,00% del total del Capital, que comparado al periodo anterior genera una variación absoluta de 0 000,00 que corresponde a un Aumento del 0,00% de recursos disponibles.
A163: 3.1.3.99. | B163: Otras reservas | D163: =IFERROR(VLOOKUP(A163,BC_ACTUAL!B:G,6,0)/1000,0) -> 0 | E163: =IFERROR(VLOOKUP(A163,BC_ANTERIOR!B:G,6,0)/1000,0) -> 0 | G163: 0 | H163: 0 | I163: 0 | J163: 0 | L163: La cuenta Otras reservas, representa el 0,00% del total del Capital, que comparado al periodo anterior genera una variación absoluta de 0 000,00 que corresponde a un Aumento del 0,00% de recursos disponibles.
A164: 3.1.4. | B164: Variaciones no asignables a reservas | C164: 27 | D164: =SUM(D165:D168) -> 0 | E164: =SUM(E165:E168) -> 0 | G164: 0 | H164: 0 | I164: 0 | J164: 0 | L164: La cuenta Variaciones no asignables a reservas, representa el 0,00% del total del Capital, que comparado al periodo anterior genera una variación absoluta de 0 000,00 que corresponde a un Aumento del 0,00% de recursos disponibles.
A165: 3.1.4.01. | B165: Diferencias de conversión de moneda extranjera | D165: =IFERROR(VLOOKUP(A165,BC_ACTUAL!B:G,6,0)/1000,0) -> 0 | E165: =IFERROR(VLOOKUP(A165,BC_ANTERIOR!B:G,6,0)/1000,0) -> 0 | G165: 0 | H165: 0 | I165: 0 | J165: 0 | L165: La cuenta Diferencias de conversión de moneda extranjera, representa el 0,00% del total del Capital, que comparado al periodo anterior genera una variación absoluta de 0 000,00 que corresponde a un Aumento del 0,00% de recursos disponibles.
A166: 3.1.4.02. | B166: Diferencias de valor razonable de activos financieros destinados a la venta | D166: =IFERROR(VLOOKUP(A166,BC_ACTUAL!B:G,6,0)/1000,0) -> 0 | E166: =IFERROR(VLOOKUP(A166,BC_ANTERIOR!B:G,6,0)/1000,0) -> 0 | G166: 0 | H166: 0 | I166: 0 | J166: 0 | L166: La cuenta Diferencias de valor razonable de activos financieros destinados a la venta, representa el 0,00% del total del Capital, que comparado al periodo anterior genera una variación absoluta de 0 000,00 que corresponde a un Aumento del 0,00% de recursos disponibles.
A167: 3.1.4.03. | B167: Diferencias de valor razonable de instrumentos financieros designados como cobertura | D167: =IFERROR(VLOOKUP(A167,BC_ACTUAL!B:G,6,0)/1000,0) -> 0 | E167: =IFERROR(VLOOKUP(A167,BC_ANTERIOR!B:G,6,0)/1000,0) -> 0 | G167: 0 | H167: 0 | I167: 0 | J167: 0 | L167: La cuenta Diferencias de valor razonable de instrumentos financieros designados como cobertura, representa el 0,00% del total del Capital, que comparado al periodo anterior genera una variación absoluta de 0 000,00 que corresponde a un Aumento del 0,00% de recursos disponibles.
A168: 3.1.4.99. | B168: Otras variaciones no asignables a reservas | D168: =IFERROR(VLOOKUP(A168,BC_ACTUAL!B:G,6,0)/1000,0) -> 0 | E168: =IFERROR(VLOOKUP(A168,BC_ANTERIOR!B:G,6,0)/1000,0) -> 0 | G168: 0 | H168: 0 | I168: 0 | J168: 0 | L168: La cuenta Otras variaciones no asignables a reservas, representa el 0,00% del total del Capital, que comparado al periodo anterior genera una variación absoluta de 0 000,00 que corresponde a un Aumento del 0,00% de recursos disponibles.
A169: 3.1.5. | B169: Resultados acumulados | C169: 28 | D169: =SUM(D170:D171) -> 166047654.1 | E169: =SUM(E170:E171) -> 164812847.8 | G169: 0.9999999968 | H169: 0.9999999968 | I169: 1234806.377 | J169: 0.007492173052 | L169: La cuenta Resultados acumulados, representa el 100,00% del total del Capital, que comparado al periodo anterior genera una variación absoluta de 1 234 806,38 que corresponde a un Aumento del 0,75% de recursos disponibles.
A170: 3.1.5.01. | B170: Resultados acumulados de ejercicios anteriores | D170: =IFERROR(VLOOKUP(A170,BC_ACTUAL!B:G,6,0)/1000,0) -> 164118481.1 | E170: =IFERROR(VLOOKUP(A170,BC_ANTERIOR!B:G,6,0)/1000,0) -> 163345249.5 | G170: 0.9883818081 | H170: 0.9910953619 | I170: 773231.6203 | J170: 0.00473372579 | L170: La cuenta Resultados acumulados de ejercicios anteriores, representa el 98,84% del total del Capital, que comparado al periodo anterior genera una variación absoluta de 773 231,62 que corresponde a un Aumento del 0,47% de recursos disponibles.
A171: 3.1.5.02. | B171: Resultado del ejercicio | D171: =IFERROR((VLOOKUP("4.",BC_ACTUAL!B:G,6,FALSE))-(VLOOKUP("5.",BC_ACTUAL!B:G,6,0)),0)/1000 -> 1929172.993 | E171: =IFERROR((VLOOKUP("4.",BC_ANTERIOR!B:G,6,FALSE))-(VLOOKUP("5.",BC_ANTERIOR!B:G,6,0)),0)/1000 -> 1467598.237 | G171: 0.01161818875 | H171: 0.008904634878 | I171: 461574.7562 | J171: 0.3145102962 | L171: La cuenta Resultado del ejercicio, representa el 1,16% del total del Capital, que comparado al periodo anterior genera una variación absoluta de 461 574,76 que corresponde a un Aumento del 31,45% de recursos disponibles.
A172: 3.2. | B172: Intereses minoritarios
A173: 3.2.1. | B173: Intereses minoritarios - Participaciones en el patrimonio de entidades controladas | C173: 29 | D173: =SUM(D174:D175) -> 0 | E173: =SUM(E174:E175) -> 0 | G173: =IFERROR(D173/$D$181,0) -> 0 | H173: =IFERROR(E173/$E$181,0) -> 0 | I173: 0 | J173: 0 | L173: La cuenta Intereses minoritarios - Participaciones en el patrimonio de entidades controladas, representa el 0,00% del total del Capital, que comparado al periodo anterior genera una variación absoluta de 0 000,00 que corresponde a un Aumento del 0,00% de recursos disponibles.
A174: 3.2.1.01. | B174: Intereses minoritarios - Participaciones en el patrimonio de entidades del sector gobierno general | D174: =IFERROR(VLOOKUP(A174,BC_ACTUAL!B:G,6,0)/1000,0) -> 0 | E174: =IFERROR(VLOOKUP(A174,BC_ANTERIOR!B:G,6,0)/1000,0) -> 0 | G174: 0 | H174: 0 | I174: 0 | J174: 0 | L174: La cuenta Intereses minoritarios - Participaciones en el patrimonio de entidades del sector gobierno general, representa el 0,00% del total del Capital, que comparado al periodo anterior genera una variación absoluta de 0 000,00 que corresponde a un Aumento del 0,00% de recursos disponibles.
A175: 3.2.1.02. | B175: Intereses minoritarios - Participaciones en el patrimonio de empresas públicas e instituciones públicas financieras | D175: =IFERROR(VLOOKUP(A175,BC_ACTUAL!B:G,6,0)/1000,0) -> 0 | E175: =IFERROR(VLOOKUP(A175,BC_ANTERIOR!B:G,6,0)/1000,0) -> 0 | G175: 0 | H175: 0 | I175: 0 | J175: 0 | L175: La cuenta Intereses minoritarios - Participaciones en el patrimonio de empresas públicas e instituciones públicas financieras, representa el 0,00% del total del Capital, que comparado al periodo anterior genera una variación absoluta de 0 000,00 que corresponde a un Aumento del 0,00% de recursos disponibles.
A176: 3.2.2. | B176: Intereses minoritarios - Evolución | C176: 30 | D176: =SUM(D177:D180) -> 0 | E176: =SUM(E177:E180) -> 0 | G176: 0 | H176: 0 | I176: 0 | J176: 0 | L176: La cuenta Intereses minoritarios - Evolución, representa el 0,00% del total del Capital, que comparado al periodo anterior genera una variación absoluta de 0 000,00 que corresponde a un Aumento del 0,00% de recursos disponibles.
A177: 3.2.2.01. | B177: Intereses minoritarios - Evolución por reservas | D177: =IFERROR(VLOOKUP(A177,BC_ACTUAL!B:G,6,0)/1000,0) -> 0 | E177: =IFERROR(VLOOKUP(A177,BC_ANTERIOR!B:G,6,0)/1000,0) -> 0 | G177: 0 | H177: 0 | I177: 0 | J177: 0 | L177: La cuenta Intereses minoritarios - Evolución por reservas, representa el 0,00% del total del Capital, que comparado al periodo anterior genera una variación absoluta de 0 000,00 que corresponde a un Aumento del 0,00% de recursos disponibles.
A178: 3.2.2.02. | B178: Intereses minoritarios - Evolución por variaciones no asignables a reservas | D178: =IFERROR(VLOOKUP(A178,BC_ACTUAL!B:G,6,0)/1000,0) -> 0 | E178: =IFERROR(VLOOKUP(A178,BC_ANTERIOR!B:G,6,0)/1000,0) -> 0 | G178: 0 | H178: 0 | I178: 0 | J178: 0 | L178: La cuenta Intereses minoritarios - Evolución por variaciones no asignables a reservas, representa el 0,00% del total del Capital, que comparado al periodo anterior genera una variación absoluta de 0 000,00 que corresponde a un Aumento del 0,00% de recursos disponibles.
A179: 3.2.2.03. | B179: Intereses minoritarios - Evolución por resultados acumulados | D179: =IFERROR(VLOOKUP(A179,BC_ACTUAL!B:G,6,0)/1000,0) -> 0 | E179: =IFERROR(VLOOKUP(A179,BC_ANTERIOR!B:G,6,0)/1000,0) -> 0 | G179: 0 | H179: 0 | I179: 0 | J179: 0 | L179: La cuenta Intereses minoritarios - Evolución por resultados acumulados, representa el 0,00% del total del Capital, que comparado al periodo anterior genera una variación absoluta de 0 000,00 que corresponde a un Aumento del 0,00% de recursos disponibles.
A180: 3.2.2.99. | B180: Intereses minoritarios - Evolución por otros componentes del patrimonio | D180: =IFERROR(VLOOKUP(A180,BC_ACTUAL!B:G,6,0)/1000,0) -> 0 | E180: =IFERROR(VLOOKUP(A180,BC_ANTERIOR!B:G,6,0)/1000,0) -> 0 | G180: 0 | H180: 0 | I180: 0 | J180: 0 | L180: La cuenta Intereses minoritarios - Evolución por otros componentes del patrimonio, representa el 0,00% del total del Capital, que comparado al periodo anterior genera una variación absoluta de 0 000,00 que corresponde a un Aumento del 0,00% de recursos disponibles.
B181: TOTAL DEL PATRIMONIO | D181: =+D176+D173+D169+D164+D161+D158+D155 -> 166047654.7 | E181: =+E176+E173+E169+E164+E161+E158+E155 -> 164812848.3 | G181: =+G176+G173+G169+G164+G161+G158+G155 -> 1 | H181: =+H176+H173+H169+H164+H161+H158+H155 -> 1 | I181: =+I176+I173+I169+I164+I161+I158+I155 -> 1234806.377 | J181: 0.007492173028
B182: TOTAL DEL PASIVO Y PATRIMONIO | D182: =+D181+D151 -> 167983894.3 | E182: =+E181+E151 -> 167780775.3 | G182: =+G181+G151 -> 2 | H182: =+H181+H151 -> 2 | I182: =+I181+I151 -> 203118.9668 | J182: 0.00121062122
D183: =+D182-D91 -> 1.999735832e-05 | E183: =+E182-E91 -> 1.9967556e-05 | G183: =+G182-G91 -> 1 | H183: =+H182-H91 -> 1 | I183: =IFERROR(D183-E183,0) -> 2.980232239e-08 | J183: 0.001492537313

Sheet EEFF_RENDIMIENTOS
A1: =DATOS!D13 -> Municipalidad de Buenos Aires
A2: Estado de Rendimiento Financiera | G2: Estado de Rendimiento Financiera
A3: =DATOS!D15&" "&RIGHT(D6,4) -> Del 01 de Enero al 30 de Junio 2024 | G3: Análisis de Variaciones
A4: - En miles de colones - | G4: =DATOS!D15&" "&RIGHT(D6,4) -> Del 01 de Enero al 30 de Junio 2024
A6: Cuenta | B6: Descripción | C6: Nota | D6: =PROPER(DATOS!D17) -> Junio 2024 | E6: =PROPER(DATOS!D18) -> Junio 2023 | G6: Análisis Vertical (%) | H6: % | I6: Monto Variación Absoluta | J6: Variación relativa (%)
A8: 4. | B8: INGRESOS
A9: 4.1. | B9: Impuestos
A10: 4.1.1. | B10: Impuestos sobre los ingresos, las utilidades y las ganancias de capital | C10: 31 | D10: =SUM(D11:D14) -> 0 | E10: =SUM(E11:E14) -> 0 | G10: =IFERROR(D10/$D$133,0) -> 0 | H10: =IFERROR(E10/$E$133,0) -> 0 | I10: =IFERROR(D10-E10,0) -> 0 | J10: =IFERROR(I10/E10,0) -> 0 | L10: ="La"&" "&"cuenta"&" "&B10&","&" "&"representa"&" "&"el"&" "&TEXT(G10,"0,00%")&" "&"del"&" "&"total"&" "&"del"&" "&IF(MID(A10,1,2)="1.","Activo",IF(MID(A10,1,2)="2.","Pasivo",IF(MID(A10,1,2)="3.","Capital",IF(MID(A10,1,2)="4.","Ingresos",IF(MID(A10,1,2)="5.","Gastos","")))))&","&" "&"que"&" "&"comparado"&" "&"al"&" "&"periodo"&" "&"anterior"&" "&"genera"&" "&"una"&" "&"variación"&" "&"absoluta"&" "&"de"&" "&TEXT(I10,"0 000,00")&" "&"que"&" "&"corresponde"&" "&"a"&" "&"un"&" "&IF(I10<0,"Disminución","Aumento")&" "&"del"&" "&TEXT(J10,"0,00%")&" "&"de"&" "&"recursos"&" "&"disponibles"&"." -> La cuenta Impuestos sobre los ingresos, las utilidades y las ganancias de capital, representa el 0,00% del total del Ingresos, que comparado al periodo anterior genera una variación absoluta de 0 000,00 que corresponde a un Aumento del 0,00% de recursos disponibles.
A11: 4.1.1.01. | B11: Impuestos sobre los ingresos y utilidades de personas físicas | D11: =IFERROR(VLOOKUP(A11,BC_ACTUAL!B:G,6,0)/1000,0) -> 0 | E11: =IFERROR(VLOOKUP(A11,BC_ANTERIOR!B:G,6,0)/1000,0) -> 0 | G11: =IFERROR(D11/$D$133,0) -> 0 | H11: =IFERROR(E11/$E$133,0) -> 0 | I11: =IFERROR(D11-E11,0) -> 0 | J11: =IFERROR(I11/E11,0) -> 0 | L11: ="La"&" "&"cuenta"&" "&B11&","&" "&"representa"&" "&"el"&" "&TEXT(G11,"0,00%")&" "&"del"&" "&"total"&" "&"del"&" "&IF(MID(A11,1,2)="1.","Activo",IF(MID(A11,1,2)="2.","Pasivo",IF(MID(A11,1,2)="3.","Capital",IF(MID(A11,1,2)="4.","Ingresos",IF(MID(A11,1,2)="5.","Gastos","")))))&","&" "&"que"&" "&"comparado"&" "&"al"&" "&"periodo"&" "&"anterior"&" "&"genera"&" "&"una"&" "&"variación"&" "&"absoluta"&" "&"de"&" "&TEXT(I11,"0 000,00")&" "&"que"&" "&"corresponde"&" "&"a"&" "&"un"&" "&IF(I11<0,"Disminución","Aumento")&" "&"del"&" "&TEXT(J11,"0,00%")&" "&"de"&" "&"recursos"&" "&"disponibles"&"." -> La cuenta Impuestos sobre los ingresos y utilidades de personas físicas, representa el 0,00% del total del Ingresos, que comparado al periodo anterior genera una variación absoluta de 0 000,00 que corresponde a un Aumento del 0,00% de recursos disponibles.
A12: 4.1.1.02. | B12: Impuestos sobre los ingresos y utilidades de personas jurídicas | D12: =IFERROR(VLOOKUP(A12,BC_ACTUAL!B:G,6,0)/1000,0) -> 0 | E12: =IFERROR(VLOOKUP(A12,BC_ANTERIOR!B:G,6,0)/1000,0) -> 0 | G12: 0 | H12: 0 | I12: 0 | J12: 0 | L12: La cuenta Impuestos sobre los ingresos y utilidades de personas jurídicas, representa el 0,00% del total del Ingresos, que comparado al periodo anterior genera una variación absoluta de 0 000,00 que corresponde a un Aumento del 0,00% de recursos disponibles.
A13: 4.1.1.03. | B13: Impuestos sobre dividendos e intereses de títulos valores | D13: =IFERROR(VLOOKUP(A13,BC_ACTUAL!B:G,6,0)/1000,0) -> 0 | E13: =IFERROR(VLOOKUP(A13,BC_ANTERIOR!B:G,6,0)/1000,0) -> 0 | G13: 0 | H13: 0 | I13: 0 | J13: 0 | L13: La cuenta Impuestos sobre dividendos e intereses de títulos valores, representa el 0,00% del total del Ingresos, que comparado al periodo anterior genera una variación absoluta de 0 000,00 que corresponde a un Aumento del 0,00% de recursos disponibles.
A14: 4.1.1.99. | B14: Otros impuestos sobre los ingresos, las utilidades y las ganancias de capital | D14: =IFERROR(VLOOKUP(A14,BC_ACTUAL!B:G,6,0)/1000,0) -> 0 | E14: =IFERROR(VLOOKUP(A14,BC_ANTERIOR!B:G,6,0)/1000,0) -> 0 | G14: 0 | H14: 0 | I14: 0 | J14: 0 | L14: La cuenta Otros impuestos sobre los ingresos, las utilidades y las ganancias de capital, representa el 0,00% del total del Ingresos, que comparado al periodo anterior genera una variación absoluta de 0 000,00 que corresponde a un Aumento del 0,00% de recursos disponibles.
A15: 4.1.2. | B15: Impuestos sobre la propiedad | C15: 32 | D15: =SUM(D16:D21) -> 328557.6523 | E15: =SUM(E16:E21) -> 385026.3634 | G15: 0.0701591767 | H15: 0.08312149309 | I15: -56468.71115 | J15: =IFERROR(I15/E15,0) -> -0.1466619341 | L15: La cuenta Impuestos sobre la propiedad, representa el 7,02% del total del Ingresos, que comparado al periodo anterior genera una variación absoluta de -56 468,71 que corresponde a un Disminución del -14,67% de recursos disponibles.
A16: 4.1.2.01. | B16: Impuesto sobre la propiedad de bienes inmuebles | D16: =IFERROR(VLOOKUP(A16,BC_ACTUAL!B:G,6,0)/1000,0) -> 328557.6523 | E16: =IFERROR(VLOOKUP(A16,BC_ANTERIOR!B:G,6,0)/1000,0) -> 385026.3634 | G16: 0.0701591767 | H16: =IFERROR(E16/$E$133,0) -> 0.08312149309 | I16: -56468.71115 | J16: -0.1466619341 | L16: La cuenta Impuesto sobre la propiedad de bienes inmuebles, representa el 7,02% del total del Ingresos, que comparado al periodo anterior genera una variación absoluta de -56 468,71 que corresponde a un Disminución del -14,67% de recursos disponibles.
A17: 4.1.2.02. | B17: Impuesto sobre la propiedad de vehículos, aeronaves y embarcaciones | D17: =IFERROR(VLOOKUP(A17,BC_ACTUAL!B:G,6,0)/1000,0) -> 0 | E17: =IFERROR(VLOOKUP(A17,BC_ANTERIOR!B:G,6,0)/1000,0) -> 0 | G17: 0 | H17: 0 | I17: 0 | J17: 0 | L17: La cuenta Impuesto sobre la propiedad de vehículos, aeronaves y embarcaciones, representa el 0,00% del total del Ingresos, que comparado al periodo anterior genera una variación absoluta de 0 000,00 que corresponde a un Aumento del 0,00% de recursos disponibles.
A18: 4.1.2.03. | B18: Impuesto sobre el patrimonio | D18: =IFERROR(VLOOKUP(A18,BC_ACTUAL!B:G,6,0)/1000,0) -> 0 | E18: =IFERROR(VLOOKUP(A18,BC_ANTERIOR!B:G,6,0)/1000,0) -> 0 | G18: 0 | H18: 0 | I18: 0 | J18: 0 | L18: La cuenta Impuesto sobre el patrimonio, representa el 0,00% del total del Ingresos, que comparado al periodo anterior genera una variación absoluta de 0 000,00 que corresponde a un Aumento del 0,00% de recursos disponibles.
A19: 4.1.2.04. | B19: Impuesto sobre los traspasos de bienes inmuebles | D19: =IFERROR(VLOOKUP(A19,BC_ACTUAL!B:G,6,0)/1000,0) -> 0 | E19: =IFERROR(VLOOKUP(A19,BC_ANTERIOR!B:G,6,0)/1000,0) -> 0 | G19: 0 | H19: 0 | I19: 0 | J19: 0 | L19: La cuenta Impuesto sobre los traspasos de bienes inmuebles, representa el 0,00% del total del Ingresos, que comparado al periodo anterior genera una variación absoluta de 0 000,00 que corresponde a un Aumento del 0,00% de recursos disponibles.
A20: 4.1.2.05. | B20: Impuesto a los traspasos de vehículos, aeronaves y embarcaciones | D20: =IFERROR(VLOOKUP(A20,BC_ACTUAL!B:G,6,0)/1000,0) -> 0 | E20: =IFERROR(VLOOKUP(A20,BC_ANTERIOR!B:G,6,0)/1000,0) -> 0 | G20: 0 | H20: 0 | I20: 0 | J20: 0 | L20: La cuenta Impuesto a los traspasos de vehículos, aeronaves y embarcaciones, representa el 0,00% del total del Ingresos, que comparado al periodo anterior genera una variación absoluta de 0 000,00 que corresponde a un Aumento del 0,00% de recursos disponibles.
A21: 4.1.2.99. | B21: Otros impuestos a la propiedad | D21: =IFERROR(VLOOKUP(A21,BC_ACTUAL!B:G,6,0)/1000,0) -> 0 | E21: =IFERROR(VLOOKUP(A21,BC_ANTERIOR!B:G,6,0)/1000,0) -> 0 | G21: 0 | H21: 0 | I21: 0 | J21: 0 | L21: La cuenta Otros impuestos a la propiedad, representa el 0,00% del total del Ingresos, que comparado al periodo anterior genera una variación absoluta de 0 000,00 que corresponde a un Aumento del 0,00% de recursos disponibles.
A22: 4.1.3. | B22: Impuestos sobre bienes y servicios | C22: 33 | D22: =SUM(D23:D25) -> 190892.8529 | E22: =SUM(E23:E25) -> 182289.0792 | G22: 0.04076266464 | H22: 0.03935351415 | I22: 8603.77364 | J22: 0.0471985139 | L22: La cuenta Impuestos sobre bienes y servicios, representa el 4,08% del total del Ingresos, que comparado al periodo anterior genera una variación absoluta de 8 603,77 que corresponde a un Aumento del 4,72% de recursos disponibles.
A23: 4.1.3.01. | B23: Impuestos generales y selectivos sobre ventas y consumo | D23: =IFERROR(VLOOKUP(A23,BC_ACTUAL!B:G,6,0)/1000,0) -> 159424.7077 | E23: =IFERROR(VLOOKUP(A23,BC_ANTERIOR!B:G,6,0)/1000,0) -> 152176.3225 | G23: 0.03404305503 | H23: 0.03285261567 | I23: 7248.38519 | J23: =IFERROR(I23/E23,0) -> 0.04763149135 | L23: La cuenta Impuestos generales y selectivos sobre ventas y consumo, representa el 3,40% del total del Ingresos, que comparado al periodo anterior genera una variación absoluta de 7 248,39 que corresponde a un Aumento del 4,76% de recursos disponibles.
A24: 4.1.3.02. | B24: Impuestos específicos sobre la producción y consumo de bienes y servicios | D24: =IFERROR(VLOOKUP(A24,BC_ACTUAL!B:G,6,0)/1000,0) -> 28218.14517 | E24: =IFERROR(VLOOKUP(A24,BC_ANTERIOR!B:G,6,0)/1000,0) -> 27362.75672 | G24: 0.006025614741 | H24: 0.00590721418 | I24: 855.38845 | J24: 0.03126104795 | L24: La cuenta Impuestos específicos sobre la producción y consumo de bienes y servicios, representa el 0,60% del total del Ingresos, que comparado al periodo anterior genera una variación absoluta de 0 855,39 que corresponde a un Aumento del 3,13% de recursos disponibles.
A25: 4.1.3.99. | B25: Otros impuestos sobre bienes y servicios | D25: =IFERROR(VLOOKUP(A25,BC_ACTUAL!B:G,6,0)/1000,0) -> 3250 | E25: =IFERROR(VLOOKUP(A25,BC_ANTERIOR!B:G,6,0)/1000,0) -> 2750 | G25: 0.0006939948672 | H25: 0.0005936842973 | I25: 500 | J25: 0.1818181818 | L25: La cuenta Otros impuestos sobre bienes y servicios, representa el 0,07% del total del Ingresos, que comparado al periodo anterior genera una variación absoluta de 0 500,00 que corresponde a un Aumento del 18,18% de recursos disponibles.
A26: 4.1.4. | B26: Impuestos sobre el comercio exterior y transacciones internacionales | C26: 34 | D26: =SUM(D27:D29) -> 0 | E26: =SUM(E27:E29) -> 0 | G26: 0 | H26: 0 | I26: 0 | J26: 0 | L26: La cuenta Impuestos sobre el comercio exterior y transacciones internacionales, representa el 0,00% del total del Ingresos, que comparado al periodo anterior genera una variación absoluta de 0 000,00 que corresponde a un Aumento del 0,00% de recursos disponibles.
A27: 4.1.4.01. | B27: Impuestos a las importaciones | D27: =IFERROR(VLOOKUP(A27,BC_ACTUAL!B:G,6,0)/1000,0) -> 0 | E27: =IFERROR(VLOOKUP(A27,BC_ANTERIOR!B:G,6,0)/1000,0) -> 0 | G27: 0 | H27: 0 | I27: 0 | J27: 0 | L27: La cuenta Impuestos a las importaciones, representa el 0,00% del total del Ingresos, que comparado al periodo anterior genera una variación absoluta de 0 000,00 que corresponde a un Aumento del 0,00% de recursos disponibles.
A28: 4.1.4.02. | B28: Impuestos a las exportaciones | D28: =IFERROR(VLOOKUP(A28,BC_ACTUAL!B:G,6,0)/1000,0) -> 0 | E28: =IFERROR(VLOOKUP(A28,BC_ANTERIOR!B:G,6,0)/1000,0) -> 0 | G28: 0 | H28: 0 | I28: 0 | J28: 0 | L28: La cuenta Impuestos a las exportaciones, representa el 0,00% del total del Ingresos, que comparado al periodo anterior genera una variación absoluta de 0 000,00 que corresponde a un Aumento del 0,00% de recursos disponibles.
A29: 4.1.4.99. | B29: Otros impuestos sobre el comercio exterior y transacciones internacionales | D29: =IFERROR(VLOOKUP(A29,BC_ACTUAL!B:G,6,0)/1000,0) -> 0 | E29: =IFERROR(VLOOKUP(A29,BC_ANTERIOR!B:G,6,0)/1000,0) -> 0 | G29: 0 | H29: 0 | I29: 0 | J29: 0 | L29: La cuenta Otros impuestos sobre el comercio exterior y transacciones internacionales, representa el 0,00% del total del Ingresos, que comparado al periodo anterior genera una variación absoluta de 0 000,00 que corresponde a un Aumento del 0,00% de recursos disponibles.
A30: 4.1.9. | B30: Otros impuestos | C30: 35 | D30: =SUM(D31:D32) -> 0 | E30: =SUM(E31:E32) -> 0 | G30: 0 | H30: 0 | I30: 0 | J30: 0 | L30: La cuenta Otros impuestos, representa el 0,00% del total del Ingresos, que comparado al periodo anterior genera una variación absoluta de 0 000,00 que corresponde a un Aumento del 0,00% de recursos disponibles.
A31: 4.1.9.99. | B31: Otros impuestos sin discriminar | D31: =IFERROR(VLOOKUP(A31,BC_ACTUAL!B:G,6,0)/1000,0) -> 0 | E31: =IFERROR(VLOOKUP(A31,BC_ANTERIOR!B:G,6,0)/1000,0) -> 0 | G31: 0 | H31: 0 | I31: 0 | J31: 0 | L31: La cuenta Otros impuestos sin discriminar, representa el 0,00% del total del Ingresos, que comparado al periodo anterior genera una variación absoluta de 0 000,00 que corresponde a un Aumento del 0,00% de recursos disponibles.
A32: 4.2. | B32: Contribuciones sociales
A33: 4.2.1. | B33: Contribuciones a la seguridad social | C33: 36 | D33: =SUM(D34:D36) -> 0 | E33: =SUM(E34:E36) -> 0 | G33: =IFERROR(D33/$D$133,0) -> 0 | H33: =IFERROR(E33/$E$133,0) -> 0 | I33: =IFERROR(D33-E33,0) -> 0 | J33: 0 | L33: La cuenta Contribuciones a la seguridad social, representa el 0,00% del total del Ingresos, que comparado al periodo anterior genera una variación absoluta de 0 000,00 que corresponde a un Aumento del 0,00% de recursos disponibles.
A34: 4.2.1.01. | B34: Contribuciones al seguro de pensiones | D34: =IFERROR(VLOOKUP(A34,BC_ACTUAL!B:G,6,0)/1000,0) -> 0 | E34: =IFERROR(VLOOKUP(A34,BC_ANTERIOR!B:G,6,0)/1000,0) -> 0 | G34: 0 | H34: 0 | I34: 0 | J34: 0 | L34: La cuenta Contribuciones al seguro de pensiones, representa el 0,00% del total del Ingresos, que comparado al periodo anterior genera una variación absoluta de 0 000,00 que corresponde a un Aumento del 0,00% de recursos disponibles.
A35: 4.2.1.02. | B35: Contribuciones a regímenes especiales de pensiones | D35: =IFERROR(VLOOKUP(A35,BC_ACTUAL!B:G,6,0)/1000,0) -> 0 | E35: =IFERROR(VLOOKUP(A35,BC_ANTERIOR!B:G,6,0)/1000,0) -> 0 | G35: 0 | H35: 0 | I35: 0 | J35: 0 | L35: La cuenta Contribuciones a regímenes especiales de pensiones, representa el 0,00% del total del Ingresos, que comparado al periodo anterior genera una variación absoluta de 0 000,00 que corresponde a un Aumento del 0,00% de recursos disponibles.
A36: 4.2.1.03. | B36: Contribuciones al seguro de salud | D36: =IFERROR(VLOOKUP(A36,BC_ACTUAL!B:G,6,0)/1000,0) -> 0 | E36: =IFERROR(VLOOKUP(A36,BC_ANTERIOR!B:G,6,0)/1000,0) -> 0 | G36: 0 | H36: 0 | I36: 0 | J36: 0 | L36: La cuenta Contribuciones al seguro de salud, representa el 0,00% del total del Ingresos, que comparado al periodo anterior genera una variación absoluta de 0 000,00 que corresponde a un Aumento del 0,00% de recursos disponibles.
A37: 4.2.9. | B37: Contribuciones sociales diversas | C37: 37 | D37: =SUM(D38:D39) -> 0 | E37: =SUM(E38:E39) -> 0 | G37: 0 | H37: 0 | I37: 0 | J37: 0 | L37: La cuenta Contribuciones sociales diversas, representa el 0,00% del total del Ingresos, que comparado al periodo anterior genera una variación absoluta de 0 000,00 que corresponde a un Aumento del 0,00% de recursos disponibles.
A38: 4.2.9.99. | B38: Otras contribuciones sociales | D38: =IFERROR(VLOOKUP(A38,BC_ACTUAL!B:G,6,0)/1000,0) -> 0 | E38: =IFERROR(VLOOKUP(A38,BC_ANTERIOR!B:G,6,0)/1000,0) -> 0 | G38: 0 | H38: 0 | I38: 0 | J38: 0 | L38: La cuenta Otras contribuciones sociales, representa el 0,00% del total del Ingresos, que comparado al periodo anterior genera una variación absoluta de 0 000,00 que corresponde a un Aumento del 0,00% de recursos disponibles.
A39: 4.3. | B39: Multas, sanciones, remates y confiscaciones de origen no tributario
A40: 4.3.1. | B40: Multas y sanciones administrativas | C40: 38 | D40: =SUM(D41:D44) -> 0 | E40: =SUM(E41:E44) -> 0 | G40: =IFERROR(D40/$D$133,0) -> 0 | H40: =IFERROR(E40/$E$133,0) -> 0 | I40: =IFERROR(D40-E40,0) -> 0 | J40: 0 | L40: La cuenta Multas y sanciones administrativas, representa el 0,00% del total del Ingresos, que comparado al periodo anterior genera una variación absoluta de 0 000,00 que corresponde a un Aumento del 0,00% de recursos disponibles.
A41: 4.3.1.01. | B41: Multas de tránsito | D41: =IFERROR(VLOOKUP(A41,BC_ACTUAL!B:G,6,0)/1000,0) -> 0 | E41: =IFERROR(VLOOKUP(A41,BC_ANTERIOR!B:G,6,0)/1000,0) -> 0 | G41: 0 | H41: 0 | I41: 0 | J41: 0 | L41: La cuenta Multas de tránsito, representa el 0,00% del total del Ingresos, que comparado al periodo anterior genera una variación absoluta de 0 000,00 que corresponde a un Aumento del 0,00% de recursos disponibles.
A42: 4.3.1.02. | B42: Multas por atraso en el pago de bienes y servicios | D42: =IFERROR(VLOOKUP(A42,BC_ACTUAL!B:G,6,0)/1000,0) -> 0 | E42: =IFERROR(VLOOKUP(A42,BC_ANTERIOR!B:G,6,0)/1000,0) -> 0 | G42: 0 | H42: 0 | I42: 0 | J42: 0 | L42: La cuenta Multas por atraso en el pago de bienes y servicios, representa el 0,00% del total del Ingresos, que comparado al periodo anterior genera una variación absoluta de 0 000,00 que corresponde a un Aumento del 0,00% de recursos disponibles.
A43: 4.3.1.03. | B43: Sanciones administrativas | D43: =IFERROR(VLOOKUP(A43,BC_ACTUAL!B:G,6,0)/1000,0) -> 0 | E43: =IFERROR(VLOOKUP(A43,BC_ANTERIOR!B:G,6,0)/1000,0) -> 0 | G43: 0 | H43: 0 | I43: 0 | J43: 0 | L43: La cuenta Sanciones administrativas, representa el 0,00% del total del Ingresos, que comparado al periodo anterior genera una variación absoluta de 0 000,00 que corresponde a un Aumento del 0,00% de recursos disponibles.
A44: 4.3.1.99. | B44: Otras multas | D44: =IFERROR(VLOOKUP(A44,BC_ACTUAL!B:G,6,0)/1000,0) -> 0 | E44: =IFERROR(VLOOKUP(A44,BC_ANTERIOR!B:G,6,0)/1000,0) -> 0 | G44: 0 | H44: 0 | I44: 0 | J44: 0 | L44: La cuenta Otras multas, representa el 0,00% del total del Ingresos, que comparado al periodo anterior genera una variación absoluta de 0 000,00 que corresponde a un Aumento del 0,00% de recursos disponibles.
A45: 4.3.2. | B45: Remates y confiscaciones de origen no tributario | C45: 39 | D45: =SUM(D46:D50) -> 0 | E45: =SUM(E46:E50) -> 0 | G45: 0 | H45: 0 | I45: 0 | J45: 0 | L45: La cuenta Remates y confiscaciones de origen no tributario, representa el 0,00% del total del Ingresos, que comparado al periodo anterior genera una variación absoluta de 0 000,00 que corresponde a un Aumento del 0,00% de recursos disponibles.
A46: 4.3.2.99. | B46: Otros remates y confiscaciones de origen no tributario | D46: =IFERROR(VLOOKUP(A46,BC_ACTUAL!B:G,6,0)/1000,0) -> 0 | E46: =IFERROR(VLOOKUP(A46,BC_ANTERIOR!B:G,6,0)/1000,0) -> 0 | G46: 0 | H46: 0 | I46: 0 | J46: 0 | L46: La cuenta Otros remates y confiscaciones de origen no tributario, representa el 0,00% del total del Ingresos, que comparado al periodo anterior genera una variación absoluta de 0 000,00 que corresponde a un Aumento del 0,00% de recursos disponibles.
A47: 4.3.3. | B47: Intereses Moratorios | C47: 40 | G47: 0 | H47: 0 | I47: 0 | J47: 0 | L47: La cuenta Intereses Moratorios, representa el 0,00% del total del Ingresos, que comparado al periodo anterior genera una variación absoluta de 0 000,00 que corresponde a un Aumento del 0,00% de recursos disponibles.
A48: 4.3.3.01. | B48: Otros remates y confiscaciones de origen no tributario | D48: =IFERROR(VLOOKUP(A48,BC_ACTUAL!B:G,6,0)/1000,0) -> 0 | E48: =IFERROR(VLOOKUP(A48,BC_ANTERIOR!B:G,6,0)/1000,0) -> 0 | G48: 0 | H48: 0 | I48: 0 | J48: 0 | L48: La cuenta Otros remates y confiscaciones de origen no tributario, representa el 0,00% del total del Ingresos, que comparado al periodo anterior genera una variación absoluta de 0 000,00 que corresponde a un Aumento del 0,00% de recursos disponibles.
A49: 4.3.3.02. | B49: Intereses moratorios por atraso en el pago de multas de transito | D49: =IFERROR(VLOOKUP(A49,BC_ACTUAL!B:G,6,0)/1000,0) -> 0 | E49: =IFERROR(VLOOKUP(A49,BC_ANTERIOR!B:G,6,0)/1000,0) -> 0 | G49: 0 | H49: 0 | I49: 0 | J49: 0 | L49: La cuenta Intereses moratorios por atraso en el pago de multas de transito, representa el 0,00% del total del Ingresos, que comparado al periodo anterior genera una variación absoluta de 0 000,00 que corresponde a un Aumento del 0,00% de recursos disponibles.
A50: 4.4. | B50: Ingresos y resultados positivos por ventas
A51: 4.4.1. | B51: Ventas de bienes y servicios | C51: 41 | D51: =SUM(D52:D53) -> 346642.6984 | E51: =SUM(E52:E53) -> 218573.6997 | G51: =IFERROR(D51/$D$133,0) -> 0.07402100106 | H51: =IFERROR(E51/$E$133,0) -> 0.04718682665 | I51: =IFERROR(D51-E51,0) -> 128068.9987 | J51: 0.5859305072 | L51: La cuenta Ventas de bienes y servicios, representa el 7,40% del total del Ingresos, que comparado al periodo anterior genera una variación absoluta de 128 069,00 que corresponde a un Aumento del 58,59% de recursos disponibles.
A52: 4.4.1.01. | B52: Ventas de bienes | D52: =IFERROR(VLOOKUP(A52,BC_ACTUAL!B:G,6,0)/1000,0) -> 0 | E52: =IFERROR(VLOOKUP(A52,BC_ANTERIOR!B:G,6,0)/1000,0) -> 0 | G52: 0 | H52: 0 | I52: 0 | J52: 0 | L52: La cuenta Ventas de bienes, representa el 0,00% del total del Ingresos, que comparado al periodo anterior genera una variación absoluta de 0 000,00 que corresponde a un Aumento del 0,00% de recursos disponibles.
A53: 4.4.1.02. | B53: Ventas de servicios | D53: =IFERROR(VLOOKUP(A53,BC_ACTUAL!B:G,6,0)/1000,0) -> 346642.6984 | E53: =IFERROR(VLOOKUP(A53,BC_ANTERIOR!B:G,6,0)/1000,0) -> 218573.6997 | G53: 0.07402100106 | H53: 0.04718682665 | I53: 128068.9987 | J53: 0.5859305072 | L53: La cuenta Ventas de servicios, representa el 7,40% del total del Ingresos, que comparado al periodo anterior genera una variación absoluta de 128 069,00 que corresponde a un Aumento del 58,59% de recursos disponibles.
A54: 4.4.2. | B54: Derechos administrativos | C54: 42 | D54: =SUM(D55:D56) -> 368.93333 | E54: =SUM(E55:E56) -> 338 | G54: 7.878087303e-05 | H54: 7.296919726e-05 | I54: 30.93333 | J54: 0.09151872781 | L54: La cuenta Derechos administrativos, representa el 0,01% del total del Ingresos, que comparado al periodo anterior genera una variación absoluta de 0 030,93 que corresponde a un Aumento del 9,15% de recursos disponibles.
A55: 4.4.2.01. | B55: Derechos administrativos a los servicios de transporte | D55: =IFERROR(VLOOKUP(A55,BC_ACTUAL!B:G,6,0)/1000,0) -> 240 | E55: =IFERROR(VLOOKUP(A55,BC_ANTERIOR!B:G,6,0)/1000,0) -> 240 | G55: 5.124885173e-05 | H55: 5.181244776e-05 | I55: 0 | J55: 0 | L55: La cuenta Derechos administrativos a los servicios de transporte, representa el 0,01% del total del Ingresos, que comparado al periodo anterior genera una variación absoluta de 0 000,00 que corresponde a un Aumento del 0,00% de recursos disponibles.
A56: 4.4.2.99. | B56: Otros derechos administrativos | D56: =IFERROR(VLOOKUP(A56,BC_ACTUAL!B:G,6,0)/1000,0) -> 128.93333 | E56: =IFERROR(VLOOKUP(A56,BC_ANTERIOR!B:G,6,0)/1000,0) -> 98 | G56: 2.75320213e-05 | H56: 2.11567495e-05 | I56: 30.93333 | J56: 0.3156462245 | L56: La cuenta Otros derechos administrativos, representa el 0,00% del total del Ingresos, que comparado al periodo anterior genera una variación absoluta de 0 030,93 que corresponde a un Aumento del 31,56% de recursos disponibles.
A57: 4.4.3. | B57: Comisiones por préstamos | C57: 43 | D57: =SUM(D58:D60) -> 0 | E57: =SUM(E58:E60) -> 0 | G57: 0 | H57: 0 | I57: 0 | J57: 0 | L57: La cuenta Comisiones por préstamos, representa el 0,00% del total del Ingresos, que comparado al periodo anterior genera una variación absoluta de 0 000,00 que corresponde a un Aumento del 0,00% de recursos disponibles.
A58: 4.4.3.01. | B58: Comisiones por préstamos al sector privado interno | D58: =IFERROR(VLOOKUP(A58,BC_ACTUAL!B:G,6,0)/1000,0) -> 0 | E58: =IFERROR(VLOOKUP(A58,BC_ANTERIOR!B:G,6,0)/1000,0) -> 0 | G58: 0 | H58: 0 | I58: 0 | J58: 0 | L58: La cuenta Comisiones por préstamos al sector privado interno, representa el 0,00% del total del Ingresos, que comparado al periodo anterior genera una variación absoluta de 0 000,00 que corresponde a un Aumento del 0,00% de recursos disponibles.
A59: 4.4.3.02. | B59: Comisiones por préstamos al sector público interno | D59: =IFERROR(VLOOKUP(A59,BC_ACTUAL!B:G,6,0)/1000,0) -> 0 | E59: =IFERROR(VLOOKUP(A59,BC_ANTERIOR!B:G,6,0)/1000,0) -> 0 | G59: 0 | H59: 0 | I59: 0 | J59: 0 | L59: La cuenta Comisiones por préstamos al sector público interno, representa el 0,00% del total del Ingresos, que comparado al periodo anterior genera una variación absoluta de 0 000,00 que corresponde a un Aumento del 0,00% de recursos disponibles.
A60: 4.4.3.03. | B60: Comisiones por préstamos al sector externo | D60: =IFERROR(VLOOKUP(A60,BC_ACTUAL!B:G,6,0)/1000,0) -> 0 | E60: =IFERROR(VLOOKUP(A60,BC_ANTERIOR!B:G,6,0)/1000,0) -> 0 | G60: 0 | H60: 0 | I60: 0 | J60: 0 | L60: La cuenta Comisiones por préstamos al sector externo, representa el 0,00% del total del Ingresos, que comparado al periodo anterior genera una variación absoluta de 0 000,00 que corresponde a un Aumento del 0,00% de recursos disponibles.
A61: 4.4.4. | B61: Resultados positivos por ventas de inversiones | C61: 44 | D61: =SUM(D62:D63) -> 0 | E61: =SUM(E62:E63) -> 0 | G61: 0 | H61: 0 | I61: 0 | J61: 0 | L61: La cuenta Resultados positivos por ventas de inversiones, representa el 0,00% del total del Ingresos, que comparado al periodo anterior genera una variación absoluta de 0 000,00 que corresponde a un Aumento del 0,00% de recursos disponibles.
A62: 4.4.4.01. | B62: Resultados positivos por ventas de inversiones patrimoniales - Método de participación | D62: =IFERROR(VLOOKUP(A62,BC_ACTUAL!B:G,6,0),0) -> 0 | E62: =IFERROR(VLOOKUP(A62,BC_ANTERIOR!B:G,6,0),0) -> 0 | G62: 0 | H62: 0 | I62: 0 | J62: 0 | L62: La cuenta Resultados positivos por ventas de inversiones patrimoniales - Método de participación, representa el 0,00% del total del Ingresos, que comparado al periodo anterior genera una variación absoluta de 0 000,00 que corresponde a un Aumento del 0,00% de recursos disponibles.
A63: 4.4.4.98. | B63: Resultados positivos por ventas de otras inversiones | D63: =IFERROR(VLOOKUP(A63,BC_ACTUAL!B:G,6,0),0) -> 0 | E63: =IFERROR(VLOOKUP(A63,BC_ANTERIOR!B:G,6,0),0) -> 0 | G63: 0 | H63: 0 | I63: 0 | J63: 0 | L63: La cuenta Resultados positivos por ventas de otras inversiones , representa el 0,00% del total del Ingresos, que comparado al periodo anterior genera una variación absoluta de 0 000,00 que corresponde a un Aumento del 0,00% de recursos disponibles.
A64: 4.4.5. | B64: Resultados positivos por ventas e intercambio de bienes | C64: 45 | D64: =SUM(D65:D73) -> 0 | E64: =SUM(E65:E73) -> 0 | G64: 0 | H64: 0 | I64: 0 | J64: 0 | L64: La cuenta Resultados positivos por ventas e intercambio de bienes, representa el 0,00% del total del Ingresos, que comparado al periodo anterior genera una variación absoluta de 0 000,00 que corresponde a un Aumento del 0,00% de recursos disponibles.
A65: 4.4.5.01. | B65: Resultados positivos por ventas de construcciones terminadas | D65: =IFERROR(VLOOKUP(A65,BC_ACTUAL!B:G,6,0)/1000,0) -> 0 | E65: =IFERROR(VLOOKUP(A65,BC_ANTERIOR!B:G,6,0)/1000,0) -> 0 | G65: 0 | H65: 0 | I65: 0 | J65: 0 | L65: La cuenta Resultados positivos por ventas de construcciones terminadas, representa el 0,00% del total del Ingresos, que comparado al periodo anterior genera una variación absoluta de 0 000,00 que corresponde a un Aumento del 0,00% de recursos disponibles.
A66: 4.4.5.02. | B66: Resultados positivos por ventas de propiedades, planta y equipo | D66: =IFERROR(VLOOKUP(A66,BC_ACTUAL!B:G,6,0)/1000,0) -> 0 | E66: =IFERROR(VLOOKUP(A66,BC_ANTERIOR!B:G,6,0)/1000,0) -> 0 | G66: 0 | H66: 0 | I66: 0 | J66: 0 | L66: La cuenta Resultados positivos por ventas de propiedades, planta y equipo, representa el 0,00% del total del Ingresos, que comparado al periodo anterior genera una variación absoluta de 0 000,00 que corresponde a un Aumento del 0,00% de recursos disponibles.
A67: 4.4.5.03. | B67: Resultados positivos por ventas de activos biológicos | D67: =IFERROR(VLOOKUP(A67,BC_ACTUAL!B:G,6,0)/1000,0) -> 0 | E67: =IFERROR(VLOOKUP(A67,BC_ANTERIOR!B:G,6,0)/1000,0) -> 0 | G67: 0 | H67: 0 | I67: 0 | J67: 0 | L67: La cuenta Resultados positivos por ventas de activos biológicos, representa el 0,00% del total del Ingresos, que comparado al periodo anterior genera una variación absoluta de 0 000,00 que corresponde a un Aumento del 0,00% de recursos disponibles.
A68: 4.4.5.04. | B68: Resultados positivos por ventas de bienes intangibles | D68: =IFERROR(VLOOKUP(A68,BC_ACTUAL!B:G,6,0)/1000,0) -> 0 | E68: =IFERROR(VLOOKUP(A68,BC_ANTERIOR!B:G,6,0)/1000,0) -> 0 | G68: 0 | H68: 0 | I68: 0 | J68: 0 | L68: La cuenta Resultados positivos por ventas de bienes intangibles, representa el 0,00% del total del Ingresos, que comparado al periodo anterior genera una variación absoluta de 0 000,00 que corresponde a un Aumento del 0,00% de recursos disponibles.
A69: 4.4.5.05. | B69: Resultados positivos por ventas por arrendamientos financieros | D69: =IFERROR(VLOOKUP(A69,BC_ACTUAL!B:G,6,0)/1000,0) -> 0 | E69: =IFERROR(VLOOKUP(A69,BC_ANTERIOR!B:G,6,0)/1000,0) -> 0 | G69: 0 | H69: 0 | I69: 0 | J69: 0 | L69: La cuenta Resultados positivos por ventas por arrendamientos financieros, representa el 0,00% del total del Ingresos, que comparado al periodo anterior genera una variación absoluta de 0 000,00 que corresponde a un Aumento del 0,00% de recursos disponibles.
A70: 4.4.5.06. | B70: Resultados positivos por intercambio de propiedades, planta y equipo | D70: =IFERROR(VLOOKUP(A70,BC_ACTUAL!B:G,6,0)/1000,0) -> 0 | E70: =IFERROR(VLOOKUP(A70,BC_ANTERIOR!B:G,6,0)/1000,0) -> 0 | G70: 0 | H70: 0 | I70: 0 | J70: 0 | L70: La cuenta Resultados positivos por intercambio de propiedades, planta y equipo, representa el 0,00% del total del Ingresos, que comparado al periodo anterior genera una variación absoluta de 0 000,00 que corresponde a un Aumento del 0,00% de recursos disponibles.
A71: 4.4.5.07. | B71: Resultados positivos por intercambio de bienes intangibles | D71: =IFERROR(VLOOKUP(A71,BC_ACTUAL!B:G,6,0)/1000,0) -> 0 | E71: =IFERROR(VLOOKUP(A71,BC_ANTERIOR!B:G,6,0)/1000,0) -> 0 | G71: 0 | H71: 0 | I71: 0 | J71: 0 | L71: La cuenta Resultados positivos por intercambio de bienes intangibles, representa el 0,00% del total del Ingresos, que comparado al periodo anterior genera una variación absoluta de 0 000,00 que corresponde a un Aumento del 0,00% de recursos disponibles.
A72: 4.4.5.08. | B72: Resultados positivos por intercambio de Inventario | D72: =IFERROR(VLOOKUP(A72,BC_ACTUAL!B:G,6,0)/1000,0) -> 0 | E72: =IFERROR(VLOOKUP(A72,BC_ANTERIOR!B:G,6,0)/1000,0) -> 0 | G72: 0 | H72: 0 | I72: 0 | J72: 0 | L72: La cuenta Resultados positivos por intercambio de Inventario, representa el 0,00% del total del Ingresos, que comparado al periodo anterior genera una variación absoluta de 0 000,00 que corresponde a un Aumento del 0,00% de recursos disponibles.
A73: 4.4.5.09. | B73: Resultados positivos por la entrega de activos como medio de pago de impuestos | D73: =IFERROR(VLOOKUP(A73,BC_ACTUAL!B:G,6,0)/1000,0) -> 0 | E73: =IFERROR(VLOOKUP(A73,BC_ANTERIOR!B:G,6,0)/1000,0) -> 0 | G73: 0 | H73: 0 | I73: 0 | J73: 0 | L73: La cuenta Resultados positivos por la entrega de activos como medio de pago de impuestos, representa el 0,00% del total del Ingresos, que comparado al periodo anterior genera una variación absoluta de 0 000,00 que corresponde a un Aumento del 0,00% de recursos disponibles.
A74: 4.4.5.10. | B74: Resultados positivos por intercambio de bienes de infraestructura | D74: =IFERROR(VLOOKUP(A74,BC_ACTUAL!B:G,6,0)/1000,0) -> 0 | E74: =IFERROR(VLOOKUP(A74,BC_ANTERIOR!B:G,6,0)/1000,0) -> 0 | G74: =IFERROR(D74/$D$133,0) -> 0 | H74: =IFERROR(E74/$E$133,0) -> 0 | I74: =IFERROR(D74-E74,0) -> 0 | J74: =IFERROR(I74/E74,0) -> 0 | L74: ="La"&" "&"cuenta"&" "&B74&","&" "&"representa"&" "&"el"&" "&TEXT(G74,"0,00%")&" "&"del"&" "&"total"&" "&"del"&" "&IF(MID(A74,1,2)="1.","Activo",IF(MID(A74,1,2)="2.","Pasivo",IF(MID(A74,1,2)="3.","Capital",IF(MID(A74,1,2)="4.","Ingresos",IF(MID(A74,1,2)="5.","Gastos","")))))&","&" "&"que"&" "&"comparado"&" "&"al"&" "&"periodo"&" "&"anterior"&" "&"genera"&" "&"una"&" "&"variación"&" "&"absoluta"&" "&"de"&" "&TEXT(I74,"0 000,00")&" "&"que"&" "&"corresponde"&" "&"a"&" "&"un"&" "&IF(I74<0,"Disminución","Aumento")&" "&"del"&" "&TEXT(J74,"0,00%")&" "&"de"&" "&"recursos"&" "&"disponibles"&"." -> La cuenta Resultados positivos por intercambio de bienes de infraestructura, representa el 0,00% del total del Ingresos, que comparado al periodo anterior genera una variación absoluta de 0 000,00 que corresponde a un Aumento del 0,00% de recursos disponibles.
A75: 4.4.6. | B75: Resultados positivos por la recuperación de dinero mal acreditado de periodos anteriores | C75: 46 | D75: =SUM(D76:D77) -> 0 | E75: =SUM(E76:E77) -> 0 | G75: =IFERROR(D75/$D$133,0) -> 0 | H75: =IFERROR(E75/$E$133,0) -> 0 | I75: =IFERROR(D75-E75,0) -> 0 | J75: 0 | L75: La cuenta Resultados positivos por la recuperación de dinero mal acreditado de periodos anteriores, representa el 0,00% del total del Ingresos, que comparado al periodo anterior genera una variación absoluta de 0 000,00 que corresponde a un Aumento del 0,00% de recursos disponibles.
A76: 4.4.6.01. | B76: Resultados positivos por la recuperación de sumas de periodos anteriores | D76: =IFERROR(VLOOKUP(A76,BC_ACTUAL!B:G,6,0)/1000,0) -> 0 | E76: =IFERROR(VLOOKUP(A76,BC_ANTERIOR!B:G,6,0)/1000,0) -> 0 | G76: =IFERROR(D76/$D$133,0) -> 0 | H76: =IFERROR(E76/$E$133,0) -> 0 | I76: 0 | J76: =IFERROR(I76/E76,0) -> 0 | L76: ="La"&" "&"cuenta"&" "&B76&","&" "&"representa"&" "&"el"&" "&TEXT(G76,"0,00%")&" "&"del"&" "&"total"&" "&"del"&" "&IF(MID(A76,1,2)="1.","Activo",IF(MID(A76,1,2)="2.","Pasivo",IF(MID(A76,1,2)="3.","Capital",IF(MID(A76,1,2)="4.","Ingresos",IF(MID(A76,1,2)="5.","Gastos","")))))&","&" "&"que"&" "&"comparado"&" "&"al"&" "&"periodo"&" "&"anterior"&" "&"genera"&" "&"una"&" "&"variación"&" "&"absoluta"&" "&"de"&" "&TEXT(I76,"0 000,00")&" "&"que"&" "&"corresponde"&" "&"a"&" "&"un"&" "&IF(I76<0,"Disminución","Aumento")&" "&"del"&" "&TEXT(J76,"0,00%")&" "&"de"&" "&"recursos"&" "&"disponibles"&"." -> La cuenta Resultados positivos por la recuperación de sumas de periodos anteriores, representa el 0,00% del total del Ingresos, que comparado al periodo anterior genera una variación absoluta de 0 000,00 que corresponde a un Aumento del 0,00% de recursos disponibles.
A77: 4.5. | B77: Ingresos de la propiedad
A78: 4.5.1. | B78: Rentas de inversiones y de colocación de efectivo | C78: 47 | D78: =SUM(D79:D81) -> 10732.52867 | E78: =SUM(E79:E81) -> 13009.2648 | G78: =IFERROR(D78/$D$133,0) -> 0.00229179071 | H78: =IFERROR(E78/$E$133,0) -> 0.00280850772 | I78: =IFERROR(D78-E78,0) -> -2276.73613 | J78: =IFERROR(I78/E78,0) -> -0.1750088237 | L78: La cuenta Rentas de inversiones y de colocación de efectivo, representa el 0,23% del total del Ingresos, que comparado al periodo anterior genera una variación absoluta de -2 276,74 que corresponde a un Disminución del -17,50% de recursos disponibles.
A79: 4.5.1.01. | B79: Intereses por equivalentes de efectivo | D79: =IFERROR(VLOOKUP(A79,BC_ACTUAL!B:G,6,0)/1000,0) -> 1418.81799 | E79: =IFERROR(VLOOKUP(A79,BC_ANTERIOR!B:G,6,0)/1000,0) -> 651.94026 | G79: 0.00030296997 | H79: 0.0001407442528 | I79: 766.87773 | J79: 1.176300617 | L79: La cuenta Intereses por equivalentes de efectivo, representa el 0,03% del total del Ingresos, que comparado al periodo anterior genera una variación absoluta de 0 766,88 que corresponde a un Aumento del 117,63% de recursos disponibles.
A80: 4.5.1.02. | B80: Intereses por títulos y valores a costo amortizado | D80: =IFERROR(VLOOKUP(A80,BC_ACTUAL!B:G,6,0)/1000,0) -> 0 | E80: =IFERROR(VLOOKUP(A80,BC_ANTERIOR!B:G,6,0)/1000,0) -> 0 | G80: 0 | H80: 0 | I80: 0 | J80: =IFERROR(I80/E80,0) -> 0 | L80: La cuenta Intereses por títulos y valores a costo amortizado, representa el 0,00% del total del Ingresos, que comparado al periodo anterior genera una variación absoluta de 0 000,00 que corresponde a un Aumento del 0,00% de recursos disponibles.
A81: 4.5.1.98. | B81: Resultados positivos de otras inversiones | D81: =IFERROR(VLOOKUP(A81,BC_ACTUAL!B:G,6,0)/1000,0) -> 9313.71068 | E81: =IFERROR(VLOOKUP(A81,BC_ANTERIOR!B:G,6,0)/1000,0) -> 12357.32454 | G81: 0.00198882074 | H81: 0.002667763467 | I81: -3043.61386 | J81: -0.2463003905 | L81: La cuenta Resultados positivos de otras inversiones, representa el 0,20% del total del Ingresos, que comparado al periodo anterior genera una variación absoluta de -3 043,61 que corresponde a un Disminución del -24,63% de recursos disponibles.
A82: 4.5.2. | B82: Alquileres y derechos sobre bienes | C82: 48 | D82: =SUM(D83:D85) -> 21544.06908 | E82: =SUM(E83:E85) -> 20960.34624 | G82: 0.004600453341 | H82: 0.004525028519 | I82: 583.72284 | J82: 0.0278489121 | L82: La cuenta Alquileres y derechos sobre bienes, representa el 0,46% del total del Ingresos, que comparado al periodo anterior genera una variación absoluta de 0 583,72 que corresponde a un Aumento del 2,78% de recursos disponibles.
A83: 4.5.2.01. | B83: Alquileres | D83: =IFERROR(VLOOKUP(A83,BC_ACTUAL!B:G,6,0)/1000,0) -> 21544.06908 | E83: =IFERROR(VLOOKUP(A83,BC_ANTERIOR!B:G,6,0)/1000,0) -> 20960.34624 | G83: 0.004600453341 | H83: 0.004525028519 | I83: 583.72284 | J83: 0.0278489121 | L83: La cuenta Alquileres, representa el 0,46% del total del Ingresos, que comparado al periodo anterior genera una variación absoluta de 0 583,72 que corresponde a un Aumento del 2,78% de recursos disponibles.
A84: 4.5.2.02. | B84: Ingresos por concesiones | D84: =IFERROR(VLOOKUP(A84,BC_ACTUAL!B:G,6,0)/1000,0) -> 0 | E84: =IFERROR(VLOOKUP(A84,BC_ANTERIOR!B:G,6,0)/1000,0) -> 0 | G84: 0 | H84: 0 | I84: 0 | J84: 0 | L84: La cuenta Ingresos por concesiones, representa el 0,00% del total del Ingresos, que comparado al periodo anterior genera una variación absoluta de 0 000,00 que corresponde a un Aumento del 0,00% de recursos disponibles.
A85: 4.5.2.03. | B85: Derechos sobre bienes intangibles | D85: =IFERROR(VLOOKUP(A85,BC_ACTUAL!B:G,6,0)/1000,0) -> 0 | E85: =IFERROR(VLOOKUP(A85,BC_ANTERIOR!B:G,6,0)/1000,0) -> 0 | G85: 0 | H85: 0 | I85: 0 | J85: 0 | L85: La cuenta Derechos sobre bienes intangibles, representa el 0,00% del total del Ingresos, que comparado al periodo anterior genera una variación absoluta de 0 000,00 que corresponde a un Aumento del 0,00% de recursos disponibles.
A86: 4.5.9. | B86: Otros ingresos de la propiedad | C86: 49 | D86: =SUM(D87:D93) -> 0 | E86: =SUM(E87:E93) -> 0 | G86: 0 | H86: 0 | I86: 0 | J86: 0 | L86: La cuenta Otros ingresos de la propiedad, representa el 0,00% del total del Ingresos, que comparado al periodo anterior genera una variación absoluta de 0 000,00 que corresponde a un Aumento del 0,00% de recursos disponibles.
A87: 4.5.9.03. | B87: Intereses por ventas | D87: =IFERROR(VLOOKUP(A87,BC_ACTUAL!B:G,6,0)/1000,0) -> 0 | E87: =IFERROR(VLOOKUP(A87,BC_ANTERIOR!B:G,6,0)/1000,0) -> 0 | G87: 0 | H87: 0 | I87: 0 | J87: 0 | L87: La cuenta Intereses por ventas, representa el 0,00% del total del Ingresos, que comparado al periodo anterior genera una variación absoluta de 0 000,00 que corresponde a un Aumento del 0,00% de recursos disponibles.
A88: 4.5.9.07. | B88: Intereses por préstamos | D88: =IFERROR(VLOOKUP(A88,BC_ACTUAL!B:G,6,0)/1000,0) -> 0 | E88: =IFERROR(VLOOKUP(A88,BC_ANTERIOR!B:G,6,0)/1000,0) -> 0 | G88: 0 | H88: 0 | I88: 0 | J88: 0 | L88: La cuenta Intereses por préstamos, representa el 0,00% del total del Ingresos, que comparado al periodo anterior genera una variación absoluta de 0 000,00 que corresponde a un Aumento del 0,00% de recursos disponibles.
A89: 4.5.9.08. | B89: Intereses por documentos a cobrar | D89: =IFERROR(VLOOKUP(A89,BC_ACTUAL!B:G,6,0)/1000,0) -> 0 | E89: =IFERROR(VLOOKUP(A89,BC_ANTERIOR!B:G,6,0)/1000,0) -> 0 | G89: 0 | H89: 0 | I89: 0 | J89: 0 | L89: La cuenta Intereses por documentos a cobrar, representa el 0,00% del total del Ingresos, que comparado al periodo anterior genera una variación absoluta de 0 000,00 que corresponde a un Aumento del 0,00% de recursos disponibles.
A90: 4.5.9.10. | B90: Intereses por deudores por avales ejecutados | D90: =IFERROR(VLOOKUP(A90,BC_ACTUAL!B:G,6,0)/1000,0) -> 0 | E90: =IFERROR(VLOOKUP(A90,BC_ANTERIOR!B:G,6,0)/1000,0) -> 0 | G90: 0 | H90: 0 | I90: 0 | J90: 0 | L90: La cuenta Intereses por deudores por avales ejecutados, representa el 0,00% del total del Ingresos, que comparado al periodo anterior genera una variación absoluta de 0 000,00 que corresponde a un Aumento del 0,00% de recursos disponibles.
A91: 4.5.9.97. | B91: Intereses por cuentas a cobrar en gestión judicial | D91: =IFERROR(VLOOKUP(A91,BC_ACTUAL!B:G,6,0)/1000,0) -> 0 | E91: =IFERROR(VLOOKUP(A91,BC_ANTERIOR!B:G,6,0)/1000,0) -> 0 | G91: 0 | H91: 0 | I91: 0 | J91: 0 | L91: La cuenta Intereses por cuentas a cobrar en gestión judicial, representa el 0,00% del total del Ingresos, que comparado al periodo anterior genera una variación absoluta de 0 000,00 que corresponde a un Aumento del 0,00% de recursos disponibles.
A92: 4.5.9.99. | B92: Intereses por otras cuentas a cobrar | D92: =IFERROR(VLOOKUP(A92,BC_ACTUAL!B:G,6,0)/1000,0) -> 0 | E92: =IFERROR(VLOOKUP(A92,BC_ANTERIOR!B:G,6,0)/1000,0) -> 0 | G92: 0 | H92: 0 | I92: 0 | J92: 0 | L92: La cuenta Intereses por otras cuentas a cobrar, representa el 0,00% del total del Ingresos, que comparado al periodo anterior genera una variación absoluta de 0 000,00 que corresponde a un Aumento del 0,00% de recursos disponibles.
A93: 4.6. | B93: Transferencias
A94: 4.6.1. | B94: Transferencias corrientes | C94: 50 | D94: =SUM(D95:D97) -> 11322.83007 | E94: =SUM(E95:E97) -> 11962.12578 | G94: =IFERROR(D94/$D$133,0) -> 0.002417841831 | H94: =IFERROR(E94/$E$133,0) -> 0.002582445905 | I94: =IFERROR(D94-E94,0) -> -639.29571 | J94: -0.0534433195 | L94: La cuenta Transferencias corrientes, representa el 0,24% del total del Ingresos, que comparado al periodo anterior genera una variación absoluta de -0 639,30 que corresponde a un Disminución del -5,34% de recursos disponibles.
A95: 4.6.1.01. | B95: Transferencias corrientes del sector privado interno | D95: =IFERROR(VLOOKUP(A95,BC_ACTUAL!B:G,6,0)/1000,0) -> 0 | E95: =IFERROR(VLOOKUP(A95,BC_ANTERIOR!B:G,6,0)/1000,0) -> 0 | G95: 0 | H95: 0 | I95: 0 | J95: 0 | L95: La cuenta Transferencias corrientes del sector privado interno, representa el 0,00% del total del Ingresos, que comparado al periodo anterior genera una variación absoluta de 0 000,00 que corresponde a un Aumento del 0,00% de recursos disponibles.
A96: 4.6.1.02. | B96: Transferencias corrientes del sector público interno | D96: =IFERROR(VLOOKUP(A96,BC_ACTUAL!B:G,6,0)/1000,0) -> 11322.83007 | E96: =IFERROR(VLOOKUP(A96,BC_ANTERIOR!B:G,6,0)/1000,0) -> 11962.12578 | G96: 0.002417841831 | H96: 0.002582445905 | I96: -639.29571 | J96: -0.0534433195 | L96: La cuenta Transferencias corrientes del sector público interno, representa el 0,24% del total del Ingresos, que comparado al periodo anterior genera una variación absoluta de -0 639,30 que corresponde a un Disminución del -5,34% de recursos disponibles.
A97: 4.6.1.03. | B97: Transferencias corrientes del sector externo | D97: =IFERROR(VLOOKUP(A97,BC_ACTUAL!B:G,6,0)/1000,0) -> 0 | E97: =IFERROR(VLOOKUP(A97,BC_ANTERIOR!B:G,6,0)/1000,0) -> 0 | G97: 0 | H97: 0 | I97: 0 | J97: 0 | L97: La cuenta Transferencias corrientes del sector externo, representa el 0,00% del total del Ingresos, que comparado al periodo anterior genera una variación absoluta de 0 000,00 que corresponde a un Aumento del 0,00% de recursos disponibles.
A98: 4.6.2. | B98: Transferencias de capital | C98: 51 | D98: =SUM(D99:D102) -> 3772816.719 | E98: =SUM(E99:E102) -> 3799661.728 | G98: 0.8056355193 | H98: 0.8202907283 | I98: -26845.009 | J98: -0.007065104981 | L98: La cuenta Transferencias de capital, representa el 80,56% del total del Ingresos, que comparado al periodo anterior genera una variación absoluta de -26 845,01 que corresponde a un Disminución del -0,71% de recursos disponibles.
A99: 4.6.2.01. | B99: Transferencias de capital del sector privado interno | D99: =IFERROR(VLOOKUP(A99,BC_ACTUAL!B:G,6,0)/1000,0) -> 0 | E99: =IFERROR(VLOOKUP(A99,BC_ANTERIOR!B:G,6,0)/1000,0) -> 0 | G99: 0 | H99: 0 | I99: 0 | J99: 0 | L99: La cuenta Transferencias de capital del sector privado interno, representa el 0,00% del total del Ingresos, que comparado al periodo anterior genera una variación absoluta de 0 000,00 que corresponde a un Aumento del 0,00% de recursos disponibles.
A100: 4.6.2.02. | B100: Transferencias de capital del sector público interno | D100: =IFERROR(VLOOKUP(A100,BC_ACTUAL!B:G,6,0)/1000,0) -> 3772816.719 | E100: =IFERROR(VLOOKUP(A100,BC_ANTERIOR!B:G,6,0)/1000,0) -> 3799661.728 | G100: 0.8056355193 | H100: 0.8202907283 | I100: -26845.009 | J100: -0.007065104981 | L100: La cuenta Transferencias de capital del sector público interno, representa el 80,56% del total del Ingresos, que comparado al periodo anterior genera una variación absoluta de -26 845,01 que corresponde a un Disminución del -0,71% de recursos disponibles.
A101: 4.6.2.03. | B101: Transferencias de capital del sector externo | D101: =IFERROR(VLOOKUP(A101,BC_ACTUAL!B:G,6,0)/1000,0) -> 0 | E101: =IFERROR(VLOOKUP(A101,BC_ANTERIOR!B:G,6,0)/1000,0) -> 0 | G101: 0 | H101: 0 | I101: 0 | J101: 0 | L101: La cuenta Transferencias de capital del sector externo, representa el 0,00% del total del Ingresos, que comparado al periodo anterior genera una variación absoluta de 0 000,00 que corresponde a un Aumento del 0,00% de recursos disponibles.
A102: 4.9. | B102: Otros ingresos
A103: 4.9.1. | B103: Resultados positivos por tenencia y por exposición a la inflación | C103: 52 | D103: =SUM(D104:D109) -> 0 | E103: =SUM(E104:E109) -> 0 | G103: =IFERROR(D103/$D$133,0) -> 0 | H103: =IFERROR(E103/$E$133,0) -> 0 | I103: =IFERROR(D103-E103,0) -> 0 | J103: 0 | L103: La cuenta Resultados positivos por tenencia y por exposición a la inflación, representa el 0,00% del total del Ingresos, que comparado al periodo anterior genera una variación absoluta de 0 000,00 que corresponde a un Aumento del 0,00% de recursos disponibles.
A104: 4.9.1.01. | B104: Diferencias de cambio positivas por activos | D104: =IFERROR(VLOOKUP(A104,BC_ACTUAL!B:G,6,0)/1000,0) -> 0 | E104: =IFERROR(VLOOKUP(A104,BC_ANTERIOR!B:G,6,0)/1000,0) -> 0 | G104: 0 | H104: 0 | I104: 0 | J104: 0 | L104: La cuenta Diferencias de cambio positivas por activos, representa el 0,00% del total del Ingresos, que comparado al periodo anterior genera una variación absoluta de 0 000,00 que corresponde a un Aumento del 0,00% de recursos disponibles.
A105: 4.9.1.02. | B105: Diferencias de cambio positivas por pasivos | D105: =IFERROR(VLOOKUP(A105,BC_ACTUAL!B:G,6,0)/1000,0) -> 0 | E105: =IFERROR(VLOOKUP(A105,BC_ANTERIOR!B:G,6,0)/1000,0) -> 0 | G105: 0 | H105: 0 | I105: 0 | J105: 0 | L105: La cuenta Diferencias de cambio positivas por pasivos, representa el 0,00% del total del Ingresos, que comparado al periodo anterior genera una variación absoluta de 0 000,00 que corresponde a un Aumento del 0,00% de recursos disponibles.
A106: 4.9.1.03. | B106: Resultados positivos por tenencia de activos no derivados | D106: =IFERROR(VLOOKUP(A106,BC_ACTUAL!B:G,6,0)/1000,0) -> 0 | E106: =IFERROR(VLOOKUP(A106,BC_ANTERIOR!B:G,6,0)/1000,0) -> 0 | G106: 0 | H106: 0 | I106: 0 | J106: 0 | L106: La cuenta Resultados positivos por tenencia de activos no derivados, representa el 0,00% del total del Ingresos, que comparado al periodo anterior genera una variación absoluta de 0 000,00 que corresponde a un Aumento del 0,00% de recursos disponibles.
A107: 4.9.1.04. | B107: Resultados positivos por tenencia de pasivos no derivados | D107: =IFERROR(VLOOKUP(A107,BC_ACTUAL!B:G,6,0)/1000,0) -> 0 | E107: =IFERROR(VLOOKUP(A107,BC_ANTERIOR!B:G,6,0)/1000,0) -> 0 | G107: 0 | H107: 0 | I107: 0 | J107: 0 | L107: La cuenta Resultados positivos por tenencia de pasivos no derivados, representa el 0,00% del total del Ingresos, que comparado al periodo anterior genera una variación absoluta de 0 000,00 que corresponde a un Aumento del 0,00% de recursos disponibles.
A108: 4.9.1.05. | B108: Resultados positivos por tenencia de instrumentos financieros derivados | D108: =IFERROR(VLOOKUP(A108,BC_ACTUAL!B:G,6,0)/1000,0) -> 0 | E108: =IFERROR(VLOOKUP(A108,BC_ANTERIOR!B:G,6,0)/1000,0) -> 0 | G108: 0 | H108: 0 | I108: 0 | J108: 0 | L108: La cuenta Resultados positivos por tenencia de instrumentos financieros derivados, representa el 0,00% del total del Ingresos, que comparado al periodo anterior genera una variación absoluta de 0 000,00 que corresponde a un Aumento del 0,00% de recursos disponibles.
A109: 4.9.1.06. | B109: Resultado positivo por exposición a la inflación | D109: =IFERROR(VLOOKUP(A109,BC_ACTUAL!B:G,6,0)/1000,0) -> 0 | E109: =IFERROR(VLOOKUP(A109,BC_ANTERIOR!B:G,6,0)/1000,0) -> 0 | G109: 0 | H109: 0 | I109: 0 | J109: 0 | L109: La cuenta Resultado positivo por exposición a la inflación, representa el 0,00% del total del Ingresos, que comparado al periodo anterior genera una variación absoluta de 0 000,00 que corresponde a un Aumento del 0,00% de recursos disponibles.
A110: 4.9.2. | B110: Reversión de consumo de bienes | C110: 53 | D110: =SUM(D111:D112) -> 0 | E110: =SUM(E111:E112) -> 0 | G110: 0 | H110: 0 | I110: 0 | J110: 0 | L110: La cuenta Reversión de consumo de bienes, representa el 0,00% del total del Ingresos, que comparado al periodo anterior genera una variación absoluta de 0 000,00 que corresponde a un Aumento del 0,00% de recursos disponibles.
A111: 4.9.2.01. | B111: Reversión de consumo de bienes no concesionados | D111: =IFERROR(VLOOKUP(A111,BC_ACTUAL!B:G,6,0)/1000,0) -> 0 | E111: =IFERROR(VLOOKUP(A111,BC_ANTERIOR!B:G,6,0)/1000,0) -> 0 | G111: 0 | H111: 0 | I111: 0 | J111: 0 | L111: La cuenta Reversión de consumo de bienes no concesionados, representa el 0,00% del total del Ingresos, que comparado al periodo anterior genera una variación absoluta de 0 000,00 que corresponde a un Aumento del 0,00% de recursos disponibles.
A112: 4.9.2.02. | B112: Reversión de consumo de bienes concesionados | D112: =IFERROR(VLOOKUP(A112,BC_ACTUAL!B:G,6,0)/1000,0) -> 0 | E112: =IFERROR(VLOOKUP(A112,BC_ANTERIOR!B:G,6,0)/1000,0) -> 0 | G112: 0 | H112: 0 | I112: 0 | J112: 0 | L112: La cuenta Reversión de consumo de bienes concesionados, representa el 0,00% del total del Ingresos, que comparado al periodo anterior genera una variación absoluta de 0 000,00 que corresponde a un Aumento del 0,00% de recursos disponibles.
A113: 4.9.3. | B113: Reversión de pérdidas por deterioro y desvalorización de bienes | C113: 54 | D113: =SUM(D114:D118) -> 0 | E113: =SUM(E114:E118) -> 0 | G113: 0 | H113: 0 | I113: 0 | J113: 0 | L113: La cuenta Reversión de pérdidas por deterioro y desvalorización de bienes, representa el 0,00% del total del Ingresos, que comparado al periodo anterior genera una variación absoluta de 0 000,00 que corresponde a un Aumento del 0,00% de recursos disponibles.
A114: 4.9.3.01. | B114: Reversión de deterioro y desvalorización de bienes no concesionados | D114: =IFERROR(VLOOKUP(A114,BC_ACTUAL!B:G,6,0)/1000,0) -> 0 | E114: =IFERROR(VLOOKUP(A114,BC_ANTERIOR!B:G,6,0)/1000,0) -> 0 | G114: 0 | H114: 0 | I114: 0 | J114: 0 | L114: La cuenta Reversión de deterioro y desvalorización de bienes no concesionados, representa el 0,00% del total del Ingresos, que comparado al periodo anterior genera una variación absoluta de 0 000,00 que corresponde a un Aumento del 0,00% de recursos disponibles.
A115: 4.9.3.02. | B115: Reversión de deterioro y desvalorización de bienes concesionados | D115: =IFERROR(VLOOKUP(A115,BC_ACTUAL!B:G,6,0)/1000,0) -> 0 | E115: =IFERROR(VLOOKUP(A115,BC_ANTERIOR!B:G,6,0)/1000,0) -> 0 | G115: 0 | H115: 0 | I115: 0 | J115: 0 | L115: La cuenta Reversión de deterioro y desvalorización de bienes concesionados, representa el 0,00% del total del Ingresos, que comparado al periodo anterior genera una variación absoluta de 0 000,00 que corresponde a un Aumento del 0,00% de recursos disponibles.
A116: 4.9.3.03. | B116: Reversión de deterioro y desvalorización de inventarios por materiales y suministros para consumo y prestación de servicios | D116: =IFERROR(VLOOKUP(A116,BC_ACTUAL!B:G,6,0)/1000,0) -> 0 | E116: =IFERROR(VLOOKUP(A116,BC_ANTERIOR!B:G,6,0)/1000,0) -> 0 | G116: 0 | H116: 0 | I116: 0 | J116: 0 | L116: La cuenta Reversión de deterioro y desvalorización de inventarios por materiales y suministros para consumo y prestación de servicios , representa el 0,00% del total del Ingresos, que comparado al periodo anterior genera una variación absoluta de 0 000,00 que corresponde a un Aumento del 0,00% de recursos disponibles.
A117: 4.9.3.04. | B117: Reversión de deterioro y desvalorización de inventarios por bienes para la venta | D117: =IFERROR(VLOOKUP(A117,BC_ACTUAL!B:G,6,0)/1000,0) -> 0 | E117: =IFERROR(VLOOKUP(A117,BC_ANTERIOR!B:G,6,0)/1000,0) -> 0 | G117: 0 | H117: 0 | I117: 0 | J117: 0 | L117: La cuenta Reversión de deterioro y desvalorización de inventarios por bienes para la venta, representa el 0,00% del total del Ingresos, que comparado al periodo anterior genera una variación absoluta de 0 000,00 que corresponde a un Aumento del 0,00% de recursos disponibles.
A118: 4.9.3.05. | B118: Reversión de deterioro y desvalorización de inventarios por materias primas y bienes en producción | D118: =IFERROR(VLOOKUP(A118,BC_ACTUAL!B:G,6,0)/1000,0) -> 0 | E118: =IFERROR(VLOOKUP(A118,BC_ANTERIOR!B:G,6,0)/1000,0) -> 0 | G118: 0 | H118: 0 | I118: 0 | J118: 0 | L118: La cuenta Reversión de deterioro y desvalorización de inventarios por materias primas y bienes en producción, representa el 0,00% del total del Ingresos, que comparado al periodo anterior genera una variación absoluta de 0 000,00 que corresponde a un Aumento del 0,00% de recursos disponibles.
A119: 4.9.4. | B119: Recuperación de previsiones | C119: 55 | D119: =SUM(D120:D122) -> 0 | E119: =SUM(E120:E122) -> 0 | G119: 0 | H119: 0 | I119: 0 | J119: 0 | L119: La cuenta Recuperación de previsiones, representa el 0,00% del total del Ingresos, que comparado al periodo anterior genera una variación absoluta de 0 000,00 que corresponde a un Aumento del 0,00% de recursos disponibles.
A120: 4.9.4.01. | B120: Recuperación de previsiones para deterioro de inversiones | D120: =IFERROR(VLOOKUP(A120,BC_ACTUAL!B:G,6,0)/1000,0) -> 0 | E120: =IFERROR(VLOOKUP(A120,BC_ANTERIOR!B:G,6,0)/1000,0) -> 0 | G120: 0 | H120: 0 | I120: 0 | J120: 0 | L120: La cuenta Recuperación de previsiones para deterioro de inversiones, representa el 0,00% del total del Ingresos, que comparado al periodo anterior genera una variación absoluta de 0 000,00 que corresponde a un Aumento del 0,00% de recursos disponibles.
A121: 4.9.4.02. | B121: Recuperación de previsiones para deterioro de cuentas a cobrar | D121: =IFERROR(VLOOKUP(A121,BC_ACTUAL!B:G,6,0)/1000,0) -> 0 | E121: =IFERROR(VLOOKUP(A121,BC_ANTERIOR!B:G,6,0)/1000,0) -> 0 | G121: 0 | H121: 0 | I121: 0 | J121: 0 | L121: La cuenta Recuperación de previsiones para deterioro de cuentas a cobrar, representa el 0,00% del total del Ingresos, que comparado al periodo anterior genera una variación absoluta de 0 000,00 que corresponde a un Aumento del 0,00% de recursos disponibles.
A122: 4.9.4.03. | B122: Recuperación de previsiones para deterioro y pérdidas de inventarios | D122: =IFERROR(VLOOKUP(A122,BC_ACTUAL!B:G,6,0)/1000,0) -> 0 | E122: =IFERROR(VLOOKUP(A122,BC_ANTERIOR!B:G,6,0)/1000,0) -> 0 | G122: 0 | H122: 0 | I122: 0 | J122: 0 | L122: La cuenta Recuperación de previsiones para deterioro y pérdidas de inventarios, representa el 0,00% del total del Ingresos, que comparado al periodo anterior genera una variación absoluta de 0 000,00 que corresponde a un Aumento del 0,00% de recursos disponibles.
A123: 4.9.5. | B123: Recuperación de provisiones y reservas técnicas | C123: 56 | D123: =SUM(D124:D127) -> 0 | E123: =SUM(E124:E127) -> 0 | G123: 0 | H123: 0 | I123: 0 | J123: 0 | L123: La cuenta Recuperación de provisiones y reservas técnicas, representa el 0,00% del total del Ingresos, que comparado al periodo anterior genera una variación absoluta de 0 000,00 que corresponde a un Aumento del 0,00% de recursos disponibles.
A124: 4.9.5.01. | B124: Recuperación de provisiones para litigios y demandas | D124: =IFERROR(VLOOKUP(A124,BC_ACTUAL!B:G,6,0)/1000,0) -> 0 | E124: =IFERROR(VLOOKUP(A124,BC_ANTERIOR!B:G,6,0)/1000,0) -> 0 | G124: 0 | H124: 0 | I124: 0 | J124: 0 | L124: La cuenta Recuperación de provisiones para litigios y demandas, representa el 0,00% del total del Ingresos, que comparado al periodo anterior genera una variación absoluta de 0 000,00 que corresponde a un Aumento del 0,00% de recursos disponibles.
A125: 4.9.5.02. | B125: Recuperación de provisiones para reestructuración | D125: =IFERROR(VLOOKUP(A125,BC_ACTUAL!B:G,6,0)/1000,0) -> 0 | E125: =IFERROR(VLOOKUP(A125,BC_ANTERIOR!B:G,6,0)/1000,0) -> 0 | G125: 0 | H125: 0 | I125: 0 | J125: 0 | L125: La cuenta Recuperación de provisiones para reestructuración, representa el 0,00% del total del Ingresos, que comparado al periodo anterior genera una variación absoluta de 0 000,00 que corresponde a un Aumento del 0,00% de recursos disponibles.
A126: 4.9.5.03. | B126: Recuperación de provisiones para beneficios a los empleados | D126: =IFERROR(VLOOKUP(A126,BC_ACTUAL!B:G,6,0)/1000,0) -> 0 | E126: =IFERROR(VLOOKUP(A126,BC_ANTERIOR!B:G,6,0)/1000,0) -> 0 | G126: 0 | H126: 0 | I126: 0 | J126: 0 | L126: La cuenta Recuperación de provisiones para beneficios a los empleados, representa el 0,00% del total del Ingresos, que comparado al periodo anterior genera una variación absoluta de 0 000,00 que corresponde a un Aumento del 0,00% de recursos disponibles.
A127: 4.9.5.99. | B127: Recuperación de otras provisiones y reservas técnicas | D127: =IFERROR(VLOOKUP(A127,BC_ACTUAL!B:G,6,0)/1000,0) -> 0 | E127: =IFERROR(VLOOKUP(A127,BC_ANTERIOR!B:G,6,0)/1000,0) -> 0 | G127: 0 | H127: 0 | I127: 0 | J127: 0 | L127: La cuenta Recuperación de otras provisiones y reservas técnicas, representa el 0,00% del total del Ingresos, que comparado al periodo anterior genera una variación absoluta de 0 000,00 que corresponde a un Aumento del 0,00% de recursos disponibles.
A128: 4.9.6. | B128: Resultados positivos de inversiones patrimoniales y participación de los intereses minoritarios | C128: 57 | D128: =SUM(D129) -> 0 | E128: =SUM(E129) -> 0 | G128: 0 | H128: 0 | I128: 0 | J128: 0 | L128: La cuenta Resultados positivos de inversiones patrimoniales y participación de los intereses minoritarios, representa el 0,00% del total del Ingresos, que comparado al periodo anterior genera una variación absoluta de 0 000,00 que corresponde a un Aumento del 0,00% de recursos disponibles.
A129: 4.9.6.01. | B129: Resultados positivos de inversiones patrimoniales | D129: =IFERROR(VLOOKUP(A129,BC_ACTUAL!B:G,6,0)/1000,0) -> 0 | E129: =IFERROR(VLOOKUP(A129,BC_ANTERIOR!B:G,6,0)/1000,0) -> 0 | G129: 0 | H129: 0 | I129: 0 | J129: 0 | L129: La cuenta Resultados positivos de inversiones patrimoniales, representa el 0,00% del total del Ingresos, que comparado al periodo anterior genera una variación absoluta de 0 000,00 que corresponde a un Aumento del 0,00% de recursos disponibles.
A130: 4.9.6.02. | B130: Participación de los intereses minoritarios en el resultado neto negativo | D130: =IFERROR(VLOOKUP(A130,BC_ACTUAL!B:G,6,0)/1000,0) -> 0 | E130: =IFERROR(VLOOKUP(A130,BC_ANTERIOR!B:G,6,0)/1000,0) -> 0 | G130: 0 | H130: 0 | I130: 0 | J130: 0 | L130: La cuenta Participación de los intereses minoritarios en el resultado neto negativo, representa el 0,00% del total del Ingresos, que comparado al periodo anterior genera una variación absoluta de 0 000,00 que corresponde a un Aumento del 0,00% de recursos disponibles.
A131: 4.9.9. | B131: Otros ingresos y resultados positivos | C131: 58 | D131: =SUM(D132) -> 153.47016 | E131: =SUM(E132) -> 270.91466 | G131: 3.277153948e-05 | H131: 5.848646529e-05 | I131: -117.4445 | J131: -0.4335110547 | L131: La cuenta Otros ingresos y resultados positivos, representa el 0,00% del total del Ingresos, que comparado al periodo anterior genera una variación absoluta de -0 117,44 que corresponde a un Disminución del -43,35% de recursos disponibles.
A132: 4.9.9.99. | B132: Ingresos y resultados positivos varios | D132: =IFERROR(VLOOKUP(A132,BC_ACTUAL!B:G,6,0)/1000,0) -> 153.47016 | E132: =IFERROR(VLOOKUP(A132,BC_ANTERIOR!B:G,6,0)/1000,0) -> 270.91466 | G132: 3.277153948e-05 | H132: 5.848646529e-05 | I132: -117.4445 | J132: -0.4335110547 | L132: La cuenta Ingresos y resultados positivos varios, representa el 0,00% del total del Ingresos, que comparado al periodo anterior genera una variación absoluta de -0 117,44 que corresponde a un Disminución del -43,35% de recursos disponibles.
B133: TOTAL DE INGRESOS | D133: =+D131+D128+D123+D119+D113+D110+D103+D98+D94+D86+D82+D78+D75+D64+D61+D57+D54+D51+D45+D40+D37+D33+D30+D26+D22+D15+D10 -> 4683031.754 | E133: =+E131+E128+E123+E119+E113+E110+E103+E98+E94+E86+E82+E78+E75+E64+E61+E57+E54+E51+E45+E40+E37+E33+E30+E26+E22+E15+E10 -> 4632091.522 | G133: =+G131+G128+G123+G119+G113+G110+G103+G98+G94+G86+G82+G78+G75+G64+G61+G57+G54+G51+G45+G40+G37+G33+G30+G26+G22+G15+G10 -> 1 | H133: =+H131+H128+H123+H119+H113+H110+H103+H98+H94+H86+H82+H78+H75+H64+H61+H57+H54+H51+H45+H40+H37+H33+H30+H26+H22+H15+H10 -> 1 | I133: =IFERROR(D133-E133,0) -> 50940.23204 | J133: 0.01099724213
A135: 5. | B135: GASTOS
A136: 5.1. | B136: Gastos de funcionamiento
A137: 5.1.1. | B137: Gastos en personal | C137: 59 | D137: =SUM(D138:D145) -> 753404.454 | E137: =SUM(E138:E145) -> 675149.9163 | G137: =IFERROR(D137/$D$231,0) -> 0.2735813706 | H137: =IFERROR(E137/$E$231,0) -> 0.2133516666 | I137: =IFERROR(D137-E137,0) -> 78254.53773 | J137: 0.1159069058 | L137: La cuenta Gastos en personal, representa el 27,36% del total del Gastos, que comparado al periodo anterior genera una variación absoluta de 78 254,54 que corresponde a un Aumento del 11,59% de recursos disponibles.
A138: 5.1.1.01. | B138: Remuneraciones Básicas | D138: =IFERROR(VLOOKUP(A138,BC_ACTUAL!B:G,6,0)/1000,0) -> 379490.8738 | E138: =IFERROR(VLOOKUP(A138,BC_ANTERIOR!B:G,6,0)/1000,0) -> 418371.238 | G138: =IFERROR(D138/$D$231,0) -> 0.1378033178 | H138: =IFERROR(E138/$E$231,0) -> 0.1322079715 | I138: -38880.36422 | J138: -0.09293268916 | L138: La cuenta Remuneraciones Básicas, representa el 13,78% del total del Gastos, que comparado al periodo anterior genera una variación absoluta de -38 880,36 que corresponde a un Disminución del -9,29% de recursos disponibles.
A139: 5.1.1.02. | B139: Remuneraciones eventuales | D139: =IFERROR(VLOOKUP(A139,BC_ACTUAL!B:G,6,0)/1000,0) -> 50597.53058 | E139: =IFERROR(VLOOKUP(A139,BC_ANTERIOR!B:G,6,0)/1000,0) -> 36532.53007 | G139: =IFERROR(D139/$D$231,0) -> 0.01837332085 | H139: =IFERROR(E139/$E$231,0) -> 0.0115445118 | I139: 14065.00051 | J139: 0.3849993549 | L139: La cuenta Remuneraciones eventuales, representa el 1,84% del total del Gastos, que comparado al periodo anterior genera una variación absoluta de 14 065,00 que corresponde a un Aumento del 38,50% de recursos disponibles.
A140: 5.1.1.03. | B140: Incentivos salariales | D140: =IFERROR(VLOOKUP(A140,BC_ACTUAL!B:G,6,0)/1000,0) -> 164004.2603 | E140: =IFERROR(VLOOKUP(A140,BC_ANTERIOR!B:G,6,0)/1000,0) -> 113560.92 | G140: 0.05955434705 | H140: =IFERROR(E140/$E$231,0) -> 0.03588597283 | I140: =IFERROR(D140-E140,0) -> 50443.34031 | J140: =IFERROR(I140/E140,0) -> 0.4441962983 | L140: ="La"&" "&"cuenta"&" "&B140&","&" "&"representa"&" "&"el"&" "&TEXT(G140,"0,00%")&" "&"del"&" "&"total"&" "&"del"&" "&IF(MID(A140,1,2)="1.","Activo",IF(MID(A140,1,2)="2.","Pasivo",IF(MID(A140,1,2)="3.","Capital",IF(MID(A140,1,2)="4.","Ingresos",IF(MID(A140,1,2)="5.","Gastos","")))))&","&" "&"que"&" "&"comparado"&" "&"al"&" "&"periodo"&" "&"anterior"&" "&"genera"&" "&"una"&" "&"variación"&" "&"absoluta"&" "&"de"&" "&TEXT(I140,"0 000,00")&" "&"que"&" "&"corresponde"&" "&"a"&" "&"un"&" "&IF(I140<0,"Disminución","Aumento")&" "&"del"&" "&TEXT(J140,"0,00%")&" "&"de"&" "&"recursos"&" "&"disponibles"&"." -> La cuenta Incentivos salariales, representa el 5,96% del total del Gastos, que comparado al periodo anterior genera una variación absoluta de 50 443,34 que corresponde a un Aumento del 44,42% de recursos disponibles.
A141: 5.1.1.04. | B141: Contribuciones patronales al desarrollo y la seguridad social | D141: =IFERROR(VLOOKUP(A141,BC_ACTUAL!B:G,6,0)/1000,0) -> 135466.2629 | E141: =IFERROR(VLOOKUP(A141,BC_ANTERIOR!B:G,6,0)/1000,0) -> 103565.6008 | G141: 0.04919143453 | H141: =IFERROR(E141/$E$231,0) -> 0.03272738841 | I141: 31900.66208 | J141: =IFERROR(I141/E141,0) -> 0.3080237243 | L141: La cuenta Contribuciones patronales al desarrollo y la seguridad social, representa el 4,92% del total del Gastos, que comparado al periodo anterior genera una variación absoluta de 31 900,66 que corresponde a un Aumento del 30,80% de recursos disponibles.
A142: 5.1.1.05. | B142: Contribuciones patronales a fondos de pensiones y a otros fondos de capitalización | D142: =IFERROR(VLOOKUP(A142,BC_ACTUAL!B:G,6,0)/1000,0) -> 2962.79636 | E142: =IFERROR(VLOOKUP(A142,BC_ANTERIOR!B:G,6,0)/1000,0) -> 165.46731 | G142: 0.001075870848 | H142: =IFERROR(E142/$E$231,0) -> 5.228872212e-05 | I142: 2797.32905 | J142: 16.90562958 | L142: La cuenta Contribuciones patronales a fondos de pensiones y a otros fondos de capitalización, representa el 0,11% del total del Gastos, que comparado al periodo anterior genera una variación absoluta de 2 797,33 que corresponde a un Aumento del 1690,56% de recursos disponibles.
A143: 5.1.1.06. | B143: Asistencia social y beneficios al personal | D143: =IFERROR(VLOOKUP(A143,BC_ACTUAL!B:G,6,0)/1000,0) -> 20882.73 | E143: =IFERROR(VLOOKUP(A143,BC_ANTERIOR!B:G,6,0)/1000,0) -> 2954.16 | G143: 0.007583079532 | H143: 0.0009335333446 | I143: 17928.57 | J143: 6.068923146 | L143: La cuenta Asistencia social y beneficios al personal, representa el 0,76% del total del Gastos, que comparado al periodo anterior genera una variación absoluta de 17 928,57 que corresponde a un Aumento del 606,89% de recursos disponibles.
A144: 5.1.1.07. | B144: Contribuciones estatales a la seguridad social | D144: =IFERROR(VLOOKUP(A144,BC_ACTUAL!B:G,6,0)/1000,0) -> 0 | E144: =IFERROR(VLOOKUP(A144,BC_ANTERIOR!B:G,6,0)/1000,0) -> 0 | G144: 0 | H144: 0 | I144: 0 | J144: 0 | L144: La cuenta Contribuciones estatales a la seguridad social, representa el 0,00% del total del Gastos, que comparado al periodo anterior genera una variación absoluta de 0 000,00 que corresponde a un Aumento del 0,00% de recursos disponibles.
A145: 5.1.1.99. | B145: Otros gastos en personal | D145: =IFERROR(VLOOKUP(A145,BC_ACTUAL!B:G,6,0)/1000,0) -> 0 | E145: =IFERROR(VLOOKUP(A145,BC_ANTERIOR!B:G,6,0)/1000,0) -> 0 | G145: 0 | H145: 0 | I145: 0 | J145: 0 | L145: La cuenta Otros gastos en personal, representa el 0,00% del total del Gastos, que comparado al periodo anterior genera una variación absoluta de 0 000,00 que corresponde a un Aumento del 0,00% de recursos disponibles.
A146: 5.1.2. | B146: Servicios | C146: 60 | D146: =SUM(D147:D155) -> 1430106.549 | E146: =SUM(E147:E155) -> 1905864.245 | G146: =IFERROR(D146/$D$231,0) -> 0.5193100567 | H146: 0.6022652202 | I146: -475757.6959 | J146: -0.2496283233 | L146: La cuenta Servicios, representa el 51,93% del total del Gastos, que comparado al periodo anterior genera una variación absoluta de -475 757,70 que corresponde a un Disminución del -24,96% de recursos disponibles.
A147: 5.1.2.01. | B147: Alquileres y derechos sobre bienes | D147: =IFERROR(VLOOKUP(A147,BC_ACTUAL!B:G,6,0)/1000,0) -> 79312.63863 | E147: =IFERROR(VLOOKUP(A147,BC_ANTERIOR!B:G,6,0)/1000,0) -> 107134.4513 | G147: =IFERROR(D147/$D$231,0) -> 0.02880054699 | H147: 0.03385516783 | I147: -27821.81263 | J147: -0.2596906252 | L147: La cuenta Alquileres y derechos sobre bienes, representa el 2,88% del total del Gastos, que comparado al periodo anterior genera una variación absoluta de -27 821,81 que corresponde a un Disminución del -25,97% de recursos disponibles.
A148: 5.1.2.02. | B148: Servicios básicos | D148: =IFERROR(VLOOKUP(A148,BC_ACTUAL!B:G,6,0)/1000,0) -> 66859.51138 | E148: =IFERROR(VLOOKUP(A148,BC_ANTERIOR!B:G,6,0)/1000,0) -> 59675.48686 | G148: 0.02427848237 | H148: 0.01885783331 | I148: 7184.02452 | J148: 0.1203848498 | L148: La cuenta Servicios básicos, representa el 2,43% del total del Gastos, que comparado al periodo anterior genera una variación absoluta de 7 184,02 que corresponde a un Aumento del 12,04% de recursos disponibles.
A149: 5.1.2.03. | B149: Servicios comerciales y financieros | D149: =IFERROR(VLOOKUP(A149,BC_ACTUAL!B:G,6,0)/1000,0) -> 15484.72174 | E149: =IFERROR(VLOOKUP(A149,BC_ANTERIOR!B:G,6,0)/1000,0) -> 19406.18895 | G149: 0.005622917908 | H149: 0.006132479106 | I149: -3921.46721 | J149: -0.2020730201 | L149: La cuenta Servicios comerciales y financieros, representa el 0,56% del total del Gastos, que comparado al periodo anterior genera una variación absoluta de -3 921,47 que corresponde a un Disminución del -20,21% de recursos disponibles.
A150: 5.1.2.04. | B150: Servicios de gestión y apoyo | D150: =IFERROR(VLOOKUP(A150,BC_ACTUAL!B:G,6,0)/1000,0) -> 88277.34862 | E150: =IFERROR(VLOOKUP(A150,BC_ANTERIOR!B:G,6,0)/1000,0) -> 83362.84949 | G150: 0.0320558737 | H150: 0.02634319052 | I150: 4914.49913 | J150: 0.05895310873 | L150: La cuenta Servicios de gestión y apoyo, representa el 3,21% del total del Gastos, que comparado al periodo anterior genera una variación absoluta de 4 914,50 que corresponde a un Aumento del 5,90% de recursos disponibles.
A151: 5.1.2.05. | B151: Gastos de viaje y transporte | D151: =IFERROR(VLOOKUP(A151,BC_ACTUAL!B:G,6,0)/1000,0) -> 3846.06069 | E151: =IFERROR(VLOOKUP(A151,BC_ANTERIOR!B:G,6,0)/1000,0) -> 3407.23825 | G151: 0.001396607824 | H151: 0.001076708953 | I151: 438.82244 | J151: 0.1287912402 | L151: La cuenta Gastos de viaje y transporte, representa el 0,14% del total del Gastos, que comparado al periodo anterior genera una variación absoluta de 0 438,82 que corresponde a un Aumento del 12,88% de recursos disponibles.
A152: 5.1.2.06. | B152: Seguros, reaseguros y otras obligaciones | D152: =IFERROR(VLOOKUP(A152,BC_ACTUAL!B:G,6,0)/1000,0) -> 32202.11693 | E152: =IFERROR(VLOOKUP(A152,BC_ANTERIOR!B:G,6,0)/1000,0) -> 30883.88953 | G152: 0.01169345262 | H152: 0.009759505473 | I152: 1318.2274 | J152: 0.04268333491 | L152: La cuenta Seguros, reaseguros y otras obligaciones, representa el 1,17% del total del Gastos, que comparado al periodo anterior genera una variación absoluta de 1 318,23 que corresponde a un Aumento del 4,27% de recursos disponibles.
A153: 5.1.2.07. | B153: Capacitación y protocolo | D153: =IFERROR(VLOOKUP(A153,BC_ACTUAL!B:G,6,0)/1000,0) -> 10860 | E153: =IFERROR(VLOOKUP(A153,BC_ANTERIOR!B:G,6,0)/1000,0) -> 0 | G153: 0.003943557366 | H153: 0 | I153: 10860 | J153: 0 | L153: La cuenta Capacitación y protocolo, representa el 0,39% del total del Gastos, que comparado al periodo anterior genera una variación absoluta de 10 860,00 que corresponde a un Aumento del 0,00% de recursos disponibles.
A154: 5.1.2.08. | B154: Mantenimiento y reparaciones | D154: =IFERROR(VLOOKUP(A154,BC_ACTUAL!B:G,6,0)/1000,0) -> 1133264.151 | E154: =IFERROR(VLOOKUP(A154,BC_ANTERIOR!B:G,6,0)/1000,0) -> 1601844.141 | G154: 0.4115186179 | H154: 0.5061929341 | I154: -468579.9896 | J154: -0.2925253323 | L154: La cuenta Mantenimiento y reparaciones, representa el 41,15% del total del Gastos, que comparado al periodo anterior genera una variación absoluta de -468 579,99 que corresponde a un Disminución del -29,25% de recursos disponibles.
A155: 5.1.2.99. | B155: Otros servicios | D155: =IFERROR(VLOOKUP(A155,BC_ACTUAL!B:G,6,0)/1000,0) -> 0 | E155: =IFERROR(VLOOKUP(A155,BC_ANTERIOR!B:G,6,0)/1000,0) -> 150 | G155: 0 | H155: 4.74009538e-05 | I155: -150 | J155: -1 | L155: La cuenta Otros servicios, representa el 0,00% del total del Gastos, que comparado al periodo anterior genera una variación absoluta de -0 150,00 que corresponde a un Disminución del -100,00% de recursos disponibles.
A156: 5.1.3. | B156: Materiales y suministros consumidos | C156: 61 | D156: =SUM(D157:D161) -> 289260.2439 | E156: =SUM(E157:E161) -> 259761.796 | G156: =IFERROR(D156/$D$231,0) -> 0.1050381552 | H156: 0.08208637928 | I156: 29498.44794 | J156: 0.1135596088 | L156: La cuenta Materiales y suministros consumidos, representa el 10,50% del total del Gastos, que comparado al periodo anterior genera una variación absoluta de 29 498,45 que corresponde a un Aumento del 11,36% de recursos disponibles.
A157: 5.1.3.01. | B157: Productos químicos y conexos | D157: =IFERROR(VLOOKUP(A157,BC_ACTUAL!B:G,6,0)/1000,0) -> 92786.81459 | E157: =IFERROR(VLOOKUP(A157,BC_ANTERIOR!B:G,6,0)/1000,0) -> 77435.0571 | G157: 0.03369338178 | H157: 0.02446997043 | I157: 15351.75749 | J157: 0.1982533243 | L157: La cuenta Productos químicos y conexos, representa el 3,37% del total del Gastos, que comparado al periodo anterior genera una variación absoluta de 15 351,76 que corresponde a un Aumento del 19,83% de recursos disponibles.
A158: 5.1.3.02. | B158: Alimentos y productos agropecuarios | D158: =IFERROR(VLOOKUP(A158,BC_ACTUAL!B:G,6,0)/1000,0) -> 2759.33577 | E158: =IFERROR(VLOOKUP(A158,BC_ANTERIOR!B:G,6,0)/1000,0) -> 570 | G158: =IFERROR(D158/$D$231,0) -> 0.001001988849 | H158: 0.0001801236245 | I158: 2189.33577 | J158: 3.840939947 | L158: La cuenta Alimentos y productos agropecuarios, representa el 0,10% del total del Gastos, que comparado al periodo anterior genera una variación absoluta de 2 189,34 que corresponde a un Aumento del 384,09% de recursos disponibles.
A159: 5.1.3.03. | B159: Materiales y productos de uso en la construcción y mantenimiento | D159: =IFERROR(VLOOKUP(A159,BC_ACTUAL!B:G,6,0)/1000,0) -> 111400.3911 | E159: =IFERROR(VLOOKUP(A159,BC_ANTERIOR!B:G,6,0)/1000,0) -> 100528.1451 | G159: 0.04045247079 | H159: 0.03176753309 | I159: 10872.24596 | J159: 0.108151264 | L159: La cuenta Materiales y productos de uso en la construcción y mantenimiento, representa el 4,05% del total del Gastos, que comparado al periodo anterior genera una variación absoluta de 10 872,25 que corresponde a un Aumento del 10,82% de recursos disponibles.
A160: 5.1.3.04. | B160: Herramientas, repuestos y accesorios | D160: =IFERROR(VLOOKUP(A160,BC_ACTUAL!B:G,6,0)/1000,0) -> 56951.92104 | E160: =IFERROR(VLOOKUP(A160,BC_ANTERIOR!B:G,6,0)/1000,0) -> 64789.83388 | G160: 0.02068077051 | H160: 0.02047399948 | I160: -7837.91284 | J160: -0.1209744241 | L160: La cuenta Herramientas, repuestos y accesorios, representa el 2,07% del total del Gastos, que comparado al periodo anterior genera una variación absoluta de -7 837,91 que corresponde a un Disminución del -12,10% de recursos disponibles.
A161: 5.1.3.99. | B161: Útiles, materiales y suministros diversos | D161: =IFERROR(VLOOKUP(A161,BC_ACTUAL!B:G,6,0)/1000,0) -> 25361.78145 | E161: =IFERROR(VLOOKUP(A161,BC_ANTERIOR!B:G,6,0)/1000,0) -> 16438.75989 | G161: 0.009209543283 | H161: 0.005194752654 | I161: 8923.02156 | J161: 0.5428038137 | L161: La cuenta Útiles, materiales y suministros diversos, representa el 0,92% del total del Gastos, que comparado al periodo anterior genera una variación absoluta de 8 923,02 que corresponde a un Aumento del 54,28% de recursos disponibles.
A162: 5.1.4. | B162: Consumo de bienes distintos de inventarios | C162: 62 | D162: =SUM(D163:D164) -> 104440.8053 | E162: =SUM(E163:E164) -> 196608.4119 | G162: 0.03792525849 | H162: 0.06212950834 | I162: -92167.60656 | J162: -0.4687877068 | L162: La cuenta Consumo de bienes distintos de inventarios, representa el 3,79% del total del Gastos, que comparado al periodo anterior genera una variación absoluta de -92 167,61 que corresponde a un Disminución del -46,88% de recursos disponibles.
A163: 5.1.4.01. | B163: Consumo de bienes no concesionados | D163: =IFERROR(VLOOKUP(A163,BC_ACTUAL!B:G,6,0)/1000,0) -> 104440.8053 | E163: =IFERROR(VLOOKUP(A163,BC_ANTERIOR!B:G,6,0)/1000,0) -> 196608.4119 | G163: 0.03792525849 | H163: 0.06212950834 | I163: -92167.60656 | J163: -0.4687877068 | L163: La cuenta Consumo de bienes no concesionados, representa el 3,79% del total del Gastos, que comparado al periodo anterior genera una variación absoluta de -92 167,61 que corresponde a un Disminución del -46,88% de recursos disponibles.
A164: 5.1.4.02. | B164: Consumo de bienes concesionados | D164: =IFERROR(VLOOKUP(A164,BC_ACTUAL!B:G,6,0)/1000,0) -> 0 | E164: =IFERROR(VLOOKUP(A164,BC_ANTERIOR!B:G,6,0)/1000,0) -> 0 | G164: 0 | H164: 0 | I164: 0 | J164: 0 | L164: La cuenta Consumo de bienes concesionados, representa el 0,00% del total del Gastos, que comparado al periodo anterior genera una variación absoluta de 0 000,00 que corresponde a un Aumento del 0,00% de recursos disponibles.
A165: 5.1.5. | B165: Pérdidas por deterioro y desvalorización de bienes | C165: 63 | D165: =SUM(D166:D167) -> 0 | E165: =SUM(E166:E167) -> 0 | G165: 0 | H165: 0 | I165: 0 | J165: 0 | L165: La cuenta Pérdidas por deterioro y desvalorización de bienes , representa el 0,00% del total del Gastos, que comparado al periodo anterior genera una variación absoluta de 0 000,00 que corresponde a un Aumento del 0,00% de recursos disponibles.
A166: 5.1.5.01. | B166: Deterioro y desvalorización de bienes no concesionados | D166: =IFERROR(VLOOKUP(A166,BC_ACTUAL!B:G,6,0)/1000,0) -> 0 | E166: =IFERROR(VLOOKUP(A166,BC_ANTERIOR!B:G,6,0)/1000,0) -> 0 | G166: 0 | H166: 0 | I166: 0 | J166: 0 | L166: La cuenta Deterioro y desvalorización de bienes no concesionados, representa el 0,00% del total del Gastos, que comparado al periodo anterior genera una variación absoluta de 0 000,00 que corresponde a un Aumento del 0,00% de recursos disponibles.
A167: 5.1.5.02. | B167: Deterioro y desvalorización de bienes concesionados | D167: =IFERROR(VLOOKUP(A167,BC_ACTUAL!B:G,6,0)/1000,0) -> 0 | E167: =IFERROR(VLOOKUP(A167,BC_ANTERIOR!B:G,6,0)/1000,0) -> 0 | G167: 0 | H167: 0 | I167: 0 | J167: 0 | L167: La cuenta Deterioro y desvalorización de bienes concesionados, representa el 0,00% del total del Gastos, que comparado al periodo anterior genera una variación absoluta de 0 000,00 que corresponde a un Aumento del 0,00% de recursos disponibles.
A168: 5.1.6. | B168: Deterioro y pérdidas de inventarios | C168: 64 | D168: =SUM(D169:D171) -> 0 | E168: =SUM(E169:E171) -> 0 | G168: 0 | H168: 0 | I168: 0 | J168: 0 | L168: La cuenta Deterioro y pérdidas de inventarios, representa el 0,00% del total del Gastos, que comparado al periodo anterior genera una variación absoluta de 0 000,00 que corresponde a un Aumento del 0,00% de recursos disponibles.
A169: 5.1.6.01. | B169: Deterioro y pérdidas de inventarios por materiales y suministros para consumo y prestación de servicios | D169: =IFERROR(VLOOKUP(A169,BC_ACTUAL!B:G,6,0)/1000,0) -> 0 | E169: =IFERROR(VLOOKUP(A169,BC_ANTERIOR!B:G,6,0)/1000,0) -> 0 | G169: 0 | H169: 0 | I169: 0 | J169: 0 | L169: La cuenta Deterioro y pérdidas de inventarios por materiales y suministros para consumo y prestación de servicios, representa el 0,00% del total del Gastos, que comparado al periodo anterior genera una variación absoluta de 0 000,00 que corresponde a un Aumento del 0,00% de recursos disponibles.
A170: 5.1.6.02. | B170: Deterioro y pérdidas de inventarios por bienes para la venta | D170: =IFERROR(VLOOKUP(A170,BC_ACTUAL!B:G,6,0)/1000,0) -> 0 | E170: =IFERROR(VLOOKUP(A170,BC_ANTERIOR!B:G,6,0)/1000,0) -> 0 | G170: 0 | H170: 0 | I170: 0 | J170: 0 | L170: La cuenta Deterioro y pérdidas de inventarios por bienes para la venta, representa el 0,00% del total del Gastos, que comparado al periodo anterior genera una variación absoluta de 0 000,00 que corresponde a un Aumento del 0,00% de recursos disponibles.
A171: 5.1.6.03. | B171: Deterioro y pérdidas de inventarios por materias primas y bienes en producción | D171: =IFERROR(VLOOKUP(A171,BC_ACTUAL!B:G,6,0)/1000,0) -> 0 | E171: =IFERROR(VLOOKUP(A171,BC_ANTERIOR!B:G,6,0)/1000,0) -> 0 | G171: 0 | H171: 0 | I171: 0 | J171: 0 | L171: La cuenta Deterioro y pérdidas de inventarios por materias primas y bienes en producción, representa el 0,00% del total del Gastos, que comparado al periodo anterior genera una variación absoluta de 0 000,00 que corresponde a un Aumento del 0,00% de recursos disponibles.
A172: 5.1.7. | B172: Deterioro de inversiones y cuentas a cobrar | C172: 65 | D172: =SUM(D173:D174) -> 0 | E172: =SUM(E173:E174) -> 0 | G172: 0 | H172: 0 | I172: 0 | J172: 0 | L172: La cuenta Deterioro de inversiones y cuentas a cobrar, representa el 0,00% del total del Gastos, que comparado al periodo anterior genera una variación absoluta de 0 000,00 que corresponde a un Aumento del 0,00% de recursos disponibles.
A173: 5.1.7.01. | B173: Deterioro de inversiones | D173: =IFERROR(VLOOKUP(A173,BC_ACTUAL!B:G,6,0)/1000,0) -> 0 | E173: =IFERROR(VLOOKUP(A173,BC_ANTERIOR!B:G,6,0)/1000,0) -> 0 | G173: 0 | H173: 0 | I173: 0 | J173: 0 | L173: La cuenta Deterioro de inversiones, representa el 0,00% del total del Gastos, que comparado al periodo anterior genera una variación absoluta de 0 000,00 que corresponde a un Aumento del 0,00% de recursos disponibles.
A174: 5.1.7.02. | B174: Deterioro de cuentas a cobrar | D174: =IFERROR(VLOOKUP(A174,BC_ACTUAL!B:G,6,0)/1000,0) -> 0 | E174: =IFERROR(VLOOKUP(A174,BC_ANTERIOR!B:G,6,0)/1000,0) -> 0 | G174: 0 | H174: 0 | I174: 0 | J174: 0 | L174: La cuenta Deterioro de cuentas a cobrar, representa el 0,00% del total del Gastos, que comparado al periodo anterior genera una variación absoluta de 0 000,00 que corresponde a un Aumento del 0,00% de recursos disponibles.
A175: 5.1.8. | B175: Cargos por provisiones y reservas técnicas | C175: 66 | D175: =SUM(D176:D180) -> 0 | E175: =SUM(E176:E180) -> 181.5 | G175: 0 | H175: 5.73551541e-05 | I175: -181.5 | J175: -1 | L175: La cuenta Cargos por provisiones y reservas técnicas, representa el 0,00% del total del Gastos, que comparado al periodo anterior genera una variación absoluta de -0 181,50 que corresponde a un Disminución del -100,00% de recursos disponibles.
A176: 5.1.8.01. | B176: Cargos por litigios y demandas | D176: =IFERROR(VLOOKUP(A176,BC_ACTUAL!B:G,6,0)/1000,0) -> 0 | E176: =IFERROR(VLOOKUP(A176,BC_ANTERIOR!B:G,6,0)/1000,0) -> 181.5 | G176: =IFERROR(D176/$D$231,0) -> 0 | H176: 5.73551541e-05 | I176: -181.5 | J176: -1 | L176: La cuenta Cargos por litigios y demandas, representa el 0,00% del total del Gastos, que comparado al periodo anterior genera una variación absoluta de -0 181,50 que corresponde a un Disminución del -100,00% de recursos disponibles.
A177: 5.1.8.02. | B177: Cargos por reestructuración | D177: =IFERROR(VLOOKUP(A177,BC_ACTUAL!B:G,6,0)/1000,0) -> 0 | E177: =IFERROR(VLOOKUP(A177,BC_ANTERIOR!B:G,6,0)/1000,0) -> 0 | G177: 0 | H177: 0 | I177: 0 | J177: 0 | L177: La cuenta Cargos por reestructuración, representa el 0,00% del total del Gastos, que comparado al periodo anterior genera una variación absoluta de 0 000,00 que corresponde a un Aumento del 0,00% de recursos disponibles.
A178: 5.1.8.03. | B178: Cargos por beneficios a los empleados | D178: =IFERROR(VLOOKUP(A178,BC_ACTUAL!B:G,6,0)/1000,0) -> 0 | E178: =IFERROR(VLOOKUP(A178,BC_ANTERIOR!B:G,6,0)/1000,0) -> 0 | G178: 0 | H178: 0 | I178: 0 | J178: 0 | L178: La cuenta Cargos por beneficios a los empleados, representa el 0,00% del total del Gastos, que comparado al periodo anterior genera una variación absoluta de 0 000,00 que corresponde a un Aumento del 0,00% de recursos disponibles.
A179: 5.1.8.99. | B179: Cargos por otras provisiones y reservas técnicas | D179: =IFERROR(VLOOKUP(A179,BC_ACTUAL!B:G,6,0)/1000,0) -> 0 | E179: =IFERROR(VLOOKUP(A179,BC_ANTERIOR!B:G,6,0)/1000,0) -> 0 | G179: 0 | H179: 0 | I179: 0 | J179: 0 | L179: La cuenta Cargos por otras provisiones y reservas técnicas, representa el 0,00% del total del Gastos, que comparado al periodo anterior genera una variación absoluta de 0 000,00 que corresponde a un Aumento del 0,00% de recursos disponibles.
A180: 5.2. | B180: Gastos financieros | H180: 0
A181: 5.2.1. | B181: Intereses sobre endeudamiento público | C181: 67 | D181: =SUM(D182:D185) -> 54399.29999 | E181: =SUM(E182:E185) -> 56507.79962 | G181: 0.01975384532 | H181: 0.017856824 | I181: =IFERROR(D181-E181,0) -> -2108.49963 | J181: -0.03731342654 | L181: La cuenta Intereses sobre endeudamiento público, representa el 1,98% del total del Gastos, que comparado al periodo anterior genera una variación absoluta de -2 108,50 que corresponde a un Disminución del -3,73% de recursos disponibles.
A182: 5.2.1.01. | B182: Intereses sobre títulos y valores de la deuda pública | D182: =IFERROR(VLOOKUP(A182,BC_ACTUAL!B:G,6,0)/1000,0) -> 0 | E182: =IFERROR(VLOOKUP(A182,BC_ANTERIOR!B:G,6,0)/1000,0) -> 0 | G182: 0 | H182: 0 | I182: 0 | J182: 0 | L182: La cuenta Intereses sobre títulos y valores de la deuda pública, representa el 0,00% del total del Gastos, que comparado al periodo anterior genera una variación absoluta de 0 000,00 que corresponde a un Aumento del 0,00% de recursos disponibles.
A183: 5.2.1.02. | B183: Intereses sobre préstamos | D183: =IFERROR(VLOOKUP(A183,BC_ACTUAL!B:G,6,0)/1000,0) -> 54399.29999 | E183: =IFERROR(VLOOKUP(A183,BC_ANTERIOR!B:G,6,0)/1000,0) -> 56507.79962 | G183: 0.01975384532 | H183: 0.017856824 | I183: -2108.49963 | J183: -0.03731342654 | L183: La cuenta Intereses sobre préstamos, representa el 1,98% del total del Gastos, que comparado al periodo anterior genera una variación absoluta de -2 108,50 que corresponde a un Disminución del -3,73% de recursos disponibles.
A184: 5.2.1.03. | B184: Intereses sobre deudas asumidas | D184: =IFERROR(VLOOKUP(A184,BC_ACTUAL!B:G,6,0)/1000,0) -> 0 | E184: =IFERROR(VLOOKUP(A184,BC_ANTERIOR!B:G,6,0)/1000,0) -> 0 | G184: 0 | H184: 0 | I184: 0 | J184: 0 | L184: La cuenta Intereses sobre deudas asumidas, representa el 0,00% del total del Gastos, que comparado al periodo anterior genera una variación absoluta de 0 000,00 que corresponde a un Aumento del 0,00% de recursos disponibles.
A185: 5.2.1.04. | B185: Intereses sobre endeudamiento de Tesorería | D185: =IFERROR(VLOOKUP(A185,BC_ACTUAL!B:G,6,0)/1000,0) -> 0 | E185: =IFERROR(VLOOKUP(A185,BC_ANTERIOR!B:G,6,0)/1000,0) -> 0 | G185: 0 | H185: 0 | I185: 0 | J185: 0 | L185: La cuenta Intereses sobre endeudamiento de Tesorería, representa el 0,00% del total del Gastos, que comparado al periodo anterior genera una variación absoluta de 0 000,00 que corresponde a un Aumento del 0,00% de recursos disponibles.
A186: 5.2.9. | B186: Otros gastos financieros | C186: 68 | D186: =SUM(D187:D192) -> 0 | E186: =SUM(E187:E192) -> 0 | G186: 0 | H186: 0 | I186: 0 | J186: 0 | L186: La cuenta Otros gastos financieros, representa el 0,00% del total del Gastos, que comparado al periodo anterior genera una variación absoluta de 0 000,00 que corresponde a un Aumento del 0,00% de recursos disponibles.
A187: 5.2.9.01. | B187: Intereses por deudas comerciales | D187: =IFERROR(VLOOKUP(A187,BC_ACTUAL!B:G,6,0)/1000,0) -> 0 | E187: =IFERROR(VLOOKUP(A187,BC_ANTERIOR!B:G,6,0)/1000,0) -> 0 | G187: 0 | H187: 0 | I187: 0 | J187: 0 | L187: La cuenta Intereses por deudas comerciales, representa el 0,00% del total del Gastos, que comparado al periodo anterior genera una variación absoluta de 0 000,00 que corresponde a un Aumento del 0,00% de recursos disponibles.
A188: 5.2.9.02. | B188: Intereses por deudas sociales y fiscales | D188: =IFERROR(VLOOKUP(A188,BC_ACTUAL!B:G,6,0)/1000,0) -> 0 | E188: =IFERROR(VLOOKUP(A188,BC_ANTERIOR!B:G,6,0)/1000,0) -> 0 | G188: 0 | H188: 0 | I188: 0 | J188: 0 | L188: La cuenta Intereses por deudas sociales y fiscales, representa el 0,00% del total del Gastos, que comparado al periodo anterior genera una variación absoluta de 0 000,00 que corresponde a un Aumento del 0,00% de recursos disponibles.
A189: 5.2.9.04. | B189: Intereses por documentos a pagar | D189: =IFERROR(VLOOKUP(A189,BC_ACTUAL!B:G,6,0)/1000,0) -> 0 | E189: =IFERROR(VLOOKUP(A189,BC_ANTERIOR!B:G,6,0)/1000,0) -> 0 | G189: 0 | H189: 0 | I189: 0 | J189: 0 | L189: La cuenta Intereses por documentos a pagar, representa el 0,00% del total del Gastos, que comparado al periodo anterior genera una variación absoluta de 0 000,00 que corresponde a un Aumento del 0,00% de recursos disponibles.
A190: 5.2.9.06. | B190: Intereses sobre deudas por avales ejecutados | D190: =IFERROR(VLOOKUP(A190,BC_ACTUAL!B:G,6,0)/1000,0) -> 0 | E190: =IFERROR(VLOOKUP(A190,BC_ANTERIOR!B:G,6,0)/1000,0) -> 0 | G190: 0 | H190: 0 | I190: 0 | J190: 0 | L190: La cuenta Intereses sobre deudas por avales ejecutados, representa el 0,00% del total del Gastos, que comparado al periodo anterior genera una variación absoluta de 0 000,00 que corresponde a un Aumento del 0,00% de recursos disponibles.
A191: 5.2.9.99. | B191: Otros gastos financieros varios | D191: =IFERROR(VLOOKUP(A191,BC_ACTUAL!B:G,6,0)/1000,0) -> 0 | E191: =IFERROR(VLOOKUP(A191,BC_ANTERIOR!B:G,6,0)/1000,0) -> 0 | G191: 0 | H191: 0 | I191: 0 | J191: 0 | L191: La cuenta Otros gastos financieros varios, representa el 0,00% del total del Gastos, que comparado al periodo anterior genera una variación absoluta de 0 000,00 que corresponde a un Aumento del 0,00% de recursos disponibles.
A192: 5.3. | B192: Gastos y resultados negativos por ventas | H192: 0 | L192: La cuenta Gastos y resultados negativos por ventas, representa el 0,00% del total del Gastos, que comparado al periodo anterior genera una variación absoluta de 0 000,00 que corresponde a un Aumento del 0,00% de recursos disponibles.
A193: 5.3.1. | B193: Costo de ventas de bienes y servicios | C193: 69 | D193: =SUM(D194:D195) -> 0 | E193: =SUM(E194:E195) -> 0 | G193: 0 | H193: 0 | I193: =IFERROR(D193-E193,0) -> 0 | J193: 0 | L193: La cuenta Costo de ventas de bienes y servicios, representa el 0,00% del total del Gastos, que comparado al periodo anterior genera una variación absoluta de 0 000,00 que corresponde a un Aumento del 0,00% de recursos disponibles.
A194: 5.3.1.01. | B194: Costo de ventas de bienes | D194: =IFERROR(VLOOKUP(A194,BC_ACTUAL!B:G,6,0)/1000,0) -> 0 | E194: =IFERROR(VLOOKUP(A194,BC_ANTERIOR!B:G,6,0)/1000,0) -> 0 | G194: =IFERROR(D194/$D$231,0) -> 0 | H194: 0 | I194: 0 | J194: 0 | L194: La cuenta Costo de ventas de bienes, representa el 0,00% del total del Gastos, que comparado al periodo anterior genera una variación absoluta de 0 000,00 que corresponde a un Aumento del 0,00% de recursos disponibles.
A195: 5.3.1.02. | B195: Costo de ventas de servicios | D195: =IFERROR(VLOOKUP(A195,BC_ACTUAL!B:G,6,0)/1000,0) -> 0 | E195: =IFERROR(VLOOKUP(A195,BC_ANTERIOR!B:G,6,0)/1000,0) -> 0 | G195: 0 | H195: 0 | I195: 0 | J195: 0 | L195: La cuenta Costo de ventas de servicios, representa el 0,00% del total del Gastos, que comparado al periodo anterior genera una variación absoluta de 0 000,00 que corresponde a un Aumento del 0,00% de recursos disponibles.
A196: 5.3.2. | B196: Resultados negativos por ventas de inversiones | C196: 70 | D196: =SUM(D197:D198) -> 0 | E196: =SUM(E197:E198) -> 0 | G196: 0 | H196: 0 | I196: 0 | J196: 0 | L196: La cuenta Resultados negativos por ventas de inversiones, representa el 0,00% del total del Gastos, que comparado al periodo anterior genera una variación absoluta de 0 000,00 que corresponde a un Aumento del 0,00% de recursos disponibles.
A197: 5.3.2.02. | B197: Resultados negativos por ventas de inversiones patrimoniales - Método de participación | D197: =IFERROR(VLOOKUP(A197,BC_ACTUAL!B:G,6,0)/1000,0) -> 0 | E197: =IFERROR(VLOOKUP(A197,BC_ANTERIOR!B:G,6,0)/1000,0) -> 0 | G197: 0 | H197: 0 | I197: 0 | J197: 0 | L197: La cuenta Resultados negativos por ventas de inversiones patrimoniales - Método de participación, representa el 0,00% del total del Gastos, que comparado al periodo anterior genera una variación absoluta de 0 000,00 que corresponde a un Aumento del 0,00% de recursos disponibles.
A198: 5.3.2.99. | B198: Resultados negativos por ventas de otras inversiones | D198: =IFERROR(VLOOKUP(A198,BC_ACTUAL!B:G,6,0)/1000,0) -> 0 | E198: =IFERROR(VLOOKUP(A198,BC_ANTERIOR!B:G,6,0)/1000,0) -> 0 | G198: 0 | H198: 0 | I198: 0 | J198: 0 | L198: La cuenta Resultados negativos por ventas de otras inversiones, representa el 0,00% del total del Gastos, que comparado al periodo anterior genera una variación absoluta de 0 000,00 que corresponde a un Aumento del 0,00% de recursos disponibles.
A199: 5.3.3. | B199: Resultados negativos por ventas e intercambio de bienes | C199: 71 | D199: =SUM(D200:D207) -> 0 | E199: =SUM(E200:E207) -> 0 | G199: 0 | H199: 0 | I199: 0 | J199: 0 | L199: La cuenta Resultados negativos por ventas e intercambio de bienes, representa el 0,00% del total del Gastos, que comparado al periodo anterior genera una variación absoluta de 0 000,00 que corresponde a un Aumento del 0,00% de recursos disponibles.
A200: 5.3.3.01. | B200: Resultados negativos por ventas de construcciones terminadas | D200: =IFERROR(VLOOKUP(A200,BC_ACTUAL!B:G,6,0)/1000,0) -> 0 | E200: =IFERROR(VLOOKUP(A200,BC_ANTERIOR!B:G,6,0)/1000,0) -> 0 | G200: 0 | H200: 0 | I200: 0 | J200: 0 | L200: La cuenta Resultados negativos por ventas de construcciones terminadas, representa el 0,00% del total del Gastos, que comparado al periodo anterior genera una variación absoluta de 0 000,00 que corresponde a un Aumento del 0,00% de recursos disponibles.
A201: 5.3.3.02. | B201: Resultados negativos por ventas de propiedades, planta y equipo | D201: =IFERROR(VLOOKUP(A201,BC_ACTUAL!B:G,6,0)/1000,0) -> 0 | E201: =IFERROR(VLOOKUP(A201,BC_ANTERIOR!B:G,6,0)/1000,0) -> 0 | G201: 0 | H201: 0 | I201: 0 | J201: 0 | L201: La cuenta Resultados negativos por ventas de propiedades, planta y equipo, representa el 0,00% del total del Gastos, que comparado al periodo anterior genera una variación absoluta de 0 000,00 que corresponde a un Aumento del 0,00% de recursos disponibles.
A202: 5.3.3.03. | B202: Resultados negativos por ventas de activos biológicos | D202: =IFERROR(VLOOKUP(A202,BC_ACTUAL!B:G,6,0)/1000,0) -> 0 | E202: =IFERROR(VLOOKUP(A202,BC_ANTERIOR!B:G,6,0)/1000,0) -> 0 | G202: 0 | H202: =IFERROR(E202/$E$231,0) -> 0 | I202: 0 | J202: 0 | L202: La cuenta Resultados negativos por ventas de activos biológicos, representa el 0,00% del total del Gastos, que comparado al periodo anterior genera una variación absoluta de 0 000,00 que corresponde a un Aumento del 0,00% de recursos disponibles.
A203: 5.3.3.04. | B203: Resultados negativos por ventas de bienes intangibles | D203: =IFERROR(VLOOKUP(A203,BC_ACTUAL!B:G,6,0)/1000,0) -> 0 | E203: =IFERROR(VLOOKUP(A203,BC_ANTERIOR!B:G,6,0)/1000,0) -> 0 | G203: =IFERROR(D203/$D$231,0) -> 0 | H203: 0 | I203: 0 | J203: 0 | L203: La cuenta Resultados negativos por ventas de bienes intangibles, representa el 0,00% del total del Gastos, que comparado al periodo anterior genera una variación absoluta de 0 000,00 que corresponde a un Aumento del 0,00% de recursos disponibles.
... 29 more rows

Sheet EEFF_FLUJO
A1: =DATOS!D13 -> Municipalidad de Buenos Aires | G1: ESTADO DE FLUJO DE EFECTIVO
A2: ESTADO DE FLUJO DE EFECTIVO | G2: Análisis de Variaciones
A3: =DATOS!D15&" "&RIGHT(D5,4) -> Del 01 de Enero al 30 de Junio 2024 | G3: =DATOS!D15&" "&RIGHT(D5,4) -> Del 01 de Enero al 30 de Junio 2024
A4: En miles de colones
A5: P | B5: Descripción | C5: Nota Nº | D5: =PROPER(DATOS!D17) -> Junio 2024 | E5: =PROPER(DATOS!D18) -> Junio 2023 | G5: Análisis Vertical (%) | H5: % | I5: Monto Variación Absoluta | J5: Variación relativa (%)
A6: FLUJOS DE EFECTIVO DE LAS ACTIVIDADES DE OPERACIÓN
A7: Cobros | B7: COBROS_OPE | C7: 77 | D7: =SUM(D8:D15) -> 2595053.288 | E7: =SUM(E8:E15) -> 2678293.921 | I7: =IFERROR(D7-E7,0) -> -83240.63324 | J7: =IFERROR(I7/E7,0) -> -0.03107972302 | L7: ="Los"&" "&A7&" "&"de"&" "&"los"&" "&"Flujos"&" "&"de"&" "&"Efectivo"&" "&"de"&" "&"las"&" "&"Actividades"&" "&"de"&" "&"Operación"&","&" "&"comparado"&" "&"al"&" "&"periodo"&" "&"anterior"&" "&"genera"&" "&"una"&" "&"variación"&" "&"absoluta"&" "&"de"&" "&TEXT(I7,"0 000,00")&" "&"que"&" "&"corresponde"&" "&"a"&" "&"un"&" "&IF(I7<0,"Disminución","Aumento")&" "&"del"&" "&TEXT(J7,"0,00%")&" "&"de"&" "&"recursos"&" "&"disponibles"&"." -> Los Cobros de los Flujos de Efectivo de las Actividades de Operación, comparado al periodo anterior genera una variación absoluta de -83 240,63 que corresponde a un Disminución del -3,11% de recursos disponibles.
B8: Cobros por impuestos | D8: 593722.2301 | E8: 749500.7609 | G8: =IFERROR(D8/$D$7,0) -> 0.2287899955 | H8: =IFERROR(E8/$E$7,0) -> 0.2798426099 | I8: =IFERROR(D8-E8,0) -> -155778.5308 | J8: =IFERROR(I8/E8,0) -> -0.207843059
B9: Cobros por contribuciones sociales | D9: 0 | E9: 0 | G9: =IFERROR(D9/$D$7,0) -> 0 | H9: =IFERROR(E9/$E$7,0) -> 0 | I9: =IFERROR(D9-E9,0) -> 0 | J9: =IFERROR(I9/E9,0) -> 0
B10: Cobros por multas, sanciones, remates y confiscaciones de origen no tributario | D10: 2518.564 | E10: 0 | G10: 0.0009705249645 | H10: =IFERROR(E10/$E$7,0) -> 0 | I10: 2518.564 | J10: 0
B11: Cobros por ventas de inventarios, servicios y derechos administrativos | D11: 285053.5681 | E11: 220536.2394 | G11: 0.1098449768 | H11: =IFERROR(E11/$E$7,0) -> 0.08234206026 | I11: 64517.32864 | J11: 0.2925475142
B12: Cobros por ingresos de la propiedad | D12: 32276.59775 | E12: 33969.61104 | G12: 0.01243773987 | H12: 0.01268330215 | I12: -1693.01329 | J12: -0.04983905432
B13: Cobros por transferencias | D13: 1579396.225 | E13: 1586331.584 | G13: 0.608618032 | H13: =IFERROR(E13/$E$7,0) -> 0.5922918212 | I13: -6935.3593 | J13: -0.004371948065
B14: Cobros por concesiones | D14: 0 | E14: 0 | G14: 0 | H14: 0 | I14: 0 | J14: 0
B15: Otros cobros por actividades de operación | D15: 102086.103 | E15: 87955.72547 | G15: 0.03933873092 | H15: 0.03284020651 | I15: 14130.37755 | J15: 0.1606533
A16: Pagos | B16: PAGOS_OPE | C16: 78 | D16: =SUM(D17:D21) -> 2425420.34 | E16: =SUM(E17:E21) -> 2844721.448 | I16: =IFERROR(D16-E16,0) -> -419301.1077 | J16: =IFERROR(I16/E16,0) -> -0.1473961916 | L16: ="Los"&" "&A16&" "&"de"&" "&"los"&" "&"Flujos"&" "&"de"&" "&"Efectivo"&" "&"de"&" "&"las"&" "&"Actividades"&" "&"de"&" "&"Operación"&","&" "&"comparado"&" "&"al"&" "&"periodo"&" "&"anterior"&" "&"genera"&" "&"una"&" "&"variación"&" "&"absoluta"&" "&"de"&" "&TEXT(I16,"0 000,00")&" "&"que"&" "&"corresponde"&" "&"a"&" "&"un"&" "&IF(I16<0,"Disminución","Aumento")&" "&"del"&" "&TEXT(J16,"0,00%")&" "&"de"&" "&"recursos"&" "&"disponibles"&"." -> Los Pagos de los Flujos de Efectivo de las Actividades de Operación, comparado al periodo anterior genera una variación absoluta de -419 301,11 que corresponde a un Disminución del -14,74% de recursos disponibles.
B17: Pagos por beneficios al personal | D17: 595176.2648 | E17: 568464.6882 | G17: =IFERROR(D17/$D$16,0) -> 0.2453909761 | H17: =IFERROR(E17/$E$16,0) -> 0.1998314065 | I17: =IFERROR(D17-E17,0) -> 26711.5766 | J17: =IFERROR(I17/E17,0) -> 0.0469889813
B18: Pagos por servicios y adquisiciones de inventarios (incluye anticipos) | D18: 1619295.508 | E18: 1959990.994 | G18: =IFERROR(D18/$D$16,0) -> 0.6676349998 | H18: =IFERROR(E18/$E$16,0) -> 0.6889922368 | I18: =IFERROR(D18-E18,0) -> -340695.4853 | J18: =IFERROR(I18/E18,0) -> -0.1738250259
B19: Pagos por prestaciones de la seguridad social | D19: 41121.61635 | E19: 13176.5255 | G19: 0.01695442875 | H19: 0.004631921171 | I19: 27945.09085 | J19: 2.120823949
B20: Pagos por otras transferencias | D20: 146488.522 | E20: 88268.5095 | G20: 0.06039716891 | H20: 0.03102887615 | I20: 58220.01249 | J20: 0.6595785158
B21: Otros pagos por actividades de operación | D21: 23338.42891 | E21: 214820.7313 | G21: =IFERROR(D21/$D$16,0) -> 0.009622426481 | H21: 0.07551555935 | I21: -191482.3024 | J21: -0.8913585818
A22: Flujos netos de efectivo por actividades de operación | D22: =+D7-D16 -> 169632.9473 | E22: =+E7-E16 -> -166427.5272 | I22: =IFERROR(D22-E22,0) -> 336060.4745 | J22: =IFERROR(I22/E22,0) -> -2.019260156
A24: FLUJOS DE EFECTIVO DE LAS ACTIVIDADES DE INVERSIÓN
A25: Cobros | B25: COBROS_INV | C25: 79 | D25: =SUM(D26:D30) -> 0 | E25: =SUM(E26:E30) -> 0 | I25: =IFERROR(D25-E25,0) -> 0 | J25: =IFERROR(I25/E25,0) -> 0 | L25: ="Los"&" "&A25&" "&"de"&" "&"los"&" "&"Flujos"&" "&"de"&" "&"Efectivo"&" "&"de"&" "&"las"&" "&"Actividades"&" "&"de"&" "&"Inversión"&","&" "&"comparado"&" "&"al"&" "&"periodo"&" "&"anterior"&" "&"genera"&" "&"una"&" "&"variación"&" "&"absoluta"&" "&"de"&" "&TEXT(I25,"0 000,00")&" "&"que"&" "&"corresponde"&" "&"a"&" "&"un"&" "&IF(I25<0,"Disminución","Aumento")&" "&"del"&" "&TEXT(J25,"0,00%")&" "&"de"&" "&"recursos"&" "&"disponibles"&"." -> Los Cobros de los Flujos de Efectivo de las Actividades de Inversión, comparado al periodo anterior genera una variación absoluta de 0 000,00 que corresponde a un Aumento del 0,00% de recursos disponibles.
B26: Cobros por ventas de bienes distintos de inventarios | D26: 0 | E26: 0 | G26: =IFERROR(D26/$D$25,0) -> 0 | H26: =IFERROR(E26/$E$25,0) -> 0 | I26: =IFERROR(D26-E26,0) -> 0 | J26: =IFERROR(I26/E26,0) -> 0
B27: Cobros por ventas y reembolso de inversiones patrimoniales | D27: 0 | E27: 0 | G27: =IFERROR(D27/$D$25,0) -> 0 | H27: =IFERROR(E27/$E$25,0) -> 0 | I27: =IFERROR(D27-E27,0) -> 0 | J27: =IFERROR(I27/E27,0) -> 0
B28: Cobros por ventas y reembolso de inversiones en otros instrumentos financieros | D28: 0 | E28: 0 | G28: 0 | H28: 0 | I28: 0 | J28: 0
B29: Cobros por reembolsos de préstamos | D29: 0 | E29: 0 | G29: 0 | H29: 0 | I29: 0 | J29: 0
B30: Otros cobros por actividades de inversión | D30: 0 | E30: 0 | G30: 0 | H30: 0 | I30: 0 | J30: 0
A31: Pagos | B31: PAGOS_INV | C31: 80 | D31: =SUM(D32:D36) -> 408916.8091 | E31: =SUM(E32:E36) -> 101165.4511 | I31: =IFERROR(D31-E31,0) -> 307751.358 | J31: =IFERROR(I31/E31,0) -> 3.042059862 | L31: ="Los"&" "&A31&" "&"de"&" "&"los"&" "&"Flujos"&" "&"de"&" "&"Efectivo"&" "&"de"&" "&"las"&" "&"Actividades"&" "&"de"&" "&"Inversión"&","&" "&"comparado"&" "&"al"&" "&"periodo"&" "&"anterior"&" "&"genera"&" "&"una"&" "&"variación"&" "&"absoluta"&" "&"de"&" "&TEXT(I31,"0 000,00")&" "&"que"&" "&"corresponde"&" "&"a"&" "&"un"&" "&IF(I31<0,"Disminución","Aumento")&" "&"del"&" "&TEXT(J31,"0,00%")&" "&"de"&" "&"recursos"&" "&"disponibles"&"." -> Los Pagos de los Flujos de Efectivo de las Actividades de Inversión, comparado al periodo anterior genera una variación absoluta de 307 751,36 que corresponde a un Aumento del 304,21% de recursos disponibles.
B32: Pagos por adquisición de bienes distintos de inventarios | D32: 408916.8091 | E32: 101165.4511 | G32: =IFERROR(D32/$D$31,0) -> 1 | H32: =IFERROR(E32/$E$31,0) -> 1 | I32: =IFERROR(D32-E32,0) -> 307751.358 | J32: =IFERROR(I32/E32,0) -> 3.042059862
B33: Pagos por adquisición de inversiones patrimoniales | D33: 0 | E33: 0 | G33: =IFERROR(D33/$D$31,0) -> 0 | H33: =IFERROR(E33/$E$31,0) -> 0 | I33: =IFERROR(D33-E33,0) -> 0 | J33: =IFERROR(I33/E33,0) -> 0
B34: Pagos por adquisición de inversiones en otros instrumentos financieros | D34: 0 | E34: 0 | G34: 0 | H34: 0 | I34: 0 | J34: =IFERROR(I34/E34,0) -> 0
B35: Pagos por préstamos otorgados | D35: 0 | E35: 0 | G35: 0 | H35: 0 | I35: 0 | J35: =IFERROR(I35/E35,0) -> 0
B36: Otros pagos por actividades de inversión | D36: 0 | E36: 0 | G36: 0 | H36: =IFERROR(E36/$E$31,0) -> 0 | I36: 0 | J36: 0
A37: Flujos netos de efectivo por actividades de inversión | D37: =+D25-D31 -> -408916.8091 | E37: =+E25-E31 -> -101165.4511 | I37: =IFERROR(D37-E37,0) -> -307751.358 | J37: =IFERROR(I37/E37,0) -> 3.042059862
A39: FLUJOS DE EFECTIVO DE LAS ACTIVIDADES DE FINANCIACIÓN
A40: Cobros | B40: COBROS_FIN | C40: 81 | D40: =SUM(D41:D43) -> 254836.45 | E40: =SUM(E41:E43) -> 0 | I40: =IFERROR(D40-E40,0) -> 254836.45 | J40: =IFERROR(I40/E40,0) -> 0 | L40: ="Los"&" "&A40&" "&"de"&" "&"los"&" "&"Flujos"&" "&"de"&" "&"Efectivo"&" "&"de"&" "&"las"&" "&"Actividades"&" "&"de"&" "&"Financiamiento"&","&" "&"comparado"&" "&"al"&" "&"periodo"&" "&"anterior"&" "&"genera"&" "&"una"&" "&"variación"&" "&"absoluta"&" "&"de"&" "&TEXT(I40,"0 000,00")&" "&"que"&" "&"corresponde"&" "&"a"&" "&"un"&" "&IF(I40<0,"Disminución","Aumento")&" "&"del"&" "&TEXT(J40,"0,00%")&" "&"de"&" "&"recursos"&" "&"disponibles"&"." -> Los Cobros de los Flujos de Efectivo de las Actividades de Financiamiento, comparado al periodo anterior genera una variación absoluta de 254 836,45 que corresponde a un Aumento del 0,00% de recursos disponibles.
B41: Cobros por incrementos de capital y transferencias de capital | D41: 0 | E41: 0 | G41: =IFERROR(D41/$D$40,0) -> 0 | H41: =IFERROR(E41/$E$40,0) -> 0 | I41: =IFERROR(D41-E41,0) -> 0 | J41: =IFERROR(I41/E41,0) -> 0
B42: Cobros por endeudamiento público | D42: 0 | E42: 0 | G42: =IFERROR(D42/$D$40,0) -> 0 | H42: =IFERROR(E42/$E$40,0) -> 0 | I42: =IFERROR(D42-E42,0) -> 0 | J42: =IFERROR(I42/E42,0) -> 0
B43: Otros cobros por actividades de financiación | D43: 254836.45 | E43: 0 | G43: 1 | H43: 0 | I43: 254836.45 | J43: 0
A44: Pagos | B44: PAGOS_FIN | C44: 82 | D44: =SUM(D45:D47) -> 248609.67 | E44: =SUM(E45:E47) -> 216211.8117 | I44: =IFERROR(D44-E44,0) -> 32397.85833 | J44: =IFERROR(I44/E44,0) -> 0.1498431472 | L44: ="Los"&" "&A44&" "&"de"&" "&"los"&" "&"Flujos"&" "&"de"&" "&"Efectivo"&" "&"de"&" "&"las"&" "&"Actividades"&" "&"de"&" "&"Financiamiento"&","&" "&"comparado"&" "&"al"&" "&"periodo"&" "&"anterior"&" "&"genera"&" "&"una"&" "&"variación"&" "&"absoluta"&" "&"de"&" "&TEXT(I44,"0 000,00")&" "&"que"&" "&"corresponde"&" "&"a"&" "&"un"&" "&IF(I44<0,"Disminución","Aumento")&" "&"del"&" "&TEXT(J44,"0,00%")&" "&"de"&" "&"recursos"&" "&"disponibles"&"." -> Los Pagos de los Flujos de Efectivo de las Actividades de Financiamiento, comparado al periodo anterior genera una variación absoluta de 32 397,86 que corresponde a un Aumento del 14,98% de recursos disponibles.
B45: Pagos por disminuciones del patrimonio que no afectan resultados | D45: 0 | E45: 0 | G45: =IFERROR(D45/$D$44,0) -> 0 | H45: =IFERROR(E45/$E$44,0) -> 0 | I45: =IFERROR(D45-E45,0) -> 0 | J45: =IFERROR(I45/E45,0) -> 0
B46: Pagos por amortizaciones de endeudamiento público | D46: 194210.37 | E46: 159704.012 | G46: 0 | H46: 0 | I46: 0 | J46: 0
B47: Otros pagos por actividades de financiación | D47: 54399.29999 | E47: 56507.79962 | G47: 0 | H47: 0 | I47: 0 | J47: 0
A48: Flujos netos de efectivo por actividades de financiación | D48: =+D40-D44 -> 6226.78001 | E48: =+E40-E44 -> -216211.8117 | I48: =IFERROR(D48-E48,0) -> 222438.5917 | J48: =IFERROR(I48/E48,0) -> -1.028799444
A50: Incremento/Disminución neta de efectivo y equivalentes de efectivo por flujos de actividades | D50: =+D22+D37+D48 -> -233057.0818 | E50: =+E22+E37+E48 -> -483804.7899 | I50: =IFERROR(D50-E50,0) -> 250747.7082 | J50: =IFERROR(I50/E50,0) -> -0.5182828144
A52: Incremento/Disminución neta de efectivo y equivalentes de efectivo por diferencias de cambio no realizadas | D52: 0 | E52: 0 | I52: 0 | J52: 0
A53: Efectivo y equivalentes de efectivo al inicio del ejercicio | D53: 2106811.911 | E53: 2705767.389 | I53: -598955.478 | J53: -0.2213625164
A54: Efectivo y equivalentes de efectivo al final del ejercicio | C54: 83 | D54: =+D50+D52+D53 -> 1873754.83 | E54: =+E50+E52+E53 -> 2221962.599 | I54: -348207.7698 | J54: -0.1567118051 | L54: ="La"&" "&"cuenta"&" "&A54&","&" "&"comparado"&" "&"al"&" "&"periodo"&" "&"anterior"&" "&"genera"&" "&"una"&" "&"variación"&" "&"absoluta"&" "&"de"&" "&TEXT(I54,"0 000,00")&" "&"que"&" "&"corresponde"&" "&"a"&" "&"un"&" "&IF(I54<0,"Disminución","Aumento")&" "&"del"&" "&TEXT(J54,"0,00%")&" "&"de"&" "&"recursos"&" "&"disponibles"&"." -> La cuenta Efectivo y equivalentes de efectivo al final del ejercicio, comparado al periodo anterior genera una variación absoluta de -348 207,77 que corresponde a un Disminución del -15,67% de recursos disponibles.
A57: Validaciones
A58: Balanza de comprobación periodo actual saldo final
A59: 1.1.1. | B59: Efectivo y equivalentes de efectivo | D59: =IFERROR(VLOOKUP(A59,BC_ACTUAL!B:G,6,0)/1000,0) -> 1873754.828
B60: No debe haber diferencia con Efectivo y equivalentes de efectivo al final del ejercicio | D60: =+D54-D59 -> 0.001199987018
A62: Balanza de comprobación periodo actual saldo inicial
A63: 1.1.1. | B63: Efectivo y equivalentes de efectivo | D63: =IFERROR(VLOOKUP(A63,BC_ANTERIOR!B:G,6,0)/1000,0) -> 2221962.604
D64: =+D53-D63 -> -115150.6922
B65: No debe haber diferencia con Efectivo y equivalentes de efectivo al inicio del ejercicio | D65: =E54-D63 -> -0.0041199876

Sheet EEFF_CAPITAL
A1: =DATOS!D13 -> Municipalidad de Buenos Aires
A2: Estado de Cambios en el Patrimonio Comparativo | F2: ESTADO DE CAMBIOS EN EL PATRIMONIO
A3: =DATOS!D15&" "&RIGHT(C6,4) -> Del 01 de Enero al 30 de Junio 2024 | F3: Análisis de Variaciones
A4: En miles de colones | F4: =DATOS!D15&" "&RIGHT(C6,4) -> Del 01 de Enero al 30 de Junio 2024
A6: Cuenta | B6: Concepto | C6: =PROPER(DATOS!D17) -> Junio 2024 | D6: =PROPER(DATOS!D18) -> Junio 2023 | F6: Análisis Vertical (%) | G6: % | H6: Monto Variación Absoluta | I6: Variación relativa (%)
A7: 3. | B7: ="Saldos"&" "&"al"&" "&"31"&" "&"de"&" "&"Diciembre"&" "&"del"&" "&RIGHT(C6,4)&" "&"y"&" "&RIGHT(D6,4) -> Saldos al 31 de Diciembre del 2024 y 2023 | C7: =IFERROR(VLOOKUP(A7,BC_ACTUAL!B:G,3,0),0)/1000 -> 164134319.2 | D7: =IFERROR(VLOOKUP(A7,BC_ANTERIOR!B:G,3,0),0)/1000 -> 163528314.2
A8: Variaciones del ejercicio
A9: 3.1.1.01. | B9: Capital inicial | C9: =IFERROR((VLOOKUP(A9,BC_ACTUAL!B:G,5,FALSE))-(VLOOKUP(A9,BC_ACTUAL!B:G,4,0)),0)/1000 -> 0 | D9: =IFERROR((VLOOKUP(A9,BC_ANTERIOR!B:G,6,FALSE))-(VLOOKUP(A9,BC_ANTERIOR!B:G,3,0)),0)/1000 -> 0 | F9: =IFERROR(C9/$C$28,0) -> 0 | G9: =IFERROR(D9/$D$28,0) -> 0 | H9: =IFERROR(C9-D9,0) -> 0 | I9: =IFERROR(H9/D9,0) -> 0
A10: 3.1.1.02. | B10: Incorporaciones al capital | C10: =IFERROR((VLOOKUP(A10,BC_ACTUAL!B:G,5,FALSE))-(VLOOKUP(A10,BC_ACTUAL!B:G,4,0)),0)/1000 -> 0 | D10: =IFERROR((VLOOKUP(A10,BC_ANTERIOR!B:G,6,FALSE))-(VLOOKUP(A10,BC_ANTERIOR!B:G,3,0)),0)/1000 -> 0 | F10: =IFERROR(C10/$C$28,0) -> 0 | G10: =IFERROR(D10/$D$28,0) -> 0 | H10: =IFERROR(C10-D10,0) -> 0 | I10: =IFERROR(H10/D10,0) -> 0
A11: 3.1.2.01. | B11: Donaciones de capital | C11: =IFERROR((VLOOKUP(A11,BC_ACTUAL!B:G,5,FALSE))-(VLOOKUP(A11,BC_ACTUAL!B:G,4,0)),0)/1000 -> 0 | D11: =IFERROR((VLOOKUP(A11,BC_ANTERIOR!B:G,6,FALSE))-(VLOOKUP(A11,BC_ANTERIOR!B:G,3,0)),0)/1000 -> 0 | F11: 0 | G11: =IFERROR(D11/$D$28,0) -> 0 | H11: 0 | I11: 0
A12: 3.1.2.99. | B12: Otras transferencias de capital | C12: =IFERROR((VLOOKUP(A12,BC_ACTUAL!B:G,5,FALSE))-(VLOOKUP(A12,BC_ACTUAL!B:G,4,0)),0)/1000 -> 0 | D12: =IFERROR((VLOOKUP(A12,BC_ANTERIOR!B:G,6,FALSE))-(VLOOKUP(A12,BC_ANTERIOR!B:G,3,0)),0)/1000 -> 0 | F12: 0 | G12: 0 | H12: 0 | I12: 0
A13: 3.1.3.01. | B13: Revaluación de bienes | C13: =IFERROR((VLOOKUP(A13,BC_ACTUAL!B:G,5,FALSE))-(VLOOKUP(A13,BC_ACTUAL!B:G,4,0)),0)/1000 -> 0 | D13: =IFERROR((VLOOKUP(A13,BC_ANTERIOR!B:G,6,FALSE))-(VLOOKUP(A13,BC_ANTERIOR!B:G,3,0)),0)/1000 -> 0 | F13: 0 | G13: 0 | H13: 0 | I13: 0
A14: 3.1.3.99. | B14: Otras reservas | C14: =IFERROR((VLOOKUP(A14,BC_ACTUAL!B:G,5,FALSE))-(VLOOKUP(A14,BC_ACTUAL!B:G,4,0)),0)/1000 -> 0 | D14: =IFERROR((VLOOKUP(A14,BC_ANTERIOR!B:G,6,FALSE))-(VLOOKUP(A14,BC_ANTERIOR!B:G,3,0)),0)/1000 -> 0 | F14: 0 | G14: 0 | H14: 0 | I14: 0
A15: 3.1.4.01. | B15: Diferencias de conversión de moneda extranjera | C15: =IFERROR((VLOOKUP(A15,BC_ACTUAL!B:G,5,FALSE))-(VLOOKUP(A15,BC_ACTUAL!B:G,4,0)),0)/1000 -> 0 | D15: =IFERROR((VLOOKUP(A15,BC_ANTERIOR!B:G,6,FALSE))-(VLOOKUP(A15,BC_ANTERIOR!B:G,3,0)),0)/1000 -> 0 | F15: 0 | G15: 0 | H15: 0 | I15: 0
A16: 3.1.4.02. | B16: Diferencias de valor razonable de activos financieros destinados a la venta | C16: =IFERROR((VLOOKUP(A16,BC_ACTUAL!B:G,5,FALSE))-(VLOOKUP(A16,BC_ACTUAL!B:G,4,0)),0)/1000 -> 0 | D16: =IFERROR((VLOOKUP(A16,BC_ANTERIOR!B:G,6,FALSE))-(VLOOKUP(A16,BC_ANTERIOR!B:G,3,0)),0)/1000 -> 0 | F16: 0 | G16: =IFERROR(D16/$D$28,0) -> 0 | H16: 0 | I16: 0
A17: 3.1.4.03. | B17: Diferencias de valor razonable de instrumentos financieros designados como cobertura | C17: =IFERROR((VLOOKUP(A17,BC_ACTUAL!B:G,5,FALSE))-(VLOOKUP(A17,BC_ACTUAL!B:G,4,0)),0)/1000 -> 0 | D17: =IFERROR((VLOOKUP(A17,BC_ANTERIOR!B:G,6,FALSE))-(VLOOKUP(A17,BC_ANTERIOR!B:G,3,0)),0)/1000 -> 0 | F17: 0 | G17: =IFERROR(D17/$D$28,0) -> 0 | H17: 0 | I17: 0
A18: 3.1.4.99. | B18: Otras variaciones no asignables a reservas | C18: =IFERROR((VLOOKUP(A18,BC_ACTUAL!B:G,5,FALSE))-(VLOOKUP(A18,BC_ACTUAL!B:G,4,0)),0)/1000 -> 0 | D18: =IFERROR((VLOOKUP(A18,BC_ANTERIOR!B:G,6,FALSE))-(VLOOKUP(A18,BC_ANTERIOR!B:G,3,0)),0)/1000 -> 0 | F18: 0 | G18: =IFERROR(D18/$D$28,0) -> 0 | H18: 0 | I18: 0
A19: 3.1.5.01. | B19: Resultados acumulados de ejercicios anteriores | C19: =IFERROR((VLOOKUP(A19,BC_ACTUAL!B:G,5,FALSE))-(VLOOKUP(A19,BC_ACTUAL!B:G,4,0)),0)/1000 -> -15837.58169 | D19: =IFERROR((VLOOKUP(A19,BC_ANTERIOR!B:G,6,FALSE))-(VLOOKUP(A19,BC_ANTERIOR!B:G,3,0)),0)/1000 -> -183064.1408 | F19: =IFERROR(C19/$C$28,0) -> -9.537973736e-05 | G19: =IFERROR(D19/$D$28,0) -> -0.001110739501 | H19: 167226.5591 | I19: -0.9134861605
A20: 3.1.5.02. | B20: Resultado del ejercicio | C20: =IFERROR((VLOOKUP("4.",BC_ACTUAL!B:G,6,FALSE))-(VLOOKUP("5.",BC_ACTUAL!B:G,6,0)),0)/1000 -> 1929172.993 | D20: =(IFERROR(VLOOKUP(A20,BC_ANTERIOR!B:G,6,FALSE)-(VLOOKUP(A20,BC_ANTERIOR!B:G,3,0)),0)+IFERROR((VLOOKUP("4.",BC_ANTERIOR!B:G,6,FALSE))-(VLOOKUP("5.",BC_ANTERIOR!B:G,6,0)),0))/1000 -> 1467598.237 | F20: =IFERROR(C20/$C$28,0) -> 0.01161818875 | G20: =IFERROR(D20/$D$28,0) -> 0.008904634878 | H20: 461574.7562 | I20: 0.3145102962
A21: 3.2.1.01. | B21: Intereses minoritarios - Participaciones en el patrimonio de entidades del sector gobierno general | C21: =IFERROR((VLOOKUP(A21,BC_ACTUAL!B:G,5,FALSE))-(VLOOKUP(A21,BC_ACTUAL!B:G,4,0)),0)/1000 -> 0 | D21: =IFERROR(VLOOKUP(A21,BC_ANTERIOR!B:G,6,0),0) -> 0 | F21: =IFERROR(C21/$C$28,0) -> 0 | G21: =IFERROR(D21/$D$28,0) -> 0 | H21: 0 | I21: 0
A22: 3.2.1.02. | B22: Intereses minoritarios - Participaciones en el patrimonio de empresas públicas e instituciones públicas financieras | C22: =IFERROR((VLOOKUP(A22,BC_ACTUAL!B:G,5,FALSE))-(VLOOKUP(A22,BC_ACTUAL!B:G,4,0)),0)/1000 -> 0 | D22: =IFERROR(VLOOKUP(A22,BC_ANTERIOR!B:G,6,0),0) -> 0 | F22: =IFERROR(C22/$C$28,0) -> 0 | G22: =IFERROR(D22/$D$28,0) -> 0 | H22: 0 | I22: 0
A23: 3.2.2.01. | B23: Intereses minoritarios - Evolución por reservas | C23: =IFERROR((VLOOKUP(A23,BC_ACTUAL!B:G,5,FALSE))-(VLOOKUP(A23,BC_ACTUAL!B:G,4,0)),0)/1000 -> 0 | D23: =IFERROR(VLOOKUP(A23,BC_ANTERIOR!B:G,6,0),0) -> 0 | F23: =IFERROR(C23/$C$28,0) -> 0 | G23: 0 | H23: =IFERROR(C23-D23,0) -> 0 | I23: 0
A24: 3.2.2.02. | B24: Intereses minoritarios - Evolución por variaciones no asignables a reservas | C24: =IFERROR((VLOOKUP(A24,BC_ACTUAL!B:G,5,FALSE))-(VLOOKUP(A24,BC_ACTUAL!B:G,4,0)),0)/1000 -> 0 | D24: =IFERROR(VLOOKUP(A24,BC_ANTERIOR!B:G,6,0),0) -> 0 | F24: 0 | G24: =IFERROR(D24/$D$28,0) -> 0 | H24: 0 | I24: 0
A25: 3.2.2.03. | B25: Intereses minoritarios - Evolución por resultados acumulados | C25: =IFERROR((VLOOKUP(A25,BC_ACTUAL!B:G,5,FALSE))-(VLOOKUP(A25,BC_ACTUAL!B:G,4,0)),0)/1000 -> 0 | D25: =IFERROR(VLOOKUP(A25,BC_ANTERIOR!B:G,6,0),0) -> 0 | F25: =IFERROR(C25/$C$28,0) -> 0 | G25: 0 | H25: 0 | I25: 0
A26: 3.2.2.99. | B26: Intereses minoritarios - Evolución por otros componentes del patrimonio | C26: =IFERROR((VLOOKUP(A24,BC_ACTUAL!B:G,5,FALSE))-(VLOOKUP(A24,BC_ACTUAL!B:G,4,0)),0)/1000 -> 0 | D26: =IFERROR(VLOOKUP(A26,BC_ANTERIOR!B:G,6,0),0) -> 0 | F26: 0 | G26: =IFERROR(D26/$D$28,0) -> 0 | H26: =IFERROR(C26-D26,0) -> 0 | I26: 0
B27: Total de variaciones del ejercicio | C27: =SUM(C9:C26) -> 1913335.412 | D27: =SUM(D9:D26) -> 1284534.096 | F27: 0.01152280901 | G27: =IFERROR(D27/$D$28,0) -> 0.007793895377 | H27: =IFERROR(C27-D27,0) -> 628801.3153 | I27: 0.4895170297
A28: 84 | B28: Saldos del período | C28: =+C7+C27 -> 166047654.7 | D28: =+D7+D27 -> 164812848.3 | F28: 1 | G28: =IFERROR(D28/$D$28,0) -> 1 | H28: 1234806.377 | I28: 0.007492173028 | K28: ="En"&" "&"el"&" "&"Estado"&" "&"de"&" "&"Cambio"&" "&"al"&" "&"Patrimonio"&","&" "&"el"&" Saldo del periodo al 31 de diciembre 2022, "&"comparado"&" "&"al"&" "&"periodo"&" "&"anterior"&" "&"genera"&" "&"una"&" "&"variación"&" "&"absoluta"&" "&"de"&" "&TEXT(H28,"0 000,00")&" "&"que"&" "&"corresponde"&" "&"a"&" "&"un"&" "&IF(H28<0,"Disminución","Aumento")&" "&"del"&" "&TEXT(I28,"0,00%")&" "&"de"&" "&"recursos"&" "&"disponibles"&"." -> En el Estado de Cambio al Patrimonio, el Saldo del periodo al 31 de diciembre 2022, comparado al periodo anterior genera una variación absoluta de 1 234 806,38 que corresponde a un Aumento del 0,75% de recursos disponibles.
B29: (*) De uso exclusivo en Estados Contables consolidados
A35: =DATOS!D13 -> Municipalidad de Buenos Aires
A36: ESTADO DE CAMBIOS EN EL PATRIMONIO NETO
A37: =DATOS!D15 -> Del 01 de Enero al 30 de Junio
A38: En miles de colones
A39: Cuenta | B39: Concepto | D39: Capital | E39: Transferencias de capital | F39: Reservas | G39: Variaciones no asignables a reservas | H39: Resultados acumulados | I39: Intereses Minoritarios Part. Patrimonio | J39: Intereses Minoritarios Evolución | K39: Total Patrimonio
D42: 3.1.1. | E42: 3.1.2. | F42: 3.1.3. | G42: 3.1.4. | H42: 3.1.5. | I42: 3.2.1. | J42: 3.2.2.
B44: ="Saldo"&" "&"Iniciales"&" "&"al"&" "&"31"&" "&"de"&" "&"Diciembre"&" "&RIGHT(D6,4) -> Saldo Iniciales al 31 de Diciembre 2023 | D44: =IFERROR(VLOOKUP(D42,BC_ACTUAL!$B:$G,3,0),0)/1000 -> 0.5248 | E44: =IFERROR(VLOOKUP(E42,BC_ACTUAL!$B:$G,3,0),0)/1000 -> 0 | F44: =IFERROR(VLOOKUP(F42,BC_ACTUAL!$B:$G,3,0),0)/1000 -> 0 | G44: =IFERROR(VLOOKUP(G42,BC_ACTUAL!$B:$G,3,0),0)/1000 -> 0 | H44: =IFERROR(VLOOKUP(H42,BC_ACTUAL!$B:$G,3,0),0)/1000 -> 164134318.7 | I44: =IFERROR(VLOOKUP(I42,BC_ACTUAL!$B:$G,3,0),0)/1000 -> 0 | J44: =IFERROR(VLOOKUP(J42,BC_ACTUAL!$B:$G,3,0),0)/1000 -> 0 | K44: =SUM(D44:J44) -> 164134319.2
A45: Variaciones del ejercicio
A46: 3.1.1.01. | B46: Capital inicial | D46: =IFERROR((VLOOKUP(A46,BC_ACTUAL!$B:$G,6,FALSE))-(VLOOKUP(A46,BC_ACTUAL!$B:$G,3,0)),0)/1000 -> 0 | K46: =SUM(C46:J46) -> 0
A47: 3.1.1.02. | B47: Incorporaciones al capital | D47: =IFERROR((VLOOKUP(A47,BC_ACTUAL!$B:$G,6,FALSE))-(VLOOKUP(A47,BC_ACTUAL!$B:$G,3,0)),0)/1000 -> 0 | K47: =SUM(C47:J47) -> 0
A48: 3.1.2.01. | B48: Donaciones de capital | E48: =IFERROR((VLOOKUP(A48,BC_ACTUAL!$B:$G,6,FALSE))-(VLOOKUP(A48,BC_ACTUAL!$B:$G,3,0)),0)/1000 -> 0 | K48: =SUM(C48:J48) -> 0
A49: 3.1.2.99. | B49: Otras transferencias de capital | E49: =IFERROR((VLOOKUP(A49,BC_ACTUAL!$B:$G,6,FALSE))-(VLOOKUP(A49,BC_ACTUAL!$B:$G,3,0)),0)/1000 -> 0 | K49: 0
A50: 3.1.3.01. | B50: Revaluación de bienes | F50: =IFERROR((VLOOKUP(A50,BC_ACTUAL!$B:$G,6,FALSE))-(VLOOKUP(A50,BC_ACTUAL!$B:$G,3,0)),0)/1000 -> 0 | K50: 0
A51: 3.1.3.99. | B51: Otras reservas | F51: =IFERROR((VLOOKUP(A51,BC_ACTUAL!$B:$G,6,FALSE))-(VLOOKUP(A51,BC_ACTUAL!$B:$G,3,0)),0)/1000 -> 0 | K51: 0
A52: 3.1.4.01. | B52: Diferencias de conversión de moneda extranjera | G52: =IFERROR((VLOOKUP(A52,BC_ACTUAL!$B:$G,6,FALSE))-(VLOOKUP(A52,BC_ACTUAL!$B:$G,3,0)),0)/1000 -> 0 | K52: 0
A53: 3.1.4.02. | B53: Diferencias de valor razonable de activos financieros destinados a la venta | G53: =IFERROR((VLOOKUP(A53,BC_ACTUAL!$B:$G,6,FALSE))-(VLOOKUP(A53,BC_ACTUAL!$B:$G,3,0)),0)/1000 -> 0 | K53: 0
A54: 3.1.4.03. | B54: Diferencias de valor razonable de instrumentos financieros designados como cobertura | G54: =IFERROR((VLOOKUP(A54,BC_ACTUAL!$B:$G,6,FALSE))-(VLOOKUP(A54,BC_ACTUAL!$B:$G,3,0)),0)/1000 -> 0 | K54: 0
A55: 3.1.4.99. | B55: Otras variaciones no asignables a reservas | G55: =IFERROR((VLOOKUP(A55,BC_ACTUAL!$B:$G,6,FALSE))-(VLOOKUP(A55,BC_ACTUAL!$B:$G,3,0)),0)/1000 -> 0 | K55: 0
A56: 3.1.5.01. | B56: Resultados acumulados de ejercicios anteriores | H56: =IFERROR((VLOOKUP(A56,BC_ACTUAL!$B:$G,6,FALSE))-(VLOOKUP(A56,BC_ACTUAL!$B:$G,3,0)),0)/1000 -> -15837.58169 | K56: =SUM(C56:J56) -> -15837.58169
A57: 3.1.5.02. | B57: Resultado del ejercicio | H57: =IFERROR((VLOOKUP("4.",BC_ACTUAL!B:G,6,FALSE))-(VLOOKUP("5.",BC_ACTUAL!B:G,6,0)),0)/1000 -> 1929172.993 | K57: 1929172.993
A58: 3.2.1.01. | B58: Intereses minoritarios - Participaciones en el patrimonio de entidades del sector gobierno general | I58: =IFERROR((VLOOKUP(A58,BC_ACTUAL!B:G,6,FALSE))-(VLOOKUP(A58,BC_ACTUAL!B:G,3,0)),0)/1000 -> 0 | K58: 0
A59: 3.2.1.02. | B59: Intereses minoritarios - Participaciones en el patrimonio de empresas públicas e instituciones públicas financieras | I59: =IFERROR((VLOOKUP(A59,BC_ACTUAL!B:G,6,FALSE))-(VLOOKUP(A59,BC_ACTUAL!B:G,3,0)),0)/1000 -> 0 | K59: 0
A60: 3.2.2.01. | B60: Intereses minoritarios - Evolución por reservas | J60: =IFERROR((VLOOKUP(A60,BC_ACTUAL!B:G,6,FALSE))-(VLOOKUP(A60,BC_ACTUAL!B:G,3,0)),0)/1000 -> 0 | K60: 0
A61: 3.2.2.02. | B61: Intereses minoritarios - Evolución por variaciones no asignables a reservas | J61: =IFERROR((VLOOKUP(A61,BC_ACTUAL!B:G,6,FALSE))-(VLOOKUP(A61,BC_ACTUAL!B:G,3,0)),0)/1000 -> 0 | K61: 0
A62: 3.2.2.03. | B62: Intereses minoritarios - Evolución por resultados acumulados | J62: =IFERROR((VLOOKUP(A62,BC_ACTUAL!B:G,6,FALSE))-(VLOOKUP(A62,BC_ACTUAL!B:G,3,0)),0)/1000 -> 0 | K62: 0
A63: 3.2.2.99. | B63: Intereses minoritarios - Evolución por otros componentes del patrimonio | J63: =IFERROR((VLOOKUP(A63,BC_ACTUAL!B:G,6,FALSE))-(VLOOKUP(A63,BC_ACTUAL!B:G,3,0)),0)/1000 -> 0 | K63: 0
B64: Total de variaciones del ejercicio | D64: =SUM(D46:D63) -> 0 | E64: =SUM(E46:E63) -> 0 | F64: =SUM(F46:F63) -> 0 | G64: =SUM(G46:G63) -> 0 | H64: =SUM(H46:H63) -> 1913335.412 | I64: =SUM(I46:I63) -> 0 | J64: 0 | K64: =SUM(K46:K63) -> 1913335.412
B65: Saldos del período | D65: =+D64+D44+D45 -> 0.5248 | E65: =+E64+E44+E45 -> 0 | F65: =+F64+F44+F45 -> 0 | G65: =+G64+G44+G45 -> 0 | H65: =+H64+H44+H45 -> 166047654.1 | I65: =+I64+I44+I45 -> 0 | J65: 0 | K65: =+K64+K44+K45 -> 166047654.7
B66: (*) De uso exclusivo en Estados Contables consolidados
A68: SALDOS BC_ACTUAL | D68: =IFERROR(VLOOKUP(D42,BC_ACTUAL!$B:$G,6,0),0)/1000 -> 0.5248 | E68: =IFERROR(VLOOKUP(E42,BC_ACTUAL!$B:$G,6,0),0)/1000 -> 0 | F68: =IFERROR(VLOOKUP(F42,BC_ACTUAL!$B:$G,6,0),0)/1000 -> 0 | G68: =IFERROR(VLOOKUP(G42,BC_ACTUAL!$B:$G,6,0),0)/1000 -> 0 | H68: =IFERROR(VLOOKUP(H42,BC_ACTUAL!$B:$G,6,0),0)/1000 -> 164118481.1 | I68: =IFERROR(VLOOKUP(I42,BC_ACTUAL!$B:$G,6,0),0)/1000 -> 0 | J68: =IFERROR(VLOOKUP(J42,BC_ACTUAL!$B:$G,6,0),0)/1000 -> 0 | K68: =SUM(D68:J68) -> 164118481.7
A70: AJUSTE_ RESULTADOS | D70: =D65-D68 -> 0 | E70: =E65-E68 -> 0 | F70: =F65-F68 -> 0 | G70: 0 | H70: =H65-H68 -> 1929172.993 | I70: 0 | J70: 0 | K70: =K65-K68 -> 1929172.993
A72: DIFERENCIAS | H72: =H57 -> 1929172.993 | K72: =H57 -> 1929172.993
H74: =H70-H72 -> 0 | K74: =K70-K72 -> 0

Sheet MATRIZ_AUTOVALUACION
D6: RESUMEN MATRIZ DE AUTOEVALUACIÓN DEL AVANCE DE LA IMPLEMENTACIÓN NICSP VERSIÓN 2018
D8: VERSIÓN JUNIO 2021
D10: NICSP | E10: La norma se encuentra Vigente | F10: La norma ha sido adoptada en el país | G10: Aplica/No Aplica | H10: Grado de aplicación NICSP | I10: Plan de acción | J10: Brechas/Acciones | K10: % avance Plan de Acción | L10: Transitorio
D11: NICSP 1 Presentación de Estados Financieros | E11: Si | F11: Si | G11: Si | H11: 0.9869565217 | I11: Si | J11: 1 | K11: 0.95 | L11: Si
D12: NICSP 2 Estados de Flujo de Efectivo | E12: Si | F12: Si | G12: Si | H12: 1 | I12: 0 | J12: 0 | L12: 0
D13: NICSP 3 Políticas Contables, Cambios en las Estimaciones Contables y Errores | E13: Si | F13: Si | G13: Si | H13: 0.9 | I13: Si | J13: 1 | K13: 0.9 | L13: No
D14: NICSP 4 Efectos de las Variaciones en las Tasas de Cambio de la Moneda Extranjera | E14: Si | F14: Si | G14: Si | H14: 0.4714285714 | I14: 0 | J14: 4 | K14: 0 | L14: 0
D15: NICSP 5 Costos por Préstamos | E15: Si | F15: Si | G15: Si | H15: 1 | I15: 0 | J15: 0 | L15: 0
D16: NICSP 9 Ingresos Ordinarios Provenientes de Transacciones de Intercambio | E16: Si | F16: Si | G16: Si | H16: 1 | I16: 0 | J16: 0 | L16: 0
D17: NICSP 10 Información Financiera en Economías Hiperinflacionarias | E17: Si | F17: Si | G17: No | J17: 0
D18: NICSP 11 Contratos de Construcción | E18: Si | F18: Si | G18: No | J18: 0
D19: NICSP 12 Inventarios | E19: Si | F19: Si | G19: Si | H19: 0.97 | I19: Si | J19: 1 | K19: 0.95 | L19: Si
D20: NICSP 13 Arrendamientos | E20: Si | F20: Si | G20: Si | H20: 0.7971428571 | I20: Si | J20: 5 | K20: 0.8 | L20: Si
D21: NICSP 14 Hechos Ocurridos Después de la Fecha de Presentación | E21: Si | F21: Si | G21: Si | H21: 1 | I21: No | J21: 0 | L21: 0
D22: NICSP 16 Propiedades de Inversión | E22: Si | F22: Si | G22: No | J22: 0
D23: NICSP 17 Propiedades, Planta y Equipo | E23: Si | F23: Si | G23: Si | H23: 0.9625 | I23: Si | J23: 2 | K23: 0.9 | L23: Si
D24: NICSP 18 Información Financiera por Segmentos | E24: Si | F24: Si | G24: No | J24: 0
D25: NICSP 19 Provisiones, Activos Contingentes y Pasivos Contingentes | E25: Si | F25: Si | G25: Si | H25: 0.92 | I25: Si | J25: 6 | K25: 0.75 | L25: Si
D26: NICSP 20 Información a Revelar Sobre Partes Relacionadas | E26: Si | F26: Si | G26: Si | H26: 0.64 | I26: Si | J26: 3 | K26: 0.3 | L26: Si
D27: NICSP 21 Deterioro del Valor de Activos No Generadores de Efectivo | E27: Si | F27: Si | G27: Si | H27: 0.2666666667 | I27: Si | J27: 6 | K27: 0 | L27: Si
D28: NICSP 22 Revelación de Información Financiera sobre el Sector Gobierno General | E28: Si | F28: Si | G28: No | J28: 0
D29: NICSP 23 Ingresos de Transacciones sin Contraprestación (Impuestos y Transferencias) | E29: Si | F29: Si | G29: Si | H29: 0.9647058824 | I29: 0 | J29: 0 | K29: 0 | L29: Si
D30: NICSP 24 Presentación de Información del Presupuesto en los Estados Financieros | E30: Si | F30: Si | G30: Si | H30: 0.625 | I30: Si | J30: 4 | K30: 0.4875 | L30: No
D31: NICSP 26 Deterioro del Valor de los Activos Generadores de Efectivo | E31: Si | F31: Si | G31: Si | H31: 0.3 | I31: Si | J31: 7 | K31: 0 | L31: Si
D32: NICSP 27 Agricultura | E32: Si | F32: Si | G32: No | J32: 0
D33: NICSP 28 Instrumentos Financieros: Presentación | E33: Si | F33: Si | G33: Si | H33: 1 | I33: No | J33: 0 | L33: 0
D34: NICSP 29 Instrumentos Financieros: Reconocimiento y medición | E34: Si | F34: Si | G34: Si | H34: 1 | I34: 0 | J34: 0 | L34: Si
D35: NICSP 30 Instrumentos Financieros: Información a Revelar | E35: Si | F35: Si | G35: Si | H35: 0.6515151515 | I35: Si | J35: 3 | K35: 0.7333333333 | L35: No
D36: NICSP 31 Activos intangibles | E36: Si | F36: Si | G36: Si | H36: 0.5333333333 | I36: Si | J36: 16 | K36: 0.14 | L36: Si
D37: NICSP 32 Acuerdos de Concesión de Servicios: La concedente | E37: Si | F37: Si | G37: No | J37: 0
D38: NICSP 33 Adopción por primera vez de las Normas Internacionales de Contabilidad del Sector Público de Base de Acumulación (o devengo) (NICSP) | E38: Si | F38: Si | G38: Si | H38: 0.75 | I38: Si | J38: 5 | K38: 0.6 | L38: No
D39: NICSP 34 Estados Financieros Separados | E39: Si | F39: Si | G39: No | J39: 0
D40: NICSP 35 Estados Financieros Consolidados | E40: Si | F40: Si | G40: Si | H40: 0.4 | I40: Si | J40: 1 | K40: 0.5 | L40: Si
D41: NICSP 36 Inversiones en asociadas y negocios conjuntos | E41: Si | F41: Si | G41: No | J41: 0
D42: NICSP 37 Acuerdos Conjuntos | E42: Si | F42: Si | G42: No | J42: 0
D43: NICSP 38 Información a revelar sobre participaciones en otras entidades | E43: Si | F43: Si | G43: No | J43: 0
D44: NICSP 39 Beneficios a los empleados | E44: Si | F44: Si | G44: Si | H44: 0.7 | I44: Si | J44: 2 | K44: 0.75 | L44: Si
D45: NICSP 40 Combinaciones del Sector Público | E45: Si | F45: SI | G45: No | J45: 0
D47: Promedio General Grado de Aplicación NICSP | H47: =IFERROR(AVERAGE(H11:H45),0) -> 0.7756195211
D49: Promedio General de Avance en planes de acción (Cantidad de brechas) | J49: =SUM(J11:J45) -> 67 | K49: =+IFERROR(AVERAGE(K11:K45),0) -> 0.5153431373
D51: Cantidad de normas aplicables / Cantidad de normas que poseen plan | E51: =COUNTIF($E$11:$E$45,"SI") -> 35 | F51: =COUNTIF($F$11:$F$45,"SI") -> 35 | G51: =COUNTIF($G$11:$G$45,"SI") -> 23 | I51: =COUNTIF($I$11:$I$45,"SI") -> 15 | L51: =COUNTIF($L$11:$L$45,"SI") -> 13
D52: Cantidad de normas no aplicables / Cantidad de normas que no poseen plan | G52: =COUNTIF($G$11:$G$45,"NO") -> 12 | I52: =COUNTIF($I$11:$I$45,"NO") -> 2 | L52: =COUNTIF($L$11:$L$45,"NO") -> 4
D54: La entidad se acoge a los siguientes transitorios:
D58: TOTAL NORMAS
D61: NOMBRE | G61: FIRMA
D62: JERARCA MÁXIMO
D65: NOMBRE | G65: FIRMA
D66: DIRECTOR ADMINISTRATIVO FINANCIERO
D69: NOMBRE | G69: FIRMA
D70: CONTADOR

Sheet NOTAS_POR_CUENTA
A1: Notas Estado de Situación Financiera o Balance General Comparativo
A2: ACTIVO
A4: Cuenta | B4: Descripción | C4: Nota | D4: Periodo Actual | E4: Periodo Anterior | F4: Diferencia
F5: %
A6: 1.1.1. | B6: =IFERROR(VLOOKUP(A6,EEFF_SITUACION!A:E,2,0),"") -> Efectivo y equivalentes de efectivo | C6: =IFERROR(VLOOKUP(A6,EEFF_SITUACION!A:E,3,0),0) -> 03 | D6: =IFERROR(VLOOKUP(A6,EEFF_SITUACION!A:J,4,0),0) -> 1873754.828 | E6: =IFERROR(VLOOKUP(A6,EEFF_SITUACION!A:J,5,0),0) -> 2221962.604 | F6: =IFERROR(VLOOKUP(A6,EEFF_SITUACION!A:J,10,0),0) -> -0.1567118072 | H6: =IFERROR(VLOOKUP(A6,EEFF_SITUACION!A:L,12,0),0) -> La cuenta Efectivo y equivalentes de efectivo, representa el 1,12% del total del Activo, que comparado al periodo anterior genera una variación absoluta de -348 207,78 que corresponde a un Disminución del -15,67% de recursos disponibles.
A8: Cuenta | B8: Descripción | C8: Nota | D8: Periodo Actual | E8: Periodo Anterior | F8: Diferencia
F9: %
A10: 1.1.2. | B10: =IFERROR(VLOOKUP(A10,EEFF_SITUACION!A:E,2,0),"") -> Inversiones a corto plazo | C10: =IFERROR(VLOOKUP(A10,EEFF_SITUACION!A:E,3,0),0) -> 04 | D10: =IFERROR(VLOOKUP(A10,EEFF_SITUACION!A:J,4,0),0) -> 0 | E10: =IFERROR(VLOOKUP(A10,EEFF_SITUACION!A:J,5,0),0) -> 0 | F10: =IFERROR(VLOOKUP(A10,EEFF_SITUACION!A:J,10,0),0) -> 0 | H10: =IFERROR(VLOOKUP(A10,EEFF_SITUACION!A:L,12,0),0) -> La cuenta Inversiones a corto plazo, representa el 0,00% del total del Activo, que comparado al periodo anterior genera una variación absoluta de 0 000,00 que corresponde a un Aumento del 0,00% de recursos disponibles.
A12: Cuenta | B12: Descripción | C12: Nota | D12: Periodo Actual | E12: Periodo Anterior | F12: Diferencia
F13: %
A14: 1.1.3. | B14: =IFERROR(VLOOKUP(A14,EEFF_SITUACION!A:E,2,0),"") -> Cuentas a cobrar a corto plazo | C14: =IFERROR(VLOOKUP(A14,EEFF_SITUACION!A:E,3,0),0) -> 05 | D14: =IFERROR(VLOOKUP(A14,EEFF_SITUACION!A:J,4,0),0) -> 2685853.535 | E14: =IFERROR(VLOOKUP(A14,EEFF_SITUACION!A:J,5,0),0) -> 2661314.929 | F14: =IFERROR(VLOOKUP(A14,EEFF_SITUACION!A:J,10,0),0) -> 0.00922048197 | H14: =IFERROR(VLOOKUP(A14,EEFF_SITUACION!A:L,12,0),0) -> La cuenta Cuentas a cobrar a corto plazo, representa el 1,60% del total del Activo, que comparado al periodo anterior genera una variación absoluta de 24 538,61 que corresponde a un Aumento del 0,92% de recursos disponibles.
A16: Cuenta | B16: Descripción | C16: Nota | D16: Periodo Actual | E16: Periodo Anterior | F16: Diferencia
F17: %
A18: 1.1.4. | B18: =IFERROR(VLOOKUP(A18,EEFF_SITUACION!A:E,2,0),"") -> Inventarios | C18: =IFERROR(VLOOKUP(A18,EEFF_SITUACION!A:E,3,0),0) -> 06 | D18: =IFERROR(VLOOKUP(A18,EEFF_SITUACION!A:J,4,0),0) -> 194362.5279 | E18: =IFERROR(VLOOKUP(A18,EEFF_SITUACION!A:J,5,0),0) -> 177192.0204 | F18: =IFERROR(VLOOKUP(A18,EEFF_SITUACION!A:J,10,0),0) -> 0.09690338999 | H18: =IFERROR(VLOOKUP(A18,EEFF_SITUACION!A:L,12,0),0) -> La cuenta Inventarios, representa el 0,12% del total del Activo, que comparado al periodo anterior genera una variación absoluta de 17 170,51 que corresponde a un Aumento del 9,69% de recursos disponibles.
A20: Cuenta | B20: Descripción | C20: Nota | D20: Periodo Actual | E20: Periodo Anterior | F20: Diferencia
F21: %
A22: 1.1.9. | B22: =IFERROR(VLOOKUP(A22,EEFF_SITUACION!A:E,2,0),"") -> Otros activos a corto plazo | C22: =IFERROR(VLOOKUP(A22,EEFF_SITUACION!A:E,3,0),0) -> 07 | D22: =IFERROR(VLOOKUP(A22,EEFF_SITUACION!A:J,4,0),0) -> 16571.76331 | E22: =IFERROR(VLOOKUP(A22,EEFF_SITUACION!A:J,5,0),0) -> 20674.10098 | F22: =IFERROR(VLOOKUP(A22,EEFF_SITUACION!A:J,10,0),0) -> -0.1984288301 | H22: =IFERROR(VLOOKUP(A22,EEFF_SITUACION!A:L,12,0),0) -> La cuenta Otros activos a corto plazo, representa el 0,01% del total del Activo, que comparado al periodo anterior genera una variación absoluta de -4 102,34 que corresponde a un Disminución del -19,84% de recursos disponibles.
A24: Cuenta | B24: Descripción | C24: Nota | D24: Periodo Actual | E24: Periodo Anterior | F24: Diferencia
F25: %
A26: 1.2.2. | B26: =IFERROR(VLOOKUP(A26,EEFF_SITUACION!A:E,2,0),"") -> Inversiones a largo plazo | C26: =IFERROR(VLOOKUP(A26,EEFF_SITUACION!A:E,3,0),0) -> 08 | D26: =IFERROR(VLOOKUP(A26,EEFF_SITUACION!A:J,4,0),0) -> 0 | E26: =IFERROR(VLOOKUP(A26,EEFF_SITUACION!A:J,5,0),0) -> 0 | F26: =IFERROR(VLOOKUP(A26,EEFF_SITUACION!A:J,10,0),0) -> 0 | H26: =IFERROR(VLOOKUP(A26,EEFF_SITUACION!A:L,12,0),0) -> La cuenta Inversiones a largo plazo, representa el 0,00% del total del Activo, que comparado al periodo anterior genera una variación absoluta de 0 000,00 que corresponde a un Aumento del 0,00% de recursos disponibles.
A28: Cuenta | B28: Descripción | C28: Nota | D28: Periodo Actual | E28: Periodo Anterior | F28: Diferencia
F29: %
A30: 1.2.3. | B30: =IFERROR(VLOOKUP(A30,EEFF_SITUACION!A:E,2,0),"") -> Cuentas a cobrar a largo plazo | C30: =IFERROR(VLOOKUP(A30,EEFF_SITUACION!A:E,3,0),0) -> 09 | D30: =IFERROR(VLOOKUP(A30,EEFF_SITUACION!A:J,4,0),0) -> 0 | E30: =IFERROR(VLOOKUP(A30,EEFF_SITUACION!A:J,5,0),0) -> 0 | F30: =IFERROR(VLOOKUP(A30,EEFF_SITUACION!A:J,10,0),0) -> 0 | H30: =IFERROR(VLOOKUP(A30,EEFF_SITUACION!A:L,12,0),0) -> La cuenta Cuentas a cobrar a largo plazo, representa el 0,00% del total del Activo, que comparado al periodo anterior genera una variación absoluta de 0 000,00 que corresponde a un Aumento del 0,00% de recursos disponibles.
A32: Cuenta | B32: Descripción | C32: Nota | D32: Periodo Actual | E32: Periodo Anterior | F32: Diferencia
F33: %
A34: 1.2.5. | B34: =IFERROR(VLOOKUP(A34,EEFF_SITUACION!A:E,2,0),"") -> Bienes no concesionados | C34: =IFERROR(VLOOKUP(A34,EEFF_SITUACION!A:E,3,0),0) -> 10 | D34: =IFERROR(VLOOKUP(A34,EEFF_SITUACION!A:J,4,0),0) -> 163213351.6 | E34: =IFERROR(VLOOKUP(A34,EEFF_SITUACION!A:J,5,0),0) -> 162699631.7 | F34: =IFERROR(VLOOKUP(A34,EEFF_SITUACION!A:J,10,0),0) -> 0.00315747467 | H34: =IFERROR(VLOOKUP(A34,EEFF_SITUACION!A:L,12,0),0) -> La cuenta Bienes no concesionados, representa el 97,16% del total del Activo, que comparado al periodo anterior genera una variación absoluta de 513 719,97 que corresponde a un Aumento del 0,32% de recursos disponibles.
A36: Cuenta | B36: Descripción | C36: Nota | D36: Periodo Actual | E36: Periodo Anterior | F36: Diferencia
F37: %
A38: 1.2.5.01. | B38: =IFERROR(VLOOKUP(A38,EEFF_SITUACION!A:E,2,0),"") -> Propiedades, planta y equipos explotados | C38: =C34 -> 10 | D38: =IFERROR(VLOOKUP(A38,EEFF_SITUACION!A:J,4,0),0) -> 2346799.636 | E38: =IFERROR(VLOOKUP(A38,EEFF_SITUACION!A:J,5,0),0) -> 1848565.335 | F38: =IFERROR(VLOOKUP(A38,EEFF_SITUACION!A:J,10,0),0) -> 0.2695248538 | H38: =IFERROR(VLOOKUP(A38,EEFF_SITUACION!A:L,12,0),0) -> La cuenta Propiedades, planta y equipos explotados, representa el 1,40% del total del Activo, que comparado al periodo anterior genera una variación absoluta de 498 234,30 que corresponde a un Aumento del 26,95% de recursos disponibles.
A40: Cuenta | B40: Descripción | C40: Nota | D40: Periodo Actual | E40: Periodo Anterior | F40: Diferencia
F41: %
A42: 1.2.5.02. | B42: =IFERROR(VLOOKUP(A42,EEFF_SITUACION!A:E,2,0),"") -> Propiedades de inversión | C42: =C34 -> 10 | D42: =IFERROR(VLOOKUP(A42,EEFF_SITUACION!A:J,4,0),0) -> 0 | E42: =IFERROR(VLOOKUP(A42,EEFF_SITUACION!A:J,5,0),0) -> 0 | F42: =IFERROR(VLOOKUP(A42,EEFF_SITUACION!A:J,10,0),0) -> 0 | H42: =IFERROR(VLOOKUP(A42,EEFF_SITUACION!A:L,12,0),0) -> La cuenta Propiedades de inversión, representa el 0,00% del total del Activo, que comparado al periodo anterior genera una variación absoluta de 0 000,00 que corresponde a un Aumento del 0,00% de recursos disponibles.
A44: Cuenta | B44: Descripción | C44: Nota | D44: Periodo Actual | E44: Periodo Anterior | F44: Diferencia
F45: %
A46: 1.2.5.03. | B46: =IFERROR(VLOOKUP(A46,EEFF_SITUACION!A:E,2,0),"") -> Activos biológicos no concesionados | C46: =C34 -> 10 | D46: =IFERROR(VLOOKUP(A46,EEFF_SITUACION!A:J,4,0),0) -> 0 | E46: =IFERROR(VLOOKUP(A46,EEFF_SITUACION!A:J,5,0),0) -> 0 | F46: =IFERROR(VLOOKUP(A46,EEFF_SITUACION!A:J,10,0),0) -> 0 | H46: =IFERROR(VLOOKUP(A46,EEFF_SITUACION!A:L,12,0),0) -> La cuenta Activos biológicos no concesionados, representa el 0,00% del total del Activo, que comparado al periodo anterior genera una variación absoluta de 0 000,00 que corresponde a un Aumento del 0,00% de recursos disponibles.
A48: Cuenta | B48: Descripción | C48: Nota | D48: Periodo Actual | E48: Periodo Anterior | F48: Diferencia
F49: %
A50: 1.2.5.04. | B50: =IFERROR(VLOOKUP(A50,EEFF_SITUACION!A:E,2,0),"") -> Bienes de infraestructura y de beneficio y uso público en servicio | C50: =C34 -> 10 | D50: =IFERROR(VLOOKUP(A50,EEFF_SITUACION!A:J,4,0),0) -> 160765498.1 | E50: =IFERROR(VLOOKUP(A50,EEFF_SITUACION!A:J,5,0),0) -> 160765498.1 | F50: =IFERROR(VLOOKUP(A50,EEFF_SITUACION!A:J,10,0),0) -> 0 | H50: =IFERROR(VLOOKUP(A50,EEFF_SITUACION!A:L,12,0),0) -> La cuenta Bienes de infraestructura y de beneficio y uso público en servicio, representa el 95,70% del total del Activo, que comparado al periodo anterior genera una variación absoluta de 0 000,00 que corresponde a un Aumento del 0,00% de recursos disponibles.
A52: Cuenta | B52: Descripción | C52: Nota | D52: Periodo Actual | E52: Periodo Anterior | F52: Diferencia
F53: %
A54: 1.2.5.05. | B54: =IFERROR(VLOOKUP(A54,EEFF_SITUACION!A:E,2,0),"") -> Bienes históricos y culturales | C54: =C34 -> 10 | D54: =IFERROR(VLOOKUP(A54,EEFF_SITUACION!A:J,4,0),0) -> 0 | E54: =IFERROR(VLOOKUP(A54,EEFF_SITUACION!A:J,5,0),0) -> 0 | F54: =IFERROR(VLOOKUP(A54,EEFF_SITUACION!A:J,10,0),0) -> 0 | H54: =IFERROR(VLOOKUP(A54,EEFF_SITUACION!A:L,12,0),0) -> La cuenta Bienes históricos y culturales, representa el 0,00% del total del Activo, que comparado al periodo anterior genera una variación absoluta de 0 000,00 que corresponde a un Aumento del 0,00% de recursos disponibles.
A56: Cuenta | B56: Descripción | C56: Nota | D56: Periodo Actual | E56: Periodo Anterior | F56: Diferencia
F57: %
A58: 1.2.5.06. | B58: =IFERROR(VLOOKUP(A58,EEFF_SITUACION!A:E,2,0),"") -> Recursos naturales en explotación | C58: =C34 -> 10 | D58: =IFERROR(VLOOKUP(A58,EEFF_SITUACION!A:J,4,0),0) -> 0 | E58: =IFERROR(VLOOKUP(A58,EEFF_SITUACION!A:J,5,0),0) -> 0 | F58: =IFERROR(VLOOKUP(A58,EEFF_SITUACION!A:J,10,0),0) -> 0 | H58: =IFERROR(VLOOKUP(A58,EEFF_SITUACION!A:L,12,0),0) -> La cuenta Recursos naturales en explotación, representa el 0,00% del total del Activo, que comparado al periodo anterior genera una variación absoluta de 0 000,00 que corresponde a un Aumento del 0,00% de recursos disponibles.
A60: Cuenta | B60: Descripción | C60: Nota | D60: Periodo Actual | E60: Periodo Anterior | F60: Diferencia
F61: %
A62: 1.2.5.07. | B62: =IFERROR(VLOOKUP(A62,EEFF_SITUACION!A:E,2,0),"") -> Recursos naturales en conservación | C62: =C34 -> 10 | D62: =IFERROR(VLOOKUP(A62,EEFF_SITUACION!A:J,4,0),0) -> 0 | E62: =IFERROR(VLOOKUP(A62,EEFF_SITUACION!A:J,5,0),0) -> 0 | F62: =IFERROR(VLOOKUP(A62,EEFF_SITUACION!A:J,10,0),0) -> 0 | H62: =IFERROR(VLOOKUP(A62,EEFF_SITUACION!A:L,12,0),0) -> La cuenta Recursos naturales en conservación, representa el 0,00% del total del Activo, que comparado al periodo anterior genera una variación absoluta de 0 000,00 que corresponde a un Aumento del 0,00% de recursos disponibles.
A64: Cuenta | B64: Descripción | C64: Nota | D64: Periodo Actual | E64: Periodo Anterior | F64: Diferencia
F65: %
A66: 1.2.5.08. | B66: =IFERROR(VLOOKUP(A66,EEFF_SITUACION!A:E,2,0),"") -> Bienes intangibles no concesionados | C66: =C34 -> 10 | D66: =IFERROR(VLOOKUP(A66,EEFF_SITUACION!A:J,4,0),0) -> 3474.77175 | E66: =IFERROR(VLOOKUP(A66,EEFF_SITUACION!A:J,5,0),0) -> 7987.29414 | F66: =IFERROR(VLOOKUP(A66,EEFF_SITUACION!A:J,10,0),0) -> -0.5649625907 | H66: =IFERROR(VLOOKUP(A66,EEFF_SITUACION!A:L,12,0),0) -> La cuenta Bienes intangibles no concesionados, representa el 0,00% del total del Activo, que comparado al periodo anterior genera una variación absoluta de -4 512,52 que corresponde a un Disminución del -56,50% de recursos disponibles.
A68: Cuenta | B68: Descripción | C68: Nota | D68: Periodo Actual | E68: Periodo Anterior | F68: Diferencia
F69: %
A70: 1.2.5.99. | B70: =IFERROR(VLOOKUP(A70,EEFF_SITUACION!A:E,2,0),"") -> Bienes no concesionados en proceso de producción | C70: =C34 -> 10 | D70: =IFERROR(VLOOKUP(A70,EEFF_SITUACION!A:J,4,0),0) -> 97579.14782 | E70: =IFERROR(VLOOKUP(A70,EEFF_SITUACION!A:J,5,0),0) -> 77580.96105 | F70: =IFERROR(VLOOKUP(A70,EEFF_SITUACION!A:J,10,0),0) -> 0.257771836 | H70: =IFERROR(VLOOKUP(A70,EEFF_SITUACION!A:L,12,0),0) -> La cuenta Bienes no concesionados en proceso de producción, representa el 0,06% del total del Activo, que comparado al periodo anterior genera una variación absoluta de 19 998,19 que corresponde a un Aumento del 25,78% de recursos disponibles.
A72: Cuenta | B72: Descripción | C72: Nota | D72: Periodo Actual | E72: Periodo Anterior | F72: Diferencia
F73: %
A74: 1.2.6. | B74: =IFERROR(VLOOKUP(A74,EEFF_SITUACION!A:E,2,0),"") -> Bienes concesionados | C74: =IFERROR(VLOOKUP(A74,EEFF_SITUACION!A:E,3,0),0) -> 11 | D74: =IFERROR(VLOOKUP(A74,EEFF_SITUACION!A:J,4,0),0) -> 0 | E74: =IFERROR(VLOOKUP(A74,EEFF_SITUACION!A:J,5,0),0) -> 0 | F74: =IFERROR(VLOOKUP(A74,EEFF_SITUACION!A:J,10,0),0) -> 0 | H74: =IFERROR(VLOOKUP(A74,EEFF_SITUACION!A:L,12,0),0) -> La cuenta Bienes concesionados, representa el 0,00% del total del Activo, que comparado al periodo anterior genera una variación absoluta de 0 000,00 que corresponde a un Aumento del 0,00% de recursos disponibles.
A76: Cuenta | B76: Descripción | C76: Nota | D76: Periodo Actual | E76: Periodo Anterior | F76: Diferencia
F77: %
A78: 1.2.6.01. | B78: =IFERROR(VLOOKUP(A78,EEFF_SITUACION!A:E,2,0),"") -> Propiedades, planta y equipos concesionados | C78: =C74 -> 11 | D78: =IFERROR(VLOOKUP(A78,EEFF_SITUACION!A:J,4,0),0) -> 0 | E78: =IFERROR(VLOOKUP(A78,EEFF_SITUACION!A:J,5,0),0) -> 0 | F78: =IFERROR(VLOOKUP(A78,EEFF_SITUACION!A:J,10,0),0) -> 0 | H78: =IFERROR(VLOOKUP(A78,EEFF_SITUACION!A:L,12,0),0) -> La cuenta Propiedades, planta y equipos concesionados, representa el 0,00% del total del Activo, que comparado al periodo anterior genera una variación absoluta de 0 000,00 que corresponde a un Aumento del 0,00% de recursos disponibles.
A80: Cuenta | B80: Descripción | C80: Nota | D80: Periodo Actual | E80: Periodo Anterior | F80: Diferencia
F81: %
A82: 1.2.6.03. | B82: =IFERROR(VLOOKUP(A82,EEFF_SITUACION!A:E,2,0),"") -> Activos biológicos concesionados | C82: =C74 -> 11 | D82: =IFERROR(VLOOKUP(A82,EEFF_SITUACION!A:J,4,0),0) -> 0 | E82: =IFERROR(VLOOKUP(A82,EEFF_SITUACION!A:J,5,0),0) -> 0 | F82: =IFERROR(VLOOKUP(A82,EEFF_SITUACION!A:J,10,0),0) -> 0 | H82: =IFERROR(VLOOKUP(A82,EEFF_SITUACION!A:L,12,0),0) -> La cuenta Activos biológicos concesionados, representa el 0,00% del total del Activo, que comparado al periodo anterior genera una variación absoluta de 0 000,00 que corresponde a un Aumento del 0,00% de recursos disponibles.
A84: Cuenta | B84: Descripción | C84: Nota | D84: Periodo Actual | E84: Periodo Anterior | F84: Diferencia
F85: %
A86: 1.2.6.04. | B86: =IFERROR(VLOOKUP(A86,EEFF_SITUACION!A:E,2,0),"") -> Bienes de infraestructura y de beneficio y uso público concesionados | C86: =C74 -> 11 | D86: =IFERROR(VLOOKUP(A86,EEFF_SITUACION!A:J,4,0),0) -> 0 | E86: =IFERROR(VLOOKUP(A86,EEFF_SITUACION!A:J,5,0),0) -> 0 | F86: =IFERROR(VLOOKUP(A86,EEFF_SITUACION!A:J,10,0),0) -> 0 | H86: =IFERROR(VLOOKUP(A86,EEFF_SITUACION!A:L,12,0),0) -> La cuenta Bienes de infraestructura y de beneficio y uso público concesionados, representa el 0,00% del total del Activo, que comparado al periodo anterior genera una variación absoluta de 0 000,00 que corresponde a un Aumento del 0,00% de recursos disponibles.
A88: Cuenta | B88: Descripción | C88: Nota | D88: Periodo Actual | E88: Periodo Anterior | F88: Diferencia
F89: %
A90: 1.2.6.06. | B90: =IFERROR(VLOOKUP(A90,EEFF_SITUACION!A:E,2,0),"") -> Recursos naturales concesionados | C90: =C74 -> 11 | D90: =IFERROR(VLOOKUP(A90,EEFF_SITUACION!A:J,4,0),0) -> 0 | E90: =IFERROR(VLOOKUP(A90,EEFF_SITUACION!A:J,5,0),0) -> 0 | F90: =IFERROR(VLOOKUP(A90,EEFF_SITUACION!A:J,10,0),0) -> 0 | H90: =IFERROR(VLOOKUP(A90,EEFF_SITUACION!A:L,12,0),0) -> La cuenta Recursos naturales concesionados, representa el 0,00% del total del Activo, que comparado al periodo anterior genera una variación absoluta de 0 000,00 que corresponde a un Aumento del 0,00% de recursos disponibles.
A92: Cuenta | B92: Descripción | C92: Nota | D92: Periodo Actual | E92: Periodo Anterior | F92: Diferencia
F93: %
A94: 1.2.6.08. | B94: =IFERROR(VLOOKUP(A94,EEFF_SITUACION!A:E,2,0),"") -> Bienes intangibles concesionados | C94: =C74 -> 11 | D94: =IFERROR(VLOOKUP(A94,EEFF_SITUACION!A:J,4,0),0) -> 0 | E94: =IFERROR(VLOOKUP(A94,EEFF_SITUACION!A:J,5,0),0) -> 0 | F94: =IFERROR(VLOOKUP(A94,EEFF_SITUACION!A:J,10,0),0) -> 0 | H94: =IFERROR(VLOOKUP(A94,EEFF_SITUACION!A:L,12,0),0) -> La cuenta Bienes intangibles concesionados, representa el 0,00% del total del Activo, que comparado al periodo anterior genera una variación absoluta de 0 000,00 que corresponde a un Aumento del 0,00% de recursos disponibles.
A96: Cuenta | B96: Descripción | C96: Nota | D96: Periodo Actual | E96: Periodo Anterior | F96: Diferencia
F97: %
A98: 1.2.6.99. | B98: Bienes concesionados | C98: =C74 -> 11 | D98: 0 | E98: 0 | F98: 0 | H98: =IFERROR(VLOOKUP(A98,EEFF_SITUACION!A:L,12,0),0) -> La cuenta Bienes concesionados en proceso de producción, representa el 0,00% del total del Activo, que comparado al periodo anterior genera una variación absoluta de 0 000,00 que corresponde a un Aumento del 0,00% de recursos disponibles.
A100: Cuenta | B100: Descripción | C100: Nota | D100: Periodo Actual | E100: Periodo Anterior | F100: Diferencia
F101: %
A102: 1.2.7. | B102: =IFERROR(VLOOKUP(A102,EEFF_SITUACION!A:E,2,0),"") -> Inversiones patrimoniales - Método de participación | C102: =IFERROR(VLOOKUP(A102,EEFF_SITUACION!A:E,3,0),0) -> 12 | D102: =IFERROR(VLOOKUP(A102,EEFF_SITUACION!A:J,4,0),0) -> 0 | E102: =IFERROR(VLOOKUP(A102,EEFF_SITUACION!A:J,5,0),0) -> 0 | F102: =IFERROR(VLOOKUP(A102,EEFF_SITUACION!A:J,10,0),0) -> 0 | H102: =IFERROR(VLOOKUP(A102,EEFF_SITUACION!A:L,12,0),0) -> La cuenta Inversiones patrimoniales - Método de participación, representa el 0,00% del total del Activo, que comparado al periodo anterior genera una variación absoluta de 0 000,00 que corresponde a un Aumento del 0,00% de recursos disponibles.
A104: Cuenta | B104: Descripción | C104: Nota | D104: Periodo Actual | E104: Periodo Anterior | F104: Diferencia
F105: %
A106: 1.2.9. | B106: =IFERROR(VLOOKUP(A106,EEFF_SITUACION!A:E,2,0),"") -> Otros activos a largo plazo | C106: =IFERROR(VLOOKUP(A106,EEFF_SITUACION!A:E,3,0),0) -> 13 | D106: =IFERROR(VLOOKUP(A106,EEFF_SITUACION!A:J,4,0),0) -> 0 | E106: =IFERROR(VLOOKUP(A106,EEFF_SITUACION!A:J,5,0),0) -> 0 | F106: =IFERROR(VLOOKUP(A106,EEFF_SITUACION!A:J,10,0),0) -> 0 | H106: =IFERROR(VLOOKUP(A106,EEFF_SITUACION!A:L,12,0),0) -> La cuenta Otros activos a largo plazo, representa el 0,00% del total del Activo, que comparado al periodo anterior genera una variación absoluta de 0 000,00 que corresponde a un Aumento del 0,00% de recursos disponibles.
A108: Cuenta | B108: Descripción | C108: Nota | D108: Periodo Actual | E108: Periodo Anterior | F108: Diferencia
F109: %
A110: 1.2.9.01. | B110: =IFERROR(VLOOKUP(A110,EEFF_SITUACION!A:E,2,0),"") -> Gastos a devengar a largo plazo | C110: =C106 -> 13 | D110: =IFERROR(VLOOKUP(A110,EEFF_SITUACION!A:J,4,0),0) -> 0 | E110: =IFERROR(VLOOKUP(A110,EEFF_SITUACION!A:J,5,0),0) -> 0 | F110: =IFERROR(VLOOKUP(A110,EEFF_SITUACION!A:J,10,0),0) -> 0 | H110: =IFERROR(VLOOKUP(A110,EEFF_SITUACION!A:L,12,0),0) -> La cuenta Gastos a devengar a largo plazo, representa el 0,00% del total del Activo, que comparado al periodo anterior genera una variación absoluta de 0 000,00 que corresponde a un Aumento del 0,00% de recursos disponibles.
A113: PASIVO
A115: Cuenta | B115: Descripción | C115: Nota | D115: Periodo Actual | E115: Periodo Anterior | F115: Diferencia
F116: %
A117: 2.1.1. | B117: =IFERROR(VLOOKUP(A117,EEFF_SITUACION!A:E,2,0),"") -> Deudas a corto plazo | C117: =IFERROR(VLOOKUP(A117,EEFF_SITUACION!A:E,3,0),0) -> 14 | D117: =IFERROR(VLOOKUP(A117,EEFF_SITUACION!A:J,4,0),0) -> 251050.9175 | E117: =IFERROR(VLOOKUP(A117,EEFF_SITUACION!A:J,5,0),0) -> 573033.2035 | F117: =IFERROR(VLOOKUP(A117,EEFF_SITUACION!A:J,10,0),0) -> -0.5618911504 | H117: =IFERROR(VLOOKUP(A117,EEFF_SITUACION!A:L,12,0),0) -> La cuenta Deudas a corto plazo, representa el 12,97% del total del Pasivo, que comparado al periodo anterior genera una variación absoluta de -321 982,29 que corresponde a un Disminución del -56,19% de recursos disponibles.
A119: Cuenta | B119: Descripción | C119: Nota | D119: Periodo Actual | E119: Periodo Anterior | F119: Diferencia
F120: %
A121: 2.1.2. | B121: =IFERROR(VLOOKUP(A121,EEFF_SITUACION!A:E,2,0),"") -> Endeudamiento público a corto plazo | C121: =IFERROR(VLOOKUP(A121,EEFF_SITUACION!A:E,3,0),0) -> 15 | D121: =IFERROR(VLOOKUP(A121,EEFF_SITUACION!A:J,4,0),0) -> 485546.5996 | E121: =IFERROR(VLOOKUP(A121,EEFF_SITUACION!A:J,5,0),0) -> 329795.988 | F121: =IFERROR(VLOOKUP(A121,EEFF_SITUACION!A:J,10,0),0) -> 0.4722635125 | H121: =IFERROR(VLOOKUP(A121,EEFF_SITUACION!A:L,12,0),0) -> La cuenta Endeudamiento público a corto plazo, representa el 25,08% del total del Pasivo, que comparado al periodo anterior genera una variación absoluta de 155 750,61 que corresponde a un Aumento del 47,23% de recursos disponibles.
A123: Cuenta | B123: Descripción | C123: Nota | D123: Periodo Actual | E123: Periodo Anterior | F123: Diferencia
F124: %
A125: 2.1.3. | B125: =IFERROR(VLOOKUP(A125,EEFF_SITUACION!A:E,2,0),"") -> Fondos de terceros y en garantía | C125: =IFERROR(VLOOKUP(A125,EEFF_SITUACION!A:E,3,0),0) -> 16 | D125: =IFERROR(VLOOKUP(A125,EEFF_SITUACION!A:J,4,0),0) -> 58724.39964 | E125: =IFERROR(VLOOKUP(A125,EEFF_SITUACION!A:J,5,0),0) -> 908486.0708 | F125: =IFERROR(VLOOKUP(A125,EEFF_SITUACION!A:J,10,0),0) -> -0.9353601541 | H125: =IFERROR(VLOOKUP(A125,EEFF_SITUACION!A:L,12,0),0) -> La cuenta Fondos de terceros y en garantía, representa el 3,03% del total del Pasivo, que comparado al periodo anterior genera una variación absoluta de -849 761,67 que corresponde a un Disminución del -93,54% de recursos disponibles.
A127: Cuenta | B127: Descripción | C127: Nota | D127: Periodo Actual | E127: Periodo Anterior | F127: Diferencia
F128: %
A129: 2.1.3.03. | B129: =IFERROR(VLOOKUP(A129,EEFF_SITUACION!A:E,2,0),"") -> Depósitos en garantía | C129: =C125 -> 16 | D129: =IFERROR(VLOOKUP(A129,EEFF_SITUACION!A:J,4,0),0) -> 58724.39964 | E129: =IFERROR(VLOOKUP(A129,EEFF_SITUACION!A:J,5,0),0) -> 67537.73312 | F129: =IFERROR(VLOOKUP(A129,EEFF_SITUACION!A:J,10,0),0) -> -0.1304949555 | H129: =IFERROR(VLOOKUP(A129,EEFF_SITUACION!A:L,12,0),0) -> La cuenta Depósitos en garantía, representa el 3,03% del total del Pasivo, que comparado al periodo anterior genera una variación absoluta de -8 813,33 que corresponde a un Disminución del -13,05% de recursos disponibles.
A131: Cuenta | B131: Descripción | C131: Nota | D131: Periodo Actual | E131: Periodo Anterior | F131: Diferencia
F132: %
A133: 2.1.4. | B133: =IFERROR(VLOOKUP(A133,EEFF_SITUACION!A:E,2,0),"") -> Provisiones y reservas técnicas a corto plazo | C133: =IFERROR(VLOOKUP(A133,EEFF_SITUACION!A:E,3,0),0) -> 17 | D133: =IFERROR(VLOOKUP(A133,EEFF_SITUACION!A:J,4,0),0) -> 0 | E133: =IFERROR(VLOOKUP(A133,EEFF_SITUACION!A:J,5,0),0) -> 0 | F133: =IFERROR(VLOOKUP(A133,EEFF_SITUACION!A:J,10,0),0) -> 0 | H133: =IFERROR(VLOOKUP(A133,EEFF_SITUACION!A:L,12,0),0) -> La cuenta Provisiones y reservas técnicas a corto plazo, representa el 0,00% del total del Pasivo, que comparado al periodo anterior genera una variación absoluta de 0 000,00 que corresponde a un Aumento del 0,00% de recursos disponibles.
A135: Cuenta | B135: Descripción | C135: Nota | D135: Periodo Actual | E135: Periodo Anterior | F135: Diferencia
F136: %
A137: 2.1.4.01. | B137: =IFERROR(VLOOKUP(A137,EEFF_SITUACION!A:E,2,0),"") -> Provisiones a corto plazo | C137: =C133 -> 17 | D137: =IFERROR(VLOOKUP(A137,EEFF_SITUACION!A:J,4,0),0) -> 0 | E137: =IFERROR(VLOOKUP(A137,EEFF_SITUACION!A:J,5,0),0) -> 0 | F137: =IFERROR(VLOOKUP(A137,EEFF_SITUACION!A:J,10,0),0) -> 0 | H137: =IFERROR(VLOOKUP(A137,EEFF_SITUACION!A:L,12,0),0) -> La cuenta Provisiones a corto plazo, representa el 0,00% del total del Pasivo, que comparado al periodo anterior genera una variación absoluta de 0 000,00 que corresponde a un Aumento del 0,00% de recursos disponibles.
A139: Cuenta | B139: Descripción | C139: Nota | D139: Periodo Actual | E139: Periodo Anterior | F139: Diferencia
F140: %
A141: 2.1.9. | B141: =IFERROR(VLOOKUP(A141,EEFF_SITUACION!A:E,2,0),"") -> Otros pasivos a corto plazo | C141: =IFERROR(VLOOKUP(A141,EEFF_SITUACION!A:E,3,0),0) -> 18 | D141: =IFERROR(VLOOKUP(A141,EEFF_SITUACION!A:J,4,0),0) -> 0 | E141: =IFERROR(VLOOKUP(A141,EEFF_SITUACION!A:J,5,0),0) -> 556.53649 | F141: =IFERROR(VLOOKUP(A141,EEFF_SITUACION!A:J,10,0),0) -> -1 | H141: =IFERROR(VLOOKUP(A141,EEFF_SITUACION!A:L,12,0),0) -> La cuenta Otros pasivos a corto plazo, representa el 0,00% del total del Pasivo, que comparado al periodo anterior genera una variación absoluta de -0 556,54 que corresponde a un Disminución del -100,00% de recursos disponibles.
A143: Cuenta | B143: Descripción | C143: Nota | D143: Periodo Actual | E143: Periodo Anterior | F143: Diferencia
F144: %
A145: 2.1.9.01. | B145: =IFERROR(VLOOKUP(A145,EEFF_SITUACION!A:E,2,0),"") -> Ingresos a devengar a corto plazo | C145: =C141 -> 18 | D145: =IFERROR(VLOOKUP(A145,EEFF_SITUACION!A:J,4,0),0) -> 0 | E145: =IFERROR(VLOOKUP(A145,EEFF_SITUACION!A:J,5,0),0) -> 0 | F145: =IFERROR(VLOOKUP(A145,EEFF_SITUACION!A:J,10,0),0) -> 0 | H145: =IFERROR(VLOOKUP(A145,EEFF_SITUACION!A:L,12,0),0) -> La cuenta Ingresos a devengar a corto plazo, representa el 0,00% del total del Pasivo, que comparado al periodo anterior genera una variación absoluta de 0 000,00 que corresponde a un Aumento del 0,00% de recursos disponibles.
A147: Cuenta | B147: Descripción | C147: Nota | D147: Periodo Actual | E147: Periodo Anterior | F147: Diferencia
F148: %
A149: 2.2.1. | B149: =IFERROR(VLOOKUP(A149,EEFF_SITUACION!A:E,2,0),"") -> Deudas a largo plazo | C149: =IFERROR(VLOOKUP(A149,EEFF_SITUACION!A:E,3,0),0) -> 19 | D149: =IFERROR(VLOOKUP(A149,EEFF_SITUACION!A:J,4,0),0) -> 0 | E149: =IFERROR(VLOOKUP(A149,EEFF_SITUACION!A:J,5,0),0) -> 0 | F149: =IFERROR(VLOOKUP(A149,EEFF_SITUACION!A:J,10,0),0) -> 0 | H149: =IFERROR(VLOOKUP(A149,EEFF_SITUACION!A:L,12,0),0) -> La cuenta Deudas a largo plazo, representa el 0,00% del total del Pasivo, que comparado al periodo anterior genera una variación absoluta de 0 000,00 que corresponde a un Aumento del 0,00% de recursos disponibles.
A151: Cuenta | B151: Descripción | C151: Nota | D151: Periodo Actual | E151: Periodo Anterior | F151: Diferencia
F152: %
A153: 2.2.2. | B153: =IFERROR(VLOOKUP(A153,EEFF_SITUACION!A:E,2,0),"") -> Endeudamiento público a largo plazo | C153: =IFERROR(VLOOKUP(A153,EEFF_SITUACION!A:E,3,0),0) -> 20 | D153: =IFERROR(VLOOKUP(A153,EEFF_SITUACION!A:J,4,0),0) -> 1098005.363 | E153: =IFERROR(VLOOKUP(A153,EEFF_SITUACION!A:J,5,0),0) -> 1153101.091 | F153: =IFERROR(VLOOKUP(A153,EEFF_SITUACION!A:J,10,0),0) -> -0.04778048366 | H153: =IFERROR(VLOOKUP(A153,EEFF_SITUACION!A:L,12,0),0) -> La cuenta Endeudamiento público a largo plazo, representa el 56,71% del total del Pasivo, que comparado al periodo anterior genera una variación absoluta de -55 095,73 que corresponde a un Disminución del -4,78% de recursos disponibles.
A155: Cuenta | B155: Descripción | C155: Nota | D155: Periodo Actual | E155: Periodo Anterior | F155: Diferencia
F156: %
A157: 2.2.3. | B157: =IFERROR(VLOOKUP(A157,EEFF_SITUACION!A:E,2,0),"") -> Fondos de terceros y en garantía | C157: =IFERROR(VLOOKUP(A157,EEFF_SITUACION!A:E,3,0),0) -> 21 | D157: =IFERROR(VLOOKUP(A157,EEFF_SITUACION!A:J,4,0),0) -> 0 | E157: =IFERROR(VLOOKUP(A157,EEFF_SITUACION!A:J,5,0),0) -> 0 | F157: =IFERROR(VLOOKUP(A157,EEFF_SITUACION!A:J,10,0),0) -> 0 | H157: =IFERROR(VLOOKUP(A157,EEFF_SITUACION!A:L,12,0),0) -> La cuenta Fondos de terceros y en garantía, representa el 0,00% del total del Pasivo, que comparado al periodo anterior genera una variación absoluta de 0 000,00 que corresponde a un Aumento del 0,00% de recursos disponibles.
A159: Cuenta | B159: Descripción | C159: Nota | D159: Periodo Actual | E159: Periodo Anterior | F159: Diferencia
F160: %
A161: 2.2.4. | B161: =IFERROR(VLOOKUP(A161,EEFF_SITUACION!A:E,2,0),"") -> Provisiones y reservas técnicas a largo plazo | C161: =IFERROR(VLOOKUP(A161,EEFF_SITUACION!A:E,3,0),0) -> 22 | D161: =IFERROR(VLOOKUP(A161,EEFF_SITUACION!A:J,4,0),0) -> 42912.36 | E161: =IFERROR(VLOOKUP(A161,EEFF_SITUACION!A:J,5,0),0) -> 2954.16 | F161: =IFERROR(VLOOKUP(A161,EEFF_SITUACION!A:J,10,0),0) -> 13.52607848 | H161: =IFERROR(VLOOKUP(A161,EEFF_SITUACION!A:L,12,0),0) -> La cuenta Provisiones y reservas técnicas a largo plazo, representa el 2,22% del total del Pasivo, que comparado al periodo anterior genera una variación absoluta de 39 958,20 que corresponde a un Aumento del 1352,61% de recursos disponibles.
A163: Cuenta | B163: Descripción | C163: Nota | D163: Periodo Actual | E163: Periodo Anterior | F163: Diferencia
F164: %
A165: 2.2.4.01. | B165: =IFERROR(VLOOKUP(A165,EEFF_SITUACION!A:E,2,0),"") -> Provisiones a largo plazo | C165: =C161 -> 22 | D165: =IFERROR(VLOOKUP(A165,EEFF_SITUACION!A:J,4,0),0) -> 42912.36 | E165: =IFERROR(VLOOKUP(A165,EEFF_SITUACION!A:J,5,0),0) -> 2954.16 | F165: =IFERROR(VLOOKUP(A165,EEFF_SITUACION!A:J,10,0),0) -> 13.52607848 | H165: =IFERROR(VLOOKUP(A165,EEFF_SITUACION!A:L,12,0),0) -> La cuenta Provisiones a largo plazo, representa el 2,22% del total del Pasivo, que comparado al periodo anterior genera una variación absoluta de 39 958,20 que corresponde a un Aumento del 1352,61% de recursos disponibles.
A167: Cuenta | B167: Descripción | C167: Nota | D167: Periodo Actual | E167: Periodo Anterior | F167: Diferencia
F168: %
A169: 2.2.9. | B169: =IFERROR(VLOOKUP(A169,EEFF_SITUACION!A:E,2,0),"") -> Otros pasivos a largo plazo | C169: =IFERROR(VLOOKUP(A169,EEFF_SITUACION!A:E,3,0),0) -> 23 | D169: =IFERROR(VLOOKUP(A169,EEFF_SITUACION!A:J,4,0),0) -> 0 | E169: =IFERROR(VLOOKUP(A169,EEFF_SITUACION!A:J,5,0),0) -> 0 | F169: =IFERROR(VLOOKUP(A169,EEFF_SITUACION!A:J,10,0),0) -> 0 | H169: =IFERROR(VLOOKUP(A169,EEFF_SITUACION!A:L,12,0),0) -> La cuenta Otros pasivos a largo plazo, representa el 0,00% del total del Pasivo, que comparado al periodo anterior genera una variación absoluta de 0 000,00 que corresponde a un Aumento del 0,00% de recursos disponibles.
A171: Cuenta | B171: Descripción | C171: Nota | D171: Periodo Actual | E171: Periodo Anterior | F171: Diferencia
F172: %
A173: 2.2.9.01. | B173: =IFERROR(VLOOKUP(A173,EEFF_SITUACION!A:E,2,0),"") -> Ingresos a devengar a largo plazo | C173: =C169 -> 23 | D173: =IFERROR(VLOOKUP(A173,EEFF_SITUACION!A:J,4,0),0) -> 0 | E173: =IFERROR(VLOOKUP(A173,EEFF_SITUACION!A:J,5,0),0) -> 0 | F173: =IFERROR(VLOOKUP(A173,EEFF_SITUACION!A:J,10,0),0) -> 0 | H173: =IFERROR(VLOOKUP(A173,EEFF_SITUACION!A:L,12,0),0) -> La cuenta Ingresos a devengar a largo plazo, representa el 0,00% del total del Pasivo, que comparado al periodo anterior genera una variación absoluta de 0 000,00 que corresponde a un Aumento del 0,00% de recursos disponibles.
A176: PATRIMONIO
A178: Cuenta | B178: Descripción | C178: Nota | D178: Periodo Actual | E178: Periodo Anterior | F178: Diferencia
F179: %
A180: 3.1.1. | B180: =IFERROR(VLOOKUP(A180,EEFF_SITUACION!A:E,2,0),"") -> Capital | C180: =IFERROR(VLOOKUP(A180,EEFF_SITUACION!A:E,3,0),0) -> 24 | D180: =IFERROR(VLOOKUP(A180,EEFF_SITUACION!A:J,4,0),0) -> 0.5248 | E180: =IFERROR(VLOOKUP(A180,EEFF_SITUACION!A:J,5,0),0) -> 0.5248 | F180: =IFERROR(VLOOKUP(A180,EEFF_SITUACION!A:J,10,0),0) -> 0 | H180: =IFERROR(VLOOKUP(A180,EEFF_SITUACION!A:L,12,0),0) -> La cuenta Capital, representa el 0,00% del total del Capital, que comparado al periodo anterior genera una variación absoluta de 0 000,00 que corresponde a un Aumento del 0,00% de recursos disponibles.
A182: Cuenta | B182: Descripción | C182: Nota | D182: Periodo Actual | E182: Periodo Anterior | F182: Diferencia
F183: %
